Workbook

Sheet Cover
D2: Ausgrid cost escalation spreadsheet
C5: Version
C7: Date | D7: April 2012
C9: Period | D9: 2006-07 to 2018-19 (FY)
D10: 2007 to 2019 (CY)
B12: This spreadsheet contains the real cost escalators to be used by all Ausgrid plan areas in developing capex and opex forecasts.
B16: For consistency across Ausgrid, please ensure all cost escalation rates used in forecasting are derived from the rates in this spreadsheet.
B20: This spreadsheet is intended to be an exhaustive list of the real cost escalation rates used by Ausgrid.

Sheet Instructions
E2: Instructions
B4: For the capex and opex forecasts in our 2014-2019 regulatory proposal, we will need to apply a consistent approach to inflation, as well as the real increase in the costs of labour and materials over time.
B7: The capex and opex forecasts for the regulatory proposal should be represented using the purchasing power of the dollars as at 30 June 2014. In other words capex and opex should be represented in real 30 June 2014 dollars.
B10: The capex forecasts for the regulatory proposal should be represented using the input costs as at 30 December each year of the regulatory period. The AER’s financial model provides compensation for cost increases between 30 December and 30 June each financial year.
B14: The opex forecasts for the regulatory proposal should be represented using the input costs as at 30 June each year of the regulatory period.
B17: Please refer to the 'Cost Escalation: Reset 1419 Fact Sheet' for more detail.

Sheet Contents
A2: Contents
A4: 1. Introduction
A5: Cover page
A6: Instructions
A7: Contents
A9: 2. Inputs
A10: - Explanation
A11: - Inputs - Financial year basis
A12: - Inputs - Calendar year basis
A13: - Inputs - Weightings
A14: - Sources
A16: 3. Calculations / Analysis
A17: Financial year basis
A18: - Materials & Equipment escalators
A19: - Project escalators
A21: Calendar year basis
A22: - Materials & Equipment escalators
A23: - Project escalators
A25: 4. Final values
A26: - Financial year basis
A27: - Calendar year basis

Sheet Inputs >>

Sheet Explanation
A1: Inputs
A3: All inputs to the cost escalation spreadsheet are entered here.
A5: There are 5 categories of inputs
A6: Category | F6: No. escalators
A7: 1. Default cost escalators | F7: 15
A8: 2. EGW industry indices | F8: 8
A9: 3. Poles | F9: 2
A10: 4. Additional cost escalators | F10: 14
A11: 5. CPI | F11: 1
A13: Cost escalation inputs are entered in 'Input - Cost escalators - FY' and 'Input - Cost escalators - CY'.
A15: The cost escalation inputs are listed below.
A17: 1. Default cost escalators
A18: Aluminium
A19: Construction costs
A20: Copper
A21: Current transformer
A22: EGW wages
A23: Labour
A24: Land & Easements
A25: Materials
A26: Oil
A27: Other
A28: Producer's Margin
A29: Property
A30: Steel (Fabricated)
A31: Switchgear
A32: Transport
A34: 2. EGW industry indices
A35: - EGW wages is calculated as the average of 8 industry indices
A36: Labour - AWOTE Australia
A37: Labour - LPI Australia
A38: Labour - Downes AWOTE EGW
A39: Labour - Downes LPI EGW
A40: Labour - Qld Utilities
A41: Labour - Qld Utilities Prod.adj
A42: Labour - National Utilities
A43: Labour - Macromonitor WA
A45: 3. Poles
A46: - Ausgrid also estimates indices for 2 types of Poles
A47: Poles (Concrete)
A48: Poles (Wood)
A50: 4. Additional cost escalators
A51: - There are also an additional 14 cost escalators identified by Ausgrid plan areas which are relevant to capex / opex forecasting
A52: Infrastructure / Hardware
A53: Software
A54: Electricity / gas
A55: Land valuation
A56: Water
A57: Rent
A58: Reinstatement costs
A59: Communication Cable
A60: Communication Equipment
A61: Land - Rural
A62: Land - Suburban
A63: Land - Industrial
A64: Land - CBD
A65: Metering
A67: 5. CPI
A68: - Ausgrid also forecasts inflation.
A71: These inputs are used to create Cost escalators, Materials & Equipment escalators and Project escalators
A72: - Materials & Equipment escalators are estimated as a weighted average of various Cost escalators
A73: - Project escalators are estimated as a weighted average of various Cost and Materials & Equipment escalators
A75: The weightings used to estimate all cost escalators are entered in 'Input - Weightings'.
A77: All escalators are estimated on a Financial Year and Calendar Year basis

Sheet Input - Cost escalators - FY
A1: Raw escalators
A3: Financial Year
B4: Source | C4: Denom | D4: 2002-03 | E4: 2003-04 | F4: 2004-05 | G4: 2005-06 | H4: 06/07 | I4: 07/08 | J4: 08/09 | K4: 09/10 | L4: 10/11 | M4: 11/12 | N4: 12/13 | O4: 13/14 | P4: 14/15 | Q4: 15/16 | R4: 16/17 | S4: 17/18 | T4: 18/19 | U4: 19/20
A6: 1. DEFAULT
A8: Aluminium | B8: CEG | C8: Real | N8: -0.04939895939 | O8: -0.0105880956 | P8: 0.07158394004 | Q8: 0.02929178442 | R8: 0.05028643249 | S8: 0.04577515452 | T8: 0.04076277014 | W8: Codes
A9: Construction costs | B9: CEG | C9: Real | N9: -0.01582759057 | O9: 0.008604329079 | P9: 0.004458563124 | Q9: 0.004003171324 | R9: 0.004231601986 | S9: 0.00404971861 | T9: 0.0006094203839 | X9: Rate assumed equal to previous year
A10: Copper | B10: CEG | C10: Real | N10: -0.04281825217 | O10: -0.03983430476 | P10: 0.03138710184 | Q10: -0.01369764124 | R10: -0.01006354199 | S10: -0.0125498146 | T10: -0.01559567815 | X10: Calculated by macro
A11: Current transformer | B11: Macro | C11: Real | X11: No values in previous determination
A12: EGW wages | B12: DAE | C12: Real | N12: 0.001594082151 | O12: 0.006348235863 | P12: 0.01784320135 | Q12: 0.02712595008 | R12: 0.02716309496 | S12: 0.02453790556 | T12: 0.02288741772 | X12: Rate assumed equal to average of previous years
A13: Labour | B13: CEG | C13: Real | N13: 0.003515094883 | O13: 0.01189522718 | P13: 0.01500062792 | Q13: 0.02245243211 | R13: 0.02354839587 | S13: 0.0218587056 | T13: 0.02094289171
A14: Land & Easements | B14: No values | C14: Real | N14: =N61 -> 0.07016666667 | O14: 0.08733333333 | P14: 0.05775 | Q14: 0.1115833333 | R14: 0.02991666667 | S14: -0.05958333333 | T14: -0.14525
A15: Materials | B15: No values | C15: Real
A16: Oil | B16: CEG | C16: Real | N16: -0.03202367405 | O16: 0.0543567773 | P16: 0.04062657257 | Q16: 0.005559313404 | R16: 0.02420015416 | S16: 0.0228886752 | T16: 0.02015684746
A17: Other | B17: No values | C17: Real
A18: Producer's Margin | B18: Assumed zero | C18: Real
A19: Property | B19: Ian Packman | C19: Real
A20: Steel (Fabricated) | B20: CEG | C20: Real | N20: -0.07071350102 | O20: -0.04208794097 | P20: 0.11957493 | Q20: -0.003557424785 | R20: -0.01247336544 | S20: -0.01524471231 | T20: -0.01836107073
A21: Switchgear | B21: Macro | C21: Real
A22: Transport | B22: Macro | C22: Real
A26: 1A. EGW wages | B26: CEG
A27: Labour - AWOTE Australia | B27: BIS Shrapnel | C27: Real | M27: 0.04180421293 | N27: 0.03030524257 | O27: 0.033 | P27: 0.033 | Q27: 0.031 | R27: 0.032 | S27: 0.032
A28: Labour - LPI Australia | B28: BIS Shrapnel | C28: Real | M28: 0.04180421293 | N28: 0.02566557779 | O28: 0.027 | P28: 0.024 | Q28: 0.022 | R28: 0.025 | S28: 0.025
A29: Labour - Downes AWOTE EGW | B29: Downes | C29: Real | M29: 0.04180421293 | N29: 0.03601734784 | O29: 0.04409964953 | P29: 0.04760095394 | Q29: 0.04500987225 | R29: 0.04014699171 | S29: 0.0358080562
A30: Labour - Downes LPI EGW | B30: Downes | C30: Real | M30: 0.04180421293 | N30: 0.03781225362 | O30: 0.04523655385 | P30: 0.04721330728 | Q30: 0.04387717927 | R30: 0.03842489482 | S30: 0.0338573734
A31: Labour - Qld Utilities | B31: DAE | C31: Real | M31: 0.04180421293 | N31: 0.02279698682 | O31: 0.006 | P31: 0.006 | Q31: 0 | R31: 0.005 | S31: 0.01
A32: Labour - Qld Utilities Prod.adj | B32: DAE | C32: Real | M32: 0.04180421293 | N32: 0.02101023147 | O32: -0.008 | P32: -0.014 | Q32: -0.023 | R32: -0.017 | S32: -0.011
A33: Labour - National Utilities | B33: DAE | C33: Real | M33: 0.04180421293 | N33: 0.03062241024 | O33: 0.009352050189 | P33: 0.008143361944 | Q33: 0.00487159575 | R33: 0.01024763599 | S33: 0.009143675174
A34: Labour - Macromonitor WA | B34: Macromonitor | C34: Real | M34: 0.04180421293 | N34: 0.03312539655 | O34: 0.03830331478 | P34: 0.03691768929 | Q34: 0.0312195122 | R34: 0.0312195122 | S34: 0.0312195122
A36: 1B. Poles
A37: Poles (Concrete) | B37: Matt Cooper | C37: Real | H37: 0 | I37: 0 | J37: 0 | K37: 0 | L37: 0 | M37: 0 | N37: 0 | O37: 0 | P37: 0 | Q37: 0 | R37: 0 | S37: 0 | T37: 0
A38: Poles (wood) | B38: Matt Cooper | C38: Real | H38: 0.08235028047 | I38: 0.05 | J38: 0.05 | K38: 0 | L38: 0 | M38: 0 | N38: 0 | O38: 0 | P38: 0 | Q38: 0 | R38: 0 | S38: 0 | T38: 0
A41: 2. Additional escalators
A42: Infrastructure / Hardware | B42: Evan Mudge? | H42: 0 | I42: 0 | J42: 0 | K42: 0 | L42: 0 | M42: 0 | N42: 0 | O42: 0 | P42: 0 | Q42: 0 | R42: 0 | S42: 0 | T42: 0
A43: Software | B43: Evan Mudge? | H43: 0 | I43: 0 | J43: 0 | K43: 0 | L43: 0 | M43: 0 | N43: 0 | O43: 0 | P43: 0 | Q43: 0 | R43: 0 | S43: 0 | T43: 0
A44: Electricity / gas | B44: X factors - Ausgrid | H44: 0.016 | I44: 0.016 | J44: 0.016 | K44: 0.1786 | L44: 0.1818 | M44: 0.1818 | N44: 0.1818 | O44: -0.0077 | P44: -0.1369 | Q44: 0 | R44: 0 | S44: 0 | T44: 0
A45: Land valuation | B45: BIS Shrapnel | H45: 0 | I45: 0 | J45: 0 | K45: 0 | L45: 0 | M45: =M47 -> 0.03933333333 | N45: =N47 -> 0.07016666667 | O45: 0.08733333333 | P45: 0.05775 | Q45: 0.1115833333 | R45: 0.02991666667 | S45: -0.05958333333 | T45: -0.14525
A46: Water | B46: IPART | H46: 0 | I46: 0 | J46: 0 | K46: =K63/J63-1 -> 0.1089266738 | L46: =L63/K63-1 -> 0.0335409679 | M46: =M63/L63-1 -> 0.01761706073 | N46: =AVERAGE($K$46:$M$46) -> 0.05336156746 | O46: =AVERAGE($K$46:$M$46) -> 0.05336156746 | P46: 0.05336156746 | Q46: 0.05336156746 | R46: 0.05336156746 | S46: 0.05336156746 | T46: 0.05336156746
A47: Rent | B47: BIS Shrapnel | H47: 0 | I47: 0 | J47: 0 | K47: 0 | L47: 0 | M47: =AVERAGE(M52:M54) -> 0.03933333333 | N47: =AVERAGE(N52:N54) -> 0.07016666667 | O47: 0.08733333333 | P47: 0.05775 | Q47: 0.1115833333 | R47: 0.02991666667 | S47: -0.05958333333 | T47: -0.14525
A48: Reinstatement costs | B48: Assume zero | H48: 0 | I48: 0 | J48: 0 | K48: 0 | L48: 0 | M48: 0 | N48: 0 | O48: 0 | P48: 0 | Q48: 0 | R48: 0 | S48: 0 | T48: 0
A49: Communication Cable | B49: Matt Cooper | H49: 0 | I49: -0.0043665 | J49: -0.0065396 | K49: 0.0120424 | L49: 0.0090334 | M49: 0.002383 | N49: -0.0029993 | O49: -0.0052529 | P49: 0.0090986 | Q49: =P49 -> 0.0090986 | R49: 0.0090986 | S49: 0.0090986 | T49: 0.0090986
A50: Communication Equipment | B50: Matt Cooper | H50: 0 | I50: -0.0043665 | J50: -0.0065396 | K50: 0.0120424 | L50: 0.0090334 | M50: 0.002383 | N50: -0.0029993 | O50: -0.0052529 | P50: 0.0090986 | Q50: 0.0090986 | R50: 0.0090986 | S50: 0.0090986 | T50: 0.0090986
A51: Land - Rural | B51: BIS Shrapnel | H51: 0 | I51: 0 | J51: 0 | K51: 0 | L51: 0 | M51: =M45 -> 0.03933333333 | N51: =N45 -> 0.07016666667 | O51: 0.08733333333 | P51: 0.05775 | Q51: 0.1115833333 | R51: 0.02991666667 | S51: -0.05958333333 | T51: -0.14525
A52: Land - Suburban | B52: BIS Shrapnel | H52: 0 | I52: 0 | J52: 0 | K52: 0 | L52: 0 | M52: =M59 -> 0.075 | N52: =N59 -> 0.09 | O52: 0.1 | P52: 0.07 | Q52: 0.1 | R52: 0.015 | S52: -0.145 | T52: -0.17
A53: Land - Industrial | B53: BIS Shrapnel | H53: 0 | I53: 0 | J53: 0 | K53: 0 | L53: 0 | M53: =M60 -> -0.022 | N53: =N60 -> 0.0155 | O53: 0.042 | P53: 0.04075 | Q53: 0.05225 | R53: 0.03475 | S53: -0.01625 | T53: -0.09825
A54: Land - CBD | B54: BIS Shrapnel | H54: 0 | I54: 0 | J54: 0 | K54: 0 | L54: 0 | M54: =M58 -> 0.065 | N54: =N58 -> 0.105 | O54: 0.12 | P54: 0.0625 | Q54: 0.1825 | R54: 0.04 | S54: -0.0175 | T54: -0.1675
A55: Metering | B55: Matt Cooper | H55: 0 | I55: -0.0043665 | J55: -0.0065396 | K55: 0.0120424 | L55: 0.0090334 | M55: 0.002383 | N55: -0.0029993 | O55: -0.0052529 | P55: 0.0090986 | Q55: =P55 -> 0.0090986 | R55: =Q55 -> 0.0090986 | S55: =R55 -> 0.0090986 | T55: =S55 -> 0.0090986
A57: Ifty's calculations
A58: Property - Commercial | B58: BIS Shrapnel | M58: 0.065 | N58: 0.105 | O58: 0.12 | P58: 0.0625 | Q58: 0.1825 | R58: 0.04 | S58: -0.0175 | T58: -0.1675
A59: Property - Suburban | B59: BIS Shrapnel | M59: 0.075 | N59: 0.09 | O59: 0.1 | P59: 0.07 | Q59: 0.1 | R59: 0.015 | S59: -0.145 | T59: -0.17
A60: Property - Industrial | B60: BIS Shrapnel | M60: -0.022 | N60: 0.0155 | O60: 0.042 | P60: 0.04075 | Q60: 0.05225 | R60: 0.03475 | S60: -0.01625 | T60: -0.09825
A61: Average | M61: =AVERAGE(M58:M60) -> 0.03933333333 | N61: =AVERAGE(N58:N60) -> 0.07016666667 | O61: 0.08733333333 | P61: 0.05775 | Q61: 0.1115833333 | R61: 0.02991666667 | S61: -0.05958333333 | T61: -0.14525
A62: Sydney Water
A63: IPART allowed notional rev requirement ($m) | B63: IPART | J63: 1882 | K63: 2087 | L63: 2157 | M63: 2195
A66: 3. CPI | B66: CEG | H66: 0.02917903066 | I66: 0.033958033 | J66: 0.03129357088 | N66: 0.02240310078 | O66: 0.02051737274 | P66: 0.025 | Q66: 0.025 | R66: 0.025 | S66: 0.025 | T66: 0.025

Sheet Input - Cost escalators - CY
A1: Raw escalators
A3: Calendar Year
B4: Source | C4: Denom | D4: 2002-03 | E4: 2003-04 | F4: 2004-05 | G4: 2005-06 | H4: 2007 | I4: 2008 | J4: 2009 | K4: 2010 | L4: 2011 | M4: 2012 | N4: 2013 | O4: 2014 | P4: 2015 | Q4: 2016 | R4: 2017 | S4: 2018 | T4: 2019
A6: 1. DEFAULT
A8: Aluminium | B8: CEG | C8: Real | H8: -0.1982516789 | I8: -0.1733935471 | J8: -0.1406475506 | K8: 0.09127504943 | L8: 0.1054600705 | N8: -0.0700435742 | O8: 0.05550389022 | P8: 0.03762979955 | Q8: 0.04435113732 | R8: 0.04807295447 | S8: 0.04332297128 | T8: 0.0390229608 | V8: Codes
A9: Construction costs | B9: CEG | C9: Real | H9: 0.01923326713 | I9: 0.01580687163 | J9: -0.03361040043 | K9: 0.007720515262 | L9: 0.006640017726 | N9: -0.01394862028 | O9: 0.009210314203 | P9: 0.003959920741 | Q9: 0.004100712688 | R9: 0.004371050303 | S9: 0.002271592951 | T9: 0.0005733524411 | W9: Rate assumed equal to previous year
A10: Copper | B10: CEG | C10: Real | N10: -0.07440259851 | O10: 0.01507443201 | P10: 0.001542841203 | Q10: -0.01114551025 | R10: -0.01132017937 | S10: -0.01399751672 | T10: -0.01647047956 | W10: Calculated by macro
A11: Current transformer | B11: Macro | C11: Real | W11: No values in previous determination
A12: EGW wages | B12: CEG | C12: Real | N12: 0.006171520956 | O12: 0.002740094916 | P12: 0.0185004406 | Q12: 0.02775098817 | R12: 0.02920227386 | S12: 0.02340450064 | T12: 0.02340450064 | W12: Rate assumed equal to average of previous years
A13: Labour | B13: CEG | C13: Real | N13: 0.005700190745 | O13: 0.01366605371 | P13: 0.01894691773 | Q13: 0.02360688354 | R13: 0.02607256954 | S13: 0.02111685756 | T13: 0.02111685756 | U13: 0.01696973062
A14: Land & Easements | B14: No values | C14: Real
A15: Materials | B15: No values | C15: Real
A16: Oil | B16: CEG | C16: Real | N16: -0.001522285963 | O16: 0.04921486298 | P16: 0.01322743641 | Q16: 0.01835926827 | R16: 0.02359702398 | S16: 0.02170495918 | T16: 0.01945900361
A17: Other | B17: No values | C17: Real
A18: Producer's Margin | B18: Assumed zero | C18: Real
A19: Property | B19: Ian Packman | C19: Real
A20: Steel (Fabricated) | B20: CEG | C20: Real | N20: -0.1139665259 | O20: 0.07572346015 | P20: 0.04958605376 | Q20: -0.01307441445 | R20: -0.01398129563 | S20: -0.01672739855 | T20: -0.01927475359
A21: Switchgear | B21: Macro | C21: Real
A22: Transport | B22: Macro | C22: Real
A26: 1A. EGW wages | B26: CEG
A27: Labour - AWOTE Australia | B27: BIS Shrapnel | C27: Real | M27: 0.06247148634 | N27: 0.02638066642 | O27: 0.03355100899 | P27: 0.03192221715 | Q27: 0.03138646627 | R27: 0.03205967695 | S27: 0.032
A28: Labour - LPI Australia | B28: BIS Shrapnel | C28: Real | M28: 0.06092014867 | N28: 0.02040402667 | O28: 0.02609809205 | P28: 0.02261694329 | Q28: 0.02339102148 | R28: 0.02518124467 | S28: 0.025
A29: Labour - Downes AWOTE EGW | B29: Downes | C29: Real | M29: 0.06415735388 | N29: 0.03535511888 | O29: 0.04696408191 | P29: 0.04674986263 | Q29: 0.04269520224 | R29: 0.03771280668 | S29: 0.0346643549
A30: Labour - Downes LPI EGW | B30: Downes | C30: Real | M30: 0.06475480469 | N30: 0.03744645291 | O30: 0.04711789904 | P30: 0.04597877559 | Q30: 0.04124040035 | R30: 0.03582563547 | S30: 0.0326793359
A31: Labour - Qld Utilities | B31: DAE | C31: Real | M31: 0.06102593778 | N31: 0.007890220108 | O31: 0.005765202933 | P31: 0.002678826532 | Q31: 0.001811502413 | R31: 0.007626620794 | S31: 0.01181533198
A32: Labour - Qld Utilities Prod.adj | B32: DAE | C32: Real | M32: 0.06128710634 | N32: -0.0001295800391 | O32: -0.01167498436 | P32: -0.01922080356 | Q32: -0.02097037006 | R32: -0.01338648076 | S32: -0.0126093221
A33: Labour - National Utilities | B33: DAE | C33: Real | M33: 0.06505950562 | N33: 0.01240537635 | O33: 0.009807754454 | P33: 0.005254326253 | Q33: 0.007917750564 | R33: 0.01024109534 | S33: 0.008293352678
A34: Labour - Macromonitor WA | B34: Macromonitor | C34: Real | M34: 0.0632000165 | N34: 0.03125162887 | O34: 0.03835928335 | P34: 0.03394721142 | Q34: 0.03088140555 | R34: 0.0312195122 | S34: 0.0312195122
A36: 1B. Poles
A37: Poles (Concrete) | B37: Matt Cooper | C37: Real | H37: 0 | I37: 0 | J37: 0 | K37: 0 | L37: 0 | M37: 0 | N37: 0 | O37: 0 | P37: 0 | Q37: 0 | R37: 0 | S37: 0 | T37: 0
A38: Poles (wood) | B38: Matt Cooper | C38: Real | H38: 0.08235028047 | I38: 0.05 | J38: 0.05 | K38: 0 | L38: 0 | M38: 0 | N38: 0 | O38: 0 | P38: 0 | Q38: 0 | R38: 0 | S38: 0 | T38: 0
A41: 2. Additional escalators
A42: Infrastructure / Hardware | B42: Evan Mudge? | H42: =AVERAGE('Input - Cost escalators - FY'!H42:I42) -> 0 | I42: =AVERAGE('Input - Cost escalators - FY'!I42:J42) -> 0 | J42: =AVERAGE('Input - Cost escalators - FY'!J42:K42) -> 0 | K42: =AVERAGE('Input - Cost escalators - FY'!K42:L42) -> 0 | L42: =AVERAGE('Input - Cost escalators - FY'!L42:M42) -> 0 | M42: =AVERAGE('Input - Cost escalators - FY'!M42:N42) -> 0 | N42: =AVERAGE('Input - Cost escalators - FY'!N42:O42) -> 0 | O42: =AVERAGE('Input - Cost escalators - FY'!O42:P42) -> 0 | P42: =AVERAGE('Input - Cost escalators - FY'!P42:Q42) -> 0 | Q42: =AVERAGE('Input - Cost escalators - FY'!Q42:R42) -> 0 | R42: =AVERAGE('Input - Cost escalators - FY'!R42:S42) -> 0 | S42: =AVERAGE('Input - Cost escalators - FY'!S42:T42) -> 0 | T42: =AVERAGE('Input - Cost escalators - FY'!T42:V42) -> 0
A43: Software | B43: Evan Mudge? | H43: =AVERAGE('Input - Cost escalators - FY'!H43:I43) -> 0 | I43: =AVERAGE('Input - Cost escalators - FY'!I43:J43) -> 0 | J43: =AVERAGE('Input - Cost escalators - FY'!J43:K43) -> 0 | K43: =AVERAGE('Input - Cost escalators - FY'!K43:L43) -> 0 | L43: =AVERAGE('Input - Cost escalators - FY'!L43:M43) -> 0 | M43: =AVERAGE('Input - Cost escalators - FY'!M43:N43) -> 0 | N43: =AVERAGE('Input - Cost escalators - FY'!N43:O43) -> 0 | O43: =AVERAGE('Input - Cost escalators - FY'!O43:P43) -> 0 | P43: =AVERAGE('Input - Cost escalators - FY'!P43:Q43) -> 0 | Q43: =AVERAGE('Input - Cost escalators - FY'!Q43:R43) -> 0 | R43: =AVERAGE('Input - Cost escalators - FY'!R43:S43) -> 0 | S43: =AVERAGE('Input - Cost escalators - FY'!S43:T43) -> 0 | T43: =AVERAGE('Input - Cost escalators - FY'!T43:V43) -> 0
A44: Electricity / gas | B44: X factors - Ausgrid | H44: =AVERAGE('Input - Cost escalators - FY'!H44:I44) -> 0.016 | I44: =AVERAGE('Input - Cost escalators - FY'!I44:J44) -> 0.016 | J44: =AVERAGE('Input - Cost escalators - FY'!J44:K44) -> 0.0973 | K44: =AVERAGE('Input - Cost escalators - FY'!K44:L44) -> 0.1802 | L44: =AVERAGE('Input - Cost escalators - FY'!L44:M44) -> 0.1818 | M44: =AVERAGE('Input - Cost escalators - FY'!M44:N44) -> 0.1818 | N44: =AVERAGE('Input - Cost escalators - FY'!N44:O44) -> 0.08705 | O44: =AVERAGE('Input - Cost escalators - FY'!O44:P44) -> -0.0723 | P44: =AVERAGE('Input - Cost escalators - FY'!P44:Q44) -> -0.06845 | Q44: =AVERAGE('Input - Cost escalators - FY'!Q44:R44) -> 0 | R44: =AVERAGE('Input - Cost escalators - FY'!R44:S44) -> 0 | S44: =AVERAGE('Input - Cost escalators - FY'!S44:T44) -> 0 | T44: =AVERAGE('Input - Cost escalators - FY'!T44:V44) -> 0
A45: Land valuation | B45: BIS Shrapnel | H45: =AVERAGE('Input - Cost escalators - FY'!H45:I45) -> 0 | I45: =AVERAGE('Input - Cost escalators - FY'!I45:J45) -> 0 | J45: =AVERAGE('Input - Cost escalators - FY'!J45:K45) -> 0 | K45: =AVERAGE('Input - Cost escalators - FY'!K45:L45) -> 0 | L45: =AVERAGE('Input - Cost escalators - FY'!L45:M45) -> 0.01966666667 | M45: =AVERAGE('Input - Cost escalators - FY'!M45:N45) -> 0.05475 | N45: =AVERAGE('Input - Cost escalators - FY'!N45:O45) -> 0.07875 | O45: =AVERAGE('Input - Cost escalators - FY'!O45:P45) -> 0.07254166667 | P45: =AVERAGE('Input - Cost escalators - FY'!P45:Q45) -> 0.08466666667 | Q45: =AVERAGE('Input - Cost escalators - FY'!Q45:R45) -> 0.07075 | R45: =AVERAGE('Input - Cost escalators - FY'!R45:S45) -> -0.01483333333 | S45: =AVERAGE('Input - Cost escalators - FY'!S45:T45) -> -0.1024166667 | T45: =AVERAGE('Input - Cost escalators - FY'!T45:V45) -> -0.14525
A46: Water | B46: Ian Packman | H46: =AVERAGE('Input - Cost escalators - FY'!H46:I46) -> 0 | I46: =AVERAGE('Input - Cost escalators - FY'!I46:J46) -> 0 | J46: =AVERAGE('Input - Cost escalators - FY'!J46:K46) -> 0.05446333688 | K46: =AVERAGE('Input - Cost escalators - FY'!K46:L46) -> 0.07123382082 | L46: =AVERAGE('Input - Cost escalators - FY'!L46:M46) -> 0.02557901431 | M46: =AVERAGE('Input - Cost escalators - FY'!M46:N46) -> 0.0354893141 | N46: =AVERAGE('Input - Cost escalators - FY'!N46:O46) -> 0.05336156746 | O46: =AVERAGE('Input - Cost escalators - FY'!O46:P46) -> 0.05336156746 | P46: =AVERAGE('Input - Cost escalators - FY'!P46:Q46) -> 0.05336156746 | Q46: =AVERAGE('Input - Cost escalators - FY'!Q46:R46) -> 0.05336156746 | R46: =AVERAGE('Input - Cost escalators - FY'!R46:S46) -> 0.05336156746 | S46: =AVERAGE('Input - Cost escalators - FY'!S46:T46) -> 0.05336156746 | T46: =AVERAGE('Input - Cost escalators - FY'!T46:V46) -> 0.05336156746
A47: Rent | B47: Ian Packman | H47: =AVERAGE('Input - Cost escalators - FY'!H47:I47) -> 0 | I47: =AVERAGE('Input - Cost escalators - FY'!I47:J47) -> 0 | J47: =AVERAGE('Input - Cost escalators - FY'!J47:K47) -> 0 | K47: =AVERAGE('Input - Cost escalators - FY'!K47:L47) -> 0 | L47: =AVERAGE('Input - Cost escalators - FY'!L47:M47) -> 0.01966666667 | M47: =AVERAGE('Input - Cost escalators - FY'!M47:N47) -> 0.05475 | N47: =AVERAGE('Input - Cost escalators - FY'!N47:O47) -> 0.07875 | O47: =AVERAGE('Input - Cost escalators - FY'!O47:P47) -> 0.07254166667 | P47: =AVERAGE('Input - Cost escalators - FY'!P47:Q47) -> 0.08466666667 | Q47: =AVERAGE('Input - Cost escalators - FY'!Q47:R47) -> 0.07075 | R47: =AVERAGE('Input - Cost escalators - FY'!R47:S47) -> -0.01483333333 | S47: =AVERAGE('Input - Cost escalators - FY'!S47:T47) -> -0.1024166667 | T47: =AVERAGE('Input - Cost escalators - FY'!T47:V47) -> -0.14525
A48: Reinstatement costs | B48: Assume zero | H48: =AVERAGE('Input - Cost escalators - FY'!H48:I48) -> 0 | I48: =AVERAGE('Input - Cost escalators - FY'!I48:J48) -> 0 | J48: =AVERAGE('Input - Cost escalators - FY'!J48:K48) -> 0 | K48: =AVERAGE('Input - Cost escalators - FY'!K48:L48) -> 0 | L48: =AVERAGE('Input - Cost escalators - FY'!L48:M48) -> 0 | M48: =AVERAGE('Input - Cost escalators - FY'!M48:N48) -> 0 | N48: =AVERAGE('Input - Cost escalators - FY'!N48:O48) -> 0 | O48: =AVERAGE('Input - Cost escalators - FY'!O48:P48) -> 0 | P48: =AVERAGE('Input - Cost escalators - FY'!P48:Q48) -> 0 | Q48: =AVERAGE('Input - Cost escalators - FY'!Q48:R48) -> 0 | R48: =AVERAGE('Input - Cost escalators - FY'!R48:S48) -> 0 | S48: =AVERAGE('Input - Cost escalators - FY'!S48:T48) -> 0 | T48: =AVERAGE('Input - Cost escalators - FY'!T48:V48) -> 0
A49: Communication Cable | B49: Matt Cooper | H49: =AVERAGE('Input - Cost escalators - FY'!H49:I49) -> -0.00218325 | I49: =AVERAGE('Input - Cost escalators - FY'!I49:J49) -> -0.00545305 | J49: =AVERAGE('Input - Cost escalators - FY'!J49:K49) -> 0.0027514 | K49: =AVERAGE('Input - Cost escalators - FY'!K49:L49) -> 0.0105379 | L49: =AVERAGE('Input - Cost escalators - FY'!L49:M49) -> 0.0057082 | M49: =AVERAGE('Input - Cost escalators - FY'!M49:N49) -> -0.00030815 | N49: =AVERAGE('Input - Cost escalators - FY'!N49:O49) -> -0.0041261 | O49: =AVERAGE('Input - Cost escalators - FY'!O49:P49) -> 0.00192285 | P49: =AVERAGE('Input - Cost escalators - FY'!P49:Q49) -> 0.0090986 | Q49: =AVERAGE('Input - Cost escalators - FY'!Q49:R49) -> 0.0090986 | R49: =AVERAGE('Input - Cost escalators - FY'!R49:S49) -> 0.0090986 | S49: =AVERAGE('Input - Cost escalators - FY'!S49:T49) -> 0.0090986 | T49: =AVERAGE('Input - Cost escalators - FY'!T49:V49) -> 0.0090986
A50: Communication Equipment | B50: Matt Cooper | H50: =AVERAGE('Input - Cost escalators - FY'!H50:I50) -> -0.00218325 | I50: =AVERAGE('Input - Cost escalators - FY'!I50:J50) -> -0.00545305 | J50: =AVERAGE('Input - Cost escalators - FY'!J50:K50) -> 0.0027514 | K50: =AVERAGE('Input - Cost escalators - FY'!K50:L50) -> 0.0105379 | L50: =AVERAGE('Input - Cost escalators - FY'!L50:M50) -> 0.0057082 | M50: =AVERAGE('Input - Cost escalators - FY'!M50:N50) -> -0.00030815 | N50: =AVERAGE('Input - Cost escalators - FY'!N50:O50) -> -0.0041261 | O50: =AVERAGE('Input - Cost escalators - FY'!O50:P50) -> 0.00192285 | P50: =AVERAGE('Input - Cost escalators - FY'!P50:Q50) -> 0.0090986 | Q50: =AVERAGE('Input - Cost escalators - FY'!Q50:R50) -> 0.0090986 | R50: =AVERAGE('Input - Cost escalators - FY'!R50:S50) -> 0.0090986 | S50: =AVERAGE('Input - Cost escalators - FY'!S50:T50) -> 0.0090986 | T50: =AVERAGE('Input - Cost escalators - FY'!T50:V50) -> 0.0090986
A51: Land - Rural | B51: BIS Shrapnel | H51: =AVERAGE('Input - Cost escalators - FY'!H51:I51) -> 0 | I51: =AVERAGE('Input - Cost escalators - FY'!I51:J51) -> 0 | J51: =AVERAGE('Input - Cost escalators - FY'!J51:K51) -> 0 | K51: =AVERAGE('Input - Cost escalators - FY'!K51:L51) -> 0 | L51: =AVERAGE('Input - Cost escalators - FY'!L51:M51) -> 0.01966666667 | M51: =AVERAGE('Input - Cost escalators - FY'!M51:N51) -> 0.05475 | N51: =AVERAGE('Input - Cost escalators - FY'!N51:O51) -> 0.07875 | O51: =AVERAGE('Input - Cost escalators - FY'!O51:P51) -> 0.07254166667 | P51: =AVERAGE('Input - Cost escalators - FY'!P51:Q51) -> 0.08466666667 | Q51: =AVERAGE('Input - Cost escalators - FY'!Q51:R51) -> 0.07075 | R51: =AVERAGE('Input - Cost escalators - FY'!R51:S51) -> -0.01483333333 | S51: =AVERAGE('Input - Cost escalators - FY'!S51:T51) -> -0.1024166667 | T51: =AVERAGE('Input - Cost escalators - FY'!T51:V51) -> -0.14525
A52: Land - Suburban | B52: BIS Shrapnel | H52: =AVERAGE('Input - Cost escalators - FY'!H52:I52) -> 0 | I52: =AVERAGE('Input - Cost escalators - FY'!I52:J52) -> 0 | J52: =AVERAGE('Input - Cost escalators - FY'!J52:K52) -> 0 | K52: =AVERAGE('Input - Cost escalators - FY'!K52:L52) -> 0 | L52: =AVERAGE('Input - Cost escalators - FY'!L52:M52) -> 0.0375 | M52: =AVERAGE('Input - Cost escalators - FY'!M52:N52) -> 0.0825 | N52: =AVERAGE('Input - Cost escalators - FY'!N52:O52) -> 0.095 | O52: =AVERAGE('Input - Cost escalators - FY'!O52:P52) -> 0.085 | P52: =AVERAGE('Input - Cost escalators - FY'!P52:Q52) -> 0.085 | Q52: =AVERAGE('Input - Cost escalators - FY'!Q52:R52) -> 0.0575 | R52: =AVERAGE('Input - Cost escalators - FY'!R52:S52) -> -0.065 | S52: =AVERAGE('Input - Cost escalators - FY'!S52:T52) -> -0.1575 | T52: =AVERAGE('Input - Cost escalators - FY'!T52:V52) -> -0.17
A53: Land - Industrial | B53: BIS Shrapnel | H53: =AVERAGE('Input - Cost escalators - FY'!H53:I53) -> 0 | I53: =AVERAGE('Input - Cost escalators - FY'!I53:J53) -> 0 | J53: =AVERAGE('Input - Cost escalators - FY'!J53:K53) -> 0 | K53: =AVERAGE('Input - Cost escalators - FY'!K53:L53) -> 0 | L53: =AVERAGE('Input - Cost escalators - FY'!L53:M53) -> -0.011 | M53: =AVERAGE('Input - Cost escalators - FY'!M53:N53) -> -0.00325 | N53: =AVERAGE('Input - Cost escalators - FY'!N53:O53) -> 0.02875 | O53: =AVERAGE('Input - Cost escalators - FY'!O53:P53) -> 0.041375 | P53: =AVERAGE('Input - Cost escalators - FY'!P53:Q53) -> 0.0465 | Q53: =AVERAGE('Input - Cost escalators - FY'!Q53:R53) -> 0.0435 | R53: =AVERAGE('Input - Cost escalators - FY'!R53:S53) -> 0.00925 | S53: =AVERAGE('Input - Cost escalators - FY'!S53:T53) -> -0.05725 | T53: =AVERAGE('Input - Cost escalators - FY'!T53:V53) -> -0.09825
A54: Land - CBD | B54: BIS Shrapnel | H54: =AVERAGE('Input - Cost escalators - FY'!H54:I54) -> 0 | I54: =AVERAGE('Input - Cost escalators - FY'!I54:J54) -> 0 | J54: =AVERAGE('Input - Cost escalators - FY'!J54:K54) -> 0 | K54: =AVERAGE('Input - Cost escalators - FY'!K54:L54) -> 0 | L54: =AVERAGE('Input - Cost escalators - FY'!L54:M54) -> 0.0325 | M54: =AVERAGE('Input - Cost escalators - FY'!M54:N54) -> 0.085 | N54: =AVERAGE('Input - Cost escalators - FY'!N54:O54) -> 0.1125 | O54: =AVERAGE('Input - Cost escalators - FY'!O54:P54) -> 0.09125 | P54: =AVERAGE('Input - Cost escalators - FY'!P54:Q54) -> 0.1225 | Q54: =AVERAGE('Input - Cost escalators - FY'!Q54:R54) -> 0.11125 | R54: =AVERAGE('Input - Cost escalators - FY'!R54:S54) -> 0.01125 | S54: =AVERAGE('Input - Cost escalators - FY'!S54:T54) -> -0.0925 | T54: =AVERAGE('Input - Cost escalators - FY'!T54:V54) -> -0.1675
A55: Metering | B55: Matt Cooper | H55: =AVERAGE('Input - Cost escalators - FY'!H55:I55) -> -0.00218325 | I55: =AVERAGE('Input - Cost escalators - FY'!I55:J55) -> -0.00545305 | J55: =AVERAGE('Input - Cost escalators - FY'!J55:K55) -> 0.0027514 | K55: =AVERAGE('Input - Cost escalators - FY'!K55:L55) -> 0.0105379 | L55: =AVERAGE('Input - Cost escalators - FY'!L55:M55) -> 0.0057082 | M55: =AVERAGE('Input - Cost escalators - FY'!M55:N55) -> -0.00030815 | N55: =AVERAGE('Input - Cost escalators - FY'!N55:O55) -> -0.0041261 | O55: =AVERAGE('Input - Cost escalators - FY'!O55:P55) -> 0.00192285 | P55: =AVERAGE('Input - Cost escalators - FY'!P55:Q55) -> 0.0090986 | Q55: =AVERAGE('Input - Cost escalators - FY'!Q55:R55) -> 0.0090986 | R55: =AVERAGE('Input - Cost escalators - FY'!R55:S55) -> 0.0090986 | S55: =AVERAGE('Input - Cost escalators - FY'!S55:T55) -> 0.0090986 | T55: =AVERAGE('Input - Cost escalators - FY'!T55:V55) -> 0.0090986
A66: 3. CPI | B66: CEG | H66: 0.02332361516 | I66: 0.04352643242 | J66: 0.0182011224 | K66: 0.02845225682 | L66: 0.03389339513 | M66: ='[2]AU Inflation'!$D$9 -> 0.0325 | N66: ='[2]AU Inflation'!$D$11 -> 0.0275 | O66: ='[2]AU Inflation'!$D$13 -> 0.025 | P66: ='[2]AU Inflation'!$D$15 -> 0.025 | Q66: ='[2]AU Inflation'!$D$17 -> 0.025 | R66: ='[2]AU Inflation'!$D$19 -> 0.025 | S66: ='[2]AU Inflation'!$D$21 -> 0.025 | T66: ='[2]AU Inflation'!$D$23 -> 0.025

Sheet Input - Weightings
A1: Weightings
A3: 1. Materials & Equipment weightings
A4: The 12 categories of Materials & Equipment (listed on the horizontal axis) are estimated as the weighted average of 15 cost escalators (along the vertical axis). Assumed weightings are entered here.
H6: Transformers | I6: Distribution Transformers | J6: Switchgear | K6: Distribution Substations | L6: Cable (Cu) | M6: Cable (Al) | N6: Secondary Protection | O6: Transport | P6: Coact Cable Laying | Q6: Poles (Timber) | R6: Poles (Concrete) | S6: Streetlighting
A8: Aluminium | H8: 0 | I8: 0.15 | J8: 0 | K8: 0.03 | L8: 0 | M8: 0.2 | N8: 0 | O8: 0 | P8: 0 | Q8: Historic Trends | R8: Historic Trends | S8: 0
A9: Construction costs | H9: 0 | I9: 0 | J9: 0 | K9: 0 | L9: 0 | M9: 0 | N9: 0 | O9: 0 | P9: 0 | S9: 0
A10: Copper | H10: 0.1 | I10: 0.02 | J10: 0.125 | K10: 0.1 | L10: 0.55 | M10: 0.19 | N10: 0 | O10: 0 | P10: 0 | S10: 0
A11: Current transformer | H11: 0 | I11: 0 | J11: 0.043 | K11: 0 | L11: 0 | M11: 0 | N11: 0 | O11: 0 | P11: 0 | S11: 0
A12: EGW wages | H12: 0 | I12: 0 | J12: 0 | K12: 0 | L12: 0 | M12: 0 | N12: 0 | O12: 0 | P12: 0 | S12: 0
A13: Labour | H13: 0 | I13: 0 | J13: 0 | K13: 0 | L13: 0 | M13: 0 | N13: 0 | O13: 0.75 | P13: 0.9 | S13: 0.54
A14: Land & Easements | H14: 0 | I14: 0 | J14: 0 | K14: 0 | L14: 0 | M14: 0 | N14: 0 | O14: 0 | P14: 0 | S14: 0
A15: Materials | H15: 0 | I15: 0 | J15: 0 | K15: 0 | L15: 0 | M15: 0 | N15: 0 | O15: 0 | P15: 0 | S15: 0.32
A16: Oil | H16: 0.035 | I16: 0.06 | J16: 0 | K16: 0.02 | L16: 0 | M16: 0 | N16: 0 | O16: 0.15 | P16: 0 | S16: 0
A17: Other | H17: 0.59 | I17: 0.47 | J17: 0.593 | K17: 0.22 | L17: 0.375 | M17: 0.535 | N17: 0.9 | O17: 0.1 | P17: 0.1 | S17: 0.055
A18: Producer's Margin | H18: 0.1 | I18: 0.1 | J18: 0.1 | K18: 0.1 | L18: 0.075 | M18: 0.075 | N18: 0.1 | O18: 0 | P18: 0 | S18: 0
A19: Property | H19: 0 | I19: 0 | J19: 0 | K19: 0 | L19: 0 | M19: 0 | N19: 0 | O19: 0 | P19: 0 | S19: 0
A20: Steel (Fabricated) | H20: 0.14 | I20: 0.2 | J20: 0.139 | K20: 0.28 | L20: 0 | M20: 0 | N20: 0 | O20: 0 | P20: 0 | S20: 0
A21: Switchgear | H21: 0 | I21: 0 | J21: 0 | K21: 0.25 | L21: 0 | M21: 0 | N21: 0 | O21: 0 | P21: 0 | S21: 0
A22: Transport | H22: 0.035 | I22: 0 | J22: 0 | K22: 0 | L22: 0 | M22: 0 | N22: 0 | O22: 0 | P22: 0 | S22: 0.085
A23: Total | H23: =SUM(H8:H22) -> 1 | I23: =SUM(I8:I22) -> 1 | J23: 1 | K23: 1 | L23: 1 | M23: 1 | N23: 1 | O23: 1 | P23: 1 | S23: =SUM(S8:S22) -> 1
A27: 2. Project weightings
A28: The 12 categories of Projects (listed on the horizontal axis) are estimated as the weighted average of 18 Cost and Materials & Equipment escalators (along the vertical axis). Assumed weightings are entered here.
H30: Substations | I30: ST UG Feeder | J30: ST OH Feeder | K30: 11kV Switchgear Replacement | L30: 11kV UG Mains | M30: 11kV & LV Programs | N30: Distribution Mains Replacement | O30: Distribution Substation Replacement | P30: Duty of care | Q30: Customer connections | R30: Major projects | S30: Ancillary projects
A31: Project escalators
A32: Civil Construction | H32: 0.2515252903 | I32: 0 | J32: 0 | K32: 0.2751332438 | L32: 0.15 | M32: =AVERAGE(L32,O32) -> 0.075 | N32: 0 | O32: 0 | P32: 0.3196964034 | Q32: 0 | R32: 0.2185495275 | S32: 0
A33: Contracted Services (CCL) | H33: 0 | I33: 0.3403854158 | J33: 0 | K33: 0 | L33: 0.5 | M33: =AVERAGE(L33,O33) -> 0.25 | N33: 0 | O33: 0 | P33: 0 | Q33: 0.1431936286 | R33: 0.1285708379 | S33: 0.15
A34: Labour (EGW) | H34: 0.293564259 | I34: 0.1626775096 | J34: 0.4498917991 | K34: 0.3879938159 | L34: 0.15 | M34: =AVERAGE(L34,O34) -> 0.2568207664 | N34: 0.5087026747 | O34: 0.3636415328 | P34: 0.3979305128 | Q34: 0.3655875988 | R34: 0.238 | S34: 0.35
A35: Labour (General) | H35: 0 | I35: 0 | J35: 0.01696368901 | K35: 0 | L35: 0 | M35: =AVERAGE(L35,O35) -> 0.07498924968 | N35: 0.1291000345 | O35: 0.1499784994 | P35: 0 | Q35: 0 | R35: 0 | S35: 0
A36: Materials and Equipment | H36: =H53 -> 0.4549104507 | I36: =I53 -> 0.4969370746 | J36: 0.5331445119 | K36: 0.3368729403 | L36: 0.2 | M36: 0.3148997644 | N36: 0.2735455051 | O36: 0.4297995288 | P36: 0.2517288264 | Q36: 0.4497931664 | R36: 0.362297833 | S36: 0.45
A37: Transport | H37: 0 | I37: 0 | J37: 0 | K37: 0 | L37: 0 | M37: =AVERAGE(L37,O37) -> 0.02829021952 | N37: 0.0886517857 | O37: 0.05658043904 | P37: 0.03064425745 | Q37: 0.04142560615 | R37: 0.03887298571 | S37: 0.05
A38: Property | H38: 0 | I38: 0 | J38: 0 | K38: 0 | L38: 0 | M38: =AVERAGE(L38,O38) -> 0 | N38: 0 | O38: 0 | P38: 0 | Q38: 0 | R38: 0.01370881597 | S38: 0
A39: Total | H39: 1 | I39: 1 | J39: 1 | K39: 1 | L39: 1 | M39: 1 | N39: 1 | O39: 1 | P39: 1 | Q39: 1 | R39: 1 | S39: 1
A41: Materials and Equipment
A42: Cable (Al) | H42: 0 | I42: 0 | J42: 0.1850584256 | K42: 0 | L42: 0.15 | M42: =AVERAGE(L42,O42) -> 0.075 | N42: 0.08239292881 | O42: 0 | P42: 0 | Q42: 0.04535618072 | R42: 0 | S42: 0
A43: Cable (Copper) | H43: 0.04528636095 | I43: 0.2911994217 | J43: 0 | K43: 0.06509622035 | L43: 0 | M43: =AVERAGE(L43,O43) -> 0.01830574973 | N43: 0 | O43: 0.03661149947 | P43: 0 | Q43: 0 | R43: 0.0547193171 | S43: 0
A44: Distribution Substation | H44: 0 | I44: 0 | J44: 0 | K44: 0 | L44: 0 | M44: =AVERAGE(L44,O44) -> 0.03436903624 | N44: 0 | O44: 0.06873807248 | P44: 0.01111721665 | Q44: 0.1488613111 | R44: 0 | S44: 0
A45: Distribution Transformers | H45: 0 | I45: 0 | J45: 0 | K45: 0 | L45: 0 | M45: =AVERAGE(L45,O45) -> 0.06366143425 | N45: 0 | O45: 0.1273228685 | P45: 0 | Q45: 0.1695888354 | R45: 0 | S45: 0
A46: Fabricated Steel | H46: 0.02264318048 | I46: 0 | J46: 0 | K46: 0 | L46: 0 | M46: =AVERAGE(L46,O46) -> 0.008555832359 | N46: 0.03030502653 | O46: 0.01711166472 | P46: 0 | Q46: 0 | R46: 0.006824122538 | S46: 0
A47: Other | H47: =H39-SUM(H32:H35,H37:H38,H48:H52,H42:H46) -> 0.09652627436 | I47: =I39-SUM(I32:I35,I37:I38,I48:I52,I42:I46) -> 0.2057376529 | J47: 0.2159014965 | K47: 0.02054599455 | L47: 0.05 | M47: 0.0867677789 | N47: 0.1124309285 | O47: 0.1235355578 | P47: 0.1091282538 | Q47: 0.07607943588 | R47: 0.04828540214 | S47: 0.2
A48: Pole (Concrete) | H48: 0 | I48: 0 | J48: 0.1321845897 | K48: 0 | L48: 0 | M48: =AVERAGE(L48,O48) -> 0 | N48: 0 | O48: 0 | P48: 0 | Q48: 0 | R48: 0.04439422876 | S48: 0
A49: Pole (Timber) | H49: 0 | I49: 0 | J49: 0 | K49: 0 | L49: 0 | M49: =AVERAGE(L49,O49) -> 0.0019332805 | N49: 0.02686045363 | O49: 0.003866561 | P49: 0 | Q49: 0.009907403318 | R49: 0 | S49: 0
A50: Secondary Protection | H50: 0.02271206455 | I50: 0 | J50: 0 | K50: 0.1556206518 | L50: 0 | M50: =AVERAGE(L50,O50) -> 0 | N50: 0 | O50: 0 | P50: 0 | Q50: 0 | R50: 0.009553771553 | S50: 0.25
A51: Switchgear & Other Electrical Equipment | H51: 0.1343042708 | I51: 0 | J51: 0 | K51: 0.09561007364 | L51: 0 | M51: =AVERAGE(L51,O51) -> 0.0263066524 | N51: 0.02155616759 | O51: 0.05261330481 | P51: 0 | Q51: 0 | R51: 0.07465590056 | S51: 0
A52: Transformers | H52: 0.1334382995 | I52: 0 | J52: 0 | K52: 0 | L52: 0 | M52: =AVERAGE(L52,O52) -> 0 | N52: 0 | O52: 0 | P52: 0.131483356 | Q52: 0 | R52: 0.1238650904 | S52: 0
A53: Total | H53: =SUM(H42:H52) -> 0.4549104507 | I53: =SUM(I42:I52) -> 0.4969370746 | J53: 0.5331445119 | K53: 0.3368729403 | L53: 0.2 | M53: 0.3148997644 | N53: 0.2735455051 | O53: 0.4297995288 | P53: 0.2517288264 | Q53: 0.4497931664 | R53: 0.362297833 | S53: 0.45

Sheet Sources
A1: Data sources
A4: ='Final values - FY'!A5 -> Cost escalators | B4: Source | C4: Derivation | D4: Comments (if any)
A5: ='Final values - FY'!A9 -> Aluminium | B5: CEG | C5: Direct from source
A6: ='Final values - FY'!A10 -> Construction costs | B6: CEG | C6: Direct from source
A7: ='Final values - FY'!A11 -> Copper | B7: CEG | C7: Direct from source
A8: ='Final values - FY'!A12 -> Current transformer | B8: Ausgrid | C8: Calculated by macro in spreadsheet from previous determination | D8: Needs further consideration
A9: ='Final values - FY'!A13 -> EGW wages | B9: CEG | C9: Average of various EGW industry wage indices, provided by CEG
A10: ='Final values - FY'!A14 -> Labour | B10: CEG | C10: Direct from source
A11: ='Final values - FY'!A15 -> Land & Easements | B11: No values | C11: -
A12: ='Final values - FY'!A16 -> Materials | B12: No values | C12: -
A13: ='Final values - FY'!A17 -> Oil | B13: CEG | C13: Direct from source
A14: ='Final values - FY'!A18 -> Other | B14: No values | C14: -
A15: ='Final values - FY'!A19 -> Producer's Margin | B15: Assumed zero | C15: Assumed zero
A16: ='Final values - FY'!A20 -> Property | B16: Ausgrid | C16: Assumed ~4%, as per previous determination | D16: Needs further consideration - Ifty?
A17: ='Final values - FY'!A21 -> Steel (Fabricated) | B17: CEG | C17: Direct from source
A18: ='Final values - FY'!A22 -> Switchgear | B18: Ausgrid | C18: Calculated by macro in spreadsheet from previous determination | D18: Needs further consideration
A19: ='Final values - FY'!A23 -> Transport | B19: Ausgrid | C19: Calculated by macro in spreadsheet from previous determination | D19: Needs further consideration
A22: ='Final values - FY'!A26 -> Materials & Equipment escalators
A23: ='Final values - FY'!A30 -> Transformers | B23: Ausgrid | C23: Calculated according to Ausgrid's estimated weightings (using Cost escalators as inputs)
A24: ='Final values - FY'!A31 -> Distribution Transformers | B24: Ausgrid
A25: ='Final values - FY'!A32 -> Switchgear | B25: Ausgrid
A26: ='Final values - FY'!A33 -> Distribution Substations | B26: Ausgrid
A27: ='Final values - FY'!A34 -> Cable (Cu) | B27: Ausgrid
A28: ='Final values - FY'!A35 -> Cable (Al) | B28: Ausgrid
A29: ='Final values - FY'!A36 -> Secondary Protection | B29: Ausgrid
A30: ='Final values - FY'!A37 -> Transport | B30: Ausgrid
A31: ='Final values - FY'!A38 -> Contract Cable Laying | B31: Ausgrid
A32: ='Final values - FY'!A39 -> Poles (Timber) | B32: Ausgrid | C32: Forecast directly by Ausgrid (Matt Cooper)
A33: ='Final values - FY'!A40 -> Poles (Concrete) | B33: Ausgrid
A34: ='Final values - FY'!A41 -> Streetlighting | B34: Ausgrid | C34: Calculated according to Ausgrid's estimated weightings (using Cost escalators as inputs)
A37: ='Final values - FY'!A44 -> Project escalators _Labour
A38: ='Final values - FY'!A48 -> Substations | B38: Ausgrid | C38: Calculated according to Ausgrid's estimated weightings (using either Cost escalators or Materials & Equipment escalators as inputs)
A39: ='Final values - FY'!A49 -> ST UG Feeder | B39: Ausgrid
A40: ='Final values - FY'!A50 -> ST OH Feeders | B40: Ausgrid
A41: ='Final values - FY'!A51 -> 11kV Switchgear Replacement | B41: Ausgrid
A42: ='Final values - FY'!A52 -> 11kV UG Mains | B42: Ausgrid
A43: ='Final values - FY'!A53 -> 11kV & LV Programs | B43: Ausgrid
A44: ='Final values - FY'!A54 -> Distribution Mains Replacement | B44: Ausgrid
A45: ='Final values - FY'!A55 -> Distribution Substation Replacement | B45: Ausgrid
A46: ='Final values - FY'!A56 -> Duty of care | B46: Ausgrid
A47: ='Final values - FY'!A57 -> Customer connections | B47: Ausgrid
A48: ='Final values - FY'!A58 -> Major projects | B48: Ausgrid
A49: ='Final values - FY'!A59 -> Ancillary projects | B49: Ausgrid
A52: ='Final values - FY'!A62 -> Additional cost escalators
A53: ='Final values - FY'!A65 -> Infrastructure / Hardware | B53: Ausgrid | C53: Evan Mudge? | D53: Needs further consideration
A54: ='Final values - FY'!A66 -> Software | B54: Ausgrid | C54: Evan Mudge? | D54: Needs further consideration
A55: ='Final values - FY'!A67 -> Electricity / gas | B55: Ausgrid | C55: Used X factors allowed in AER's 2009 determination | D55: Nam
A56: ='Final values - FY'!A68 -> Land valuation | B56: BIS Shrapnel | C56: Estimate escalator using raw BIS Shrapnel data
A57: ='Final values - FY'!A69 -> Water | B57: IPART | C57: Derived from IPART's Sydney Water determination | D57: Need to update for IPART's 2012 decision
A58: ='Final values - FY'!A70 -> Rent | B58: BIS Shrapnel | C58: Estimate escalator using raw BIS Shrapnel data
A59: ='Final values - FY'!A71 -> Reinstatement costs | B59: Assumed zero | C59: Assumed zero
A60: ='Final values - FY'!A72 -> Communication Cable | B60: Ausgrid | C60: Use existing assumptions in GAC | D60: Needs further consideration
A61: ='Final values - FY'!A73 -> Communication Equipment | B61: Ausgrid | C61: Use existing assumptions in GAC | D61: Needs further consideration
A62: ='Final values - FY'!A74 -> Land - Rural | B62: BIS Shrapnel | C62: Estimate escalator using raw BIS Shrapnel data
A63: ='Final values - FY'!A75 -> Land - Suburban | B63: BIS Shrapnel | C63: Estimate escalator using raw BIS Shrapnel data
A64: ='Final values - FY'!A76 -> Land - Industrial | B64: BIS Shrapnel | C64: Estimate escalator using raw BIS Shrapnel data
A65: ='Final values - FY'!A77 -> Land - CBD | B65: BIS Shrapnel | C65: Estimate escalator using raw BIS Shrapnel data
A66: ='Final values - FY'!A78 -> Metering | B66: Ausgrid | C66: Use existing assumptions in GAC | D66: Needs further consideration

Sheet Calculations & Analysis >>

Sheet Equipment Analysis - FY
A1: Materials & Equipment Escalator Analysis
A3: Financial Year | N3: =(N94*0.1)+(N112*0.9) -> 0 | O3: =(O94*0.1)+(O112*0.9) -> -0.01856873768 | P3: -0.01090841008 | Q3: 0.01997859422 | R3: 0.002176854275 | S3: 0.006777197359 | T3: 0.005403269713 | U3: 0.003812675363
B5: Financial year | C5: Weight | E5: 02/03 | F5: 03/04 | G5: 04/05 | H5: 05/06 | I5: 06/07 | J5: 07/08 | K5: 08/09 | L5: 09/10 | M5: 10/11 | N5: 11/12 | O5: 12/13 | P5: 13/14 | Q5: 14/15 | R5: 15/16 | S5: 16/17 | T5: 17/18 | U5: 18/19
A6: 1 | B6: Transformers
A7: =A6 -> 1 | B7: Aluminium | C7: =VLOOKUP(B7,'Input - Weightings'!$A$8:$S$23,A7+7,FALSE) -> 0 | I7: ='Input - Cost escalators - FY'!H8 -> 0 | J7: ='Input - Cost escalators - FY'!I8 -> 0 | K7: ='Input - Cost escalators - FY'!J8 -> 0 | L7: ='Input - Cost escalators - FY'!K8 -> 0 | M7: ='Input - Cost escalators - FY'!L8 -> 0 | N7: ='Input - Cost escalators - FY'!M8 -> 0 | O7: ='Input - Cost escalators - FY'!N8 -> -0.04939895939 | P7: ='Input - Cost escalators - FY'!O8 -> -0.0105880956 | Q7: ='Input - Cost escalators - FY'!P8 -> 0.07158394004 | R7: ='Input - Cost escalators - FY'!Q8 -> 0.02929178442 | S7: ='Input - Cost escalators - FY'!R8 -> 0.05028643249 | T7: ='Input - Cost escalators - FY'!S8 -> 0.04577515452 | U7: ='Input - Cost escalators - FY'!T8 -> 0.04076277014
A8: =A7 -> 1 | B8: Construction costs | C8: =VLOOKUP(B8,'Input - Weightings'!$A$8:$S$23,A8+7,FALSE) -> 0 | I8: ='Input - Cost escalators - FY'!H9 -> 0 | J8: ='Input - Cost escalators - FY'!I9 -> 0 | K8: ='Input - Cost escalators - FY'!J9 -> 0 | L8: ='Input - Cost escalators - FY'!K9 -> 0 | M8: ='Input - Cost escalators - FY'!L9 -> 0 | N8: ='Input - Cost escalators - FY'!M9 -> 0 | O8: ='Input - Cost escalators - FY'!N9 -> -0.01582759057 | P8: ='Input - Cost escalators - FY'!O9 -> 0.008604329079 | Q8: ='Input - Cost escalators - FY'!P9 -> 0.004458563124 | R8: ='Input - Cost escalators - FY'!Q9 -> 0.004003171324 | S8: ='Input - Cost escalators - FY'!R9 -> 0.004231601986 | T8: ='Input - Cost escalators - FY'!S9 -> 0.00404971861 | U8: ='Input - Cost escalators - FY'!T9 -> 0.0006094203839
A9: 1 | B9: Copper | C9: =VLOOKUP(B9,'Input - Weightings'!$A$8:$S$23,A9+7,FALSE) -> 0.1 | I9: ='Input - Cost escalators - FY'!H10 -> 0 | J9: ='Input - Cost escalators - FY'!I10 -> 0 | K9: ='Input - Cost escalators - FY'!J10 -> 0 | L9: ='Input - Cost escalators - FY'!K10 -> 0 | M9: ='Input - Cost escalators - FY'!L10 -> 0 | N9: ='Input - Cost escalators - FY'!M10 -> 0 | O9: ='Input - Cost escalators - FY'!N10 -> -0.04281825217 | P9: ='Input - Cost escalators - FY'!O10 -> -0.03983430476 | Q9: ='Input - Cost escalators - FY'!P10 -> 0.03138710184 | R9: ='Input - Cost escalators - FY'!Q10 -> -0.01369764124 | S9: ='Input - Cost escalators - FY'!R10 -> -0.01006354199 | T9: ='Input - Cost escalators - FY'!S10 -> -0.0125498146 | U9: ='Input - Cost escalators - FY'!T10 -> -0.01559567815
A10: 1 | B10: Current transformer | C10: =VLOOKUP(B10,'Input - Weightings'!$A$8:$S$23,A10+7,FALSE) -> 0 | I10: ='Input - Cost escalators - FY'!H11 -> 0 | J10: ='Input - Cost escalators - FY'!I11 -> 0 | K10: ='Input - Cost escalators - FY'!J11 -> 0 | L10: ='Input - Cost escalators - FY'!K11 -> 0 | M10: ='Input - Cost escalators - FY'!L11 -> 0 | N10: ='Input - Cost escalators - FY'!M11 -> 0 | O10: ='Input - Cost escalators - FY'!N11 -> 0 | P10: ='Input - Cost escalators - FY'!O11 -> 0 | Q10: ='Input - Cost escalators - FY'!P11 -> 0 | R10: ='Input - Cost escalators - FY'!Q11 -> 0 | S10: ='Input - Cost escalators - FY'!R11 -> 0 | T10: ='Input - Cost escalators - FY'!S11 -> 0 | U10: ='Input - Cost escalators - FY'!T11 -> 0
A11: 1 | B11: EGW wages | C11: =VLOOKUP(B11,'Input - Weightings'!$A$8:$S$23,A11+7,FALSE) -> 0 | I11: ='Input - Cost escalators - FY'!H12 -> 0 | J11: ='Input - Cost escalators - FY'!I12 -> 0 | K11: ='Input - Cost escalators - FY'!J12 -> 0 | L11: ='Input - Cost escalators - FY'!K12 -> 0 | M11: ='Input - Cost escalators - FY'!L12 -> 0 | N11: ='Input - Cost escalators - FY'!M12 -> 0 | O11: ='Input - Cost escalators - FY'!N12 -> 0.001594082151 | P11: ='Input - Cost escalators - FY'!O12 -> 0.006348235863 | Q11: ='Input - Cost escalators - FY'!P12 -> 0.01784320135 | R11: ='Input - Cost escalators - FY'!Q12 -> 0.02712595008 | S11: ='Input - Cost escalators - FY'!R12 -> 0.02716309496 | T11: ='Input - Cost escalators - FY'!S12 -> 0.02453790556 | U11: ='Input - Cost escalators - FY'!T12 -> 0.02288741772
A12: 1 | B12: Labour | C12: =VLOOKUP(B12,'Input - Weightings'!$A$8:$S$23,A12+7,FALSE) -> 0 | I12: ='Input - Cost escalators - FY'!H13 -> 0 | J12: ='Input - Cost escalators - FY'!I13 -> 0 | K12: ='Input - Cost escalators - FY'!J13 -> 0 | L12: ='Input - Cost escalators - FY'!K13 -> 0 | M12: ='Input - Cost escalators - FY'!L13 -> 0 | N12: ='Input - Cost escalators - FY'!M13 -> 0 | O12: ='Input - Cost escalators - FY'!N13 -> 0.003515094883 | P12: ='Input - Cost escalators - FY'!O13 -> 0.01189522718 | Q12: ='Input - Cost escalators - FY'!P13 -> 0.01500062792 | R12: ='Input - Cost escalators - FY'!Q13 -> 0.02245243211 | S12: ='Input - Cost escalators - FY'!R13 -> 0.02354839587 | T12: ='Input - Cost escalators - FY'!S13 -> 0.0218587056 | U12: ='Input - Cost escalators - FY'!T13 -> 0.02094289171
A13: 1 | B13: Land & Easements | C13: =VLOOKUP(B13,'Input - Weightings'!$A$8:$S$23,A13+7,FALSE) -> 0 | I13: ='Input - Cost escalators - FY'!H14 -> 0 | J13: ='Input - Cost escalators - FY'!I14 -> 0 | K13: ='Input - Cost escalators - FY'!J14 -> 0 | L13: ='Input - Cost escalators - FY'!K14 -> 0 | M13: ='Input - Cost escalators - FY'!L14 -> 0 | N13: ='Input - Cost escalators - FY'!M14 -> 0 | O13: ='Input - Cost escalators - FY'!N14 -> 0.07016666667 | P13: ='Input - Cost escalators - FY'!O14 -> 0.08733333333 | Q13: ='Input - Cost escalators - FY'!P14 -> 0.05775 | R13: ='Input - Cost escalators - FY'!Q14 -> 0.1115833333 | S13: ='Input - Cost escalators - FY'!R14 -> 0.02991666667 | T13: ='Input - Cost escalators - FY'!S14 -> -0.05958333333 | U13: ='Input - Cost escalators - FY'!T14 -> -0.14525
A14: 1 | B14: Materials | C14: =VLOOKUP(B14,'Input - Weightings'!$A$8:$S$23,A14+7,FALSE) -> 0 | I14: ='Input - Cost escalators - FY'!H15 -> 0 | J14: ='Input - Cost escalators - FY'!I15 -> 0 | K14: ='Input - Cost escalators - FY'!J15 -> 0 | L14: ='Input - Cost escalators - FY'!K15 -> 0 | M14: ='Input - Cost escalators - FY'!L15 -> 0 | N14: ='Input - Cost escalators - FY'!M15 -> 0 | O14: ='Input - Cost escalators - FY'!N15 -> 0 | P14: ='Input - Cost escalators - FY'!O15 -> 0 | Q14: ='Input - Cost escalators - FY'!P15 -> 0 | R14: ='Input - Cost escalators - FY'!Q15 -> 0 | S14: ='Input - Cost escalators - FY'!R15 -> 0 | T14: ='Input - Cost escalators - FY'!S15 -> 0 | U14: ='Input - Cost escalators - FY'!T15 -> 0
A15: 1 | B15: Oil | C15: =VLOOKUP(B15,'Input - Weightings'!$A$8:$S$23,A15+7,FALSE) -> 0.035 | I15: ='Input - Cost escalators - FY'!H16 -> 0 | J15: ='Input - Cost escalators - FY'!I16 -> 0 | K15: ='Input - Cost escalators - FY'!J16 -> 0 | L15: ='Input - Cost escalators - FY'!K16 -> 0 | M15: ='Input - Cost escalators - FY'!L16 -> 0 | N15: ='Input - Cost escalators - FY'!M16 -> 0 | O15: ='Input - Cost escalators - FY'!N16 -> -0.03202367405 | P15: ='Input - Cost escalators - FY'!O16 -> 0.0543567773 | Q15: ='Input - Cost escalators - FY'!P16 -> 0.04062657257 | R15: ='Input - Cost escalators - FY'!Q16 -> 0.005559313404 | S15: ='Input - Cost escalators - FY'!R16 -> 0.02420015416 | T15: ='Input - Cost escalators - FY'!S16 -> 0.0228886752 | U15: ='Input - Cost escalators - FY'!T16 -> 0.02015684746
A16: 1 | B16: Other | C16: =VLOOKUP(B16,'Input - Weightings'!$A$8:$S$23,A16+7,FALSE) -> 0.59 | I16: ='Input - Cost escalators - FY'!H17 -> 0 | J16: ='Input - Cost escalators - FY'!I17 -> 0 | K16: ='Input - Cost escalators - FY'!J17 -> 0 | L16: ='Input - Cost escalators - FY'!K17 -> 0 | M16: ='Input - Cost escalators - FY'!L17 -> 0 | N16: ='Input - Cost escalators - FY'!M17 -> 0 | O16: ='Input - Cost escalators - FY'!N17 -> 0 | P16: ='Input - Cost escalators - FY'!O17 -> 0 | Q16: ='Input - Cost escalators - FY'!P17 -> 0 | R16: ='Input - Cost escalators - FY'!Q17 -> 0 | S16: ='Input - Cost escalators - FY'!R17 -> 0 | T16: ='Input - Cost escalators - FY'!S17 -> 0 | U16: ='Input - Cost escalators - FY'!T17 -> 0
A17: 1 | B17: Producer's Margin | C17: =VLOOKUP(B17,'Input - Weightings'!$A$8:$S$23,A17+7,FALSE) -> 0.1 | I17: ='Input - Cost escalators - FY'!H18 -> 0 | J17: ='Input - Cost escalators - FY'!I18 -> 0 | K17: ='Input - Cost escalators - FY'!J18 -> 0 | L17: ='Input - Cost escalators - FY'!K18 -> 0 | M17: ='Input - Cost escalators - FY'!L18 -> 0 | N17: ='Input - Cost escalators - FY'!M18 -> 0 | O17: ='Input - Cost escalators - FY'!N18 -> 0 | P17: ='Input - Cost escalators - FY'!O18 -> 0 | Q17: ='Input - Cost escalators - FY'!P18 -> 0 | R17: ='Input - Cost escalators - FY'!Q18 -> 0 | S17: ='Input - Cost escalators - FY'!R18 -> 0 | T17: ='Input - Cost escalators - FY'!S18 -> 0 | U17: ='Input - Cost escalators - FY'!T18 -> 0
A18: 1 | B18: Property | C18: =VLOOKUP(B18,'Input - Weightings'!$A$8:$S$23,A18+7,FALSE) -> 0 | I18: ='Input - Cost escalators - FY'!H19 -> 0 | J18: ='Input - Cost escalators - FY'!I19 -> 0 | K18: ='Input - Cost escalators - FY'!J19 -> 0 | L18: ='Input - Cost escalators - FY'!K19 -> 0 | M18: ='Input - Cost escalators - FY'!L19 -> 0 | N18: ='Input - Cost escalators - FY'!M19 -> 0 | O18: ='Input - Cost escalators - FY'!N19 -> 0 | P18: ='Input - Cost escalators - FY'!O19 -> 0 | Q18: ='Input - Cost escalators - FY'!P19 -> 0 | R18: ='Input - Cost escalators - FY'!Q19 -> 0 | S18: ='Input - Cost escalators - FY'!R19 -> 0 | T18: ='Input - Cost escalators - FY'!S19 -> 0 | U18: ='Input - Cost escalators - FY'!T19 -> 0
A19: 1 | B19: Steel (Fabricated) | C19: =VLOOKUP(B19,'Input - Weightings'!$A$8:$S$23,A19+7,FALSE) -> 0.14 | I19: ='Input - Cost escalators - FY'!H20 -> 0 | J19: ='Input - Cost escalators - FY'!I20 -> 0 | K19: ='Input - Cost escalators - FY'!J20 -> 0 | L19: ='Input - Cost escalators - FY'!K20 -> 0 | M19: ='Input - Cost escalators - FY'!L20 -> 0 | N19: ='Input - Cost escalators - FY'!M20 -> 0 | O19: ='Input - Cost escalators - FY'!N20 -> -0.07071350102 | P19: ='Input - Cost escalators - FY'!O20 -> -0.04208794097 | Q19: ='Input - Cost escalators - FY'!P20 -> 0.11957493 | R19: ='Input - Cost escalators - FY'!Q20 -> -0.003557424785 | S19: ='Input - Cost escalators - FY'!R20 -> -0.01247336544 | T19: ='Input - Cost escalators - FY'!S20 -> -0.01524471231 | U19: ='Input - Cost escalators - FY'!T20 -> -0.01836107073
A20: 1 | B20: Switchgear | C20: =VLOOKUP(B20,'Input - Weightings'!$A$8:$S$23,A20+7,FALSE) -> 0 | I20: ='Input - Cost escalators - FY'!H21 -> 0 | J20: ='Input - Cost escalators - FY'!I21 -> 0 | K20: ='Input - Cost escalators - FY'!J21 -> 0 | L20: ='Input - Cost escalators - FY'!K21 -> 0 | M20: ='Input - Cost escalators - FY'!L21 -> 0 | N20: ='Input - Cost escalators - FY'!M21 -> 0 | O20: ='Input - Cost escalators - FY'!N21 -> 0 | P20: ='Input - Cost escalators - FY'!O21 -> 0 | Q20: ='Input - Cost escalators - FY'!P21 -> 0 | R20: ='Input - Cost escalators - FY'!Q21 -> 0 | S20: ='Input - Cost escalators - FY'!R21 -> 0 | T20: ='Input - Cost escalators - FY'!S21 -> 0 | U20: ='Input - Cost escalators - FY'!T21 -> 0
A21: 1 | B21: Transport | C21: =VLOOKUP(B21,'Input - Weightings'!$A$8:$S$23,A21+7,FALSE) -> 0.035 | I21: ='Input - Cost escalators - FY'!H22 -> 0 | J21: ='Input - Cost escalators - FY'!I22 -> 0 | K21: ='Input - Cost escalators - FY'!J22 -> 0 | L21: ='Input - Cost escalators - FY'!K22 -> 0 | M21: ='Input - Cost escalators - FY'!L22 -> 0 | N21: ='Input - Cost escalators - FY'!M22 -> 0 | O21: ='Input - Cost escalators - FY'!N22 -> 0 | P21: ='Input - Cost escalators - FY'!O22 -> 0 | Q21: ='Input - Cost escalators - FY'!P22 -> 0 | R21: ='Input - Cost escalators - FY'!Q22 -> 0 | S21: ='Input - Cost escalators - FY'!R22 -> 0 | T21: ='Input - Cost escalators - FY'!S22 -> 0 | U21: ='Input - Cost escalators - FY'!T22 -> 0
B22: Total | C22: =SUM(C7:C21) -> 1 | I22: =SUMPRODUCT($C7:$C21,I7:I21) -> 0 | J22: =SUMPRODUCT($C7:$C21,J7:J21) -> 0 | K22: 0 | L22: 0 | M22: 0 | N22: 0 | O22: -0.01530254395 | P22: -0.007973255007 | Q22: 0.02130113043 | R22: -0.001673227625 | S22: -0.001905619965 | T22: -0.002588137552 | U22: -0.003424628057
A24: 2 | B24: Distribution Transformers
A25: =A24 -> 2 | B25: Aluminium | C25: =VLOOKUP(B25,'Input - Weightings'!$A$8:$S$23,A25+7,FALSE) -> 0.15 | I25: =I7 -> 0 | J25: =J7 -> 0 | K25: 0 | L25: 0 | M25: 0 | N25: 0 | O25: -0.04939895939 | P25: -0.0105880956 | Q25: =Q7 -> 0.07158394004 | R25: 0.02929178442 | S25: 0.05028643249 | T25: 0.04577515452 | U25: 0.04076277014
A26: 2 | B26: Construction costs | C26: =VLOOKUP(B26,'Input - Weightings'!$A$8:$S$23,A26+7,FALSE) -> 0 | I26: =I8 -> 0 | J26: 0 | K26: 0 | L26: 0 | M26: 0 | N26: 0 | O26: -0.01582759057 | P26: 0.008604329079 | Q26: 0.004458563124 | R26: 0.004003171324 | S26: 0.004231601986 | T26: 0.00404971861 | U26: 0.0006094203839
A27: 2 | B27: Copper | C27: =VLOOKUP(B27,'Input - Weightings'!$A$8:$S$23,A27+7,FALSE) -> 0.02 | I27: 0 | J27: 0 | K27: 0 | L27: 0 | M27: 0 | N27: 0 | O27: -0.04281825217 | P27: -0.03983430476 | Q27: 0.03138710184 | R27: -0.01369764124 | S27: -0.01006354199 | T27: -0.0125498146 | U27: -0.01559567815
A28: 2 | B28: Current transformer | C28: =VLOOKUP(B28,'Input - Weightings'!$A$8:$S$23,A28+7,FALSE) -> 0 | I28: 0 | J28: 0 | K28: 0 | L28: 0 | M28: 0 | N28: 0 | O28: 0 | P28: 0 | Q28: 0 | R28: 0 | S28: 0 | T28: 0 | U28: 0
A29: 2 | B29: EGW wages | C29: =VLOOKUP(B29,'Input - Weightings'!$A$8:$S$23,A29+7,FALSE) -> 0 | I29: 0 | J29: 0 | K29: 0 | L29: 0 | M29: 0 | N29: 0 | O29: 0.001594082151 | P29: 0.006348235863 | Q29: 0.01784320135 | R29: 0.02712595008 | S29: 0.02716309496 | T29: 0.02453790556 | U29: 0.02288741772
A30: 2 | B30: Labour | C30: =VLOOKUP(B30,'Input - Weightings'!$A$8:$S$23,A30+7,FALSE) -> 0 | I30: 0 | J30: 0 | K30: 0 | L30: 0 | M30: 0 | N30: 0 | O30: 0.003515094883 | P30: 0.01189522718 | Q30: 0.01500062792 | R30: 0.02245243211 | S30: 0.02354839587 | T30: 0.0218587056 | U30: 0.02094289171
A31: 2 | B31: Land & Easements | C31: =VLOOKUP(B31,'Input - Weightings'!$A$8:$S$23,A31+7,FALSE) -> 0 | I31: 0 | J31: 0 | K31: 0 | L31: 0 | M31: 0 | N31: 0 | O31: 0.07016666667 | P31: 0.08733333333 | Q31: 0.05775 | R31: 0.1115833333 | S31: 0.02991666667 | T31: -0.05958333333 | U31: -0.14525
A32: 2 | B32: Materials | C32: =VLOOKUP(B32,'Input - Weightings'!$A$8:$S$23,A32+7,FALSE) -> 0 | I32: 0 | J32: 0 | K32: 0 | L32: 0 | M32: 0 | N32: 0 | O32: 0 | P32: 0 | Q32: 0 | R32: 0 | S32: 0 | T32: 0 | U32: 0
A33: 2 | B33: Oil | C33: =VLOOKUP(B33,'Input - Weightings'!$A$8:$S$23,A33+7,FALSE) -> 0.06 | I33: 0 | J33: 0 | K33: 0 | L33: 0 | M33: 0 | N33: 0 | O33: -0.03202367405 | P33: 0.0543567773 | Q33: 0.04062657257 | R33: 0.005559313404 | S33: 0.02420015416 | T33: 0.0228886752 | U33: 0.02015684746
A34: 2 | B34: Other | C34: =VLOOKUP(B34,'Input - Weightings'!$A$8:$S$23,A34+7,FALSE) -> 0.47 | I34: 0 | J34: 0 | K34: 0 | L34: 0 | M34: 0 | N34: 0 | O34: 0 | P34: 0 | Q34: 0 | R34: 0 | S34: 0 | T34: 0 | U34: 0
A35: 2 | B35: Producer's Margin | C35: =VLOOKUP(B35,'Input - Weightings'!$A$8:$S$23,A35+7,FALSE) -> 0.1 | I35: 0 | J35: 0 | K35: 0 | L35: 0 | M35: 0 | N35: 0 | O35: 0 | P35: 0 | Q35: 0 | R35: 0 | S35: 0 | T35: 0 | U35: 0
A36: 2 | B36: Property | C36: =VLOOKUP(B36,'Input - Weightings'!$A$8:$S$23,A36+7,FALSE) -> 0 | I36: 0 | J36: 0 | K36: 0 | L36: 0 | M36: 0 | N36: 0 | O36: 0 | P36: 0 | Q36: 0 | R36: 0 | S36: 0 | T36: 0 | U36: 0
A37: 2 | B37: Steel (Fabricated) | C37: =VLOOKUP(B37,'Input - Weightings'!$A$8:$S$23,A37+7,FALSE) -> 0.2 | I37: 0 | J37: 0 | K37: 0 | L37: 0 | M37: 0 | N37: 0 | O37: -0.07071350102 | P37: -0.04208794097 | Q37: 0.11957493 | R37: -0.003557424785 | S37: -0.01247336544 | T37: -0.01524471231 | U37: -0.01836107073
A38: 2 | B38: Switchgear | C38: =VLOOKUP(B38,'Input - Weightings'!$A$8:$S$23,A38+7,FALSE) -> 0 | I38: 0 | J38: 0 | K38: 0 | L38: 0 | M38: 0 | N38: 0 | O38: 0 | P38: 0 | Q38: 0 | R38: 0 | S38: 0 | T38: 0 | U38: 0
A39: 2 | B39: Transport | C39: =VLOOKUP(B39,'Input - Weightings'!$A$8:$S$23,A39+7,FALSE) -> 0 | I39: 0 | J39: 0 | K39: 0 | L39: 0 | M39: 0 | N39: 0 | O39: 0 | P39: 0 | Q39: 0 | R39: 0 | S39: 0 | T39: 0 | U39: 0
B40: Total | C40: =SUM(C25:C39) -> 1 | I40: =SUMPRODUCT($C25:$C39,I25:I39) -> 0 | J40: 0 | K40: 0 | L40: 0 | M40: 0 | N40: 0 | O40: -0.0243303296 | P40: -0.007541081992 | Q40: =SUMPRODUCT($C25:$C39,Q25:Q39) -> 0.03771791341 | R40: =SUMPRODUCT($C25:$C39,R25:R39) -> 0.003741888686 | S40: =SUMPRODUCT($C25:$C39,S25:S39) -> 0.006299030195 | T40: =SUMPRODUCT($C25:$C39,T25:T39) -> 0.004939654935 | U40: =SUMPRODUCT($C25:$C39,U25:U39) -> 0.00333969866
A42: 3 | B42: Switchgear
A43: =A42 -> 3 | B43: Aluminium | C43: =VLOOKUP(B43,'Input - Weightings'!$A$8:$S$23,A43+7,FALSE) -> 0 | I43: =I25 -> 0 | J43: =J25 -> 0 | K43: 0 | L43: 0 | M43: 0 | N43: 0 | O43: -0.04939895939 | P43: -0.0105880956 | Q43: =Q25 -> 0.07158394004 | R43: 0.02929178442 | S43: 0.05028643249 | T43: 0.04577515452 | U43: 0.04076277014
A44: 3 | B44: Construction costs | C44: =VLOOKUP(B44,'Input - Weightings'!$A$8:$S$23,A44+7,FALSE) -> 0 | I44: =I26 -> 0 | J44: 0 | K44: 0 | L44: 0 | M44: 0 | N44: 0 | O44: -0.01582759057 | P44: 0.008604329079 | Q44: 0.004458563124 | R44: 0.004003171324 | S44: 0.004231601986 | T44: 0.00404971861 | U44: 0.0006094203839
A45: 3 | B45: Copper | C45: =VLOOKUP(B45,'Input - Weightings'!$A$8:$S$23,A45+7,FALSE) -> 0.125 | I45: =I27 -> 0 | J45: 0 | K45: 0 | L45: 0 | M45: 0 | N45: 0 | O45: -0.04281825217 | P45: -0.03983430476 | Q45: 0.03138710184 | R45: -0.01369764124 | S45: -0.01006354199 | T45: -0.0125498146 | U45: -0.01559567815
A46: 3 | B46: Current transformer | C46: =VLOOKUP(B46,'Input - Weightings'!$A$8:$S$23,A46+7,FALSE) -> 0.043 | I46: =I28 -> 0 | J46: =J28 -> 0 | K46: 0 | L46: 0 | M46: 0 | N46: 0 | O46: 0 | P46: 0 | Q46: 0 | R46: 0 | S46: 0 | T46: 0 | U46: 0
A47: 3 | B47: EGW wages | C47: =VLOOKUP(B47,'Input - Weightings'!$A$8:$S$23,A47+7,FALSE) -> 0 | I47: =I29 -> 0 | J47: 0 | K47: 0 | L47: 0 | M47: 0 | N47: 0 | O47: 0.001594082151 | P47: 0.006348235863 | Q47: 0.01784320135 | R47: 0.02712595008 | S47: 0.02716309496 | T47: 0.02453790556 | U47: 0.02288741772
A48: 3 | B48: Labour | C48: =VLOOKUP(B48,'Input - Weightings'!$A$8:$S$23,A48+7,FALSE) -> 0 | I48: =I30 -> 0 | J48: 0 | K48: 0 | L48: 0 | M48: 0 | N48: 0 | O48: 0.003515094883 | P48: 0.01189522718 | Q48: 0.01500062792 | R48: 0.02245243211 | S48: 0.02354839587 | T48: 0.0218587056 | U48: 0.02094289171
A49: 3 | B49: Land & Easements | C49: =VLOOKUP(B49,'Input - Weightings'!$A$8:$S$23,A49+7,FALSE) -> 0 | I49: =I31 -> 0 | J49: 0 | K49: 0 | L49: 0 | M49: 0 | N49: 0 | O49: 0.07016666667 | P49: 0.08733333333 | Q49: 0.05775 | R49: 0.1115833333 | S49: 0.02991666667 | T49: -0.05958333333 | U49: -0.14525
A50: 3 | B50: Materials | C50: =VLOOKUP(B50,'Input - Weightings'!$A$8:$S$23,A50+7,FALSE) -> 0 | I50: =I32 -> 0 | J50: 0 | K50: 0 | L50: 0 | M50: 0 | N50: 0 | O50: 0 | P50: 0 | Q50: 0 | R50: 0 | S50: 0 | T50: 0 | U50: 0
A51: 3 | B51: Oil | C51: =VLOOKUP(B51,'Input - Weightings'!$A$8:$S$23,A51+7,FALSE) -> 0 | I51: =I33 -> 0 | J51: 0 | K51: 0 | L51: 0 | M51: 0 | N51: 0 | O51: -0.03202367405 | P51: 0.0543567773 | Q51: 0.04062657257 | R51: 0.005559313404 | S51: 0.02420015416 | T51: 0.0228886752 | U51: 0.02015684746
A52: 3 | B52: Other | C52: =VLOOKUP(B52,'Input - Weightings'!$A$8:$S$23,A52+7,FALSE) -> 0.593 | I52: =I34 -> 0 | J52: 0 | K52: 0 | L52: 0 | M52: 0 | N52: 0 | O52: 0 | P52: 0 | Q52: 0 | R52: 0 | S52: 0 | T52: 0 | U52: 0
A53: 3 | B53: Producer's Margin | C53: =VLOOKUP(B53,'Input - Weightings'!$A$8:$S$23,A53+7,FALSE) -> 0.1 | I53: =I35 -> 0 | J53: 0 | K53: 0 | L53: 0 | M53: 0 | N53: 0 | O53: 0 | P53: 0 | Q53: 0 | R53: 0 | S53: 0 | T53: 0 | U53: 0
A54: 3 | B54: Property | C54: =VLOOKUP(B54,'Input - Weightings'!$A$8:$S$23,A54+7,FALSE) -> 0 | I54: =I36 -> 0 | J54: 0 | K54: 0 | L54: 0 | M54: 0 | N54: 0 | O54: 0 | P54: 0 | Q54: 0 | R54: 0 | S54: 0 | T54: 0 | U54: 0
A55: 3 | B55: Steel (Fabricated) | C55: =VLOOKUP(B55,'Input - Weightings'!$A$8:$S$23,A55+7,FALSE) -> 0.139 | I55: =I37 -> 0 | J55: 0 | K55: 0 | L55: 0 | M55: 0 | N55: 0 | O55: -0.07071350102 | P55: -0.04208794097 | Q55: 0.11957493 | R55: -0.003557424785 | S55: -0.01247336544 | T55: -0.01524471231 | U55: -0.01836107073
A56: 3 | B56: Switchgear | C56: =VLOOKUP(B56,'Input - Weightings'!$A$8:$S$23,A56+7,FALSE) -> 0 | I56: =I38 -> 0 | J56: 0 | K56: 0 | L56: 0 | M56: 0 | N56: 0 | O56: 0 | P56: 0 | Q56: 0 | R56: 0 | S56: 0 | T56: 0 | U56: 0
A57: 3 | B57: Transport | C57: =VLOOKUP(B57,'Input - Weightings'!$A$8:$S$23,A57+7,FALSE) -> 0 | I57: =I39 -> 0 | J57: 0 | K57: 0 | L57: 0 | M57: 0 | N57: 0 | O57: 0 | P57: 0 | Q57: 0 | R57: 0 | S57: 0 | T57: 0 | U57: 0
B58: Total | C58: =SUM(C43:C57) -> 1 | I58: =SUMPRODUCT($C43:$C57,I43:I57) -> 0 | J58: 0 | K58: 0 | L58: 0 | M58: 0 | N58: 0 | O58: -0.01518145816 | P58: -0.01082951189 | Q58: =SUMPRODUCT($C43:$C57,Q43:Q57) -> 0.02054430301 | R58: =SUMPRODUCT($C43:$C57,R43:R57) -> -0.002206687201 | S58: =SUMPRODUCT($C43:$C57,S43:S57) -> -0.002991740545 | T58: =SUMPRODUCT($C43:$C57,T43:T57) -> -0.003687741837 | U58: =SUMPRODUCT($C43:$C57,U43:U57) -> -0.004501648601
A60: 4 | B60: Distribution Substations
A61: =A60 -> 4 | B61: Aluminium | C61: =VLOOKUP(B61,'Input - Weightings'!$A$8:$S$23,A61+7,FALSE) -> 0.03 | I61: =I43 -> 0 | J61: =J43 -> 0 | K61: 0 | L61: 0 | M61: 0 | N61: 0 | O61: -0.04939895939 | P61: -0.0105880956 | Q61: =Q43 -> 0.07158394004 | R61: 0.02929178442 | S61: 0.05028643249 | T61: 0.04577515452 | U61: 0.04076277014
A62: 4 | B62: Construction costs | C62: =VLOOKUP(B62,'Input - Weightings'!$A$8:$S$23,A62+7,FALSE) -> 0 | I62: =I44 -> 0 | J62: 0 | K62: 0 | L62: 0 | M62: 0 | N62: 0 | O62: -0.01582759057 | P62: 0.008604329079 | Q62: 0.004458563124 | R62: 0.004003171324 | S62: 0.004231601986 | T62: 0.00404971861 | U62: 0.0006094203839
A63: 4 | B63: Copper | C63: =VLOOKUP(B63,'Input - Weightings'!$A$8:$S$23,A63+7,FALSE) -> 0.1 | I63: =I45 -> 0 | J63: 0 | K63: 0 | L63: 0 | M63: 0 | N63: 0 | O63: -0.04281825217 | P63: -0.03983430476 | Q63: 0.03138710184 | R63: -0.01369764124 | S63: -0.01006354199 | T63: -0.0125498146 | U63: -0.01559567815
A64: 4 | B64: Current transformer | C64: =VLOOKUP(B64,'Input - Weightings'!$A$8:$S$23,A64+7,FALSE) -> 0 | I64: =I46 -> 0 | J64: 0 | K64: 0 | L64: 0 | M64: 0 | N64: 0 | O64: 0 | P64: 0 | Q64: 0 | R64: 0 | S64: 0 | T64: 0 | U64: 0
A65: 4 | B65: EGW wages | C65: =VLOOKUP(B65,'Input - Weightings'!$A$8:$S$23,A65+7,FALSE) -> 0 | I65: =I47 -> 0 | J65: 0 | K65: 0 | L65: 0 | M65: 0 | N65: 0 | O65: 0.001594082151 | P65: 0.006348235863 | Q65: 0.01784320135 | R65: 0.02712595008 | S65: 0.02716309496 | T65: 0.02453790556 | U65: 0.02288741772
A66: =A65 -> 4 | B66: Labour | C66: =VLOOKUP(B66,'Input - Weightings'!$A$8:$S$23,A66+7,FALSE) -> 0 | I66: =I48 -> 0 | J66: 0 | K66: 0 | L66: 0 | M66: 0 | N66: 0 | O66: 0.003515094883 | P66: 0.01189522718 | Q66: 0.01500062792 | R66: 0.02245243211 | S66: 0.02354839587 | T66: 0.0218587056 | U66: 0.02094289171
A67: =A66 -> 4 | B67: Land & Easements | C67: =VLOOKUP(B67,'Input - Weightings'!$A$8:$S$23,A67+7,FALSE) -> 0 | I67: =I49 -> 0 | J67: 0 | K67: 0 | L67: 0 | M67: 0 | N67: 0 | O67: 0.07016666667 | P67: 0.08733333333 | Q67: 0.05775 | R67: 0.1115833333 | S67: 0.02991666667 | T67: -0.05958333333 | U67: -0.14525
A68: 4 | B68: Materials | C68: =VLOOKUP(B68,'Input - Weightings'!$A$8:$S$23,A68+7,FALSE) -> 0 | I68: =I50 -> 0 | J68: 0 | K68: 0 | L68: 0 | M68: 0 | N68: 0 | O68: 0 | P68: 0 | Q68: 0 | R68: 0 | S68: 0 | T68: 0 | U68: 0
A69: 4 | B69: Oil | C69: =VLOOKUP(B69,'Input - Weightings'!$A$8:$S$23,A69+7,FALSE) -> 0.02 | I69: =I51 -> 0 | J69: 0 | K69: 0 | L69: 0 | M69: 0 | N69: 0 | O69: -0.03202367405 | P69: 0.0543567773 | Q69: 0.04062657257 | R69: 0.005559313404 | S69: 0.02420015416 | T69: 0.0228886752 | U69: 0.02015684746
A70: 4 | B70: Other | C70: =VLOOKUP(B70,'Input - Weightings'!$A$8:$S$23,A70+7,FALSE) -> 0.22 | I70: =I52 -> 0 | J70: 0 | K70: 0 | L70: 0 | M70: 0 | N70: 0 | O70: 0 | P70: 0 | Q70: 0 | R70: 0 | S70: 0 | T70: 0 | U70: 0
A71: 4 | B71: Producer's Margin | C71: =VLOOKUP(B71,'Input - Weightings'!$A$8:$S$23,A71+7,FALSE) -> 0.1 | I71: =I53 -> 0 | J71: 0 | K71: 0 | L71: 0 | M71: 0 | N71: 0 | O71: 0 | P71: 0 | Q71: 0 | R71: 0 | S71: 0 | T71: 0 | U71: 0
A72: 4 | B72: Property | C72: =VLOOKUP(B72,'Input - Weightings'!$A$8:$S$23,A72+7,FALSE) -> 0 | I72: =I54 -> 0 | J72: 0 | K72: 0 | L72: 0 | M72: 0 | N72: 0 | O72: 0 | P72: 0 | Q72: 0 | R72: 0 | S72: 0 | T72: 0 | U72: 0
A73: 4 | B73: Steel (Fabricated) | C73: =VLOOKUP(B73,'Input - Weightings'!$A$8:$S$23,A73+7,FALSE) -> 0.28 | I73: =I55 -> 0 | J73: 0 | K73: 0 | L73: 0 | M73: 0 | N73: 0 | O73: -0.07071350102 | P73: -0.04208794097 | Q73: 0.11957493 | R73: -0.003557424785 | S73: -0.01247336544 | T73: -0.01524471231 | U73: -0.01836107073
A74: 4 | B74: Switchgear | C74: =VLOOKUP(B74,'Input - Weightings'!$A$8:$S$23,A74+7,FALSE) -> 0.25 | I74: =I56 -> 0 | J74: 0 | K74: 0 | L74: 0 | M74: 0 | N74: 0 | O74: 0 | P74: 0 | Q74: 0 | R74: 0 | S74: 0 | T74: 0 | U74: 0
A75: 4 | B75: Transport | C75: =VLOOKUP(B75,'Input - Weightings'!$A$8:$S$23,A75+7,FALSE) -> 0 | I75: =I57 -> 0 | J75: 0 | K75: 0 | L75: 0 | M75: 0 | N75: 0 | O75: 0 | P75: 0 | Q75: 0 | R75: 0 | S75: 0 | T75: 0 | U75: 0
B76: Total | C76: =SUM(C61:C75) -> 1 | I76: =SUMPRODUCT($C61:$C75,I61:I75) -> 0 | J76: 0 | K76: 0 | L76: 0 | M76: 0 | N76: 0 | O76: -0.02620404777 | P76: -0.01499856127 | Q76: =SUMPRODUCT($C61:$C75,Q61:Q75) -> 0.03957974025 | R76: =SUMPRODUCT($C61:$C75,R61:R75) -> -0.001375903263 | S76: =SUMPRODUCT($C61:$C75,S61:S75) -> -0.002506300464 | T76: =SUMPRODUCT($C61:$C75,T61:T75) -> -0.003692472768 | U76: =SUMPRODUCT($C61:$C75,U61:U75) -> -0.005074647567
A78: 5 | B78: Cable (Cu)
A79: =A78 -> 5 | B79: Aluminium | C79: =VLOOKUP(B79,'Input - Weightings'!$A$8:$S$23,A79+7,FALSE) -> 0 | I79: =I61 -> 0 | J79: =J61 -> 0 | K79: 0 | L79: 0 | M79: 0 | N79: 0 | O79: -0.04939895939 | P79: -0.0105880956 | Q79: =Q61 -> 0.07158394004 | R79: 0.02929178442 | S79: 0.05028643249 | T79: 0.04577515452 | U79: 0.04076277014
A80: 5 | B80: Construction costs | C80: =VLOOKUP(B80,'Input - Weightings'!$A$8:$S$23,A80+7,FALSE) -> 0 | I80: =I62 -> 0 | J80: 0 | K80: 0 | L80: 0 | M80: 0 | N80: 0 | O80: -0.01582759057 | P80: 0.008604329079 | Q80: 0.004458563124 | R80: 0.004003171324 | S80: 0.004231601986 | T80: 0.00404971861 | U80: 0.0006094203839
A81: 5 | B81: Copper | C81: =VLOOKUP(B81,'Input - Weightings'!$A$8:$S$23,A81+7,FALSE) -> 0.55 | I81: =I63 -> 0 | J81: 0 | K81: 0 | L81: 0 | M81: 0 | N81: 0 | O81: -0.04281825217 | P81: -0.03983430476 | Q81: 0.03138710184 | R81: -0.01369764124 | S81: -0.01006354199 | T81: -0.0125498146 | U81: -0.01559567815
A82: 5 | B82: Current transformer | C82: =VLOOKUP(B82,'Input - Weightings'!$A$8:$S$23,A82+7,FALSE) -> 0 | I82: =I64 -> 0 | J82: 0 | K82: 0 | L82: 0 | M82: 0 | N82: 0 | O82: 0 | P82: 0 | Q82: 0 | R82: 0 | S82: 0 | T82: 0 | U82: 0
A83: 5 | B83: EGW wages | C83: =VLOOKUP(B83,'Input - Weightings'!$A$8:$S$23,A83+7,FALSE) -> 0 | I83: =I65 -> 0 | J83: 0 | K83: 0 | L83: 0 | M83: 0 | N83: 0 | O83: 0.001594082151 | P83: 0.006348235863 | Q83: 0.01784320135 | R83: 0.02712595008 | S83: 0.02716309496 | T83: 0.02453790556 | U83: 0.02288741772
A84: 5 | B84: Labour | C84: =VLOOKUP(B84,'Input - Weightings'!$A$8:$S$23,A84+7,FALSE) -> 0 | I84: =I66 -> 0 | J84: 0 | K84: 0 | L84: 0 | M84: 0 | N84: 0 | O84: 0.003515094883 | P84: 0.01189522718 | Q84: 0.01500062792 | R84: 0.02245243211 | S84: 0.02354839587 | T84: 0.0218587056 | U84: 0.02094289171
A85: 5 | B85: Land & Easements | C85: =VLOOKUP(B85,'Input - Weightings'!$A$8:$S$23,A85+7,FALSE) -> 0 | I85: =I67 -> 0 | J85: 0 | K85: 0 | L85: 0 | M85: 0 | N85: 0 | O85: 0.07016666667 | P85: 0.08733333333 | Q85: 0.05775 | R85: 0.1115833333 | S85: 0.02991666667 | T85: -0.05958333333 | U85: -0.14525
A86: 5 | B86: Materials | C86: =VLOOKUP(B86,'Input - Weightings'!$A$8:$S$23,A86+7,FALSE) -> 0 | I86: =I68 -> 0 | J86: 0 | K86: 0 | L86: 0 | M86: 0 | N86: 0 | O86: 0 | P86: 0 | Q86: 0 | R86: 0 | S86: 0 | T86: 0 | U86: 0
A87: 5 | B87: Oil | C87: =VLOOKUP(B87,'Input - Weightings'!$A$8:$S$23,A87+7,FALSE) -> 0 | I87: =I69 -> 0 | J87: 0 | K87: 0 | L87: 0 | M87: 0 | N87: 0 | O87: -0.03202367405 | P87: 0.0543567773 | Q87: 0.04062657257 | R87: 0.005559313404 | S87: 0.02420015416 | T87: 0.0228886752 | U87: 0.02015684746
A88: 5 | B88: Other | C88: =VLOOKUP(B88,'Input - Weightings'!$A$8:$S$23,A88+7,FALSE) -> 0.375 | I88: =I70 -> 0 | J88: 0 | K88: 0 | L88: 0 | M88: 0 | N88: 0 | O88: 0 | P88: 0 | Q88: 0 | R88: 0 | S88: 0 | T88: 0 | U88: 0
A89: 5 | B89: Producer's Margin | C89: =VLOOKUP(B89,'Input - Weightings'!$A$8:$S$23,A89+7,FALSE) -> 0.075 | I89: =I71 -> 0 | J89: 0 | K89: 0 | L89: 0 | M89: 0 | N89: 0 | O89: 0 | P89: 0 | Q89: 0 | R89: 0 | S89: 0 | T89: 0 | U89: 0
A90: 5 | B90: Property | C90: =VLOOKUP(B90,'Input - Weightings'!$A$8:$S$23,A90+7,FALSE) -> 0 | I90: =I72 -> 0 | J90: 0 | K90: 0 | L90: 0 | M90: 0 | N90: 0 | O90: 0 | P90: 0 | Q90: 0 | R90: 0 | S90: 0 | T90: 0 | U90: 0
A91: 5 | B91: Steel (Fabricated) | C91: =VLOOKUP(B91,'Input - Weightings'!$A$8:$S$23,A91+7,FALSE) -> 0 | I91: =I73 -> 0 | J91: 0 | K91: 0 | L91: 0 | M91: 0 | N91: 0 | O91: -0.07071350102 | P91: -0.04208794097 | Q91: 0.11957493 | R91: -0.003557424785 | S91: -0.01247336544 | T91: -0.01524471231 | U91: -0.01836107073
A92: 5 | B92: Switchgear | C92: =VLOOKUP(B92,'Input - Weightings'!$A$8:$S$23,A92+7,FALSE) -> 0 | I92: =I74 -> 0 | J92: 0 | K92: 0 | L92: 0 | M92: 0 | N92: 0 | O92: 0 | P92: 0 | Q92: 0 | R92: 0 | S92: 0 | T92: 0 | U92: 0
A93: 5 | B93: Transport | C93: =VLOOKUP(B93,'Input - Weightings'!$A$8:$S$23,A93+7,FALSE) -> 0 | I93: =I75 -> 0 | J93: 0 | K93: 0 | L93: 0 | M93: 0 | N93: 0 | O93: 0 | P93: 0 | Q93: 0 | R93: 0 | S93: 0 | T93: 0 | U93: 0
B94: Total | C94: =SUM(C79:C93) -> 1 | I94: =SUMPRODUCT($C79:$C93,I79:I93) -> 0 | J94: 0 | K94: 0 | L94: 0 | M94: 0 | N94: =SUMPRODUCT($C79:$C93,N79:N93) -> 0 | O94: -0.02355003869 | P94: -0.02190886762 | Q94: =SUMPRODUCT($C79:$C93,Q79:Q93) -> 0.01726290601 | R94: =SUMPRODUCT($C79:$C93,R79:R93) -> -0.007533702684 | S94: =SUMPRODUCT($C79:$C93,S79:S93) -> -0.005534948093 | T94: =SUMPRODUCT($C79:$C93,T79:T93) -> -0.006902398032 | U94: =SUMPRODUCT($C79:$C93,U79:U93) -> -0.008577622985
A96: 6 | B96: Cable (Al)
A97: =A96 -> 6 | B97: Aluminium | C97: =VLOOKUP(B97,'Input - Weightings'!$A$8:$S$23,A97+7,FALSE) -> 0.2 | I97: =I79 -> 0 | J97: =J79 -> 0 | K97: 0 | L97: 0 | M97: 0 | N97: 0 | O97: -0.04939895939 | P97: -0.0105880956 | Q97: =Q79 -> 0.07158394004 | R97: 0.02929178442 | S97: 0.05028643249 | T97: 0.04577515452 | U97: 0.04076277014
A98: 6 | B98: Construction costs | C98: =VLOOKUP(B98,'Input - Weightings'!$A$8:$S$23,A98+7,FALSE) -> 0 | I98: =I80 -> 0 | J98: 0 | K98: 0 | L98: 0 | M98: 0 | N98: 0 | O98: -0.01582759057 | P98: 0.008604329079 | Q98: 0.004458563124 | R98: 0.004003171324 | S98: 0.004231601986 | T98: 0.00404971861 | U98: 0.0006094203839
A99: 6 | B99: Copper | C99: =VLOOKUP(B99,'Input - Weightings'!$A$8:$S$23,A99+7,FALSE) -> 0.19 | I99: =I81 -> 0 | J99: 0 | K99: 0 | L99: 0 | M99: 0 | N99: 0 | O99: -0.04281825217 | P99: -0.03983430476 | Q99: 0.03138710184 | R99: -0.01369764124 | S99: -0.01006354199 | T99: -0.0125498146 | U99: -0.01559567815
A100: 6 | B100: Current transformer | C100: =VLOOKUP(B100,'Input - Weightings'!$A$8:$S$23,A100+7,FALSE) -> 0 | I100: =I82 -> 0 | J100: 0 | K100: 0 | L100: 0 | M100: 0 | N100: 0 | O100: 0 | P100: 0 | Q100: 0 | R100: 0 | S100: 0 | T100: 0 | U100: 0
A101: 6 | B101: EGW wages | C101: =VLOOKUP(B101,'Input - Weightings'!$A$8:$S$23,A101+7,FALSE) -> 0 | I101: =I83 -> 0 | J101: 0 | K101: 0 | L101: 0 | M101: 0 | N101: 0 | O101: 0.001594082151 | P101: 0.006348235863 | Q101: 0.01784320135 | R101: 0.02712595008 | S101: 0.02716309496 | T101: 0.02453790556 | U101: 0.02288741772
A102: =A101 -> 6 | B102: Labour | C102: =VLOOKUP(B102,'Input - Weightings'!$A$8:$S$23,A102+7,FALSE) -> 0 | I102: =I84 -> 0 | J102: 0 | K102: 0 | L102: 0 | M102: 0 | N102: 0 | O102: 0.003515094883 | P102: 0.01189522718 | Q102: 0.01500062792 | R102: 0.02245243211 | S102: 0.02354839587 | T102: 0.0218587056 | U102: 0.02094289171
A103: =A102 -> 6 | B103: Land & Easements | C103: =VLOOKUP(B103,'Input - Weightings'!$A$8:$S$23,A103+7,FALSE) -> 0 | I103: =I85 -> 0 | J103: 0 | K103: 0 | L103: 0 | M103: 0 | N103: 0 | O103: 0.07016666667 | P103: 0.08733333333 | Q103: 0.05775 | R103: 0.1115833333 | S103: 0.02991666667 | T103: -0.05958333333 | U103: -0.14525
A104: 6 | B104: Materials | C104: =VLOOKUP(B104,'Input - Weightings'!$A$8:$S$23,A104+7,FALSE) -> 0 | I104: =I86 -> 0 | J104: 0 | K104: 0 | L104: 0 | M104: 0 | N104: 0 | O104: 0 | P104: 0 | Q104: 0 | R104: 0 | S104: 0 | T104: 0 | U104: 0
A105: 6 | B105: Oil | C105: =VLOOKUP(B105,'Input - Weightings'!$A$8:$S$23,A105+7,FALSE) -> 0 | I105: =I87 -> 0 | J105: 0 | K105: 0 | L105: 0 | M105: 0 | N105: 0 | O105: -0.03202367405 | P105: 0.0543567773 | Q105: 0.04062657257 | R105: 0.005559313404 | S105: 0.02420015416 | T105: 0.0228886752 | U105: 0.02015684746
A106: 6 | B106: Other | C106: =VLOOKUP(B106,'Input - Weightings'!$A$8:$S$23,A106+7,FALSE) -> 0.535 | I106: =I88 -> 0 | J106: 0 | K106: 0 | L106: 0 | M106: 0 | N106: 0 | O106: 0 | P106: 0 | Q106: 0 | R106: 0 | S106: 0 | T106: 0 | U106: 0
A107: 6 | B107: Producer's Margin | C107: =VLOOKUP(B107,'Input - Weightings'!$A$8:$S$23,A107+7,FALSE) -> 0.075 | I107: =I89 -> 0 | J107: 0 | K107: 0 | L107: 0 | M107: 0 | N107: 0 | O107: 0 | P107: 0 | Q107: 0 | R107: 0 | S107: 0 | T107: 0 | U107: 0
A108: 6 | B108: Property | C108: =VLOOKUP(B108,'Input - Weightings'!$A$8:$S$23,A108+7,FALSE) -> 0 | I108: =I90 -> 0 | J108: 0 | K108: 0 | L108: 0 | M108: 0 | N108: 0 | O108: 0 | P108: 0 | Q108: 0 | R108: 0 | S108: 0 | T108: 0 | U108: 0
A109: 6 | B109: Steel (Fabricated) | C109: =VLOOKUP(B109,'Input - Weightings'!$A$8:$S$23,A109+7,FALSE) -> 0 | I109: =I91 -> 0 | J109: 0 | K109: 0 | L109: 0 | M109: 0 | N109: 0 | O109: -0.07071350102 | P109: -0.04208794097 | Q109: 0.11957493 | R109: -0.003557424785 | S109: -0.01247336544 | T109: -0.01524471231 | U109: -0.01836107073
A110: 6 | B110: Switchgear | C110: =VLOOKUP(B110,'Input - Weightings'!$A$8:$S$23,A110+7,FALSE) -> 0 | I110: =I92 -> 0 | J110: 0 | K110: 0 | L110: 0 | M110: 0 | N110: 0 | O110: 0 | P110: 0 | Q110: 0 | R110: 0 | S110: 0 | T110: 0 | U110: 0
A111: 6 | B111: Transport | C111: =VLOOKUP(B111,'Input - Weightings'!$A$8:$S$23,A111+7,FALSE) -> 0 | I111: =I93 -> 0 | J111: 0 | K111: 0 | L111: 0 | M111: 0 | N111: 0 | O111: 0 | P111: 0 | Q111: 0 | R111: 0 | S111: 0 | T111: 0 | U111: 0
B112: Total | C112: =SUM(C97:C111) -> 1 | I112: =SUMPRODUCT($C97:$C111,I97:I111) -> 0 | J112: =SUMPRODUCT($C97:$C111,J97:J111) -> 0 | K112: 0 | L112: 0 | M112: 0 | N112: =SUMPRODUCT($C97:$C111,N97:N111) -> 0 | O112: -0.01801525979 | P112: -0.009686137024 | Q112: =SUMPRODUCT($C97:$C111,Q97:Q111) -> 0.02028033736 | R112: =SUMPRODUCT($C97:$C111,R97:R111) -> 0.003255805049 | S112: =SUMPRODUCT($C97:$C111,S97:S111) -> 0.008145213521 | T112: =SUMPRODUCT($C97:$C111,T97:T111) -> 0.006770566129 | U112: =SUMPRODUCT($C97:$C111,U97:U111) -> 0.005189375179
A114: 7 | B114: Secondary Protection
A115: =A114 -> 7 | B115: Aluminium | C115: =VLOOKUP(B115,'Input - Weightings'!$A$8:$S$23,A115+7,FALSE) -> 0 | I115: =I97 -> 0 | J115: =J97 -> 0 | K115: 0 | L115: 0 | M115: 0 | N115: 0 | O115: -0.04939895939 | P115: -0.0105880956 | Q115: =Q97 -> 0.07158394004 | R115: 0.02929178442 | S115: 0.05028643249 | T115: 0.04577515452 | U115: 0.04076277014
A116: 7 | B116: Construction costs | C116: =VLOOKUP(B116,'Input - Weightings'!$A$8:$S$23,A116+7,FALSE) -> 0 | I116: =I98 -> 0 | J116: 0 | K116: 0 | L116: 0 | M116: 0 | N116: 0 | O116: -0.01582759057 | P116: 0.008604329079 | Q116: 0.004458563124 | R116: 0.004003171324 | S116: 0.004231601986 | T116: 0.00404971861 | U116: 0.0006094203839
A117: 7 | B117: Copper | C117: =VLOOKUP(B117,'Input - Weightings'!$A$8:$S$23,A117+7,FALSE) -> 0 | I117: =I99 -> 0 | J117: 0 | K117: 0 | L117: 0 | M117: 0 | N117: 0 | O117: -0.04281825217 | P117: -0.03983430476 | Q117: 0.03138710184 | R117: -0.01369764124 | S117: -0.01006354199 | T117: -0.0125498146 | U117: -0.01559567815
A118: 7 | B118: Current transformer | C118: =VLOOKUP(B118,'Input - Weightings'!$A$8:$S$23,A118+7,FALSE) -> 0 | I118: =I100 -> 0 | J118: 0 | K118: 0 | L118: 0 | M118: 0 | N118: 0 | O118: 0 | P118: 0 | Q118: 0 | R118: 0 | S118: 0 | T118: 0 | U118: 0
A119: 7 | B119: EGW wages | C119: =VLOOKUP(B119,'Input - Weightings'!$A$8:$S$23,A119+7,FALSE) -> 0 | I119: =I101 -> 0 | J119: 0 | K119: 0 | L119: 0 | M119: 0 | N119: 0 | O119: 0.001594082151 | P119: 0.006348235863 | Q119: 0.01784320135 | R119: 0.02712595008 | S119: 0.02716309496 | T119: 0.02453790556 | U119: 0.02288741772
A120: =A119 -> 7 | B120: Labour | C120: =VLOOKUP(B120,'Input - Weightings'!$A$8:$S$23,A120+7,FALSE) -> 0 | I120: =I102 -> 0 | J120: 0 | K120: 0 | L120: 0 | M120: 0 | N120: 0 | O120: 0.003515094883 | P120: 0.01189522718 | Q120: 0.01500062792 | R120: 0.02245243211 | S120: 0.02354839587 | T120: 0.0218587056 | U120: 0.02094289171
A121: =A120 -> 7 | B121: Land & Easements | C121: =VLOOKUP(B121,'Input - Weightings'!$A$8:$S$23,A121+7,FALSE) -> 0 | I121: =I103 -> 0 | J121: 0 | K121: 0 | L121: 0 | M121: 0 | N121: 0 | O121: 0.07016666667 | P121: 0.08733333333 | Q121: 0.05775 | R121: 0.1115833333 | S121: 0.02991666667 | T121: -0.05958333333 | U121: -0.14525
A122: 7 | B122: Materials | C122: =VLOOKUP(B122,'Input - Weightings'!$A$8:$S$23,A122+7,FALSE) -> 0 | I122: =I104 -> 0 | J122: 0 | K122: 0 | L122: 0 | M122: 0 | N122: 0 | O122: 0 | P122: 0 | Q122: 0 | R122: 0 | S122: 0 | T122: 0 | U122: 0
A123: 7 | B123: Oil | C123: =VLOOKUP(B123,'Input - Weightings'!$A$8:$S$23,A123+7,FALSE) -> 0 | I123: =I105 -> 0 | J123: 0 | K123: 0 | L123: 0 | M123: 0 | N123: 0 | O123: -0.03202367405 | P123: 0.0543567773 | Q123: 0.04062657257 | R123: 0.005559313404 | S123: 0.02420015416 | T123: 0.0228886752 | U123: 0.02015684746
A124: 7 | B124: Other | C124: =VLOOKUP(B124,'Input - Weightings'!$A$8:$S$23,A124+7,FALSE) -> 0.9 | I124: =I106 -> 0 | J124: 0 | K124: 0 | L124: 0 | M124: 0 | N124: 0 | O124: 0 | P124: 0 | Q124: 0 | R124: 0 | S124: 0 | T124: 0 | U124: 0
A125: 7 | B125: Producer's Margin | C125: =VLOOKUP(B125,'Input - Weightings'!$A$8:$S$23,A125+7,FALSE) -> 0.1 | I125: =I107 -> 0 | J125: 0 | K125: 0 | L125: 0 | M125: 0 | N125: 0 | O125: 0 | P125: 0 | Q125: 0 | R125: 0 | S125: 0 | T125: 0 | U125: 0
A126: 7 | B126: Property | C126: =VLOOKUP(B126,'Input - Weightings'!$A$8:$S$23,A126+7,FALSE) -> 0 | I126: =I108 -> 0 | J126: 0 | K126: 0 | L126: 0 | M126: 0 | N126: 0 | O126: 0 | P126: 0 | Q126: 0 | R126: 0 | S126: 0 | T126: 0 | U126: 0
A127: 7 | B127: Steel (Fabricated) | C127: =VLOOKUP(B127,'Input - Weightings'!$A$8:$S$23,A127+7,FALSE) -> 0 | I127: =I109 -> 0 | J127: 0 | K127: 0 | L127: 0 | M127: 0 | N127: 0 | O127: -0.07071350102 | P127: -0.04208794097 | Q127: 0.11957493 | R127: -0.003557424785 | S127: -0.01247336544 | T127: -0.01524471231 | U127: -0.01836107073
A128: 7 | B128: Switchgear | C128: =VLOOKUP(B128,'Input - Weightings'!$A$8:$S$23,A128+7,FALSE) -> 0 | I128: =I110 -> 0 | J128: 0 | K128: 0 | L128: 0 | M128: 0 | N128: 0 | O128: 0 | P128: 0 | Q128: 0 | R128: 0 | S128: 0 | T128: 0 | U128: 0
A129: 7 | B129: Transport | C129: =VLOOKUP(B129,'Input - Weightings'!$A$8:$S$23,A129+7,FALSE) -> 0 | I129: =I111 -> 0 | J129: 0 | K129: 0 | L129: 0 | M129: 0 | N129: 0 | O129: 0 | P129: 0 | Q129: 0 | R129: 0 | S129: 0 | T129: 0 | U129: 0
B130: Total | C130: =SUM(C115:C129) -> 1 | I130: =SUMPRODUCT($C115:$C129,I115:I129) -> 0 | J130: 0 | K130: 0 | L130: 0 | M130: 0 | N130: 0 | O130: 0 | P130: 0 | Q130: =SUMPRODUCT($C115:$C129,Q115:Q129) -> 0 | R130: =SUMPRODUCT($C115:$C129,R115:R129) -> 0 | S130: =SUMPRODUCT($C115:$C129,S115:S129) -> 0 | T130: =SUMPRODUCT($C115:$C129,T115:T129) -> 0 | U130: =SUMPRODUCT($C115:$C129,U115:U129) -> 0
A132: 8 | B132: Transport
A133: =A132 -> 8 | B133: Aluminium | C133: =VLOOKUP(B133,'Input - Weightings'!$A$8:$S$23,A133+7,FALSE) -> 0 | I133: =I115 -> 0 | J133: =J115 -> 0 | K133: 0 | L133: 0 | M133: 0 | N133: 0 | O133: -0.04939895939 | P133: -0.0105880956 | Q133: =Q115 -> 0.07158394004 | R133: 0.02929178442 | S133: 0.05028643249 | T133: 0.04577515452 | U133: 0.04076277014
A134: 8 | B134: Construction costs | C134: =VLOOKUP(B134,'Input - Weightings'!$A$8:$S$23,A134+7,FALSE) -> 0 | I134: =I116 -> 0 | J134: 0 | K134: 0 | L134: 0 | M134: 0 | N134: 0 | O134: -0.01582759057 | P134: 0.008604329079 | Q134: 0.004458563124 | R134: 0.004003171324 | S134: 0.004231601986 | T134: 0.00404971861 | U134: 0.0006094203839
A135: 8 | B135: Copper | C135: =VLOOKUP(B135,'Input - Weightings'!$A$8:$S$23,A135+7,FALSE) -> 0 | I135: =I117 -> 0 | J135: 0 | K135: 0 | L135: 0 | M135: 0 | N135: 0 | O135: -0.04281825217 | P135: -0.03983430476 | Q135: 0.03138710184 | R135: -0.01369764124 | S135: -0.01006354199 | T135: -0.0125498146 | U135: -0.01559567815
A136: 8 | B136: Current transformer | C136: =VLOOKUP(B136,'Input - Weightings'!$A$8:$S$23,A136+7,FALSE) -> 0 | I136: =I118 -> 0 | J136: 0 | K136: 0 | L136: 0 | M136: 0 | N136: 0 | O136: 0 | P136: 0 | Q136: 0 | R136: 0 | S136: 0 | T136: 0 | U136: 0
A137: 8 | B137: EGW wages | C137: =VLOOKUP(B137,'Input - Weightings'!$A$8:$S$23,A137+7,FALSE) -> 0 | I137: =I119 -> 0 | J137: 0 | K137: 0 | L137: 0 | M137: 0 | N137: 0 | O137: 0.001594082151 | P137: 0.006348235863 | Q137: 0.01784320135 | R137: 0.02712595008 | S137: 0.02716309496 | T137: 0.02453790556 | U137: 0.02288741772
A138: =A137 -> 8 | B138: Labour | C138: =VLOOKUP(B138,'Input - Weightings'!$A$8:$S$23,A138+7,FALSE) -> 0.75 | I138: =I120 -> 0 | J138: 0 | K138: 0 | L138: 0 | M138: 0 | N138: 0 | O138: 0.003515094883 | P138: 0.01189522718 | Q138: 0.01500062792 | R138: 0.02245243211 | S138: 0.02354839587 | T138: 0.0218587056 | U138: 0.02094289171
A139: =A138 -> 8 | B139: Land & Easements | C139: =VLOOKUP(B139,'Input - Weightings'!$A$8:$S$23,A139+7,FALSE) -> 0 | I139: =I121 -> 0 | J139: 0 | K139: 0 | L139: 0 | M139: 0 | N139: 0 | O139: 0.07016666667 | P139: 0.08733333333 | Q139: 0.05775 | R139: 0.1115833333 | S139: 0.02991666667 | T139: -0.05958333333 | U139: -0.14525
A140: 8 | B140: Materials | C140: =VLOOKUP(B140,'Input - Weightings'!$A$8:$S$23,A140+7,FALSE) -> 0 | I140: =I122 -> 0 | J140: 0 | K140: 0 | L140: 0 | M140: 0 | N140: 0 | O140: 0 | P140: 0 | Q140: 0 | R140: 0 | S140: 0 | T140: 0 | U140: 0
A141: 8 | B141: Oil | C141: =VLOOKUP(B141,'Input - Weightings'!$A$8:$S$23,A141+7,FALSE) -> 0.15 | I141: =I123 -> 0 | J141: 0 | K141: 0 | L141: 0 | M141: 0 | N141: 0 | O141: -0.03202367405 | P141: 0.0543567773 | Q141: 0.04062657257 | R141: 0.005559313404 | S141: 0.02420015416 | T141: 0.0228886752 | U141: 0.02015684746
A142: 8 | B142: Other | C142: =VLOOKUP(B142,'Input - Weightings'!$A$8:$S$23,A142+7,FALSE) -> 0.1 | I142: =I124 -> 0 | J142: 0 | K142: 0 | L142: 0 | M142: 0 | N142: 0 | O142: 0 | P142: 0 | Q142: 0 | R142: 0 | S142: 0 | T142: 0 | U142: 0
A143: 8 | B143: Producer's Margin | C143: =VLOOKUP(B143,'Input - Weightings'!$A$8:$S$23,A143+7,FALSE) -> 0 | I143: =I125 -> 0 | J143: 0 | K143: 0 | L143: 0 | M143: 0 | N143: 0 | O143: 0 | P143: 0 | Q143: 0 | R143: 0 | S143: 0 | T143: 0 | U143: 0
A144: 8 | B144: Property | C144: =VLOOKUP(B144,'Input - Weightings'!$A$8:$S$23,A144+7,FALSE) -> 0 | I144: =I126 -> 0 | J144: 0 | K144: 0 | L144: 0 | M144: 0 | N144: 0 | O144: 0 | P144: 0 | Q144: 0 | R144: 0 | S144: 0 | T144: 0 | U144: 0
A145: 8 | B145: Steel (Fabricated) | C145: =VLOOKUP(B145,'Input - Weightings'!$A$8:$S$23,A145+7,FALSE) -> 0 | I145: =I127 -> 0 | J145: 0 | K145: 0 | L145: 0 | M145: 0 | N145: 0 | O145: -0.07071350102 | P145: -0.04208794097 | Q145: 0.11957493 | R145: -0.003557424785 | S145: -0.01247336544 | T145: -0.01524471231 | U145: -0.01836107073
A146: 8 | B146: Switchgear | C146: =VLOOKUP(B146,'Input - Weightings'!$A$8:$S$23,A146+7,FALSE) -> 0 | I146: =I128 -> 0 | J146: 0 | K146: 0 | L146: 0 | M146: 0 | N146: 0 | O146: 0 | P146: 0 | Q146: 0 | R146: 0 | S146: 0 | T146: 0 | U146: 0
A147: 8 | B147: Transport | C147: =VLOOKUP(B147,'Input - Weightings'!$A$8:$S$23,A147+7,FALSE) -> 0 | I147: =I129 -> 0 | J147: 0 | K147: 0 | L147: 0 | M147: 0 | N147: 0 | O147: 0 | P147: 0 | Q147: 0 | R147: 0 | S147: 0 | T147: 0 | U147: 0
B148: Total | C148: =SUM(C133:C147) -> 1 | I148: =SUMPRODUCT($C133:$C147,I133:I147) -> 0 | J148: 0 | K148: 0 | L148: 0 | M148: 0 | N148: 0 | O148: -0.002167229946 | P148: 0.01707493698 | Q148: =SUMPRODUCT($C133:$C147,Q133:Q147) -> 0.01734445682 | R148: =SUMPRODUCT($C133:$C147,R133:R147) -> 0.01767322109 | S148: =SUMPRODUCT($C133:$C147,S133:S147) -> 0.02129132002 | T148: =SUMPRODUCT($C133:$C147,T133:T147) -> 0.01982733048 | U148: =SUMPRODUCT($C133:$C147,U133:U147) -> 0.0187306959
A150: 9 | B150: Contract Cable Laying
A151: =A150 -> 9 | B151: Aluminium | C151: =VLOOKUP(B151,'Input - Weightings'!$A$8:$S$23,A151+7,FALSE) -> 0 | I151: =I133 -> 0 | J151: =J133 -> 0 | K151: 0 | L151: 0 | M151: 0 | N151: 0 | O151: -0.04939895939 | P151: -0.0105880956 | Q151: =Q133 -> 0.07158394004 | R151: 0.02929178442 | S151: 0.05028643249 | T151: 0.04577515452 | U151: 0.04076277014
A152: 9 | B152: Construction costs | C152: =VLOOKUP(B152,'Input - Weightings'!$A$8:$S$23,A152+7,FALSE) -> 0 | I152: =I134 -> 0 | J152: 0 | K152: 0 | L152: 0 | M152: 0 | N152: 0 | O152: -0.01582759057 | P152: 0.008604329079 | Q152: 0.004458563124 | R152: 0.004003171324 | S152: 0.004231601986 | T152: 0.00404971861 | U152: 0.0006094203839
A153: 9 | B153: Copper | C153: =VLOOKUP(B153,'Input - Weightings'!$A$8:$S$23,A153+7,FALSE) -> 0 | I153: =I135 -> 0 | J153: 0 | K153: 0 | L153: 0 | M153: 0 | N153: 0 | O153: -0.04281825217 | P153: -0.03983430476 | Q153: 0.03138710184 | R153: -0.01369764124 | S153: -0.01006354199 | T153: -0.0125498146 | U153: -0.01559567815
A154: 9 | B154: Current transformer | C154: =VLOOKUP(B154,'Input - Weightings'!$A$8:$S$23,A154+7,FALSE) -> 0 | I154: =I136 -> 0 | J154: 0 | K154: 0 | L154: 0 | M154: 0 | N154: 0 | O154: 0 | P154: 0 | Q154: 0 | R154: 0 | S154: 0 | T154: 0 | U154: 0
A155: 9 | B155: EGW wages | C155: =VLOOKUP(B155,'Input - Weightings'!$A$8:$S$23,A155+7,FALSE) -> 0 | I155: =I137 -> 0 | J155: 0 | K155: 0 | L155: 0 | M155: 0 | N155: 0 | O155: 0.001594082151 | P155: 0.006348235863 | Q155: 0.01784320135 | R155: 0.02712595008 | S155: 0.02716309496 | T155: 0.02453790556 | U155: 0.02288741772
A156: =A155 -> 9 | B156: Labour | C156: =VLOOKUP(B156,'Input - Weightings'!$A$8:$S$23,A156+7,FALSE) -> 0.9 | I156: =I138 -> 0 | J156: 0 | K156: 0 | L156: 0 | M156: 0 | N156: 0 | O156: 0.003515094883 | P156: 0.01189522718 | Q156: 0.01500062792 | R156: 0.02245243211 | S156: 0.02354839587 | T156: 0.0218587056 | U156: 0.02094289171
A157: =A156 -> 9 | B157: Land & Easements | C157: =VLOOKUP(B157,'Input - Weightings'!$A$8:$S$23,A157+7,FALSE) -> 0 | I157: =I139 -> 0 | J157: 0 | K157: 0 | L157: 0 | M157: 0 | N157: 0 | O157: 0.07016666667 | P157: 0.08733333333 | Q157: 0.05775 | R157: 0.1115833333 | S157: 0.02991666667 | T157: -0.05958333333 | U157: -0.14525
A158: 9 | B158: Materials | C158: =VLOOKUP(B158,'Input - Weightings'!$A$8:$S$23,A158+7,FALSE) -> 0 | I158: =I140 -> 0 | J158: 0 | K158: 0 | L158: 0 | M158: 0 | N158: 0 | O158: 0 | P158: 0 | Q158: 0 | R158: 0 | S158: 0 | T158: 0 | U158: 0
A159: 9 | B159: Oil | C159: =VLOOKUP(B159,'Input - Weightings'!$A$8:$S$23,A159+7,FALSE) -> 0 | I159: =I141 -> 0 | J159: 0 | K159: 0 | L159: 0 | M159: 0 | N159: 0 | O159: -0.03202367405 | P159: 0.0543567773 | Q159: 0.04062657257 | R159: 0.005559313404 | S159: 0.02420015416 | T159: 0.0228886752 | U159: 0.02015684746
A160: 9 | B160: Other | C160: =VLOOKUP(B160,'Input - Weightings'!$A$8:$S$23,A160+7,FALSE) -> 0.1 | I160: =I142 -> 0 | J160: 0 | K160: 0 | L160: 0 | M160: 0 | N160: 0 | O160: 0 | P160: 0 | Q160: 0 | R160: 0 | S160: 0 | T160: 0 | U160: 0
A161: 9 | B161: Producer's Margin | C161: =VLOOKUP(B161,'Input - Weightings'!$A$8:$S$23,A161+7,FALSE) -> 0 | I161: =I143 -> 0 | J161: 0 | K161: 0 | L161: 0 | M161: 0 | N161: 0 | O161: 0 | P161: 0 | Q161: 0 | R161: 0 | S161: 0 | T161: 0 | U161: 0
A162: 9 | B162: Property | C162: =VLOOKUP(B162,'Input - Weightings'!$A$8:$S$23,A162+7,FALSE) -> 0 | I162: =I144 -> 0 | J162: 0 | K162: 0 | L162: 0 | M162: 0 | N162: 0 | O162: 0 | P162: 0 | Q162: 0 | R162: 0 | S162: 0 | T162: 0 | U162: 0
A163: 9 | B163: Steel (Fabricated) | C163: =VLOOKUP(B163,'Input - Weightings'!$A$8:$S$23,A163+7,FALSE) -> 0 | I163: =I145 -> 0 | J163: 0 | K163: 0 | L163: 0 | M163: 0 | N163: 0 | O163: -0.07071350102 | P163: -0.04208794097 | Q163: 0.11957493 | R163: -0.003557424785 | S163: -0.01247336544 | T163: -0.01524471231 | U163: -0.01836107073
A164: 9 | B164: Switchgear | C164: =VLOOKUP(B164,'Input - Weightings'!$A$8:$S$23,A164+7,FALSE) -> 0 | I164: =I146 -> 0 | J164: 0 | K164: 0 | L164: 0 | M164: 0 | N164: 0 | O164: 0 | P164: 0 | Q164: 0 | R164: 0 | S164: 0 | T164: 0 | U164: 0
A165: 9 | B165: Transport | C165: =VLOOKUP(B165,'Input - Weightings'!$A$8:$S$23,A165+7,FALSE) -> 0 | I165: =I147 -> 0 | J165: 0 | K165: 0 | L165: 0 | M165: 0 | N165: 0 | O165: 0 | P165: 0 | Q165: 0 | R165: 0 | S165: 0 | T165: 0 | U165: 0
B166: Total | C166: =SUM(C151:C165) -> 1 | I166: =SUMPRODUCT($C151:$C165,I151:I165) -> 0 | J166: 0 | K166: 0 | L166: 0 | M166: 0 | N166: 0 | O166: 0.003163585394 | P166: 0.01070570446 | Q166: =SUMPRODUCT($C151:$C165,Q151:Q165) -> 0.01350056513 | R166: =SUMPRODUCT($C151:$C165,R151:R165) -> 0.0202071889 | S166: =SUMPRODUCT($C151:$C165,S151:S165) -> 0.02119355628 | T166: =SUMPRODUCT($C151:$C165,T151:T165) -> 0.01967283504 | U166: =SUMPRODUCT($C151:$C165,U151:U165) -> 0.01884860254
A168: 10 | B168: Poles (Timber)
A169: =A168 -> 10 | B169: Aluminium | C169: Historic Trends
A170: 10 | B170: Construction costs
A171: 10 | B171: Copper
A172: 10 | B172: Current transformer
A173: 10 | B173: EGW wages
A174: =A173 -> 10 | B174: Labour
A175: =A174 -> 10 | B175: Land & Easements
A176: 10 | B176: Materials
A177: 10 | B177: Oil
A178: 10 | B178: Other
A179: 10 | B179: Producer's Margin
A180: 10 | B180: Property
A181: 10 | B181: Steel (Fabricated)
A182: 10 | B182: Switchgear
A183: 10 | B183: Transport
B184: Total | I184: ='Input - Cost escalators - FY'!H38 -> 0.08235028047 | J184: ='Input - Cost escalators - FY'!I38 -> 0.05 | K184: ='Input - Cost escalators - FY'!J38 -> 0.05 | L184: ='Input - Cost escalators - FY'!K38 -> 0 | M184: ='Input - Cost escalators - FY'!L38 -> 0 | N184: ='Input - Cost escalators - FY'!M38 -> 0 | O184: ='Input - Cost escalators - FY'!N38 -> 0 | P184: ='Input - Cost escalators - FY'!O38 -> 0 | Q184: ='Input - Cost escalators - FY'!P38 -> 0 | R184: ='Input - Cost escalators - FY'!Q38 -> 0 | S184: ='Input - Cost escalators - FY'!R38 -> 0 | T184: ='Input - Cost escalators - FY'!S38 -> 0 | U184: ='Input - Cost escalators - FY'!T38 -> 0
A186: 11 | B186: Poles (Concrete)
A187: =A186 -> 11 | B187: Aluminium | C187: Historic Trends
A188: 11 | B188: Construction costs
A189: 11 | B189: Copper
A190: 11 | B190: Current transformer
A191: 11 | B191: EGW wages
A192: =A191 -> 11 | B192: Labour
A193: =A192 -> 11 | B193: Land & Easements
A194: 11 | B194: Materials
A195: 11 | B195: Oil
A196: 11 | B196: Other
A197: 11 | B197: Producer's Margin
A198: 11 | B198: Property
A199: 11 | B199: Steel (Fabricated)
A200: 11 | B200: Switchgear
A201: 11 | B201: Transport
B202: Total | I202: ='Input - Cost escalators - FY'!H37 -> 0 | J202: ='Input - Cost escalators - FY'!I37 -> 0 | K202: ='Input - Cost escalators - FY'!J37 -> 0 | L202: ='Input - Cost escalators - FY'!K37 -> 0 | M202: ='Input - Cost escalators - FY'!L37 -> 0 | N202: ='Input - Cost escalators - FY'!M37 -> 0 | O202: ='Input - Cost escalators - FY'!N37 -> 0 | P202: ='Input - Cost escalators - FY'!O37 -> 0 | Q202: ='Input - Cost escalators - FY'!P37 -> 0 | R202: ='Input - Cost escalators - FY'!Q37 -> 0 | S202: ='Input - Cost escalators - FY'!R37 -> 0 | T202: ='Input - Cost escalators - FY'!S37 -> 0 | U202: ='Input - Cost escalators - FY'!T37 -> 0
A204: 12 | B204: Streetlighting
A205: =A204 -> 12 | B205: Aluminium | C205: =VLOOKUP(B205,'Input - Weightings'!$A$8:$S$23,A205+7,FALSE) -> 0 | I205: =I7 -> 0 | J205: =J7 -> 0 | K205: 0 | L205: 0 | M205: 0 | N205: 0 | O205: -0.04939895939 | P205: -0.0105880956 | Q205: =Q7 -> 0.07158394004 | R205: 0.02929178442 | S205: 0.05028643249 | T205: 0.04577515452 | U205: 0.04076277014
A206: 12 | B206: Construction costs | C206: =VLOOKUP(B206,'Input - Weightings'!$A$8:$S$23,A206+7,FALSE) -> 0 | I206: =I8 -> 0 | J206: 0 | K206: 0 | L206: 0 | M206: 0 | N206: 0 | O206: -0.01582759057 | P206: 0.008604329079 | Q206: 0.004458563124 | R206: 0.004003171324 | S206: 0.004231601986 | T206: 0.00404971861 | U206: 0.0006094203839
A207: 12 | B207: Copper | C207: =VLOOKUP(B207,'Input - Weightings'!$A$8:$S$23,A207+7,FALSE) -> 0 | I207: 0 | J207: 0 | K207: 0 | L207: 0 | M207: 0 | N207: 0 | O207: -0.04281825217 | P207: -0.03983430476 | Q207: 0.03138710184 | R207: -0.01369764124 | S207: -0.01006354199 | T207: -0.0125498146 | U207: -0.01559567815
A208: 12 | B208: Current transformer | C208: =VLOOKUP(B208,'Input - Weightings'!$A$8:$S$23,A208+7,FALSE) -> 0 | I208: 0 | J208: 0 | K208: 0 | L208: 0 | M208: 0 | N208: 0 | O208: 0 | P208: 0 | Q208: 0 | R208: 0 | S208: 0 | T208: 0 | U208: 0
A209: 12 | B209: EGW wages | C209: =VLOOKUP(B209,'Input - Weightings'!$A$8:$S$23,A209+7,FALSE) -> 0 | I209: 0 | J209: 0 | K209: 0 | L209: 0 | M209: 0 | N209: 0 | O209: 0.001594082151 | P209: 0.006348235863 | Q209: 0.01784320135 | R209: 0.02712595008 | S209: 0.02716309496 | T209: 0.02453790556 | U209: 0.02288741772
A210: =A209 -> 12 | B210: Labour | C210: =VLOOKUP(B210,'Input - Weightings'!$A$8:$S$23,A210+7,FALSE) -> 0.54 | I210: 0 | J210: 0 | K210: 0 | L210: 0 | M210: 0 | N210: 0 | O210: 0.003515094883 | P210: 0.01189522718 | Q210: 0.01500062792 | R210: 0.02245243211 | S210: 0.02354839587 | T210: 0.0218587056 | U210: 0.02094289171
A211: =A210 -> 12 | B211: Land & Easements | C211: =VLOOKUP(B211,'Input - Weightings'!$A$8:$S$23,A211+7,FALSE) -> 0 | I211: 0 | J211: 0 | K211: 0 | L211: 0 | M211: 0 | N211: 0 | O211: 0.07016666667 | P211: 0.08733333333 | Q211: 0.05775 | R211: 0.1115833333 | S211: 0.02991666667 | T211: -0.05958333333 | U211: -0.14525
A212: 12 | B212: Materials | C212: =VLOOKUP(B212,'Input - Weightings'!$A$8:$S$23,A212+7,FALSE) -> 0.32 | I212: 0 | J212: 0 | K212: 0 | L212: 0 | M212: 0 | N212: 0 | O212: 0 | P212: 0 | Q212: 0 | R212: 0 | S212: 0 | T212: 0 | U212: 0
A213: 12 | B213: Oil | C213: =VLOOKUP(B213,'Input - Weightings'!$A$8:$S$23,A213+7,FALSE) -> 0 | I213: 0 | J213: 0 | K213: 0 | L213: 0 | M213: 0 | N213: 0 | O213: -0.03202367405 | P213: 0.0543567773 | Q213: 0.04062657257 | R213: 0.005559313404 | S213: 0.02420015416 | T213: 0.0228886752 | U213: 0.02015684746
... 7 more rows

Sheet Project Analysis - FY
A1: Project Escalator Analysis
A3: Financial Year
B5: Financial year | C5: Weight | E5: 02/03 | F5: 03/04 | G5: 04/05 | H5: 05/06 | I5: 06/07 | J5: 07/08 | K5: 08/09 | L5: 09/10 | M5: 10/11 | N5: 11/12 | O5: 12/13 | P5: 13/14 | Q5: 14/15 | R5: 15/16 | S5: 16/17 | T5: 17/18 | U5: 18/19 | W5: Source
A6: 1 | B6: Substations
A7: =A6 -> 1 | B7: Civil Construction | C7: =VLOOKUP(B7,'Input - Weightings'!$A$31:$S$53,A7+7,FALSE) -> 0.2515252903 | I7: ='Equipment Analysis - FY'!I8 -> 0 | J7: ='Equipment Analysis - FY'!J8 -> 0 | K7: ='Equipment Analysis - FY'!K8 -> 0 | L7: ='Equipment Analysis - FY'!L8 -> 0 | M7: ='Equipment Analysis - FY'!M8 -> 0 | N7: ='Equipment Analysis - FY'!N8 -> 0 | O7: ='Equipment Analysis - FY'!O8 -> -0.01582759057 | P7: ='Equipment Analysis - FY'!P8 -> 0.008604329079 | Q7: ='Equipment Analysis - FY'!Q8 -> 0.004458563124 | R7: ='Equipment Analysis - FY'!R8 -> 0.004003171324 | S7: ='Equipment Analysis - FY'!S8 -> 0.004231601986 | T7: ='Equipment Analysis - FY'!T8 -> 0.00404971861 | U7: ='Equipment Analysis - FY'!U8 -> 0.0006094203839 | W7: Construction costs | X7: Equipment
A8: =A7 -> 1 | B8: Contracted Services (CCL) | C8: =VLOOKUP(B8,'Input - Weightings'!$A$31:$S$53,A8+7,FALSE) -> 0 | I8: ='Equipment Analysis - FY'!I166 -> 0 | J8: ='Equipment Analysis - FY'!J166 -> 0 | K8: ='Equipment Analysis - FY'!K166 -> 0 | L8: ='Equipment Analysis - FY'!L166 -> 0 | M8: ='Equipment Analysis - FY'!M166 -> 0 | N8: ='Equipment Analysis - FY'!N166 -> 0 | O8: ='Equipment Analysis - FY'!O166 -> 0.003163585394 | P8: ='Equipment Analysis - FY'!P166 -> 0.01070570446 | Q8: ='Equipment Analysis - FY'!Q166 -> 0.01350056513 | R8: ='Equipment Analysis - FY'!R166 -> 0.0202071889 | S8: ='Equipment Analysis - FY'!S166 -> 0.02119355628 | T8: ='Equipment Analysis - FY'!T166 -> 0.01967283504 | U8: ='Equipment Analysis - FY'!U166 -> 0.01884860254 | W8: Contract cable laying | X8: Equipment
A9: 1 | B9: Labour (EGW) | C9: =VLOOKUP(B9,'Input - Weightings'!$A$31:$S$53,A9+7,FALSE) -> 0.293564259 | I9: ='Input - Cost escalators - FY'!H12 -> 0 | J9: ='Input - Cost escalators - FY'!I12 -> 0 | K9: ='Input - Cost escalators - FY'!J12 -> 0 | L9: ='Input - Cost escalators - FY'!K12 -> 0 | M9: ='Input - Cost escalators - FY'!L12 -> 0 | N9: ='Input - Cost escalators - FY'!M12 -> 0 | O9: ='Input - Cost escalators - FY'!N12 -> 0.001594082151 | P9: ='Input - Cost escalators - FY'!O12 -> 0.006348235863 | Q9: ='Input - Cost escalators - FY'!P12 -> 0.01784320135 | R9: ='Input - Cost escalators - FY'!Q12 -> 0.02712595008 | S9: ='Input - Cost escalators - FY'!R12 -> 0.02716309496 | T9: ='Input - Cost escalators - FY'!S12 -> 0.02453790556 | U9: ='Input - Cost escalators - FY'!T12 -> 0.02288741772 | W9: EGW wages | X9: Input cost
A10: 1 | B10: Labour (General) | C10: =VLOOKUP(B10,'Input - Weightings'!$A$31:$S$53,A10+7,FALSE) -> 0 | I10: ='Input - Cost escalators - FY'!H13 -> 0 | J10: ='Input - Cost escalators - FY'!I13 -> 0 | K10: ='Input - Cost escalators - FY'!J13 -> 0 | L10: ='Input - Cost escalators - FY'!K13 -> 0 | M10: ='Input - Cost escalators - FY'!L13 -> 0 | N10: ='Input - Cost escalators - FY'!M13 -> 0 | O10: ='Input - Cost escalators - FY'!N13 -> 0.003515094883 | P10: ='Input - Cost escalators - FY'!O13 -> 0.01189522718 | Q10: ='Input - Cost escalators - FY'!P13 -> 0.01500062792 | R10: ='Input - Cost escalators - FY'!Q13 -> 0.02245243211 | S10: ='Input - Cost escalators - FY'!R13 -> 0.02354839587 | T10: ='Input - Cost escalators - FY'!S13 -> 0.0218587056 | U10: ='Input - Cost escalators - FY'!T13 -> 0.02094289171 | W10: Labour | X10: Input cost
A11: 1 | B11: Materials and Equipment | C11: =VLOOKUP(B11,'Input - Weightings'!$A$31:$S$53,A11+7,FALSE) -> 0.4549104507 | I11: =I27 -> 0 | J11: =J27 -> 0 | K11: 0 | L11: 0 | M11: 0 | N11: 0 | O11: -0.014834907 | P11: -0.009811964115 | Q11: 0.01998394444 | R11: -0.002069342556 | S11: -0.002614098094 | T11: -0.003293855771 | U11: -0.004101399612 | W11: Calculated below
A12: 1 | B12: Transport | C12: =VLOOKUP(B12,'Input - Weightings'!$A$31:$S$53,A12+7,FALSE) -> 0 | I12: ='Equipment Analysis - FY'!I148 -> 0 | J12: ='Equipment Analysis - FY'!J148 -> 0 | K12: ='Equipment Analysis - FY'!K148 -> 0 | L12: ='Equipment Analysis - FY'!L148 -> 0 | M12: ='Equipment Analysis - FY'!M148 -> 0 | N12: ='Equipment Analysis - FY'!N148 -> 0 | O12: ='Equipment Analysis - FY'!O148 -> -0.002167229946 | P12: ='Equipment Analysis - FY'!P148 -> 0.01707493698 | Q12: ='Equipment Analysis - FY'!Q148 -> 0.01734445682 | R12: ='Equipment Analysis - FY'!R148 -> 0.01767322109 | S12: ='Equipment Analysis - FY'!S148 -> 0.02129132002 | T12: ='Equipment Analysis - FY'!T148 -> 0.01982733048 | U12: ='Equipment Analysis - FY'!U148 -> 0.0187306959 | W12: Transport | X12: Equipment
A13: 1 | B13: Property | C13: =VLOOKUP(B13,'Input - Weightings'!$A$31:$S$53,A13+7,FALSE) -> 0 | I13: ='Input - Cost escalators - FY'!H19 -> 0 | J13: ='Input - Cost escalators - FY'!I19 -> 0 | K13: ='Input - Cost escalators - FY'!J19 -> 0 | L13: ='Input - Cost escalators - FY'!K19 -> 0 | M13: ='Input - Cost escalators - FY'!L19 -> 0 | N13: ='Input - Cost escalators - FY'!M19 -> 0 | O13: ='Input - Cost escalators - FY'!N19 -> 0 | P13: ='Input - Cost escalators - FY'!O19 -> 0 | Q13: ='Input - Cost escalators - FY'!P19 -> 0 | R13: ='Input - Cost escalators - FY'!Q19 -> 0 | S13: ='Input - Cost escalators - FY'!R19 -> 0 | T13: ='Input - Cost escalators - FY'!S19 -> 0 | U13: ='Input - Cost escalators - FY'!T19 -> 0 | W13: Property | X13: Input cost
A15: =A6 -> 1 | B15: Materials & Equipment
A16: =A13 -> 1 | B16: Cable (Al) | C16: =VLOOKUP(B16,'Input - Weightings'!$A$42:$S$53,A16+7,FALSE)/$C$11 -> 0 | I16: ='Equipment Analysis - FY'!I112 -> 0 | J16: ='Equipment Analysis - FY'!J112 -> 0 | K16: ='Equipment Analysis - FY'!K112 -> 0 | L16: ='Equipment Analysis - FY'!L112 -> 0 | M16: ='Equipment Analysis - FY'!M112 -> 0 | N16: ='Equipment Analysis - FY'!N112 -> 0 | O16: ='Equipment Analysis - FY'!O112 -> -0.01801525979 | P16: ='Equipment Analysis - FY'!P112 -> -0.009686137024 | Q16: ='Equipment Analysis - FY'!Q112 -> 0.02028033736 | R16: ='Equipment Analysis - FY'!R112 -> 0.003255805049 | S16: ='Equipment Analysis - FY'!S112 -> 0.008145213521 | T16: ='Equipment Analysis - FY'!T112 -> 0.006770566129 | U16: ='Equipment Analysis - FY'!U112 -> 0.005189375179 | W16: Cable (Al) | X16: Equipment
A17: =A16 -> 1 | B17: Cable (Copper) | C17: =VLOOKUP(B17,'Input - Weightings'!$A$42:$S$53,A17+7,FALSE)/$C$11 -> 0.09955005624 | I17: ='Equipment Analysis - FY'!I94 -> 0 | J17: ='Equipment Analysis - FY'!J94 -> 0 | K17: ='Equipment Analysis - FY'!K94 -> 0 | L17: ='Equipment Analysis - FY'!L94 -> 0 | M17: ='Equipment Analysis - FY'!M94 -> 0 | N17: ='Equipment Analysis - FY'!N94 -> 0 | O17: ='Equipment Analysis - FY'!O94 -> -0.02355003869 | P17: ='Equipment Analysis - FY'!P94 -> -0.02190886762 | Q17: ='Equipment Analysis - FY'!Q94 -> 0.01726290601 | R17: ='Equipment Analysis - FY'!R94 -> -0.007533702684 | S17: ='Equipment Analysis - FY'!S94 -> -0.005534948093 | T17: ='Equipment Analysis - FY'!T94 -> -0.006902398032 | U17: ='Equipment Analysis - FY'!U94 -> -0.008577622985 | W17: Cable (Cu) | X17: Equipment
A18: 1 | B18: Distribution Substation | C18: =VLOOKUP(B18,'Input - Weightings'!$A$42:$S$53,A18+7,FALSE)/$C$11 -> 0 | I18: ='Equipment Analysis - FY'!I76 -> 0 | J18: ='Equipment Analysis - FY'!J76 -> 0 | K18: ='Equipment Analysis - FY'!K76 -> 0 | L18: ='Equipment Analysis - FY'!L76 -> 0 | M18: ='Equipment Analysis - FY'!M76 -> 0 | N18: ='Equipment Analysis - FY'!N76 -> 0 | O18: ='Equipment Analysis - FY'!O76 -> -0.02620404777 | P18: ='Equipment Analysis - FY'!P76 -> -0.01499856127 | Q18: ='Equipment Analysis - FY'!Q76 -> 0.03957974025 | R18: ='Equipment Analysis - FY'!R76 -> -0.001375903263 | S18: ='Equipment Analysis - FY'!S76 -> -0.002506300464 | T18: ='Equipment Analysis - FY'!T76 -> -0.003692472768 | U18: ='Equipment Analysis - FY'!U76 -> -0.005074647567 | W18: Distribution substation | X18: Equipment
A19: 1 | B19: Distribution Transformers | C19: =VLOOKUP(B19,'Input - Weightings'!$A$42:$S$53,A19+7,FALSE)/$C$11 -> 0 | I19: ='Equipment Analysis - FY'!I40 -> 0 | J19: ='Equipment Analysis - FY'!J40 -> 0 | K19: ='Equipment Analysis - FY'!K40 -> 0 | L19: ='Equipment Analysis - FY'!L40 -> 0 | M19: ='Equipment Analysis - FY'!M40 -> 0 | N19: ='Equipment Analysis - FY'!N40 -> 0 | O19: ='Equipment Analysis - FY'!O40 -> -0.0243303296 | P19: ='Equipment Analysis - FY'!P40 -> -0.007541081992 | Q19: ='Equipment Analysis - FY'!Q40 -> 0.03771791341 | R19: ='Equipment Analysis - FY'!R40 -> 0.003741888686 | S19: ='Equipment Analysis - FY'!S40 -> 0.006299030195 | T19: ='Equipment Analysis - FY'!T40 -> 0.004939654935 | U19: ='Equipment Analysis - FY'!U40 -> 0.00333969866 | W19: Distribution transformer | X19: Equipment
A20: 1 | B20: Fabricated Steel | C20: =VLOOKUP(B20,'Input - Weightings'!$A$42:$S$53,A20+7,FALSE)/$C$11 -> 0.04977502812 | I20: ='Input - Cost escalators - FY'!H20 -> 0 | J20: ='Input - Cost escalators - FY'!I20 -> 0 | K20: ='Input - Cost escalators - FY'!J20 -> 0 | L20: ='Input - Cost escalators - FY'!K20 -> 0 | M20: ='Input - Cost escalators - FY'!L20 -> 0 | N20: ='Input - Cost escalators - FY'!M20 -> 0 | O20: ='Input - Cost escalators - FY'!N20 -> -0.07071350102 | P20: ='Input - Cost escalators - FY'!O20 -> -0.04208794097 | Q20: ='Input - Cost escalators - FY'!P20 -> 0.11957493 | R20: ='Input - Cost escalators - FY'!Q20 -> -0.003557424785 | S20: ='Input - Cost escalators - FY'!R20 -> -0.01247336544 | T20: ='Input - Cost escalators - FY'!S20 -> -0.01524471231 | U20: ='Input - Cost escalators - FY'!T20 -> -0.01836107073 | W20: Steel | X20: Input cost
A21: 1 | B21: Other | C21: =VLOOKUP(B21,'Input - Weightings'!$A$42:$S$53,A21+7,FALSE)/$C$11 -> 0.2121874189 | I21: ='Input - Cost escalators - FY'!H17 -> 0 | J21: ='Input - Cost escalators - FY'!I17 -> 0 | K21: ='Input - Cost escalators - FY'!J17 -> 0 | L21: ='Input - Cost escalators - FY'!K17 -> 0 | M21: ='Input - Cost escalators - FY'!L17 -> 0 | N21: ='Input - Cost escalators - FY'!M17 -> 0 | O21: ='Input - Cost escalators - FY'!N17 -> 0 | P21: ='Input - Cost escalators - FY'!O17 -> 0 | Q21: ='Input - Cost escalators - FY'!P17 -> 0 | R21: ='Input - Cost escalators - FY'!Q17 -> 0 | S21: ='Input - Cost escalators - FY'!R17 -> 0 | T21: ='Input - Cost escalators - FY'!S17 -> 0 | U21: ='Input - Cost escalators - FY'!T17 -> 0 | W21: Other | X21: Input cost
A22: 1 | B22: Pole (Concrete) | C22: =VLOOKUP(B22,'Input - Weightings'!$A$42:$S$53,A22+7,FALSE)/$C$11 -> 0 | I22: ='Equipment Analysis - FY'!I202 -> 0 | J22: ='Equipment Analysis - FY'!J202 -> 0 | K22: ='Equipment Analysis - FY'!K202 -> 0 | L22: ='Equipment Analysis - FY'!L202 -> 0 | M22: ='Equipment Analysis - FY'!M202 -> 0 | N22: ='Equipment Analysis - FY'!N202 -> 0 | O22: ='Equipment Analysis - FY'!O202 -> 0 | P22: ='Equipment Analysis - FY'!P202 -> 0 | Q22: ='Equipment Analysis - FY'!Q202 -> 0 | R22: ='Equipment Analysis - FY'!R202 -> 0 | S22: ='Equipment Analysis - FY'!S202 -> 0 | T22: ='Equipment Analysis - FY'!T202 -> 0 | U22: ='Equipment Analysis - FY'!U202 -> 0 | W22: Poles (Concrete) | X22: Equipment
A23: 1 | B23: Pole (Timber) | C23: =VLOOKUP(B23,'Input - Weightings'!$A$42:$S$53,A23+7,FALSE)/$C$11 -> 0 | I23: ='Equipment Analysis - FY'!I184 -> 0.08235028047 | J23: ='Equipment Analysis - FY'!J184 -> 0.05 | K23: ='Equipment Analysis - FY'!K184 -> 0.05 | L23: ='Equipment Analysis - FY'!L184 -> 0 | M23: ='Equipment Analysis - FY'!M184 -> 0 | N23: ='Equipment Analysis - FY'!N184 -> 0 | O23: ='Equipment Analysis - FY'!O184 -> 0 | P23: ='Equipment Analysis - FY'!P184 -> 0 | Q23: ='Equipment Analysis - FY'!Q184 -> 0 | R23: ='Equipment Analysis - FY'!R184 -> 0 | S23: ='Equipment Analysis - FY'!S184 -> 0 | T23: ='Equipment Analysis - FY'!T184 -> 0 | U23: ='Equipment Analysis - FY'!U184 -> 0 | W23: Poles (Timber) | X23: Equipment
A24: 1 | B24: Secondary Protection | C24: =VLOOKUP(B24,'Input - Weightings'!$A$42:$S$53,A24+7,FALSE)/$C$11 -> 0.0499264515 | I24: ='Equipment Analysis - FY'!I130 -> 0 | J24: ='Equipment Analysis - FY'!J130 -> 0 | K24: ='Equipment Analysis - FY'!K130 -> 0 | L24: ='Equipment Analysis - FY'!L130 -> 0 | M24: ='Equipment Analysis - FY'!M130 -> 0 | N24: ='Equipment Analysis - FY'!N130 -> 0 | O24: ='Equipment Analysis - FY'!O130 -> 0 | P24: ='Equipment Analysis - FY'!P130 -> 0 | Q24: ='Equipment Analysis - FY'!Q130 -> 0 | R24: ='Equipment Analysis - FY'!R130 -> 0 | S24: ='Equipment Analysis - FY'!S130 -> 0 | T24: ='Equipment Analysis - FY'!T130 -> 0 | U24: ='Equipment Analysis - FY'!U130 -> 0 | W24: Secondary protection | X24: Equipment
A25: 1 | B25: Switchgear & Other Electrical Equipment | C25: =VLOOKUP(B25,'Input - Weightings'!$A$42:$S$53,A25+7,FALSE)/$C$11 -> 0.2952323267 | I25: ='Equipment Analysis - FY'!I58 -> 0 | J25: ='Equipment Analysis - FY'!J58 -> 0 | K25: ='Equipment Analysis - FY'!K58 -> 0 | L25: ='Equipment Analysis - FY'!L58 -> 0 | M25: ='Equipment Analysis - FY'!M58 -> 0 | N25: ='Equipment Analysis - FY'!N58 -> 0 | O25: ='Equipment Analysis - FY'!O58 -> -0.01518145816 | P25: ='Equipment Analysis - FY'!P58 -> -0.01082951189 | Q25: ='Equipment Analysis - FY'!Q58 -> 0.02054430301 | R25: ='Equipment Analysis - FY'!R58 -> -0.002206687201 | S25: ='Equipment Analysis - FY'!S58 -> -0.002991740545 | T25: ='Equipment Analysis - FY'!T58 -> -0.003687741837 | U25: ='Equipment Analysis - FY'!U58 -> -0.004501648601 | W25: Switchgear | X25: Equipment
A26: 1 | B26: Transformers | C26: =VLOOKUP(B26,'Input - Weightings'!$A$42:$S$53,A26+7,FALSE)/$C$11 -> 0.2933287185 | I26: ='Equipment Analysis - FY'!I22 -> 0 | J26: ='Equipment Analysis - FY'!J22 -> 0 | K26: ='Equipment Analysis - FY'!K22 -> 0 | L26: ='Equipment Analysis - FY'!L22 -> 0 | M26: ='Equipment Analysis - FY'!M22 -> 0 | N26: ='Equipment Analysis - FY'!N22 -> 0 | O26: ='Equipment Analysis - FY'!O22 -> -0.01530254395 | P26: ='Equipment Analysis - FY'!P22 -> -0.007973255007 | Q26: ='Equipment Analysis - FY'!Q22 -> 0.02130113043 | R26: ='Equipment Analysis - FY'!R22 -> -0.001673227625 | S26: ='Equipment Analysis - FY'!S22 -> -0.001905619965 | T26: ='Equipment Analysis - FY'!T22 -> -0.002588137552 | U26: ='Equipment Analysis - FY'!U22 -> -0.003424628057 | W26: Transformers | X26: Equipment
B27: Subtotal | C27: =SUM(C16:C26) -> 1 | I27: =SUMPRODUCT($C16:$C26,I16:I26) -> 0 | J27: 0 | K27: 0 | L27: 0 | M27: 0 | N27: =SUMPRODUCT($C16:$C26,N16:N26) -> 0 | O27: -0.014834907 | P27: -0.009811964115 | Q27: 0.01998394444 | R27: -0.002069342556 | S27: -0.002614098094 | T27: -0.003293855771 | U27: -0.004101399612
B29: Total | C29: =SUM(C7:C13) -> 1 | I29: =SUMPRODUCT($C7:$C13,I7:I13) -> 0 | J29: 0 | K29: 0 | L29: 0 | M29: 0 | N29: 0 | O29: -0.010261628 | P29: -0.0004357434913 | Q29: 0.01545047274 | R29: 0.008028742708 | S29: 0.00784928822 | T29: 0.006723649299 | U29: 0.005006442915
A31: 2 | B31: ST UG Feeder
A32: =A31 -> 2 | B32: Civil Construction | C32: =VLOOKUP(B32,'Input - Weightings'!$A$31:$S$53,A32+7,FALSE) -> 0 | I32: =I7 -> 0 | J32: 0 | K32: 0 | L32: 0 | M32: 0 | N32: 0 | O32: -0.01582759057 | P32: 0.008604329079 | Q32: =Q7 -> 0.004458563124 | R32: 0.004003171324 | S32: 0.004231601986 | T32: 0.00404971861 | U32: 0.0006094203839
A33: =A32 -> 2 | B33: Contracted Services (CCL) | C33: =VLOOKUP(B33,'Input - Weightings'!$A$31:$S$53,A33+7,FALSE) -> 0.3403854158 | I33: 0 | J33: 0 | K33: 0 | L33: 0 | M33: 0 | N33: 0 | O33: 0.003163585394 | P33: 0.01070570446 | Q33: 0.01350056513 | R33: 0.0202071889 | S33: 0.02119355628 | T33: 0.01967283504 | U33: 0.01884860254
A34: 2 | B34: Labour (EGW) | C34: =VLOOKUP(B34,'Input - Weightings'!$A$31:$S$53,A34+7,FALSE) -> 0.1626775096 | I34: 0 | J34: 0 | K34: 0 | L34: 0 | M34: 0 | N34: 0 | O34: 0.001594082151 | P34: 0.006348235863 | Q34: 0.01784320135 | R34: 0.02712595008 | S34: 0.02716309496 | T34: 0.02453790556 | U34: 0.02288741772
A35: 2 | B35: Labour (General) | C35: =VLOOKUP(B35,'Input - Weightings'!$A$31:$S$53,A35+7,FALSE) -> 0 | I35: 0 | J35: 0 | K35: 0 | L35: 0 | M35: 0 | N35: 0 | O35: 0.003515094883 | P35: 0.01189522718 | Q35: 0.01500062792 | R35: 0.02245243211 | S35: 0.02354839587 | T35: 0.0218587056 | U35: 0.02094289171
A36: 2 | B36: Materials and Equipment | C36: =VLOOKUP(B36,'Input - Weightings'!$A$31:$S$53,A36+7,FALSE) -> 0.4969370746 | I36: =I52 -> 0 | J36: =J52 -> 0 | K36: 0 | L36: 0 | M36: 0 | N36: 0 | O36: -0.01380005236 | P36: -0.01283834495 | Q36: =Q52 -> 0.01011586477 | R36: =R52 -> -0.004414663298 | S36: =S52 -> -0.00324341605 | T36: =T52 -> -0.004044726019 | U36: =U52 -> -0.005026388612
A37: 2 | B37: Transport | C37: =VLOOKUP(B37,'Input - Weightings'!$A$31:$S$53,A37+7,FALSE) -> 0 | I37: =I12 -> 0 | J37: 0 | K37: 0 | L37: 0 | M37: 0 | N37: 0 | O37: -0.002167229946 | P37: 0.01707493698 | Q37: =Q12 -> 0.01734445682 | R37: 0.01767322109 | S37: 0.02129132002 | T37: 0.01982733048 | U37: 0.0187306959
A38: 2 | B38: Property | C38: =VLOOKUP(B38,'Input - Weightings'!$A$31:$S$53,A38+7,FALSE) -> 0 | I38: 0 | J38: 0 | K38: 0 | L38: 0 | M38: 0 | N38: 0 | O38: 0 | P38: 0 | Q38: 0 | R38: 0 | S38: 0 | T38: 0 | U38: 0
A40: =A31 -> 2 | B40: Materials & Equipment
A41: =A38 -> 2 | B41: Cable (Al) | C41: =VLOOKUP(B41,'Input - Weightings'!$A$42:$S$53,A41+7,FALSE)/$C$36 -> 0 | I41: =I16 -> 0 | J41: 0 | K41: 0 | L41: 0 | M41: 0 | N41: 0 | O41: -0.01801525979 | P41: -0.009686137024 | Q41: =Q16 -> 0.02028033736 | R41: 0.003255805049 | S41: 0.008145213521 | T41: 0.006770566129 | U41: 0.005189375179
A42: =A41 -> 2 | B42: Cable (Copper) | C42: =VLOOKUP(B42,'Input - Weightings'!$A$42:$S$53,A42+7,FALSE)/$C$36 -> 0.5859885217 | I42: 0 | J42: 0 | K42: 0 | L42: 0 | M42: 0 | N42: 0 | O42: -0.02355003869 | P42: -0.02190886762 | Q42: 0.01726290601 | R42: -0.007533702684 | S42: -0.005534948093 | T42: -0.006902398032 | U42: -0.008577622985
A43: 2 | B43: Distribution Substation | C43: =VLOOKUP(B43,'Input - Weightings'!$A$42:$S$53,A43+7,FALSE)/$C$36 -> 0 | I43: 0 | J43: 0 | K43: 0 | L43: 0 | M43: 0 | N43: 0 | O43: -0.02620404777 | P43: -0.01499856127 | Q43: 0.03957974025 | R43: -0.001375903263 | S43: -0.002506300464 | T43: -0.003692472768 | U43: -0.005074647567
A44: 2 | B44: Distribution Transformers | C44: =VLOOKUP(B44,'Input - Weightings'!$A$42:$S$53,A44+7,FALSE)/$C$36 -> 0 | I44: 0 | J44: 0 | K44: 0 | L44: 0 | M44: 0 | N44: 0 | O44: -0.0243303296 | P44: -0.007541081992 | Q44: 0.03771791341 | R44: 0.003741888686 | S44: 0.006299030195 | T44: 0.004939654935 | U44: 0.00333969866
A45: 2 | B45: Fabricated Steel | C45: =VLOOKUP(B45,'Input - Weightings'!$A$42:$S$53,A45+7,FALSE)/$C$36 -> 0 | I45: 0 | J45: 0 | K45: 0 | L45: 0 | M45: 0 | N45: 0 | O45: -0.07071350102 | P45: -0.04208794097 | Q45: 0.11957493 | R45: -0.003557424785 | S45: -0.01247336544 | T45: -0.01524471231 | U45: -0.01836107073
A46: 2 | B46: Other | C46: =VLOOKUP(B46,'Input - Weightings'!$A$42:$S$53,A46+7,FALSE)/$C$36 -> 0.4140114783 | I46: 0 | J46: 0 | K46: 0 | L46: 0 | M46: 0 | N46: 0 | O46: 0 | P46: 0 | Q46: 0 | R46: 0 | S46: 0 | T46: 0 | U46: 0
A47: 2 | B47: Pole (Concrete) | C47: =VLOOKUP(B47,'Input - Weightings'!$A$42:$S$53,A47+7,FALSE)/$C$36 -> 0 | I47: 0 | J47: 0 | K47: 0 | L47: 0 | M47: 0 | N47: 0 | O47: 0 | P47: 0 | Q47: 0 | R47: 0 | S47: 0 | T47: 0 | U47: 0
A48: 2 | B48: Pole (Timber) | C48: =VLOOKUP(B48,'Input - Weightings'!$A$42:$S$53,A48+7,FALSE)/$C$36 -> 0 | I48: 0.08235028047 | J48: 0.05 | K48: 0.05 | L48: 0 | M48: 0 | N48: 0 | O48: 0 | P48: 0 | Q48: 0 | R48: 0 | S48: 0 | T48: 0 | U48: 0
A49: 2 | B49: Secondary Protection | C49: =VLOOKUP(B49,'Input - Weightings'!$A$42:$S$53,A49+7,FALSE)/$C$36 -> 0 | I49: 0 | J49: 0 | K49: 0 | L49: 0 | M49: 0 | N49: 0 | O49: 0 | P49: 0 | Q49: 0 | R49: 0 | S49: 0 | T49: 0 | U49: 0
A50: 2 | B50: Switchgear & Other Electrical Equipment | C50: =VLOOKUP(B50,'Input - Weightings'!$A$42:$S$53,A50+7,FALSE)/$C$36 -> 0 | I50: 0 | J50: 0 | K50: 0 | L50: 0 | M50: 0 | N50: 0 | O50: -0.01518145816 | P50: -0.01082951189 | Q50: 0.02054430301 | R50: -0.002206687201 | S50: -0.002991740545 | T50: -0.003687741837 | U50: -0.004501648601
A51: 2 | B51: Transformers | C51: =VLOOKUP(B51,'Input - Weightings'!$A$42:$S$53,A51+7,FALSE)/$C$36 -> 0 | I51: 0 | J51: 0 | K51: 0 | L51: 0 | M51: 0 | N51: 0 | O51: -0.01530254395 | P51: -0.007973255007 | Q51: 0.02130113043 | R51: -0.001673227625 | S51: -0.001905619965 | T51: -0.002588137552 | U51: -0.003424628057
B52: Subtotal | C52: =SUM(C41:C51) -> 1 | I52: =SUMPRODUCT($C41:$C51,I41:I51) -> 0 | J52: 0 | K52: 0 | L52: 0 | M52: 0 | N52: 0 | O52: -0.01380005236 | P52: -0.01283834495 | Q52: =SUMPRODUCT($C41:$C51,Q41:Q51) -> 0.01011586477 | R52: =SUMPRODUCT($C41:$C51,R41:R51) -> -0.004414663298 | S52: =SUMPRODUCT($C41:$C51,S41:S51) -> -0.00324341605 | T52: =SUMPRODUCT($C41:$C51,T41:T51) -> -0.004044726019 | U52: =SUMPRODUCT($C41:$C51,U41:U51) -> -0.005026388612
B54: Total | C54: =SUM(C32:C38) -> 1 | I54: =SUMPRODUCT($C32:$C38,I32:I38) -> 0 | J54: =SUMPRODUCT($C32:$C38,J32:J38) -> 0 | K54: 0 | L54: 0 | M54: 0 | N54: 0 | O54: -0.005521598005 | P54: -0.001703068716 | Q54: =SUMPRODUCT($C32:$C38,Q32:Q38) -> 0.01252503128 | R54: =SUMPRODUCT($C32:$C38,R32:R38) -> 0.009097204534 | S54: =SUMPRODUCT($C32:$C38,S32:S38) -> 0.01002102842 | T54: =SUMPRODUCT($C32:$C38,T32:T38) -> 0.008678137188 | U54: =SUMPRODUCT($C32:$C38,U32:U38) -> 0.007641258674
A56: 3 | B56: ST OH Feeders
A57: =A56 -> 3 | B57: Civil Construction | C57: =VLOOKUP(B57,'Input - Weightings'!$A$31:$S$53,A57+7,FALSE) -> 0 | I57: =I7 -> 0 | J57: 0 | K57: 0 | L57: 0 | M57: 0 | N57: 0 | O57: -0.01582759057 | P57: 0.008604329079 | Q57: =Q7 -> 0.004458563124 | R57: 0.004003171324 | S57: 0.004231601986 | T57: 0.00404971861 | U57: 0.0006094203839
A58: =A57 -> 3 | B58: Contracted Services (CCL) | C58: 0.017 | I58: 0 | J58: 0 | K58: 0 | L58: 0 | M58: 0 | N58: 0 | O58: 0.003163585394 | P58: 0.01070570446 | Q58: 0.01350056513 | R58: 0.0202071889 | S58: 0.02119355628 | T58: 0.01967283504 | U58: 0.01884860254
A59: 3 | B59: Labour (EGW) | C59: =VLOOKUP(B59,'Input - Weightings'!$A$31:$S$53,A59+7,FALSE) -> 0.4498917991 | I59: 0 | J59: 0 | K59: 0 | L59: 0 | M59: 0 | N59: 0 | O59: 0.001594082151 | P59: 0.006348235863 | Q59: 0.01784320135 | R59: 0.02712595008 | S59: 0.02716309496 | T59: 0.02453790556 | U59: 0.02288741772
A60: 3 | B60: Labour (General) | C60: 0 | I60: 0 | J60: 0 | K60: 0 | L60: 0 | M60: 0 | N60: 0 | O60: 0.003515094883 | P60: 0.01189522718 | Q60: 0.01500062792 | R60: 0.02245243211 | S60: 0.02354839587 | T60: 0.0218587056 | U60: 0.02094289171
A61: 3 | B61: Materials and Equipment | C61: =VLOOKUP(B61,'Input - Weightings'!$A$31:$S$53,A61+7,FALSE) -> 0.5331445119 | I61: =I77 -> 0 | J61: 0 | K61: 0 | L61: 0 | M61: 0 | N61: 0 | O61: -0.006253230671 | P61: -0.003362130207 | Q61: =Q77 -> 0.007039455943 | R61: =R77 -> 0.001130114149 | S61: =S77 -> 0.002827264197 | T61: =T77 -> 0.002350113863 | U61: =U77 -> 0.001801270723
A62: 3 | B62: Transport | C62: =VLOOKUP(B62,'Input - Weightings'!$A$31:$S$53,A62+7,FALSE) -> 0 | I62: =I12 -> 0 | J62: 0 | K62: 0 | L62: 0 | M62: 0 | N62: 0 | O62: -0.002167229946 | P62: 0.01707493698 | Q62: =Q12 -> 0.01734445682 | R62: 0.01767322109 | S62: 0.02129132002 | T62: 0.01982733048 | U62: 0.0187306959
A63: 3 | B63: Property | C63: =VLOOKUP(B63,'Input - Weightings'!$A$31:$S$53,A63+7,FALSE) -> 0 | I63: 0 | J63: 0 | K63: 0 | L63: 0 | M63: 0 | N63: 0 | O63: 0 | P63: 0 | Q63: 0 | R63: 0 | S63: 0 | T63: 0 | U63: 0
A65: =A56 -> 3 | B65: Materials & Equipment
A66: =A63 -> 3 | B66: Cable (Al) | C66: =VLOOKUP(B66,'Input - Weightings'!$A$42:$S$53,A66+7,FALSE)/$C$61 -> 0.347107438 | I66: =I16 -> 0 | J66: 0 | K66: 0 | L66: 0 | M66: 0 | N66: 0 | O66: -0.01801525979 | P66: -0.009686137024 | Q66: =Q16 -> 0.02028033736 | R66: 0.003255805049 | S66: 0.008145213521 | T66: 0.006770566129 | U66: 0.005189375179
A67: =A66 -> 3 | B67: Cable (Copper) | C67: =VLOOKUP(B67,'Input - Weightings'!$A$42:$S$53,A67+7,FALSE)/$C$61 -> 0 | I67: 0 | J67: 0 | K67: 0 | L67: 0 | M67: 0 | N67: 0 | O67: -0.02355003869 | P67: -0.02190886762 | Q67: 0.01726290601 | R67: -0.007533702684 | S67: -0.005534948093 | T67: -0.006902398032 | U67: -0.008577622985
A68: 3 | B68: Distribution Substation | C68: =VLOOKUP(B68,'Input - Weightings'!$A$42:$S$53,A68+7,FALSE)/$C$61 -> 0 | I68: 0 | J68: 0 | K68: 0 | L68: 0 | M68: 0 | N68: 0 | O68: -0.02620404777 | P68: -0.01499856127 | Q68: 0.03957974025 | R68: -0.001375903263 | S68: -0.002506300464 | T68: -0.003692472768 | U68: -0.005074647567
A69: 3 | B69: Distribution Transformers | C69: =VLOOKUP(B69,'Input - Weightings'!$A$42:$S$53,A69+7,FALSE)/$C$61 -> 0 | I69: 0 | J69: 0 | K69: 0 | L69: 0 | M69: 0 | N69: 0 | O69: -0.0243303296 | P69: -0.007541081992 | Q69: 0.03771791341 | R69: 0.003741888686 | S69: 0.006299030195 | T69: 0.004939654935 | U69: 0.00333969866
A70: 3 | B70: Fabricated Steel | C70: =VLOOKUP(B70,'Input - Weightings'!$A$42:$S$53,A70+7,FALSE)/$C$61 -> 0 | I70: 0 | J70: 0 | K70: 0 | L70: 0 | M70: 0 | N70: 0 | O70: -0.07071350102 | P70: -0.04208794097 | Q70: 0.11957493 | R70: -0.003557424785 | S70: -0.01247336544 | T70: -0.01524471231 | U70: -0.01836107073
A71: 3 | B71: Other | C71: =VLOOKUP(B71,'Input - Weightings'!$A$42:$S$53,A71+7,FALSE)/$C$61 -> 0.4049586777 | I71: 0 | J71: 0 | K71: 0 | L71: 0 | M71: 0 | N71: 0 | O71: 0 | P71: 0 | Q71: 0 | R71: 0 | S71: 0 | T71: 0 | U71: 0
A72: 3 | B72: Pole (Concrete) | C72: =VLOOKUP(B72,'Input - Weightings'!$A$42:$S$53,A72+7,FALSE)/$C$61 -> 0.2479338843 | I72: 0 | J72: 0 | K72: 0 | L72: 0 | M72: 0 | N72: 0 | O72: 0 | P72: 0 | Q72: 0 | R72: 0 | S72: 0 | T72: 0 | U72: 0
A73: 3 | B73: Pole (Timber) | C73: =VLOOKUP(B73,'Input - Weightings'!$A$42:$S$53,A73+7,FALSE)/$C$61 -> 0 | I73: 0.08235028047 | J73: 0.05 | K73: 0.05 | L73: 0 | M73: 0 | N73: 0 | O73: 0 | P73: 0 | Q73: 0 | R73: 0 | S73: 0 | T73: 0 | U73: 0
A74: 3 | B74: Secondary Protection | C74: =VLOOKUP(B74,'Input - Weightings'!$A$42:$S$53,A74+7,FALSE)/$C$61 -> 0 | I74: 0 | J74: 0 | K74: 0 | L74: 0 | M74: 0 | N74: 0 | O74: 0 | P74: 0 | Q74: 0 | R74: 0 | S74: 0 | T74: 0 | U74: 0
A75: 3 | B75: Switchgear & Other Electrical Equipment | C75: =VLOOKUP(B75,'Input - Weightings'!$A$42:$S$53,A75+7,FALSE)/$C$61 -> 0 | I75: 0 | J75: 0 | K75: 0 | L75: 0 | M75: 0 | N75: 0 | O75: -0.01518145816 | P75: -0.01082951189 | Q75: 0.02054430301 | R75: -0.002206687201 | S75: -0.002991740545 | T75: -0.003687741837 | U75: -0.004501648601
A76: 3 | B76: Transformers | C76: =VLOOKUP(B76,'Input - Weightings'!$A$42:$S$53,A76+7,FALSE)/$C$61 -> 0 | I76: 0 | J76: 0 | K76: 0 | L76: 0 | M76: 0 | N76: 0 | O76: -0.01530254395 | P76: -0.007973255007 | Q76: 0.02130113043 | R76: -0.001673227625 | S76: -0.001905619965 | T76: -0.002588137552 | U76: -0.003424628057
B77: Subtotal | C77: =SUM(C66:C76) -> 1 | I77: =SUMPRODUCT($C66:$C76,I66:I76) -> 0 | J77: 0 | K77: 0 | L77: 0 | M77: 0 | N77: 0 | O77: -0.006253230671 | P77: -0.003362130207 | Q77: =SUMPRODUCT($C66:$C76,Q66:Q76) -> 0.007039455943 | R77: =SUMPRODUCT($C66:$C76,R66:R76) -> 0.001130114149 | S77: =SUMPRODUCT($C66:$C76,S66:S76) -> 0.002827264197 | T77: =SUMPRODUCT($C66:$C76,T66:T76) -> 0.002350113863 | U77: =SUMPRODUCT($C66:$C76,U66:U76) -> 0.001801270723
B79: Total | C79: =SUM(C57:C63) -> 1.000036311 | I79: =SUMPRODUCT($C57:$C63,I57:I63) -> 0 | J79: 0 | K79: 0 | L79: 0 | M79: 0 | N79: 0 | O79: -0.002562930175 | P79: 0.001245514962 | Q79: =SUMPRODUCT($C57:$C63,Q57:Q63) -> 0.01201006687 | R79: =SUMPRODUCT($C57:$C63,R57:R63) -> 0.01314977885 | S79: =SUMPRODUCT($C57:$C63,S57:S63) -> 0.01408808451 | T79: =SUMPRODUCT($C57:$C63,T57:T63) -> 0.01262679098 | U79: =SUMPRODUCT($C57:$C63,U57:U63) -> 0.01157762538
A81: 4 | B81: 11kV Switchgear Replacement
A82: =A81 -> 4 | B82: Civil Construction | C82: =VLOOKUP(B82,'Input - Weightings'!$A$31:$S$53,A82+7,FALSE) -> 0.2751332438 | I82: =I7 -> 0 | J82: 0 | K82: 0 | L82: 0 | M82: 0 | N82: 0 | O82: -0.01582759057 | P82: 0.008604329079 | Q82: =Q7 -> 0.004458563124 | R82: 0.004003171324 | S82: 0.004231601986 | T82: 0.00404971861 | U82: 0.0006094203839
A83: =A82 -> 4 | B83: Contracted Services (CCL) | C83: =VLOOKUP(B83,'Input - Weightings'!$A$31:$S$53,A83+7,FALSE) -> 0 | I83: 0 | J83: 0 | K83: 0 | L83: 0 | M83: 0 | N83: 0 | O83: 0.003163585394 | P83: 0.01070570446 | Q83: 0.01350056513 | R83: 0.0202071889 | S83: 0.02119355628 | T83: 0.01967283504 | U83: 0.01884860254
A84: 4 | B84: Labour (EGW) | C84: =VLOOKUP(B84,'Input - Weightings'!$A$31:$S$53,A84+7,FALSE) -> 0.3879938159 | I84: 0 | J84: 0 | K84: 0 | L84: 0 | M84: 0 | N84: 0 | O84: 0.001594082151 | P84: 0.006348235863 | Q84: 0.01784320135 | R84: 0.02712595008 | S84: 0.02716309496 | T84: 0.02453790556 | U84: 0.02288741772
A85: 4 | B85: Labour (General) | C85: =VLOOKUP(B85,'Input - Weightings'!$A$31:$S$53,A85+7,FALSE) -> 0 | I85: 0 | J85: 0 | K85: 0 | L85: 0 | M85: 0 | N85: 0 | O85: 0.003515094883 | P85: 0.01189522718 | Q85: 0.01500062792 | R85: 0.02245243211 | S85: 0.02354839587 | T85: 0.0218587056 | U85: 0.02094289171
A86: 4 | B86: Materials and Equipment | C86: =VLOOKUP(B86,'Input - Weightings'!$A$31:$S$53,A86+7,FALSE) -> 0.3368729403 | I86: =I102 -> 0 | J86: 0 | K86: 0 | L86: 0 | M86: 0 | N86: 0 | O86: -0.008859479299 | P86: -0.007307190958 | Q86: =Q102 -> 0.009166637885 | R86: =R102 -> -0.002082082031 | S86: =S102 -> -0.001918660293 | T86: =T102 -> -0.002380438426 | U86: =U102 -> -0.002935153501
A87: 4 | B87: Transport | C87: =VLOOKUP(B87,'Input - Weightings'!$A$31:$S$53,A87+7,FALSE) -> 0 | I87: =I12 -> 0 | J87: 0 | K87: 0 | L87: 0 | M87: 0 | N87: 0 | O87: -0.002167229946 | P87: 0.01707493698 | Q87: =Q12 -> 0.01734445682 | R87: 0.01767322109 | S87: 0.02129132002 | T87: 0.01982733048 | U87: 0.0187306959
A88: 4 | B88: Property | C88: =VLOOKUP(B88,'Input - Weightings'!$A$31:$S$53,A88+7,FALSE) -> 0 | I88: 0 | J88: 0 | K88: 0 | L88: 0 | M88: 0 | N88: 0 | O88: 0 | P88: 0 | Q88: 0 | R88: 0 | S88: 0 | T88: 0 | U88: 0
A90: =A81 -> 4 | B90: Materials & Equipment
A91: =A88 -> 4 | B91: Cable (Al) | C91: =VLOOKUP(B91,'Input - Weightings'!$A$42:$S$53,A91+7,FALSE)/$C$86 -> 0 | I91: =I16 -> 0 | J91: 0 | K91: 0 | L91: 0 | M91: 0 | N91: 0 | O91: -0.01801525979 | P91: -0.009686137024 | Q91: =Q16 -> 0.02028033736 | R91: 0.003255805049 | S91: 0.008145213521 | T91: 0.006770566129 | U91: 0.005189375179
A92: =A91 -> 4 | B92: Cable (Copper) | C92: =VLOOKUP(B92,'Input - Weightings'!$A$42:$S$53,A92+7,FALSE)/$C$86 -> 0.193236715 | I92: 0 | J92: 0 | K92: 0 | L92: 0 | M92: 0 | N92: 0 | O92: -0.02355003869 | P92: -0.02190886762 | Q92: 0.01726290601 | R92: -0.007533702684 | S92: -0.005534948093 | T92: -0.006902398032 | U92: -0.008577622985
A93: 4 | B93: Distribution Substation | C93: =VLOOKUP(B93,'Input - Weightings'!$A$42:$S$53,A93+7,FALSE)/$C$86 -> 0 | I93: 0 | J93: 0 | K93: 0 | L93: 0 | M93: 0 | N93: 0 | O93: -0.02620404777 | P93: -0.01499856127 | Q93: 0.03957974025 | R93: -0.001375903263 | S93: -0.002506300464 | T93: -0.003692472768 | U93: -0.005074647567
A94: 4 | B94: Distribution Transformers | C94: =VLOOKUP(B94,'Input - Weightings'!$A$42:$S$53,A94+7,FALSE)/$C$86 -> 0 | I94: 0 | J94: 0 | K94: 0 | L94: 0 | M94: 0 | N94: 0 | O94: -0.0243303296 | P94: -0.007541081992 | Q94: 0.03771791341 | R94: 0.003741888686 | S94: 0.006299030195 | T94: 0.004939654935 | U94: 0.00333969866
A95: 4 | B95: Fabricated Steel | C95: =VLOOKUP(B95,'Input - Weightings'!$A$42:$S$53,A95+7,FALSE)/$C$86 -> 0 | I95: 0 | J95: 0 | K95: 0 | L95: 0 | M95: 0 | N95: 0 | O95: -0.07071350102 | P95: -0.04208794097 | Q95: 0.11957493 | R95: -0.003557424785 | S95: -0.01247336544 | T95: -0.01524471231 | U95: -0.01836107073
A96: 4 | B96: Other | C96: =VLOOKUP(B96,'Input - Weightings'!$A$42:$S$53,A96+7,FALSE)/$C$86 -> 0.06099033816 | I96: 0 | J96: 0 | K96: 0 | L96: 0 | M96: 0 | N96: 0 | O96: 0 | P96: 0 | Q96: 0 | R96: 0 | S96: 0 | T96: 0 | U96: 0
A97: 4 | B97: Pole (Concrete) | C97: =VLOOKUP(B97,'Input - Weightings'!$A$42:$S$53,A97+7,FALSE)/$C$86 -> 0 | I97: 0 | J97: 0 | K97: 0 | L97: 0 | M97: 0 | N97: 0 | O97: 0 | P97: 0 | Q97: 0 | R97: 0 | S97: 0 | T97: 0 | U97: 0
A98: 4 | B98: Pole (Timber) | C98: =VLOOKUP(B98,'Input - Weightings'!$A$42:$S$53,A98+7,FALSE)/$C$86 -> 0 | I98: 0.08235028047 | J98: 0.05 | K98: 0.05 | L98: 0 | M98: 0 | N98: 0 | O98: 0 | P98: 0 | Q98: 0 | R98: 0 | S98: 0 | T98: 0 | U98: 0
A99: 4 | B99: Secondary Protection | C99: =VLOOKUP(B99,'Input - Weightings'!$A$42:$S$53,A99+7,FALSE)/$C$86 -> 0.4619565217 | I99: 0 | J99: 0 | K99: 0 | L99: 0 | M99: 0 | N99: 0 | O99: 0 | P99: 0 | Q99: 0 | R99: 0 | S99: 0 | T99: 0 | U99: 0
A100: 4 | B100: Switchgear & Other Electrical Equipment | C100: =VLOOKUP(B100,'Input - Weightings'!$A$42:$S$53,A100+7,FALSE)/$C$86 -> 0.2838164251 | I100: 0 | J100: 0 | K100: 0 | L100: 0 | M100: 0 | N100: 0 | O100: -0.01518145816 | P100: -0.01082951189 | Q100: 0.02054430301 | R100: -0.002206687201 | S100: -0.002991740545 | T100: -0.003687741837 | U100: -0.004501648601
A101: 4 | B101: Transformers | C101: =VLOOKUP(B101,'Input - Weightings'!$A$42:$S$53,A101+7,FALSE)/$C$86 -> 0 | I101: 0 | J101: 0 | K101: 0 | L101: 0 | M101: 0 | N101: 0 | O101: -0.01530254395 | P101: -0.007973255007 | Q101: 0.02130113043 | R101: -0.001673227625 | S101: -0.001905619965 | T101: -0.002588137552 | U101: -0.003424628057
B102: Subtotal | C102: =SUM(C91:C101) -> 1 | I102: =SUMPRODUCT($C91:$C101,I91:I101) -> 0 | J102: 0 | K102: 0 | L102: 0 | M102: 0 | N102: 0 | O102: -0.008859479299 | P102: -0.007307190958 | Q102: =SUMPRODUCT($C91:$C101,Q91:Q101) -> 0.009166637885 | R102: =SUMPRODUCT($C91:$C101,R91:R101) -> -0.002082082031 | S102: =SUMPRODUCT($C91:$C101,S91:S101) -> -0.001918660293 | T102: =SUMPRODUCT($C91:$C101,T91:T101) -> -0.002380438426 | U102: =SUMPRODUCT($C91:$C101,U91:U101) -> -0.002935153501
B104: Total | C104: =SUM(C82:C88) -> 1 | I104: =SUMPRODUCT($C82:$C88,I82:I88) -> 0 | J104: 0 | K104: 0 | L104: 0 | M104: 0 | N104: 0 | O104: -0.006720721159 | P104: 0.002368818324 | Q104: =SUMPRODUCT($C82:$C88,Q82:Q88) -> 0.01123774297 | R104: =SUMPRODUCT($C82:$C88,R82:R88) -> 0.01092470929 | S104: =SUMPRODUCT($C82:$C88,S82:S88) -> 0.01105702251 | T104: =SUMPRODUCT($C82:$C88,T82:T88) -> 0.009832862538 | U104: =SUMPRODUCT($C82:$C88,U82:U88) -> 0.008059074551
A106: 5 | B106: 11kV UG Mains
A107: =A106 -> 5 | B107: Civil Construction | C107: =VLOOKUP(B107,'Input - Weightings'!$A$31:$S$53,A107+7,FALSE) -> 0.15 | I107: =I7 -> 0 | J107: 0 | K107: 0 | L107: 0 | M107: 0 | N107: 0 | O107: -0.01582759057 | P107: 0.008604329079 | Q107: =Q7 -> 0.004458563124 | R107: 0.004003171324 | S107: 0.004231601986 | T107: 0.00404971861 | U107: 0.0006094203839
A108: =A107 -> 5 | B108: Contracted Services (CCL) | C108: =VLOOKUP(B108,'Input - Weightings'!$A$31:$S$53,A108+7,FALSE) -> 0.5 | I108: 0 | J108: 0 | K108: 0 | L108: 0 | M108: 0 | N108: 0 | O108: 0.003163585394 | P108: 0.01070570446 | Q108: 0.01350056513 | R108: 0.0202071889 | S108: 0.02119355628 | T108: 0.01967283504 | U108: 0.01884860254
A109: 5 | B109: Labour (EGW) | C109: =VLOOKUP(B109,'Input - Weightings'!$A$31:$S$53,A109+7,FALSE) -> 0.15 | I109: 0 | J109: 0 | K109: 0 | L109: 0 | M109: 0 | N109: 0 | O109: 0.001594082151 | P109: 0.006348235863 | Q109: 0.01784320135 | R109: 0.02712595008 | S109: 0.02716309496 | T109: 0.02453790556 | U109: 0.02288741772
A110: 5 | B110: Labour (General) | C110: =VLOOKUP(B110,'Input - Weightings'!$A$31:$S$53,A110+7,FALSE) -> 0 | I110: 0 | J110: 0 | K110: 0 | L110: 0 | M110: 0 | N110: 0 | O110: 0.003515094883 | P110: 0.01189522718 | Q110: 0.01500062792 | R110: 0.02245243211 | S110: 0.02354839587 | T110: 0.0218587056 | U110: 0.02094289171
A111: 5 | B111: Materials and Equipment | C111: =VLOOKUP(B111,'Input - Weightings'!$A$31:$S$53,A111+7,FALSE) -> 0.2 | I111: =I127 -> 0 | J111: 0 | K111: 0 | L111: 0 | M111: 0 | N111: 0 | O111: -0.01351144484 | P111: -0.007264602768 | Q111: =Q127 -> 0.01521025302 | R111: =R127 -> 0.002441853786 | S111: =S127 -> 0.00610891014 | T111: =T127 -> 0.005077924597 | U111: =U127 -> 0.003892031384
A112: 5 | B112: Transport | C112: =VLOOKUP(B112,'Input - Weightings'!$A$31:$S$53,A112+7,FALSE) -> 0 | I112: =I12 -> 0 | J112: 0 | K112: 0 | L112: 0 | M112: 0 | N112: 0 | O112: -0.002167229946 | P112: 0.01707493698 | Q112: =Q12 -> 0.01734445682 | R112: 0.01767322109 | S112: 0.02129132002 | T112: 0.01982733048 | U112: 0.0187306959
A113: 5 | B113: Property | C113: =VLOOKUP(B113,'Input - Weightings'!$A$31:$S$53,A113+7,FALSE) -> 0 | I113: 0 | J113: 0 | K113: 0 | L113: 0 | M113: 0 | N113: 0 | O113: 0 | P113: 0 | Q113: 0 | R113: 0 | S113: 0 | T113: 0 | U113: 0
A115: =A106 -> 5 | B115: Materials & Equipment
A116: =A113 -> 5 | B116: Cable (Al) | C116: =VLOOKUP(B116,'Input - Weightings'!$A$42:$S$53,A116+7,FALSE)/$C$111 -> 0.75 | I116: =I16 -> 0 | J116: 0 | K116: 0 | L116: 0 | M116: 0 | N116: 0 | O116: -0.01801525979 | P116: -0.009686137024 | Q116: =Q16 -> 0.02028033736 | R116: 0.003255805049 | S116: 0.008145213521 | T116: 0.006770566129 | U116: 0.005189375179
A117: =A116 -> 5 | B117: Cable (Copper) | C117: =VLOOKUP(B117,'Input - Weightings'!$A$42:$S$53,A117+7,FALSE)/$C$111 -> 0 | I117: 0 | J117: 0 | K117: 0 | L117: 0 | M117: 0 | N117: 0 | O117: -0.02355003869 | P117: -0.02190886762 | Q117: 0.01726290601 | R117: -0.007533702684 | S117: -0.005534948093 | T117: -0.006902398032 | U117: -0.008577622985
A118: 5 | B118: Distribution Substation | C118: =VLOOKUP(B118,'Input - Weightings'!$A$42:$S$53,A118+7,FALSE)/$C$111 -> 0 | I118: 0 | J118: 0 | K118: 0 | L118: 0 | M118: 0 | N118: 0 | O118: -0.02620404777 | P118: -0.01499856127 | Q118: 0.03957974025 | R118: -0.001375903263 | S118: -0.002506300464 | T118: -0.003692472768 | U118: -0.005074647567
A119: 5 | B119: Distribution Transformers | C119: =VLOOKUP(B119,'Input - Weightings'!$A$42:$S$53,A119+7,FALSE)/$C$111 -> 0 | I119: 0 | J119: 0 | K119: 0 | L119: 0 | M119: 0 | N119: 0 | O119: -0.0243303296 | P119: -0.007541081992 | Q119: 0.03771791341 | R119: 0.003741888686 | S119: 0.006299030195 | T119: 0.004939654935 | U119: 0.00333969866
A120: 5 | B120: Fabricated Steel | C120: =VLOOKUP(B120,'Input - Weightings'!$A$42:$S$53,A120+7,FALSE)/$C$111 -> 0 | I120: 0 | J120: 0 | K120: 0 | L120: 0 | M120: 0 | N120: 0 | O120: -0.07071350102 | P120: -0.04208794097 | Q120: 0.11957493 | R120: -0.003557424785 | S120: -0.01247336544 | T120: -0.01524471231 | U120: -0.01836107073
A121: 5 | B121: Other | C121: =VLOOKUP(B121,'Input - Weightings'!$A$42:$S$53,A121+7,FALSE)/$C$111 -> 0.25 | I121: 0 | J121: 0 | K121: 0 | L121: 0 | M121: 0 | N121: 0 | O121: 0 | P121: 0 | Q121: 0 | R121: 0 | S121: 0 | T121: 0 | U121: 0
A122: 5 | B122: Pole (Concrete) | C122: =VLOOKUP(B122,'Input - Weightings'!$A$42:$S$53,A122+7,FALSE)/$C$111 -> 0 | I122: 0 | J122: 0 | K122: 0 | L122: 0 | M122: 0 | N122: 0 | O122: 0 | P122: 0 | Q122: 0 | R122: 0 | S122: 0 | T122: 0 | U122: 0
A123: 5 | B123: Pole (Timber) | C123: =VLOOKUP(B123,'Input - Weightings'!$A$42:$S$53,A123+7,FALSE)/$C$111 -> 0 | I123: 0.08235028047 | J123: 0.05 | K123: 0.05 | L123: 0 | M123: 0 | N123: 0 | O123: 0 | P123: 0 | Q123: 0 | R123: 0 | S123: 0 | T123: 0 | U123: 0
A124: 5 | B124: Secondary Protection | C124: =VLOOKUP(B124,'Input - Weightings'!$A$42:$S$53,A124+7,FALSE)/$C$111 -> 0 | I124: 0 | J124: 0 | K124: 0 | L124: 0 | M124: 0 | N124: 0 | O124: 0 | P124: 0 | Q124: 0 | R124: 0 | S124: 0 | T124: 0 | U124: 0
A125: 5 | B125: Switchgear & Other Electrical Equipment | C125: =VLOOKUP(B125,'Input - Weightings'!$A$42:$S$53,A125+7,FALSE)/$C$111 -> 0 | I125: 0 | J125: 0 | K125: 0 | L125: 0 | M125: 0 | N125: 0 | O125: -0.01518145816 | P125: -0.01082951189 | Q125: 0.02054430301 | R125: -0.002206687201 | S125: -0.002991740545 | T125: -0.003687741837 | U125: -0.004501648601
A126: 5 | B126: Transformers | C126: =VLOOKUP(B126,'Input - Weightings'!$A$42:$S$53,A126+7,FALSE)/$C$111 -> 0 | I126: 0 | J126: 0 | K126: 0 | L126: 0 | M126: 0 | N126: 0 | O126: -0.01530254395 | P126: -0.007973255007 | Q126: 0.02130113043 | R126: -0.001673227625 | S126: -0.001905619965 | T126: -0.002588137552 | U126: -0.003424628057
B127: Subtotal | C127: =SUM(C116:C126) -> 1 | I127: =SUMPRODUCT($C116:$C126,I116:I126) -> 0 | J127: =SUMPRODUCT($C116:$C126,J116:J126) -> 0 | K127: 0 | L127: 0 | M127: 0 | N127: 0 | O127: -0.01351144484 | P127: -0.007264602768 | Q127: =SUMPRODUCT($C116:$C126,Q116:Q126) -> 0.01521025302 | R127: =SUMPRODUCT($C116:$C126,R116:R126) -> 0.002441853786 | S127: =SUMPRODUCT($C116:$C126,S116:S126) -> 0.00610891014 | T127: =SUMPRODUCT($C116:$C126,T116:T126) -> 0.005077924597 | U127: =SUMPRODUCT($C116:$C126,U116:U126) -> 0.003892031384
B129: Total | C129: =SUM(C107:C113) -> 1 | I129: =SUMPRODUCT($C107:$C113,I107:I113) -> 0 | J129: 0 | K129: 0 | L129: 0 | M129: 0 | N129: 0 | O129: -0.003255522534 | P129: 0.006142816417 | Q129: =SUMPRODUCT($C107:$C113,Q107:Q113) -> 0.01313759784 | R129: =SUMPRODUCT($C107:$C113,R107:R113) -> 0.01526133342 | S129: =SUMPRODUCT($C107:$C113,S107:S113) -> 0.01652776471 | T129: =SUMPRODUCT($C107:$C113,T107:T113) -> 0.01514014607 | U129: =SUMPRODUCT($C107:$C113,U107:U113) -> 0.01372723326
A131: 6 | B131: 11kV & LV Programs
A132: =A131 -> 6 | B132: Civil Construction | C132: =VLOOKUP(B132,'Input - Weightings'!$A$31:$S$53,A132+7,FALSE) -> 0.075 | I132: =I7 -> 0 | J132: 0 | K132: 0 | L132: 0 | M132: 0 | N132: 0 | O132: -0.01582759057 | P132: 0.008604329079 | Q132: =Q7 -> 0.004458563124 | R132: 0.004003171324 | S132: 0.004231601986 | T132: 0.00404971861 | U132: 0.0006094203839
A133: =A132 -> 6 | B133: Contracted Services (CCL) | C133: =VLOOKUP(B133,'Input - Weightings'!$A$31:$S$53,A133+7,FALSE) -> 0.25 | I133: 0 | J133: 0 | K133: 0 | L133: 0 | M133: 0 | N133: 0 | O133: 0.003163585394 | P133: 0.01070570446 | Q133: 0.01350056513 | R133: 0.0202071889 | S133: 0.02119355628 | T133: 0.01967283504 | U133: 0.01884860254
A134: 6 | B134: Labour (EGW) | C134: =VLOOKUP(B134,'Input - Weightings'!$A$31:$S$53,A134+7,FALSE) -> 0.2568207664 | I134: 0 | J134: 0 | K134: 0 | L134: 0 | M134: 0 | N134: 0 | O134: 0.001594082151 | P134: 0.006348235863 | Q134: 0.01784320135 | R134: 0.02712595008 | S134: 0.02716309496 | T134: 0.02453790556 | U134: 0.02288741772
A135: 6 | B135: Labour (General) | C135: =VLOOKUP(B135,'Input - Weightings'!$A$31:$S$53,A135+7,FALSE) -> 0.07498924968 | I135: 0 | J135: 0 | K135: 0 | L135: 0 | M135: 0 | N135: 0 | O135: 0.003515094883 | P135: 0.01189522718 | Q135: 0.01500062792 | R135: 0.02245243211 | S135: 0.02354839587 | T135: 0.0218587056 | U135: 0.02094289171
A136: 6 | B136: Materials and Equipment | C136: =VLOOKUP(B136,'Input - Weightings'!$A$31:$S$53,A136+7,FALSE) -> 0.3148997644 | I136: =I152 -> 0.0005055773595 | J136: 0.0003069676002 | K136: 0.0003069676002 | L136: 0 | M136: 0 | N136: 0 | O136: -0.01662796845 | P136: -0.008790309174 | Q136: =Q152 -> 0.0227438869 | R136: =R152 -> 0.0006627936078 | S136: =S152 -> 0.00202925875 | T136: =T152 -> 0.001084644606 | U136: =U152 -> -1.630667715e-05
A137: 6 | B137: Transport | C137: =VLOOKUP(B137,'Input - Weightings'!$A$31:$S$53,A137+7,FALSE) -> 0.02829021952 | I137: =I12 -> 0 | J137: 0 | K137: 0 | L137: 0 | M137: 0 | N137: 0 | O137: -0.002167229946 | P137: 0.01707493698 | Q137: =Q12 -> 0.01734445682 | R137: 0.01767322109 | S137: 0.02129132002 | T137: 0.01982733048 | U137: 0.0187306959
A138: 6 | B138: Property | C138: =VLOOKUP(B138,'Input - Weightings'!$A$31:$S$53,A138+7,FALSE) -> 0 | I138: 0 | J138: 0 | K138: 0 | L138: 0 | M138: 0 | N138: 0 | O138: 0 | P138: 0 | Q138: 0 | R138: 0 | S138: 0 | T138: 0 | U138: 0
A140: =A131 -> 6 | B140: Materials & Equipment
A141: =A138 -> 6 | B141: Cable (Al) | C141: =VLOOKUP(B141,'Input - Weightings'!$A$42:$S$53,A141+7,FALSE)/$C$136 -> 0.2381710261 | I141: =I16 -> 0 | J141: 0 | K141: 0 | L141: 0 | M141: 0 | N141: 0 | O141: -0.01801525979 | P141: -0.009686137024 | Q141: =Q16 -> 0.02028033736 | R141: 0.003255805049 | S141: 0.008145213521 | T141: 0.006770566129 | U141: 0.005189375179
A142: =A141 -> 6 | B142: Cable (Copper) | C142: =VLOOKUP(B142,'Input - Weightings'!$A$42:$S$53,A142+7,FALSE)/$C$136 -> 0.0581319893 | I142: 0 | J142: 0 | K142: 0 | L142: 0 | M142: 0 | N142: 0 | O142: -0.02355003869 | P142: -0.02190886762 | Q142: 0.01726290601 | R142: -0.007533702684 | S142: -0.005534948093 | T142: -0.006902398032 | U142: -0.008577622985
A143: 6 | B143: Distribution Substation | C143: =VLOOKUP(B143,'Input - Weightings'!$A$42:$S$53,A143+7,FALSE)/$C$136 -> 0.1091427817 | I143: 0 | J143: 0 | K143: 0 | L143: 0 | M143: 0 | N143: 0 | O143: -0.02620404777 | P143: -0.01499856127 | Q143: 0.03957974025 | R143: -0.001375903263 | S143: -0.002506300464 | T143: -0.003692472768 | U143: -0.005074647567
A144: 6 | B144: Distribution Transformers | C144: =VLOOKUP(B144,'Input - Weightings'!$A$42:$S$53,A144+7,FALSE)/$C$136 -> 0.2021641216 | I144: 0 | J144: 0 | K144: 0 | L144: 0 | M144: 0 | N144: 0 | O144: -0.0243303296 | P144: -0.007541081992 | Q144: 0.03771791341 | R144: 0.003741888686 | S144: 0.006299030195 | T144: 0.004939654935 | U144: 0.00333969866
A145: 6 | B145: Fabricated Steel | C145: =VLOOKUP(B145,'Input - Weightings'!$A$42:$S$53,A145+7,FALSE)/$C$136 -> 0.02717001829 | I145: 0 | J145: 0 | K145: 0 | L145: 0 | M145: 0 | N145: 0 | O145: -0.07071350102 | P145: -0.04208794097 | Q145: 0.11957493 | R145: -0.003557424785 | S145: -0.01247336544 | T145: -0.01524471231 | U145: -0.01836107073
A146: 6 | B146: Other | C146: =VLOOKUP(B146,'Input - Weightings'!$A$42:$S$53,A146+7,FALSE)/$C$136 -> 0.2755409458 | I146: 0 | J146: 0 | K146: 0 | L146: 0 | M146: 0 | N146: 0 | O146: 0 | P146: 0 | Q146: 0 | R146: 0 | S146: 0 | T146: 0 | U146: 0
A147: 6 | B147: Pole (Concrete) | C147: =VLOOKUP(B147,'Input - Weightings'!$A$42:$S$53,A147+7,FALSE)/$C$136 -> 0 | I147: 0 | J147: 0 | K147: 0 | L147: 0 | M147: 0 | N147: 0 | O147: 0 | P147: 0 | Q147: 0 | R147: 0 | S147: 0 | T147: 0 | U147: 0
A148: 6 | B148: Pole (Timber) | C148: =VLOOKUP(B148,'Input - Weightings'!$A$42:$S$53,A148+7,FALSE)/$C$136 -> 0.006139352005 | I148: 0.08235028047 | J148: 0.05 | K148: 0.05 | L148: 0 | M148: 0 | N148: 0 | O148: 0 | P148: 0 | Q148: 0 | R148: 0 | S148: 0 | T148: 0 | U148: 0
A149: 6 | B149: Secondary Protection | C149: =VLOOKUP(B149,'Input - Weightings'!$A$42:$S$53,A149+7,FALSE)/$C$136 -> 0 | I149: 0 | J149: 0 | K149: 0 | L149: 0 | M149: 0 | N149: 0 | O149: 0 | P149: 0 | Q149: 0 | R149: 0 | S149: 0 | T149: 0 | U149: 0
A150: 6 | B150: Switchgear & Other Electrical Equipment | C150: =VLOOKUP(B150,'Input - Weightings'!$A$42:$S$53,A150+7,FALSE)/$C$136 -> 0.08353976528 | I150: 0 | J150: 0 | K150: 0 | L150: 0 | M150: 0 | N150: 0 | O150: -0.01518145816 | P150: -0.01082951189 | Q150: 0.02054430301 | R150: -0.002206687201 | S150: -0.002991740545 | T150: -0.003687741837 | U150: -0.004501648601
A151: 6 | B151: Transformers | C151: =VLOOKUP(B151,'Input - Weightings'!$A$42:$S$53,A151+7,FALSE)/$C$136 -> 0 | I151: 0 | J151: 0 | K151: 0 | L151: 0 | M151: 0 | N151: 0 | O151: -0.01530254395 | P151: -0.007973255007 | Q151: 0.02130113043 | R151: -0.001673227625 | S151: -0.001905619965 | T151: -0.002588137552 | U151: -0.003424628057
B152: Subtotal | C152: =SUM(C141:C151) -> 1 | I152: =SUMPRODUCT($C141:$C151,I141:I151) -> 0.0005055773595 | J152: 0.0003069676002 | K152: 0.0003069676002 | L152: 0 | M152: 0 | N152: 0 | O152: -0.01662796845 | P152: -0.008790309174 | Q152: =SUMPRODUCT($C141:$C151,Q141:Q151) -> 0.0227438869 | R152: =SUMPRODUCT($C141:$C151,R141:R151) -> 0.0006627936078 | S152: =SUMPRODUCT($C141:$C151,S141:S151) -> 0.00202925875 | T152: =SUMPRODUCT($C141:$C151,T141:T151) -> 0.001084644606 | U152: =SUMPRODUCT($C141:$C151,U141:U151) -> -1.630667715e-05
B154: Total | C154: =SUM(C132:C138) -> 1 | I154: =SUMPRODUCT($C132:$C138,I132:I138) -> 0.0001592061914 | J154: 9.666402499e-05 | K154: 9.666402499e-05 | L154: 0 | M154: 0 | N154: 0 | O154: -0.005020639974 | P154: 0.003559111184 | Q154: =SUMPRODUCT($C132:$C138,Q132:Q138) -> 0.01706964711 | R154: =SUMPRODUCT($C132:$C138,R132:R138) -> 0.01471092625 | S154: =SUMPRODUCT($C132:$C138,S132:S138) -> 0.01559903184 | T154: =SUMPRODUCT($C132:$C138,T132:T138) -> 0.01406542316 | U154: =SUMPRODUCT($C132:$C138,U132:U138) -> 0.01273107359
A156: 7 | B156: Distribution Mains Replacement
A157: =A156 -> 7 | B157: Civil Construction | C157: =VLOOKUP(B157,'Input - Weightings'!$A$31:$S$53,A157+7,FALSE) -> 0 | I157: =I7 -> 0 | J157: 0 | K157: 0 | L157: 0 | M157: 0 | N157: 0 | O157: -0.01582759057 | P157: 0.008604329079 | Q157: =Q7 -> 0.004458563124 | R157: 0.004003171324 | S157: 0.004231601986 | T157: 0.00404971861 | U157: 0.0006094203839
A158: =A157 -> 7 | B158: Contracted Services (CCL) | C158: 0.1291 | I158: 0 | J158: 0 | K158: 0 | L158: 0 | M158: 0 | N158: 0 | O158: 0.003163585394 | P158: 0.01070570446 | Q158: 0.01350056513 | R158: 0.0202071889 | S158: 0.02119355628 | T158: 0.01967283504 | U158: 0.01884860254
A159: 7 | B159: Labour (EGW) | C159: =VLOOKUP(B159,'Input - Weightings'!$A$31:$S$53,A159+7,FALSE) -> 0.5087026747 | I159: 0 | J159: 0 | K159: 0 | L159: 0 | M159: 0 | N159: 0 | O159: 0.001594082151 | P159: 0.006348235863 | Q159: 0.01784320135 | R159: 0.02712595008 | S159: 0.02716309496 | T159: 0.02453790556 | U159: 0.02288741772
A160: 7 | B160: Labour (General) | C160: 0 | I160: 0 | J160: 0 | K160: 0 | L160: 0 | M160: 0 | N160: 0 | O160: 0.003515094883 | P160: 0.01189522718 | Q160: 0.01500062792 | R160: 0.02245243211 | S160: 0.02354839587 | T160: 0.0218587056 | U160: 0.02094289171
A161: 7 | B161: Materials and Equipment | C161: =VLOOKUP(B161,'Input - Weightings'!$A$31:$S$53,A161+7,FALSE) -> 0.2735455051 | I161: =I177 -> 0.03294011219 | J161: 0.02 | K161: 0.02 | L161: 0 | M161: 0 | N161: 0 | O161: -0.01074177897 | P161: -0.005978851858 | Q161: =Q177 -> 0.01409088145 | R161: =R177 -> 0.00112445078 | S161: =S177 -> 0.002634417136 | T161: =T177 -> 0.001945990836 | U161: =U177 -> 0.001157696535
A162: 7 | B162: Transport | C162: =VLOOKUP(B162,'Input - Weightings'!$A$31:$S$53,A162+7,FALSE) -> 0.0886517857 | I162: =I12 -> 0 | J162: 0 | K162: 0 | L162: 0 | M162: 0 | N162: 0 | O162: -0.002167229946 | P162: 0.01707493698 | Q162: =Q12 -> 0.01734445682 | R162: 0.01767322109 | S162: 0.02129132002 | T162: 0.01982733048 | U162: 0.0187306959
A163: 7 | B163: Property | C163: =VLOOKUP(B163,'Input - Weightings'!$A$31:$S$53,A163+7,FALSE) -> 0 | I163: 0 | J163: 0 | K163: 0 | L163: 0 | M163: 0 | N163: 0 | O163: 0 | P163: 0 | Q163: 0 | R163: 0 | S163: 0 | T163: 0 | U163: 0
A165: =A156 -> 7 | B165: Materials & Equipment
A166: =A163 -> 7 | B166: Cable (Al) | C166: 0.4 | I166: =I16 -> 0 | J166: 0 | K166: 0 | L166: 0 | M166: 0 | N166: 0 | O166: -0.01801525979 | P166: -0.009686137024 | Q166: =Q16 -> 0.02028033736 | R166: 0.003255805049 | S166: 0.008145213521 | T166: 0.006770566129 | U166: 0.005189375179
A167: =A166 -> 7 | B167: Cable (Copper) | C167: =VLOOKUP(B167,'Input - Weightings'!$A$42:$S$53,A167+7,FALSE)/$C$161 -> 0 | I167: 0 | J167: 0 | K167: 0 | L167: 0 | M167: 0 | N167: 0 | O167: -0.02355003869 | P167: -0.02190886762 | Q167: 0.01726290601 | R167: -0.007533702684 | S167: -0.005534948093 | T167: -0.006902398032 | U167: -0.008577622985
A168: 7 | B168: Distribution Substation | C168: =VLOOKUP(B168,'Input - Weightings'!$A$42:$S$53,A168+7,FALSE)/$C$161 -> 0 | I168: 0 | J168: 0 | K168: 0 | L168: 0 | M168: 0 | N168: 0 | O168: -0.02620404777 | P168: -0.01499856127 | Q168: 0.03957974025 | R168: -0.001375903263 | S168: -0.002506300464 | T168: -0.003692472768 | U168: -0.005074647567
A169: 7 | B169: Distribution Transformers | C169: =VLOOKUP(B169,'Input - Weightings'!$A$42:$S$53,A169+7,FALSE)/$C$161 -> 0 | I169: 0 | J169: 0 | K169: 0 | L169: 0 | M169: 0 | N169: 0 | O169: -0.0243303296 | P169: -0.007541081992 | Q169: 0.03771791341 | R169: 0.003741888686 | S169: 0.006299030195 | T169: 0.004939654935 | U169: 0.00333969866
A170: 7 | B170: Fabricated Steel | C170: 0.05 | I170: 0 | J170: 0 | K170: 0 | L170: 0 | M170: 0 | N170: 0 | O170: -0.07071350102 | P170: -0.04208794097 | Q170: 0.11957493 | R170: -0.003557424785 | S170: -0.01247336544 | T170: -0.01524471231 | U170: -0.01836107073
A171: 7 | B171: Other | C171: 0.15 | I171: 0 | J171: 0 | K171: 0 | L171: 0 | M171: 0 | N171: 0 | O171: 0 | P171: 0 | Q171: 0 | R171: 0 | S171: 0 | T171: 0 | U171: 0
A172: 7 | B172: Pole (Concrete) | C172: =VLOOKUP(B172,'Input - Weightings'!$A$42:$S$53,A172+7,FALSE)/$C$161 -> 0 | I172: 0 | J172: 0 | K172: 0 | L172: 0 | M172: 0 | N172: 0 | O172: 0 | P172: 0 | Q172: 0 | R172: 0 | S172: 0 | T172: 0 | U172: 0
A173: 7 | B173: Pole (Timber) | C173: 0.4 | I173: 0.08235028047 | J173: 0.05 | K173: 0.05 | L173: 0 | M173: 0 | N173: 0 | O173: 0 | P173: 0 | Q173: 0 | R173: 0 | S173: 0 | T173: 0 | U173: 0
A174: 7 | B174: Secondary Protection | C174: =VLOOKUP(B174,'Input - Weightings'!$A$42:$S$53,A174+7,FALSE)/$C$161 -> 0 | I174: 0 | J174: 0 | K174: 0 | L174: 0 | M174: 0 | N174: 0 | O174: 0 | P174: 0 | Q174: 0 | R174: 0 | S174: 0 | T174: 0 | U174: 0
A175: 7 | B175: Switchgear & Other Electrical Equipment | C175: 0 | I175: 0 | J175: 0 | K175: 0 | L175: 0 | M175: 0 | N175: 0 | O175: -0.01518145816 | P175: -0.01082951189 | Q175: 0.02054430301 | R175: -0.002206687201 | S175: -0.002991740545 | T175: -0.003687741837 | U175: -0.004501648601
A176: 7 | B176: Transformers | C176: =VLOOKUP(B176,'Input - Weightings'!$A$42:$S$53,A176+7,FALSE)/$C$161 -> 0 | I176: 0 | J176: 0 | K176: 0 | L176: 0 | M176: 0 | N176: 0 | O176: -0.01530254395 | P176: -0.007973255007 | Q176: 0.02130113043 | R176: -0.001673227625 | S176: -0.001905619965 | T176: -0.002588137552 | U176: -0.003424628057
B177: Subtotal | C177: =SUM(C166:C176) -> 1 | I177: =SUMPRODUCT($C166:$C176,I166:I176) -> 0.03294011219 | J177: 0.02 | K177: 0.02 | L177: 0 | M177: 0 | N177: 0 | O177: -0.01074177897 | P177: -0.005978851858 | Q177: =SUMPRODUCT($C166:$C176,Q166:Q176) -> 0.01409088145 | R177: =SUMPRODUCT($C166:$C176,R166:R176) -> 0.00112445078 | S177: =SUMPRODUCT($C166:$C176,S166:S176) -> 0.002634417136 | T177: =SUMPRODUCT($C166:$C176,T166:T176) -> 0.001945990836 | U177: =SUMPRODUCT($C166:$C176,U166:U176) -> 0.001157696535
B179: Total | C179: =SUM(C157:C163) -> 0.9999999655 | I179: =SUMPRODUCT($C157:$C163,I157:I163) -> 0.009010619627 | J179: 0.005470910102 | K179: 0.005470910102 | L179: 0 | M179: 0 | N179: 0 | O179: -0.001911161429 | P179: 0.004489706611 | Q179: =SUMPRODUCT($C157:$C163,Q157:Q163) -> 0.01621192156 | R179: =SUMPRODUCT($C157:$C163,R157:R163) -> 0.01828214251 | S179: =SUMPRODUCT($C157:$C163,S157:S163) -> 0.01916217368 | T179: =SUMPRODUCT($C157:$C163,T157:T163) -> 0.01731230649 | U179: =SUMPRODUCT($C157:$C163,U157:U163) -> 0.01605343752
A181: 8 | B181: Distribution Substation Replacement
A182: =A181 -> 8 | B182: Civil Construction | C182: =VLOOKUP(B182,'Input - Weightings'!$A$31:$S$53,A182+7,FALSE) -> 0 | I182: =I7 -> 0 | J182: 0 | K182: 0 | L182: 0 | M182: 0 | N182: 0 | O182: -0.01582759057 | P182: 0.008604329079 | Q182: =Q7 -> 0.004458563124 | R182: 0.004003171324 | S182: 0.004231601986 | T182: 0.00404971861 | U182: 0.0006094203839
A183: =A182 -> 8 | B183: Contracted Services (CCL) | C183: 0.15 | I183: 0 | J183: 0 | K183: 0 | L183: 0 | M183: 0 | N183: 0 | O183: 0.003163585394 | P183: 0.01070570446 | Q183: 0.01350056513 | R183: 0.0202071889 | S183: 0.02119355628 | T183: 0.01967283504 | U183: 0.01884860254
A184: 8 | B184: Labour (EGW) | C184: =VLOOKUP(B184,'Input - Weightings'!$A$31:$S$53,A184+7,FALSE) -> 0.3636415328 | I184: 0 | J184: 0 | K184: 0 | L184: 0 | M184: 0 | N184: 0 | O184: 0.001594082151 | P184: 0.006348235863 | Q184: 0.01784320135 | R184: 0.02712595008 | S184: 0.02716309496 | T184: 0.02453790556 | U184: 0.02288741772
A185: 8 | B185: Labour (General) | C185: 0 | I185: 0 | J185: 0 | K185: 0 | L185: 0 | M185: 0 | N185: 0 | O185: 0.003515094883 | P185: 0.01189522718 | Q185: 0.01500062792 | R185: 0.02245243211 | S185: 0.02354839587 | T185: 0.0218587056 | U185: 0.02094289171
A186: 8 | B186: Materials and Equipment | C186: =VLOOKUP(B186,'Input - Weightings'!$A$31:$S$53,A186+7,FALSE) -> 0.4297995288 | I186: =I202 -> 0.0007408393018 | J186: 0.0004498098231 | K186: 0.0004498098231 | L186: 0 | M186: 0 | N186: 0 | O186: -0.01807819043 | P186: -0.009500271054 | Q186: =Q202 -> 0.02624953703 | R186: =R202 -> -0.0001650621991 | S186: =S202 -> 0.0001308614199 | T186: =T202 -> -0.0007735612435 | U186: =U202 -> -0.001834986224
A187: 8 | B187: Transport | C187: =VLOOKUP(B187,'Input - Weightings'!$A$31:$S$53,A187+7,FALSE) -> 0.05658043904 | I187: =I12 -> 0 | J187: 0 | K187: 0 | L187: 0 | M187: 0 | N187: 0 | O187: -0.002167229946 | P187: 0.01707493698 | Q187: =Q12 -> 0.01734445682 | R187: 0.01767322109 | S187: 0.02129132002 | T187: 0.01982733048 | U187: 0.0187306959
A188: 8 | B188: Property | C188: =VLOOKUP(B188,'Input - Weightings'!$A$31:$S$53,A188+7,FALSE) -> 0 | I188: 0 | J188: 0 | K188: 0 | L188: 0 | M188: 0 | N188: 0 | O188: 0 | P188: 0 | Q188: 0 | R188: 0 | S188: 0 | T188: 0 | U188: 0
A190: =A181 -> 8 | B190: Materials & Equipment
A191: =A188 -> 8 | B191: Cable (Al) | C191: =VLOOKUP(B191,'Input - Weightings'!$A$42:$S$53,A191+7,FALSE)/$C$186 -> 0 | I191: =I16 -> 0 | J191: 0 | K191: 0 | L191: 0 | M191: 0 | N191: 0 | O191: -0.01801525979 | P191: -0.009686137024 | Q191: =Q16 -> 0.02028033736 | R191: 0.003255805049 | S191: 0.008145213521 | T191: 0.006770566129 | U191: 0.005189375179
A192: =A191 -> 8 | B192: Cable (Copper) | C192: =VLOOKUP(B192,'Input - Weightings'!$A$42:$S$53,A192+7,FALSE)/$C$186 -> 0.08518273524 | I192: 0 | J192: 0 | K192: 0 | L192: 0 | M192: 0 | N192: 0 | O192: -0.02355003869 | P192: -0.02190886762 | Q192: 0.01726290601 | R192: -0.007533702684 | S192: -0.005534948093 | T192: -0.006902398032 | U192: -0.008577622985
A193: 8 | B193: Distribution Substation | C193: =VLOOKUP(B193,'Input - Weightings'!$A$42:$S$53,A193+7,FALSE)/$C$186 -> 0.1599305441 | I193: 0 | J193: 0 | K193: 0 | L193: 0 | M193: 0 | N193: 0 | O193: -0.02620404777 | P193: -0.01499856127 | Q193: 0.03957974025 | R193: -0.001375903263 | S193: -0.002506300464 | T193: -0.003692472768 | U193: -0.005074647567
A194: 8 | B194: Distribution Transformers | C194: =VLOOKUP(B194,'Input - Weightings'!$A$42:$S$53,A194+7,FALSE)/$C$186 -> 0.2962378039 | I194: 0 | J194: 0 | K194: 0 | L194: 0 | M194: 0 | N194: 0 | O194: -0.0243303296 | P194: -0.007541081992 | Q194: 0.03771791341 | R194: 0.003741888686 | S194: 0.006299030195 | T194: 0.004939654935 | U194: 0.00333969866
A195: 8 | B195: Fabricated Steel | C195: =VLOOKUP(B195,'Input - Weightings'!$A$42:$S$53,A195+7,FALSE)/$C$186 -> 0.03981313048 | I195: 0 | J195: 0 | K195: 0 | L195: 0 | M195: 0 | N195: 0 | O195: -0.07071350102 | P195: -0.04208794097 | Q195: 0.11957493 | R195: -0.003557424785 | S195: -0.01247336544 | T195: -0.01524471231 | U195: -0.01836107073
A196: 8 | B196: Other | C196: =VLOOKUP(B196,'Input - Weightings'!$A$42:$S$53,A196+7,FALSE)/$C$186 -> 0.2874259964 | I196: 0 | J196: 0 | K196: 0 | L196: 0 | M196: 0 | N196: 0 | O196: 0 | P196: 0 | Q196: 0 | R196: 0 | S196: 0 | T196: 0 | U196: 0
A197: 8 | B197: Pole (Concrete) | C197: =VLOOKUP(B197,'Input - Weightings'!$A$42:$S$53,A197+7,FALSE)/$C$186 -> 0 | I197: 0 | J197: 0 | K197: 0 | L197: 0 | M197: 0 | N197: 0 | O197: 0 | P197: 0 | Q197: 0 | R197: 0 | S197: 0 | T197: 0 | U197: 0
A198: 8 | B198: Pole (Timber) | C198: =VLOOKUP(B198,'Input - Weightings'!$A$42:$S$53,A198+7,FALSE)/$C$186 -> 0.008996196461 | I198: 0.08235028047 | J198: 0.05 | K198: 0.05 | L198: 0 | M198: 0 | N198: 0 | O198: 0 | P198: 0 | Q198: 0 | R198: 0 | S198: 0 | T198: 0 | U198: 0
A199: 8 | B199: Secondary Protection | C199: =VLOOKUP(B199,'Input - Weightings'!$A$42:$S$53,A199+7,FALSE)/$C$186 -> 0 | I199: 0 | J199: 0 | K199: 0 | L199: 0 | M199: 0 | N199: 0 | O199: 0 | P199: 0 | Q199: 0 | R199: 0 | S199: 0 | T199: 0 | U199: 0
A200: 8 | B200: Switchgear & Other Electrical Equipment | C200: =VLOOKUP(B200,'Input - Weightings'!$A$42:$S$53,A200+7,FALSE)/$C$186 -> 0.1224135935 | I200: 0 | J200: 0 | K200: 0 | L200: 0 | M200: 0 | N200: 0 | O200: -0.01518145816 | P200: -0.01082951189 | Q200: 0.02054430301 | R200: -0.002206687201 | S200: -0.002991740545 | T200: -0.003687741837 | U200: -0.004501648601
A201: 8 | B201: Transformers | C201: =VLOOKUP(B201,'Input - Weightings'!$A$42:$S$53,A201+7,FALSE)/$C$186 -> 0 | I201: 0 | J201: 0 | K201: 0 | L201: 0 | M201: 0 | N201: 0 | O201: -0.01530254395 | P201: -0.007973255007 | Q201: 0.02130113043 | R201: -0.001673227625 | S201: -0.001905619965 | T201: -0.002588137552 | U201: -0.003424628057
B202: Subtotal | C202: =SUM(C191:C201) -> 1 | I202: =SUMPRODUCT($C191:$C201,I191:I201) -> 0.0007408393018 | J202: 0.0004498098231 | K202: 0.0004498098231 | L202: 0 | M202: 0 | N202: 0 | O202: -0.01807819043 | P202: -0.009500271054 | Q202: =SUMPRODUCT($C191:$C201,Q191:Q201) -> 0.02624953703 | R202: =SUMPRODUCT($C191:$C201,R191:R201) -> -0.0001650621991 | S202: =SUMPRODUCT($C191:$C201,S191:S201) -> 0.0001308614199 | T202: =SUMPRODUCT($C191:$C201,T191:T201) -> -0.0007735612435 | U202: =SUMPRODUCT($C191:$C201,U191:U201) -> -0.001834986224
B204: Total | C204: =SUM(C182:C188) -> 1.000021501 | I204: =SUMPRODUCT($C182:$C188,I182:I188) -> 0.0003184123828 | J204: 0.00019332805 | K204: 0.00019332805 | L204: 0 | M204: 0 | N204: 0 | O204: -0.006838408262 | P204: 0.0007972332976 | Q204: =SUMPRODUCT($C182:$C188,Q182:Q188) -> 0.02077700949 | R204: =SUMPRODUCT($C182:$C188,R182:R188) -> 0.01382421535 | S204: =SUMPRODUCT($C182:$C188,S182:S188) -> 0.01431757934 | T204: =SUMPRODUCT($C182:$C188,T182:T188) -> 0.01266328965 | U204: =SUMPRODUCT($C182:$C188,U182:U188) -> 0.01142122082
A206: 9 | B206: Duty of care
A207: =A206 -> 9 | B207: Civil Construction | C207: =VLOOKUP(B207,'Input - Weightings'!$A$31:$S$53,A207+7,FALSE) -> 0.3196964034 | I207: =I7 -> 0 | J207: 0 | K207: 0 | L207: 0 | M207: 0 | N207: 0 | O207: -0.01582759057 | P207: 0.008604329079 | Q207: =Q7 -> 0.004458563124 | R207: 0.004003171324 | S207: 0.004231601986 | T207: 0.00404971861 | U207: 0.0006094203839
A208: =A207 -> 9 | B208: Contracted Services (CCL) | C208: =VLOOKUP(B208,'Input - Weightings'!$A$31:$S$53,A208+7,FALSE) -> 0 | I208: 0 | J208: 0 | K208: 0 | L208: 0 | M208: 0 | N208: 0 | O208: 0.003163585394 | P208: 0.01070570446 | Q208: 0.01350056513 | R208: 0.0202071889 | S208: 0.02119355628 | T208: 0.01967283504 | U208: 0.01884860254
A209: 9 | B209: Labour (EGW) | C209: =VLOOKUP(B209,'Input - Weightings'!$A$31:$S$53,A209+7,FALSE) -> 0.3979305128 | I209: 0 | J209: 0 | K209: 0 | L209: 0 | M209: 0 | N209: 0 | O209: 0.001594082151 | P209: 0.006348235863 | Q209: 0.01784320135 | R209: 0.02712595008 | S209: 0.02716309496 | T209: 0.02453790556 | U209: 0.02288741772
A210: 9 | B210: Labour (General) | C210: =VLOOKUP(B210,'Input - Weightings'!$A$31:$S$53,A210+7,FALSE) -> 0 | I210: 0 | J210: 0 | K210: 0 | L210: 0 | M210: 0 | N210: 0 | O210: 0.003515094883 | P210: 0.01189522718 | Q210: 0.01500062792 | R210: 0.02245243211 | S210: 0.02354839587 | T210: 0.0218587056 | U210: 0.02094289171
A211: 9 | B211: Materials and Equipment | C211: =VLOOKUP(B211,'Input - Weightings'!$A$31:$S$53,A211+7,FALSE) -> 0.2517288264 | I211: =I227 -> 0 | J211: 0 | K211: 0 | L211: =L227 -> 0 | M211: 0 | N211: 0 | O211: -0.009150107848 | P211: -0.004826990214 | Q211: =Q227 -> 0.0128740149 | R211: =R227 -> -0.0009347272679 | S211: =S227 -> -0.001106033018 | T211: =T227 -> -0.001514912044 | U211: =U227 -> -0.00201287057
A212: 9 | B212: Transport | C212: =VLOOKUP(B212,'Input - Weightings'!$A$31:$S$53,A212+7,FALSE) -> 0.03064425745 | I212: =I12 -> 0 | J212: 0 | K212: 0 | L212: 0 | M212: 0 | N212: 0 | O212: -0.002167229946 | P212: 0.01707493698 | Q212: =Q12 -> 0.01734445682 | R212: 0.01767322109 | S212: 0.02129132002 | T212: 0.01982733048 | U212: 0.0187306959
A213: 9 | B213: Property | C213: =VLOOKUP(B213,'Input - Weightings'!$A$31:$S$53,A213+7,FALSE) -> 0 | I213: 0 | J213: 0 | K213: 0 | L213: 0 | M213: 0 | N213: 0 | O213: 0 | P213: 0 | Q213: 0 | R213: 0 | S213: 0 | T213: 0 | U213: 0
A215: =A206 -> 9 | B215: Materials & Equipment
A216: =A213 -> 9 | B216: Cable (Al) | C216: =VLOOKUP(B216,'Input - Weightings'!$A$42:$S$53,A216+7,FALSE)/$C$211 -> 0 | I216: =I16 -> 0 | J216: 0 | K216: 0 | L216: 0 | M216: 0 | N216: 0 | O216: -0.01801525979 | P216: -0.009686137024 | Q216: =Q16 -> 0.02028033736 | R216: 0.003255805049 | S216: 0.008145213521 | T216: 0.006770566129 | U216: 0.005189375179
A217: =A216 -> 9 | B217: Cable (Copper) | C217: =VLOOKUP(B217,'Input - Weightings'!$A$42:$S$53,A217+7,FALSE)/$C$211 -> 0 | I217: 0 | J217: 0 | K217: 0 | L217: 0 | M217: 0 | N217: 0 | O217: -0.02355003869 | P217: -0.02190886762 | Q217: 0.01726290601 | R217: -0.007533702684 | S217: -0.005534948093 | T217: -0.006902398032 | U217: -0.008577622985
A218: 9 | B218: Distribution Substation | C218: =VLOOKUP(B218,'Input - Weightings'!$A$42:$S$53,A218+7,FALSE)/$C$211 -> 0.04416346275 | I218: 0 | J218: 0 | K218: 0 | L218: 0 | M218: 0 | N218: 0 | O218: -0.02620404777 | P218: -0.01499856127 | Q218: 0.03957974025 | R218: -0.001375903263 | S218: -0.002506300464 | T218: -0.003692472768 | U218: -0.005074647567
A219: 9 | B219: Distribution Transformers | C219: =VLOOKUP(B219,'Input - Weightings'!$A$42:$S$53,A219+7,FALSE)/$C$211 -> 0 | I219: 0 | J219: 0 | K219: 0 | L219: 0 | M219: 0 | N219: 0 | O219: -0.0243303296 | P219: -0.007541081992 | Q219: 0.03771791341 | R219: 0.003741888686 | S219: 0.006299030195 | T219: 0.004939654935 | U219: 0.00333969866
A220: 9 | B220: Fabricated Steel | C220: =VLOOKUP(B220,'Input - Weightings'!$A$42:$S$53,A220+7,FALSE)/$C$211 -> 0 | I220: 0 | J220: 0 | K220: 0 | L220: 0 | M220: 0 | N220: 0 | O220: -0.07071350102 | P220: -0.04208794097 | Q220: 0.11957493 | R220: -0.003557424785 | S220: -0.01247336544 | T220: -0.01524471231 | U220: -0.01836107073
A221: 9 | B221: Other | C221: =VLOOKUP(B221,'Input - Weightings'!$A$42:$S$53,A221+7,FALSE)/$C$211 -> 0.4335151255 | I221: 0 | J221: 0 | K221: 0 | L221: 0 | M221: 0 | N221: 0 | O221: 0 | P221: 0 | Q221: 0 | R221: 0 | S221: 0 | T221: 0 | U221: 0
A222: 9 | B222: Pole (Concrete) | C222: =VLOOKUP(B222,'Input - Weightings'!$A$42:$S$53,A222+7,FALSE)/$C$211 -> 0 | I222: 0 | J222: 0 | K222: 0 | L222: 0 | M222: 0 | N222: 0 | O222: 0 | P222: 0 | Q222: 0 | R222: 0 | S222: 0 | T222: 0 | U222: 0
A223: 9 | B223: Pole (Timber) | C223: =VLOOKUP(B223,'Input - Weightings'!$A$42:$S$53,A223+7,FALSE)/$C$211 -> 0 | I223: 0.08235028047 | J223: 0.05 | K223: 0.05 | L223: 0 | M223: 0 | N223: 0 | O223: 0 | P223: 0 | Q223: 0 | R223: 0 | S223: 0 | T223: 0 | U223: 0
A224: 9 | B224: Secondary Protection | C224: =VLOOKUP(B224,'Input - Weightings'!$A$42:$S$53,A224+7,FALSE)/$C$211 -> 0 | I224: 0 | J224: 0 | K224: 0 | L224: 0 | M224: 0 | N224: 0 | O224: 0 | P224: 0 | Q224: 0 | R224: 0 | S224: 0 | T224: 0 | U224: 0
A225: 9 | B225: Switchgear & Other Electrical Equipment | C225: =VLOOKUP(B225,'Input - Weightings'!$A$42:$S$53,A225+7,FALSE)/$C$211 -> 0 | I225: 0 | J225: 0 | K225: 0 | L225: 0 | M225: 0 | N225: 0 | O225: -0.01518145816 | P225: -0.01082951189 | Q225: 0.02054430301 | R225: -0.002206687201 | S225: -0.002991740545 | T225: -0.003687741837 | U225: -0.004501648601
A226: 9 | B226: Transformers | C226: =VLOOKUP(B226,'Input - Weightings'!$A$42:$S$53,A226+7,FALSE)/$C$211 -> 0.5223214118 | I226: 0 | J226: 0 | K226: 0 | L226: 0 | M226: 0 | N226: 0 | O226: -0.01530254395 | P226: -0.007973255007 | Q226: 0.02130113043 | R226: -0.001673227625 | S226: -0.001905619965 | T226: -0.002588137552 | U226: -0.003424628057
B227: Subtotal | C227: =SUM(C216:C226) -> 1 | I227: =SUMPRODUCT($C216:$C226,I216:I226) -> 0 | J227: 0 | K227: 0 | L227: 0 | M227: 0 | N227: 0 | O227: -0.009150107848 | P227: -0.004826990214 | Q227: =SUMPRODUCT($C216:$C226,Q216:Q226) -> 0.0128740149 | R227: =SUMPRODUCT($C216:$C226,R216:R226) -> -0.0009347272679 | S227: =SUMPRODUCT($C216:$C226,S216:S226) -> -0.001106033018 | T227: =SUMPRODUCT($C216:$C226,T216:T226) -> -0.001514912044 | U227: =SUMPRODUCT($C216:$C226,U216:U226) -> -0.00201287057
... 67 more rows

Sheet Equipment Analysis - CY
A1: Materials & Equipment Escalator Analysis
A3: Calendar Year
B5: Calendar year | C5: Weight | E5: 02/03 | F5: 03/04 | G5: 04/05 | H5: 05/06 | I5: 2007 | J5: 2008 | K5: 2009 | L5: 2010 | M5: 2011 | N5: 2012 | O5: 2013 | P5: 2014 | Q5: 2015 | R5: 2016 | S5: 2017 | T5: 2018 | U5: 2019
A6: 1 | B6: Transformers
A7: =A6 -> 1 | B7: Aluminium | C7: =VLOOKUP(B7,'Input - Weightings'!$A$8:$S$23,A7+7,FALSE) -> 0 | I7: ='Input - Cost escalators - CY'!H8 -> -0.1982516789 | J7: ='Input - Cost escalators - CY'!I8 -> -0.1733935471 | K7: ='Input - Cost escalators - CY'!J8 -> -0.1406475506 | L7: ='Input - Cost escalators - CY'!K8 -> 0.09127504943 | M7: ='Input - Cost escalators - CY'!L8 -> 0.1054600705 | N7: ='Input - Cost escalators - CY'!M8 -> 0 | O7: ='Input - Cost escalators - CY'!N8 -> -0.0700435742 | P7: ='Input - Cost escalators - CY'!O8 -> 0.05550389022 | Q7: ='Input - Cost escalators - CY'!P8 -> 0.03762979955 | R7: ='Input - Cost escalators - CY'!Q8 -> 0.04435113732 | S7: ='Input - Cost escalators - CY'!R8 -> 0.04807295447 | T7: ='Input - Cost escalators - CY'!S8 -> 0.04332297128 | U7: ='Input - Cost escalators - CY'!T8 -> 0.0390229608
A8: =A7 -> 1 | B8: Construction costs | C8: =VLOOKUP(B8,'Input - Weightings'!$A$8:$S$23,A8+7,FALSE) -> 0 | I8: ='Input - Cost escalators - CY'!H9 -> 0.01923326713 | J8: ='Input - Cost escalators - CY'!I9 -> 0.01580687163 | K8: ='Input - Cost escalators - CY'!J9 -> -0.03361040043 | L8: ='Input - Cost escalators - CY'!K9 -> 0.007720515262 | M8: ='Input - Cost escalators - CY'!L9 -> 0.006640017726 | N8: ='Input - Cost escalators - CY'!M9 -> 0 | O8: ='Input - Cost escalators - CY'!N9 -> -0.01394862028 | P8: ='Input - Cost escalators - CY'!O9 -> 0.009210314203 | Q8: ='Input - Cost escalators - CY'!P9 -> 0.003959920741 | R8: ='Input - Cost escalators - CY'!Q9 -> 0.004100712688 | S8: ='Input - Cost escalators - CY'!R9 -> 0.004371050303 | T8: ='Input - Cost escalators - CY'!S9 -> 0.002271592951 | U8: ='Input - Cost escalators - CY'!T9 -> 0.0005733524411
A9: 1 | B9: Copper | C9: =VLOOKUP(B9,'Input - Weightings'!$A$8:$S$23,A9+7,FALSE) -> 0.1 | I9: ='Input - Cost escalators - CY'!H10 -> 0 | J9: ='Input - Cost escalators - CY'!I10 -> 0 | K9: ='Input - Cost escalators - CY'!J10 -> 0 | L9: ='Input - Cost escalators - CY'!K10 -> 0 | M9: ='Input - Cost escalators - CY'!L10 -> 0 | N9: ='Input - Cost escalators - CY'!M10 -> 0 | O9: ='Input - Cost escalators - CY'!N10 -> -0.07440259851 | P9: ='Input - Cost escalators - CY'!O10 -> 0.01507443201 | Q9: ='Input - Cost escalators - CY'!P10 -> 0.001542841203 | R9: ='Input - Cost escalators - CY'!Q10 -> -0.01114551025 | S9: ='Input - Cost escalators - CY'!R10 -> -0.01132017937 | T9: ='Input - Cost escalators - CY'!S10 -> -0.01399751672 | U9: ='Input - Cost escalators - CY'!T10 -> -0.01647047956
A10: 1 | B10: Current transformer | C10: =VLOOKUP(B10,'Input - Weightings'!$A$8:$S$23,A10+7,FALSE) -> 0 | I10: ='Input - Cost escalators - CY'!H11 -> 0 | J10: ='Input - Cost escalators - CY'!I11 -> 0 | K10: ='Input - Cost escalators - CY'!J11 -> 0 | L10: ='Input - Cost escalators - CY'!K11 -> 0 | M10: ='Input - Cost escalators - CY'!L11 -> 0 | N10: ='Input - Cost escalators - CY'!M11 -> 0 | O10: ='Input - Cost escalators - CY'!N11 -> 0 | P10: ='Input - Cost escalators - CY'!O11 -> 0 | Q10: ='Input - Cost escalators - CY'!P11 -> 0 | R10: ='Input - Cost escalators - CY'!Q11 -> 0 | S10: ='Input - Cost escalators - CY'!R11 -> 0 | T10: ='Input - Cost escalators - CY'!S11 -> 0 | U10: ='Input - Cost escalators - CY'!T11 -> 0
A11: 1 | B11: EGW wages | C11: =VLOOKUP(B11,'Input - Weightings'!$A$8:$S$23,A11+7,FALSE) -> 0 | I11: ='Input - Cost escalators - CY'!H12 -> 0 | J11: ='Input - Cost escalators - CY'!I12 -> 0 | K11: ='Input - Cost escalators - CY'!J12 -> 0 | L11: ='Input - Cost escalators - CY'!K12 -> 0 | M11: ='Input - Cost escalators - CY'!L12 -> 0 | N11: ='Input - Cost escalators - CY'!M12 -> 0 | O11: ='Input - Cost escalators - CY'!N12 -> 0.006171520956 | P11: ='Input - Cost escalators - CY'!O12 -> 0.002740094916 | Q11: ='Input - Cost escalators - CY'!P12 -> 0.0185004406 | R11: ='Input - Cost escalators - CY'!Q12 -> 0.02775098817 | S11: ='Input - Cost escalators - CY'!R12 -> 0.02920227386 | T11: ='Input - Cost escalators - CY'!S12 -> 0.02340450064 | U11: ='Input - Cost escalators - CY'!T12 -> 0.02340450064
A12: 1 | B12: Labour | C12: =VLOOKUP(B12,'Input - Weightings'!$A$8:$S$23,A12+7,FALSE) -> 0 | I12: ='Input - Cost escalators - CY'!H13 -> 0 | J12: ='Input - Cost escalators - CY'!I13 -> 0 | K12: ='Input - Cost escalators - CY'!J13 -> 0 | L12: ='Input - Cost escalators - CY'!K13 -> 0 | M12: ='Input - Cost escalators - CY'!L13 -> 0 | N12: ='Input - Cost escalators - CY'!M13 -> 0 | O12: ='Input - Cost escalators - CY'!N13 -> 0.005700190745 | P12: ='Input - Cost escalators - CY'!O13 -> 0.01366605371 | Q12: ='Input - Cost escalators - CY'!P13 -> 0.01894691773 | R12: ='Input - Cost escalators - CY'!Q13 -> 0.02360688354 | S12: ='Input - Cost escalators - CY'!R13 -> 0.02607256954 | T12: ='Input - Cost escalators - CY'!S13 -> 0.02111685756 | U12: ='Input - Cost escalators - CY'!T13 -> 0.02111685756
A13: 1 | B13: Land & Easements | C13: =VLOOKUP(B13,'Input - Weightings'!$A$8:$S$23,A13+7,FALSE) -> 0 | I13: ='Input - Cost escalators - CY'!H14 -> 0 | J13: ='Input - Cost escalators - CY'!I14 -> 0 | K13: ='Input - Cost escalators - CY'!J14 -> 0 | L13: ='Input - Cost escalators - CY'!K14 -> 0 | M13: ='Input - Cost escalators - CY'!L14 -> 0 | N13: ='Input - Cost escalators - CY'!M14 -> 0 | O13: ='Input - Cost escalators - CY'!N14 -> 0 | P13: ='Input - Cost escalators - CY'!O14 -> 0 | Q13: ='Input - Cost escalators - CY'!P14 -> 0 | R13: ='Input - Cost escalators - CY'!Q14 -> 0 | S13: ='Input - Cost escalators - CY'!R14 -> 0 | T13: ='Input - Cost escalators - CY'!S14 -> 0 | U13: ='Input - Cost escalators - CY'!T14 -> 0
A14: 1 | B14: Materials | C14: =VLOOKUP(B14,'Input - Weightings'!$A$8:$S$23,A14+7,FALSE) -> 0 | I14: ='Input - Cost escalators - CY'!H15 -> 0 | J14: ='Input - Cost escalators - CY'!I15 -> 0 | K14: ='Input - Cost escalators - CY'!J15 -> 0 | L14: ='Input - Cost escalators - CY'!K15 -> 0 | M14: ='Input - Cost escalators - CY'!L15 -> 0 | N14: ='Input - Cost escalators - CY'!M15 -> 0 | O14: ='Input - Cost escalators - CY'!N15 -> 0 | P14: ='Input - Cost escalators - CY'!O15 -> 0 | Q14: ='Input - Cost escalators - CY'!P15 -> 0 | R14: ='Input - Cost escalators - CY'!Q15 -> 0 | S14: ='Input - Cost escalators - CY'!R15 -> 0 | T14: ='Input - Cost escalators - CY'!S15 -> 0 | U14: ='Input - Cost escalators - CY'!T15 -> 0
A15: 1 | B15: Oil | C15: =VLOOKUP(B15,'Input - Weightings'!$A$8:$S$23,A15+7,FALSE) -> 0.035 | I15: ='Input - Cost escalators - CY'!H16 -> 0 | J15: ='Input - Cost escalators - CY'!I16 -> 0 | K15: ='Input - Cost escalators - CY'!J16 -> 0 | L15: ='Input - Cost escalators - CY'!K16 -> 0 | M15: ='Input - Cost escalators - CY'!L16 -> 0 | N15: ='Input - Cost escalators - CY'!M16 -> 0 | O15: ='Input - Cost escalators - CY'!N16 -> -0.001522285963 | P15: ='Input - Cost escalators - CY'!O16 -> 0.04921486298 | Q15: ='Input - Cost escalators - CY'!P16 -> 0.01322743641 | R15: ='Input - Cost escalators - CY'!Q16 -> 0.01835926827 | S15: ='Input - Cost escalators - CY'!R16 -> 0.02359702398 | T15: ='Input - Cost escalators - CY'!S16 -> 0.02170495918 | U15: ='Input - Cost escalators - CY'!T16 -> 0.01945900361
A16: 1 | B16: Other | C16: =VLOOKUP(B16,'Input - Weightings'!$A$8:$S$23,A16+7,FALSE) -> 0.59 | I16: ='Input - Cost escalators - CY'!H17 -> 0 | J16: ='Input - Cost escalators - CY'!I17 -> 0 | K16: ='Input - Cost escalators - CY'!J17 -> 0 | L16: ='Input - Cost escalators - CY'!K17 -> 0 | M16: ='Input - Cost escalators - CY'!L17 -> 0 | N16: ='Input - Cost escalators - CY'!M17 -> 0 | O16: ='Input - Cost escalators - CY'!N17 -> 0 | P16: ='Input - Cost escalators - CY'!O17 -> 0 | Q16: ='Input - Cost escalators - CY'!P17 -> 0 | R16: ='Input - Cost escalators - CY'!Q17 -> 0 | S16: ='Input - Cost escalators - CY'!R17 -> 0 | T16: ='Input - Cost escalators - CY'!S17 -> 0 | U16: ='Input - Cost escalators - CY'!T17 -> 0
A17: 1 | B17: Producer's Margin | C17: =VLOOKUP(B17,'Input - Weightings'!$A$8:$S$23,A17+7,FALSE) -> 0.1 | I17: ='Input - Cost escalators - CY'!H18 -> 0 | J17: ='Input - Cost escalators - CY'!I18 -> 0 | K17: ='Input - Cost escalators - CY'!J18 -> 0 | L17: ='Input - Cost escalators - CY'!K18 -> 0 | M17: ='Input - Cost escalators - CY'!L18 -> 0 | N17: ='Input - Cost escalators - CY'!M18 -> 0 | O17: ='Input - Cost escalators - CY'!N18 -> 0 | P17: ='Input - Cost escalators - CY'!O18 -> 0 | Q17: ='Input - Cost escalators - CY'!P18 -> 0 | R17: ='Input - Cost escalators - CY'!Q18 -> 0 | S17: ='Input - Cost escalators - CY'!R18 -> 0 | T17: ='Input - Cost escalators - CY'!S18 -> 0 | U17: ='Input - Cost escalators - CY'!T18 -> 0
A18: 1 | B18: Property | C18: =VLOOKUP(B18,'Input - Weightings'!$A$8:$S$23,A18+7,FALSE) -> 0 | I18: ='Input - Cost escalators - CY'!H19 -> 0 | J18: ='Input - Cost escalators - CY'!I19 -> 0 | K18: ='Input - Cost escalators - CY'!J19 -> 0 | L18: ='Input - Cost escalators - CY'!K19 -> 0 | M18: ='Input - Cost escalators - CY'!L19 -> 0 | N18: ='Input - Cost escalators - CY'!M19 -> 0 | O18: ='Input - Cost escalators - CY'!N19 -> 0 | P18: ='Input - Cost escalators - CY'!O19 -> 0 | Q18: ='Input - Cost escalators - CY'!P19 -> 0 | R18: ='Input - Cost escalators - CY'!Q19 -> 0 | S18: ='Input - Cost escalators - CY'!R19 -> 0 | T18: ='Input - Cost escalators - CY'!S19 -> 0 | U18: ='Input - Cost escalators - CY'!T19 -> 0
A19: 1 | B19: Steel (Fabricated) | C19: =VLOOKUP(B19,'Input - Weightings'!$A$8:$S$23,A19+7,FALSE) -> 0.14 | I19: ='Input - Cost escalators - CY'!H20 -> 0 | J19: ='Input - Cost escalators - CY'!I20 -> 0 | K19: ='Input - Cost escalators - CY'!J20 -> 0 | L19: ='Input - Cost escalators - CY'!K20 -> 0 | M19: ='Input - Cost escalators - CY'!L20 -> 0 | N19: ='Input - Cost escalators - CY'!M20 -> 0 | O19: ='Input - Cost escalators - CY'!N20 -> -0.1139665259 | P19: ='Input - Cost escalators - CY'!O20 -> 0.07572346015 | Q19: ='Input - Cost escalators - CY'!P20 -> 0.04958605376 | R19: ='Input - Cost escalators - CY'!Q20 -> -0.01307441445 | S19: ='Input - Cost escalators - CY'!R20 -> -0.01398129563 | T19: ='Input - Cost escalators - CY'!S20 -> -0.01672739855 | U19: ='Input - Cost escalators - CY'!T20 -> -0.01927475359
A20: 1 | B20: Switchgear | C20: =VLOOKUP(B20,'Input - Weightings'!$A$8:$S$23,A20+7,FALSE) -> 0 | I20: ='Input - Cost escalators - CY'!H21 -> 0 | J20: ='Input - Cost escalators - CY'!I21 -> 0 | K20: ='Input - Cost escalators - CY'!J21 -> 0 | L20: ='Input - Cost escalators - CY'!K21 -> 0 | M20: ='Input - Cost escalators - CY'!L21 -> 0 | N20: ='Input - Cost escalators - CY'!M21 -> 0 | O20: ='Input - Cost escalators - CY'!N21 -> 0 | P20: ='Input - Cost escalators - CY'!O21 -> 0 | Q20: ='Input - Cost escalators - CY'!P21 -> 0 | R20: ='Input - Cost escalators - CY'!Q21 -> 0 | S20: ='Input - Cost escalators - CY'!R21 -> 0 | T20: ='Input - Cost escalators - CY'!S21 -> 0 | U20: ='Input - Cost escalators - CY'!T21 -> 0
A21: 1 | B21: Transport | C21: =VLOOKUP(B21,'Input - Weightings'!$A$8:$S$23,A21+7,FALSE) -> 0.035 | I21: ='Input - Cost escalators - CY'!H22 -> 0 | J21: ='Input - Cost escalators - CY'!I22 -> 0 | K21: ='Input - Cost escalators - CY'!J22 -> 0 | L21: ='Input - Cost escalators - CY'!K22 -> 0 | M21: ='Input - Cost escalators - CY'!L22 -> 0 | N21: ='Input - Cost escalators - CY'!M22 -> 0 | O21: ='Input - Cost escalators - CY'!N22 -> 0 | P21: ='Input - Cost escalators - CY'!O22 -> 0 | Q21: ='Input - Cost escalators - CY'!P22 -> 0 | R21: ='Input - Cost escalators - CY'!Q22 -> 0 | S21: ='Input - Cost escalators - CY'!R22 -> 0 | T21: ='Input - Cost escalators - CY'!S22 -> 0 | U21: ='Input - Cost escalators - CY'!T22 -> 0
B22: Total | C22: =SUM(C7:C21) -> 1 | I22: =SUMPRODUCT($C7:$C21,I7:I21) -> 0 | J22: 0 | K22: 0 | L22: 0 | M22: 0 | N22: 0 | O22: -0.02344885348 | P22: 0.01383124783 | Q22: 0.007559291922 | R22: -0.002302394659 | S22: -0.002263503487 | T22: -0.002981913897 | U22: -0.003664448333
A24: 2 | B24: Distribution Transformers
A25: =A24 -> 2 | B25: Aluminium | C25: =VLOOKUP(B25,'Input - Weightings'!$A$8:$S$23,A25+7,FALSE) -> 0.15 | I25: =I7 -> -0.1982516789 | J25: -0.1733935471 | K25: -0.1406475506 | L25: 0.09127504943 | M25: 0.1054600705 | N25: 0 | O25: -0.0700435742 | P25: 0.05550389022 | Q25: 0.03762979955 | R25: 0.04435113732 | S25: 0.04807295447 | T25: 0.04332297128 | U25: 0.0390229608
A26: 2 | B26: Construction costs | C26: =VLOOKUP(B26,'Input - Weightings'!$A$8:$S$23,A26+7,FALSE) -> 0 | I26: =I8 -> 0.01923326713 | J26: 0.01580687163 | K26: -0.03361040043 | L26: 0.007720515262 | M26: 0.006640017726 | N26: 0 | O26: -0.01394862028 | P26: 0.009210314203 | Q26: =Q8 -> 0.003959920741 | R26: 0.004100712688 | S26: 0.004371050303 | T26: 0.002271592951 | U26: 0.0005733524411
A27: 2 | B27: Copper | C27: =VLOOKUP(B27,'Input - Weightings'!$A$8:$S$23,A27+7,FALSE) -> 0.02 | I27: 0 | J27: 0 | K27: 0 | L27: 0 | M27: 0 | N27: 0 | O27: -0.07440259851 | P27: 0.01507443201 | Q27: 0.001542841203 | R27: -0.01114551025 | S27: -0.01132017937 | T27: -0.01399751672 | U27: -0.01647047956
A28: 2 | B28: Current transformer | C28: =VLOOKUP(B28,'Input - Weightings'!$A$8:$S$23,A28+7,FALSE) -> 0 | I28: 0 | J28: 0 | K28: 0 | L28: 0 | M28: 0 | N28: 0 | O28: 0 | P28: 0 | Q28: 0 | R28: 0 | S28: 0 | T28: 0 | U28: 0
A29: 2 | B29: EGW wages | C29: =VLOOKUP(B29,'Input - Weightings'!$A$8:$S$23,A29+7,FALSE) -> 0 | I29: 0 | J29: 0 | K29: 0 | L29: 0 | M29: 0 | N29: 0 | O29: 0.006171520956 | P29: 0.002740094916 | Q29: 0.0185004406 | R29: 0.02775098817 | S29: 0.02920227386 | T29: 0.02340450064 | U29: 0.02340450064
A30: 2 | B30: Labour | C30: =VLOOKUP(B30,'Input - Weightings'!$A$8:$S$23,A30+7,FALSE) -> 0 | I30: 0 | J30: 0 | K30: 0 | L30: 0 | M30: 0 | N30: 0 | O30: 0.005700190745 | P30: 0.01366605371 | Q30: 0.01894691773 | R30: 0.02360688354 | S30: 0.02607256954 | T30: 0.02111685756 | U30: 0.02111685756
A31: 2 | B31: Land & Easements | C31: =VLOOKUP(B31,'Input - Weightings'!$A$8:$S$23,A31+7,FALSE) -> 0 | I31: 0 | J31: 0 | K31: 0 | L31: 0 | M31: 0 | N31: 0 | O31: 0 | P31: 0 | Q31: 0 | R31: 0 | S31: 0 | T31: 0 | U31: 0
A32: 2 | B32: Materials | C32: =VLOOKUP(B32,'Input - Weightings'!$A$8:$S$23,A32+7,FALSE) -> 0 | I32: 0 | J32: 0 | K32: 0 | L32: 0 | M32: 0 | N32: 0 | O32: 0 | P32: 0 | Q32: 0 | R32: 0 | S32: 0 | T32: 0 | U32: 0
A33: 2 | B33: Oil | C33: =VLOOKUP(B33,'Input - Weightings'!$A$8:$S$23,A33+7,FALSE) -> 0.06 | I33: 0 | J33: 0 | K33: 0 | L33: 0 | M33: 0 | N33: 0 | O33: -0.001522285963 | P33: 0.04921486298 | Q33: 0.01322743641 | R33: 0.01835926827 | S33: 0.02359702398 | T33: 0.02170495918 | U33: 0.01945900361
A34: 2 | B34: Other | C34: =VLOOKUP(B34,'Input - Weightings'!$A$8:$S$23,A34+7,FALSE) -> 0.47 | I34: 0 | J34: 0 | K34: 0 | L34: 0 | M34: 0 | N34: 0 | O34: 0 | P34: 0 | Q34: 0 | R34: 0 | S34: 0 | T34: 0 | U34: 0
A35: 2 | B35: Producer's Margin | C35: =VLOOKUP(B35,'Input - Weightings'!$A$8:$S$23,A35+7,FALSE) -> 0.1 | I35: 0 | J35: 0 | K35: 0 | L35: 0 | M35: 0 | N35: 0 | O35: 0 | P35: 0 | Q35: 0 | R35: 0 | S35: 0 | T35: 0 | U35: 0
A36: 2 | B36: Property | C36: =VLOOKUP(B36,'Input - Weightings'!$A$8:$S$23,A36+7,FALSE) -> 0 | I36: 0 | J36: 0 | K36: 0 | L36: 0 | M36: 0 | N36: 0 | O36: 0 | P36: 0 | Q36: 0 | R36: 0 | S36: 0 | T36: 0 | U36: 0
A37: 2 | B37: Steel (Fabricated) | C37: =VLOOKUP(B37,'Input - Weightings'!$A$8:$S$23,A37+7,FALSE) -> 0.2 | I37: 0 | J37: 0 | K37: 0 | L37: 0 | M37: 0 | N37: 0 | O37: -0.1139665259 | P37: 0.07572346015 | Q37: 0.04958605376 | R37: -0.01307441445 | S37: -0.01398129563 | T37: -0.01672739855 | U37: -0.01927475359
A38: 2 | B38: Switchgear | C38: =VLOOKUP(B38,'Input - Weightings'!$A$8:$S$23,A38+7,FALSE) -> 0 | I38: 0 | J38: 0 | K38: 0 | L38: 0 | M38: 0 | N38: 0 | O38: 0 | P38: 0 | Q38: 0 | R38: 0 | S38: 0 | T38: 0 | U38: 0
A39: 2 | B39: Transport | C39: =VLOOKUP(B39,'Input - Weightings'!$A$8:$S$23,A39+7,FALSE) -> 0 | I39: 0 | J39: 0 | K39: 0 | L39: 0 | M39: 0 | N39: 0 | O39: 0 | P39: 0 | Q39: 0 | R39: 0 | S39: 0 | T39: 0 | U39: 0
B40: Total | C40: =SUM(C25:C39) -> 1 | I40: =SUMPRODUCT($C25:$C39,I25:I39) -> -0.02973775184 | J40: -0.02600903206 | K40: -0.02109713259 | L40: 0.01369125741 | M40: 0.01581901058 | N40: 0 | O40: -0.03487923043 | P40: 0.02672465598 | Q40: 0.01638618369 | R40: 0.004916433598 | S40: 0.005604101894 | T40: 0.004175313199 | U40: 0.002836624027
A42: 3 | B42: Switchgear
A43: =A42 -> 3 | B43: Aluminium | C43: =VLOOKUP(B43,'Input - Weightings'!$A$8:$S$23,A43+7,FALSE) -> 0 | I43: =I25 -> -0.1982516789 | J43: -0.1733935471 | K43: -0.1406475506 | L43: 0.09127504943 | M43: 0.1054600705 | N43: 0 | O43: -0.0700435742 | P43: 0.05550389022 | Q43: 0.03762979955 | R43: 0.04435113732 | S43: 0.04807295447 | T43: 0.04332297128 | U43: 0.0390229608
A44: 3 | B44: Construction costs | C44: =VLOOKUP(B44,'Input - Weightings'!$A$8:$S$23,A44+7,FALSE) -> 0 | I44: =I26 -> 0.01923326713 | J44: 0.01580687163 | K44: -0.03361040043 | L44: 0.007720515262 | M44: 0.006640017726 | N44: 0 | O44: -0.01394862028 | P44: 0.009210314203 | Q44: =Q26 -> 0.003959920741 | R44: 0.004100712688 | S44: 0.004371050303 | T44: 0.002271592951 | U44: 0.0005733524411
A45: 3 | B45: Copper | C45: =VLOOKUP(B45,'Input - Weightings'!$A$8:$S$23,A45+7,FALSE) -> 0.125 | I45: 0 | J45: 0 | K45: 0 | L45: 0 | M45: 0 | N45: 0 | O45: -0.07440259851 | P45: 0.01507443201 | Q45: 0.001542841203 | R45: -0.01114551025 | S45: -0.01132017937 | T45: -0.01399751672 | U45: -0.01647047956
A46: 3 | B46: Current transformer | C46: =VLOOKUP(B46,'Input - Weightings'!$A$8:$S$23,A46+7,FALSE) -> 0.043 | I46: 0 | J46: 0 | K46: 0 | L46: 0 | M46: 0 | N46: 0 | O46: 0 | P46: 0 | Q46: 0 | R46: 0 | S46: 0 | T46: 0 | U46: 0
A47: 3 | B47: EGW wages | C47: =VLOOKUP(B47,'Input - Weightings'!$A$8:$S$23,A47+7,FALSE) -> 0 | I47: 0 | J47: 0 | K47: 0 | L47: 0 | M47: 0 | N47: 0 | O47: 0.006171520956 | P47: 0.002740094916 | Q47: 0.0185004406 | R47: 0.02775098817 | S47: 0.02920227386 | T47: 0.02340450064 | U47: 0.02340450064
A48: 3 | B48: Labour | C48: =VLOOKUP(B48,'Input - Weightings'!$A$8:$S$23,A48+7,FALSE) -> 0 | I48: 0 | J48: 0 | K48: 0 | L48: 0 | M48: 0 | N48: 0 | O48: 0.005700190745 | P48: 0.01366605371 | Q48: 0.01894691773 | R48: 0.02360688354 | S48: 0.02607256954 | T48: 0.02111685756 | U48: 0.02111685756
A49: 3 | B49: Land & Easements | C49: =VLOOKUP(B49,'Input - Weightings'!$A$8:$S$23,A49+7,FALSE) -> 0 | I49: 0 | J49: 0 | K49: 0 | L49: 0 | M49: 0 | N49: 0 | O49: 0 | P49: 0 | Q49: 0 | R49: 0 | S49: 0 | T49: 0 | U49: 0
A50: 3 | B50: Materials | C50: =VLOOKUP(B50,'Input - Weightings'!$A$8:$S$23,A50+7,FALSE) -> 0 | I50: 0 | J50: 0 | K50: 0 | L50: 0 | M50: 0 | N50: 0 | O50: 0 | P50: 0 | Q50: 0 | R50: 0 | S50: 0 | T50: 0 | U50: 0
A51: 3 | B51: Oil | C51: =VLOOKUP(B51,'Input - Weightings'!$A$8:$S$23,A51+7,FALSE) -> 0 | I51: 0 | J51: 0 | K51: 0 | L51: 0 | M51: 0 | N51: 0 | O51: -0.001522285963 | P51: 0.04921486298 | Q51: 0.01322743641 | R51: 0.01835926827 | S51: 0.02359702398 | T51: 0.02170495918 | U51: 0.01945900361
A52: 3 | B52: Other | C52: =VLOOKUP(B52,'Input - Weightings'!$A$8:$S$23,A52+7,FALSE) -> 0.593 | I52: 0 | J52: 0 | K52: 0 | L52: 0 | M52: 0 | N52: 0 | O52: 0 | P52: 0 | Q52: 0 | R52: 0 | S52: 0 | T52: 0 | U52: 0
A53: 3 | B53: Producer's Margin | C53: =VLOOKUP(B53,'Input - Weightings'!$A$8:$S$23,A53+7,FALSE) -> 0.1 | I53: 0 | J53: 0 | K53: 0 | L53: 0 | M53: 0 | N53: 0 | O53: 0 | P53: 0 | Q53: 0 | R53: 0 | S53: 0 | T53: 0 | U53: 0
A54: 3 | B54: Property | C54: =VLOOKUP(B54,'Input - Weightings'!$A$8:$S$23,A54+7,FALSE) -> 0 | I54: 0 | J54: 0 | K54: 0 | L54: 0 | M54: 0 | N54: 0 | O54: 0 | P54: 0 | Q54: 0 | R54: 0 | S54: 0 | T54: 0 | U54: 0
A55: 3 | B55: Steel (Fabricated) | C55: =VLOOKUP(B55,'Input - Weightings'!$A$8:$S$23,A55+7,FALSE) -> 0.139 | I55: 0 | J55: 0 | K55: 0 | L55: 0 | M55: 0 | N55: 0 | O55: -0.1139665259 | P55: 0.07572346015 | Q55: 0.04958605376 | R55: -0.01307441445 | S55: -0.01398129563 | T55: -0.01672739855 | U55: -0.01927475359
A56: 3 | B56: Switchgear | C56: =VLOOKUP(B56,'Input - Weightings'!$A$8:$S$23,A56+7,FALSE) -> 0 | I56: 0 | J56: 0 | K56: 0 | L56: 0 | M56: 0 | N56: 0 | O56: 0 | P56: 0 | Q56: 0 | R56: 0 | S56: 0 | T56: 0 | U56: 0
A57: 3 | B57: Transport | C57: =VLOOKUP(B57,'Input - Weightings'!$A$8:$S$23,A57+7,FALSE) -> 0 | I57: 0 | J57: 0 | K57: 0 | L57: 0 | M57: 0 | N57: 0 | O57: 0 | P57: 0 | Q57: 0 | R57: 0 | S57: 0 | T57: 0 | U57: 0
B58: Total | C58: =SUM(C43:C57) -> 1 | I58: =SUMPRODUCT($C43:$C57,I43:I57) -> 0 | J58: 0 | K58: 0 | L58: 0 | M58: 0 | N58: 0 | O58: -0.02514167191 | P58: 0.01240986496 | Q58: 0.007085316624 | R58: -0.00321053239 | S58: -0.003358422515 | T58: -0.004074797988 | U58: -0.004738000695
A60: 4 | B60: Distribution Substations
A61: =A60 -> 4 | B61: Aluminium | C61: =VLOOKUP(B61,'Input - Weightings'!$A$8:$S$23,A61+7,FALSE) -> 0.03 | I61: =I43 -> -0.1982516789 | J61: -0.1733935471 | K61: -0.1406475506 | L61: 0.09127504943 | M61: 0.1054600705 | N61: 0 | O61: -0.0700435742 | P61: 0.05550389022 | Q61: 0.03762979955 | R61: 0.04435113732 | S61: 0.04807295447 | T61: 0.04332297128 | U61: 0.0390229608
A62: 4 | B62: Construction costs | C62: =VLOOKUP(B62,'Input - Weightings'!$A$8:$S$23,A62+7,FALSE) -> 0 | I62: =I44 -> 0.01923326713 | J62: 0.01580687163 | K62: -0.03361040043 | L62: 0.007720515262 | M62: 0.006640017726 | N62: 0 | O62: -0.01394862028 | P62: 0.009210314203 | Q62: =Q44 -> 0.003959920741 | R62: 0.004100712688 | S62: 0.004371050303 | T62: 0.002271592951 | U62: 0.0005733524411
A63: 4 | B63: Copper | C63: =VLOOKUP(B63,'Input - Weightings'!$A$8:$S$23,A63+7,FALSE) -> 0.1 | I63: 0 | J63: 0 | K63: 0 | L63: 0 | M63: 0 | N63: 0 | O63: -0.07440259851 | P63: 0.01507443201 | Q63: 0.001542841203 | R63: -0.01114551025 | S63: -0.01132017937 | T63: -0.01399751672 | U63: -0.01647047956
A64: 4 | B64: Current transformer | C64: =VLOOKUP(B64,'Input - Weightings'!$A$8:$S$23,A64+7,FALSE) -> 0 | I64: 0 | J64: 0 | K64: 0 | L64: 0 | M64: 0 | N64: 0 | O64: 0 | P64: 0 | Q64: 0 | R64: 0 | S64: 0 | T64: 0 | U64: 0
A65: 4 | B65: EGW wages | C65: =VLOOKUP(B65,'Input - Weightings'!$A$8:$S$23,A65+7,FALSE) -> 0 | I65: 0 | J65: 0 | K65: 0 | L65: 0 | M65: 0 | N65: 0 | O65: 0.006171520956 | P65: 0.002740094916 | Q65: 0.0185004406 | R65: 0.02775098817 | S65: 0.02920227386 | T65: 0.02340450064 | U65: 0.02340450064
A66: =A65 -> 4 | B66: Labour | C66: =VLOOKUP(B66,'Input - Weightings'!$A$8:$S$23,A66+7,FALSE) -> 0 | I66: 0 | J66: 0 | K66: 0 | L66: 0 | M66: 0 | N66: 0 | O66: 0.005700190745 | P66: 0.01366605371 | Q66: 0.01894691773 | R66: 0.02360688354 | S66: 0.02607256954 | T66: 0.02111685756 | U66: 0.02111685756
A67: =A66 -> 4 | B67: Land & Easements | C67: =VLOOKUP(B67,'Input - Weightings'!$A$8:$S$23,A67+7,FALSE) -> 0 | I67: 0 | J67: 0 | K67: 0 | L67: 0 | M67: 0 | N67: 0 | O67: 0 | P67: 0 | Q67: 0 | R67: 0 | S67: 0 | T67: 0 | U67: 0
A68: 4 | B68: Materials | C68: =VLOOKUP(B68,'Input - Weightings'!$A$8:$S$23,A68+7,FALSE) -> 0 | I68: 0 | J68: 0 | K68: 0 | L68: 0 | M68: 0 | N68: 0 | O68: 0 | P68: 0 | Q68: 0 | R68: 0 | S68: 0 | T68: 0 | U68: 0
A69: 4 | B69: Oil | C69: =VLOOKUP(B69,'Input - Weightings'!$A$8:$S$23,A69+7,FALSE) -> 0.02 | I69: 0 | J69: 0 | K69: 0 | L69: 0 | M69: 0 | N69: 0 | O69: -0.001522285963 | P69: 0.04921486298 | Q69: 0.01322743641 | R69: 0.01835926827 | S69: 0.02359702398 | T69: 0.02170495918 | U69: 0.01945900361
A70: 4 | B70: Other | C70: =VLOOKUP(B70,'Input - Weightings'!$A$8:$S$23,A70+7,FALSE) -> 0.22 | I70: 0 | J70: 0 | K70: 0 | L70: 0 | M70: 0 | N70: 0 | O70: 0 | P70: 0 | Q70: 0 | R70: 0 | S70: 0 | T70: 0 | U70: 0
A71: 4 | B71: Producer's Margin | C71: =VLOOKUP(B71,'Input - Weightings'!$A$8:$S$23,A71+7,FALSE) -> 0.1 | I71: 0 | J71: 0 | K71: 0 | L71: 0 | M71: 0 | N71: 0 | O71: 0 | P71: 0 | Q71: 0 | R71: 0 | S71: 0 | T71: 0 | U71: 0
A72: 4 | B72: Property | C72: =VLOOKUP(B72,'Input - Weightings'!$A$8:$S$23,A72+7,FALSE) -> 0 | I72: 0 | J72: 0 | K72: 0 | L72: 0 | M72: 0 | N72: 0 | O72: 0 | P72: 0 | Q72: 0 | R72: 0 | S72: 0 | T72: 0 | U72: 0
A73: 4 | B73: Steel (Fabricated) | C73: =VLOOKUP(B73,'Input - Weightings'!$A$8:$S$23,A73+7,FALSE) -> 0.28 | I73: 0 | J73: 0 | K73: 0 | L73: 0 | M73: 0 | N73: 0 | O73: -0.1139665259 | P73: 0.07572346015 | Q73: 0.04958605376 | R73: -0.01307441445 | S73: -0.01398129563 | T73: -0.01672739855 | U73: -0.01927475359
A74: 4 | B74: Switchgear | C74: =VLOOKUP(B74,'Input - Weightings'!$A$8:$S$23,A74+7,FALSE) -> 0.25 | I74: 0 | J74: 0 | K74: 0 | L74: 0 | M74: 0 | N74: 0 | O74: 0 | P74: 0 | Q74: 0 | R74: 0 | S74: 0 | T74: 0 | U74: 0
A75: 4 | B75: Transport | C75: =VLOOKUP(B75,'Input - Weightings'!$A$8:$S$23,A75+7,FALSE) -> 0 | I75: 0 | J75: 0 | K75: 0 | L75: 0 | M75: 0 | N75: 0 | O75: 0 | P75: 0 | Q75: 0 | R75: 0 | S75: 0 | T75: 0 | U75: 0
B76: Total | C76: =SUM(C61:C75) -> 1 | I76: =SUMPRODUCT($C61:$C75,I61:I75) -> -0.005947550367 | J76: -0.005201806412 | K76: -0.004219426518 | L76: 0.002738251483 | M76: 0.003163802116 | N76: 0 | O76: -0.04148264003 | P76: 0.02535942601 | Q76: 0.01543182189 | R76: -0.003077667587 | S76: -0.003132651601 | T76: -0.004349634943 | U76: -0.005484110066
A78: 5 | B78: Cable (Cu)
A79: =A78 -> 5 | B79: Aluminium | C79: =VLOOKUP(B79,'Input - Weightings'!$A$8:$S$23,A79+7,FALSE) -> 0 | I79: =I61 -> -0.1982516789 | J79: -0.1733935471 | K79: -0.1406475506 | L79: 0.09127504943 | M79: 0.1054600705 | N79: 0 | O79: -0.0700435742 | P79: 0.05550389022 | Q79: 0.03762979955 | R79: 0.04435113732 | S79: 0.04807295447 | T79: 0.04332297128 | U79: 0.0390229608
A80: 5 | B80: Construction costs | C80: =VLOOKUP(B80,'Input - Weightings'!$A$8:$S$23,A80+7,FALSE) -> 0 | I80: =I62 -> 0.01923326713 | J80: 0.01580687163 | K80: -0.03361040043 | L80: 0.007720515262 | M80: 0.006640017726 | N80: 0 | O80: -0.01394862028 | P80: 0.009210314203 | Q80: =Q62 -> 0.003959920741 | R80: 0.004100712688 | S80: 0.004371050303 | T80: 0.002271592951 | U80: 0.0005733524411
A81: 5 | B81: Copper | C81: =VLOOKUP(B81,'Input - Weightings'!$A$8:$S$23,A81+7,FALSE) -> 0.55 | I81: 0 | J81: 0 | K81: 0 | L81: 0 | M81: 0 | N81: 0 | O81: -0.07440259851 | P81: 0.01507443201 | Q81: 0.001542841203 | R81: -0.01114551025 | S81: -0.01132017937 | T81: -0.01399751672 | U81: -0.01647047956
A82: 5 | B82: Current transformer | C82: =VLOOKUP(B82,'Input - Weightings'!$A$8:$S$23,A82+7,FALSE) -> 0 | I82: 0 | J82: 0 | K82: 0 | L82: 0 | M82: 0 | N82: 0 | O82: 0 | P82: 0 | Q82: 0 | R82: 0 | S82: 0 | T82: 0 | U82: 0
A83: 5 | B83: EGW wages | C83: =VLOOKUP(B83,'Input - Weightings'!$A$8:$S$23,A83+7,FALSE) -> 0 | I83: 0 | J83: 0 | K83: 0 | L83: 0 | M83: 0 | N83: 0 | O83: 0.006171520956 | P83: 0.002740094916 | Q83: 0.0185004406 | R83: 0.02775098817 | S83: 0.02920227386 | T83: 0.02340450064 | U83: 0.02340450064
A84: 5 | B84: Labour | C84: =VLOOKUP(B84,'Input - Weightings'!$A$8:$S$23,A84+7,FALSE) -> 0 | I84: 0 | J84: 0 | K84: 0 | L84: 0 | M84: 0 | N84: 0 | O84: 0.005700190745 | P84: 0.01366605371 | Q84: 0.01894691773 | R84: 0.02360688354 | S84: 0.02607256954 | T84: 0.02111685756 | U84: 0.02111685756
A85: 5 | B85: Land & Easements | C85: =VLOOKUP(B85,'Input - Weightings'!$A$8:$S$23,A85+7,FALSE) -> 0 | I85: 0 | J85: 0 | K85: 0 | L85: 0 | M85: 0 | N85: 0 | O85: 0 | P85: 0 | Q85: 0 | R85: 0 | S85: 0 | T85: 0 | U85: 0
A86: 5 | B86: Materials | C86: =VLOOKUP(B86,'Input - Weightings'!$A$8:$S$23,A86+7,FALSE) -> 0 | I86: 0 | J86: 0 | K86: 0 | L86: 0 | M86: 0 | N86: 0 | O86: 0 | P86: 0 | Q86: 0 | R86: 0 | S86: 0 | T86: 0 | U86: 0
A87: 5 | B87: Oil | C87: =VLOOKUP(B87,'Input - Weightings'!$A$8:$S$23,A87+7,FALSE) -> 0 | I87: 0 | J87: 0 | K87: 0 | L87: 0 | M87: 0 | N87: 0 | O87: -0.001522285963 | P87: 0.04921486298 | Q87: 0.01322743641 | R87: 0.01835926827 | S87: 0.02359702398 | T87: 0.02170495918 | U87: 0.01945900361
A88: 5 | B88: Other | C88: =VLOOKUP(B88,'Input - Weightings'!$A$8:$S$23,A88+7,FALSE) -> 0.375 | I88: 0 | J88: 0 | K88: 0 | L88: 0 | M88: 0 | N88: 0 | O88: 0 | P88: 0 | Q88: 0 | R88: 0 | S88: 0 | T88: 0 | U88: 0
A89: 5 | B89: Producer's Margin | C89: =VLOOKUP(B89,'Input - Weightings'!$A$8:$S$23,A89+7,FALSE) -> 0.075 | I89: 0 | J89: 0 | K89: 0 | L89: 0 | M89: 0 | N89: 0 | O89: 0 | P89: 0 | Q89: 0 | R89: 0 | S89: 0 | T89: 0 | U89: 0
A90: 5 | B90: Property | C90: =VLOOKUP(B90,'Input - Weightings'!$A$8:$S$23,A90+7,FALSE) -> 0 | I90: 0 | J90: 0 | K90: 0 | L90: 0 | M90: 0 | N90: 0 | O90: 0 | P90: 0 | Q90: 0 | R90: 0 | S90: 0 | T90: 0 | U90: 0
A91: 5 | B91: Steel (Fabricated) | C91: =VLOOKUP(B91,'Input - Weightings'!$A$8:$S$23,A91+7,FALSE) -> 0 | I91: 0 | J91: 0 | K91: 0 | L91: 0 | M91: 0 | N91: 0 | O91: -0.1139665259 | P91: 0.07572346015 | Q91: 0.04958605376 | R91: -0.01307441445 | S91: -0.01398129563 | T91: -0.01672739855 | U91: -0.01927475359
A92: 5 | B92: Switchgear | C92: =VLOOKUP(B92,'Input - Weightings'!$A$8:$S$23,A92+7,FALSE) -> 0 | I92: 0 | J92: 0 | K92: 0 | L92: 0 | M92: 0 | N92: 0 | O92: 0 | P92: 0 | Q92: 0 | R92: 0 | S92: 0 | T92: 0 | U92: 0
A93: 5 | B93: Transport | C93: =VLOOKUP(B93,'Input - Weightings'!$A$8:$S$23,A93+7,FALSE) -> 0 | I93: 0 | J93: 0 | K93: 0 | L93: 0 | M93: 0 | N93: 0 | O93: 0 | P93: 0 | Q93: 0 | R93: 0 | S93: 0 | T93: 0 | U93: 0
B94: Total | C94: =SUM(C79:C93) -> 1 | I94: =SUMPRODUCT($C79:$C93,I79:I93) -> 0 | J94: 0 | K94: 0 | L94: 0 | M94: 0 | N94: 0 | O94: -0.04092142918 | P94: 0.008290937606 | Q94: 0.0008485626619 | R94: -0.006130030637 | S94: -0.006226098655 | T94: -0.007698634196 | U94: -0.009058763759
A96: 6 | B96: Cable (Al)
A97: =A96 -> 6 | B97: Aluminium | C97: =VLOOKUP(B97,'Input - Weightings'!$A$8:$S$23,A97+7,FALSE) -> 0.2 | I97: =I79 -> -0.1982516789 | J97: -0.1733935471 | K97: -0.1406475506 | L97: 0.09127504943 | M97: 0.1054600705 | N97: 0 | O97: -0.0700435742 | P97: 0.05550389022 | Q97: 0.03762979955 | R97: 0.04435113732 | S97: 0.04807295447 | T97: 0.04332297128 | U97: 0.0390229608
A98: 6 | B98: Construction costs | C98: =VLOOKUP(B98,'Input - Weightings'!$A$8:$S$23,A98+7,FALSE) -> 0 | I98: =I80 -> 0.01923326713 | J98: 0.01580687163 | K98: -0.03361040043 | L98: 0.007720515262 | M98: 0.006640017726 | N98: 0 | O98: -0.01394862028 | P98: 0.009210314203 | Q98: =Q80 -> 0.003959920741 | R98: 0.004100712688 | S98: 0.004371050303 | T98: 0.002271592951 | U98: 0.0005733524411
A99: 6 | B99: Copper | C99: =VLOOKUP(B99,'Input - Weightings'!$A$8:$S$23,A99+7,FALSE) -> 0.19 | I99: 0 | J99: 0 | K99: 0 | L99: 0 | M99: 0 | N99: 0 | O99: -0.07440259851 | P99: 0.01507443201 | Q99: 0.001542841203 | R99: -0.01114551025 | S99: -0.01132017937 | T99: -0.01399751672 | U99: -0.01647047956
A100: 6 | B100: Current transformer | C100: =VLOOKUP(B100,'Input - Weightings'!$A$8:$S$23,A100+7,FALSE) -> 0 | I100: 0 | J100: 0 | K100: 0 | L100: 0 | M100: 0 | N100: 0 | O100: 0 | P100: 0 | Q100: 0 | R100: 0 | S100: 0 | T100: 0 | U100: 0
A101: 6 | B101: EGW wages | C101: =VLOOKUP(B101,'Input - Weightings'!$A$8:$S$23,A101+7,FALSE) -> 0 | I101: 0 | J101: 0 | K101: 0 | L101: 0 | M101: 0 | N101: 0 | O101: 0.006171520956 | P101: 0.002740094916 | Q101: 0.0185004406 | R101: 0.02775098817 | S101: 0.02920227386 | T101: 0.02340450064 | U101: 0.02340450064
A102: =A101 -> 6 | B102: Labour | C102: =VLOOKUP(B102,'Input - Weightings'!$A$8:$S$23,A102+7,FALSE) -> 0 | I102: 0 | J102: 0 | K102: 0 | L102: 0 | M102: 0 | N102: 0 | O102: 0.005700190745 | P102: 0.01366605371 | Q102: 0.01894691773 | R102: 0.02360688354 | S102: 0.02607256954 | T102: 0.02111685756 | U102: 0.02111685756
A103: =A102 -> 6 | B103: Land & Easements | C103: =VLOOKUP(B103,'Input - Weightings'!$A$8:$S$23,A103+7,FALSE) -> 0 | I103: 0 | J103: 0 | K103: 0 | L103: 0 | M103: 0 | N103: 0 | O103: 0 | P103: 0 | Q103: 0 | R103: 0 | S103: 0 | T103: 0 | U103: 0
A104: 6 | B104: Materials | C104: =VLOOKUP(B104,'Input - Weightings'!$A$8:$S$23,A104+7,FALSE) -> 0 | I104: 0 | J104: 0 | K104: 0 | L104: 0 | M104: 0 | N104: 0 | O104: 0 | P104: 0 | Q104: 0 | R104: 0 | S104: 0 | T104: 0 | U104: 0
A105: 6 | B105: Oil | C105: =VLOOKUP(B105,'Input - Weightings'!$A$8:$S$23,A105+7,FALSE) -> 0 | I105: 0 | J105: 0 | K105: 0 | L105: 0 | M105: 0 | N105: 0 | O105: -0.001522285963 | P105: 0.04921486298 | Q105: 0.01322743641 | R105: 0.01835926827 | S105: 0.02359702398 | T105: 0.02170495918 | U105: 0.01945900361
A106: 6 | B106: Other | C106: =VLOOKUP(B106,'Input - Weightings'!$A$8:$S$23,A106+7,FALSE) -> 0.535 | I106: 0 | J106: 0 | K106: 0 | L106: 0 | M106: 0 | N106: 0 | O106: 0 | P106: 0 | Q106: 0 | R106: 0 | S106: 0 | T106: 0 | U106: 0
A107: 6 | B107: Producer's Margin | C107: =VLOOKUP(B107,'Input - Weightings'!$A$8:$S$23,A107+7,FALSE) -> 0.075 | I107: 0 | J107: 0 | K107: 0 | L107: 0 | M107: 0 | N107: 0 | O107: 0 | P107: 0 | Q107: 0 | R107: 0 | S107: 0 | T107: 0 | U107: 0
A108: 6 | B108: Property | C108: =VLOOKUP(B108,'Input - Weightings'!$A$8:$S$23,A108+7,FALSE) -> 0 | I108: 0 | J108: 0 | K108: 0 | L108: 0 | M108: 0 | N108: 0 | O108: 0 | P108: 0 | Q108: 0 | R108: 0 | S108: 0 | T108: 0 | U108: 0
A109: 6 | B109: Steel (Fabricated) | C109: =VLOOKUP(B109,'Input - Weightings'!$A$8:$S$23,A109+7,FALSE) -> 0 | I109: 0 | J109: 0 | K109: 0 | L109: 0 | M109: 0 | N109: 0 | O109: -0.1139665259 | P109: 0.07572346015 | Q109: 0.04958605376 | R109: -0.01307441445 | S109: -0.01398129563 | T109: -0.01672739855 | U109: -0.01927475359
A110: 6 | B110: Switchgear | C110: =VLOOKUP(B110,'Input - Weightings'!$A$8:$S$23,A110+7,FALSE) -> 0 | I110: 0 | J110: 0 | K110: 0 | L110: 0 | M110: 0 | N110: 0 | O110: 0 | P110: 0 | Q110: 0 | R110: 0 | S110: 0 | T110: 0 | U110: 0
A111: 6 | B111: Transport | C111: =VLOOKUP(B111,'Input - Weightings'!$A$8:$S$23,A111+7,FALSE) -> 0 | I111: 0 | J111: 0 | K111: 0 | L111: 0 | M111: 0 | N111: 0 | O111: 0 | P111: 0 | Q111: 0 | R111: 0 | S111: 0 | T111: 0 | U111: 0
B112: Total | C112: =SUM(C97:C111) -> 1 | I112: =SUMPRODUCT($C97:$C111,I97:I111) -> -0.03965033578 | J112: =SUMPRODUCT($C97:$C111,J97:J111) -> -0.03467870941 | K112: -0.02812951012 | L112: 0.01825500989 | M112: 0.02109201411 | N112: 0 | O112: -0.02814520856 | P112: 0.01396492013 | Q112: 0.007819099738 | R112: 0.006752580516 | S112: 0.007463756812 | T112: 0.006005066079 | U112: 0.004675201043
A114: 7 | B114: Secondary Protection
A115: =A114 -> 7 | B115: Aluminium | C115: =VLOOKUP(B115,'Input - Weightings'!$A$8:$S$23,A115+7,FALSE) -> 0 | I115: =I97 -> -0.1982516789 | J115: -0.1733935471 | K115: -0.1406475506 | L115: 0.09127504943 | M115: 0.1054600705 | N115: 0 | O115: -0.0700435742 | P115: 0.05550389022 | Q115: 0.03762979955 | R115: 0.04435113732 | S115: 0.04807295447 | T115: 0.04332297128 | U115: 0.0390229608
A116: 7 | B116: Construction costs | C116: =VLOOKUP(B116,'Input - Weightings'!$A$8:$S$23,A116+7,FALSE) -> 0 | I116: =I98 -> 0.01923326713 | J116: 0.01580687163 | K116: -0.03361040043 | L116: 0.007720515262 | M116: 0.006640017726 | N116: 0 | O116: -0.01394862028 | P116: 0.009210314203 | Q116: =Q98 -> 0.003959920741 | R116: 0.004100712688 | S116: 0.004371050303 | T116: 0.002271592951 | U116: 0.0005733524411
A117: 7 | B117: Copper | C117: =VLOOKUP(B117,'Input - Weightings'!$A$8:$S$23,A117+7,FALSE) -> 0 | I117: 0 | J117: 0 | K117: 0 | L117: 0 | M117: 0 | N117: 0 | O117: -0.07440259851 | P117: 0.01507443201 | Q117: 0.001542841203 | R117: -0.01114551025 | S117: -0.01132017937 | T117: -0.01399751672 | U117: -0.01647047956
A118: 7 | B118: Current transformer | C118: =VLOOKUP(B118,'Input - Weightings'!$A$8:$S$23,A118+7,FALSE) -> 0 | I118: 0 | J118: 0 | K118: 0 | L118: 0 | M118: 0 | N118: 0 | O118: 0 | P118: 0 | Q118: 0 | R118: 0 | S118: 0 | T118: 0 | U118: 0
A119: 7 | B119: EGW wages | C119: =VLOOKUP(B119,'Input - Weightings'!$A$8:$S$23,A119+7,FALSE) -> 0 | I119: 0 | J119: 0 | K119: 0 | L119: 0 | M119: 0 | N119: 0 | O119: 0.006171520956 | P119: 0.002740094916 | Q119: 0.0185004406 | R119: 0.02775098817 | S119: 0.02920227386 | T119: 0.02340450064 | U119: 0.02340450064
A120: =A119 -> 7 | B120: Labour | C120: =VLOOKUP(B120,'Input - Weightings'!$A$8:$S$23,A120+7,FALSE) -> 0 | I120: 0 | J120: 0 | K120: 0 | L120: 0 | M120: 0 | N120: 0 | O120: 0.005700190745 | P120: 0.01366605371 | Q120: 0.01894691773 | R120: 0.02360688354 | S120: 0.02607256954 | T120: 0.02111685756 | U120: 0.02111685756
A121: =A120 -> 7 | B121: Land & Easements | C121: =VLOOKUP(B121,'Input - Weightings'!$A$8:$S$23,A121+7,FALSE) -> 0 | I121: 0 | J121: 0 | K121: 0 | L121: 0 | M121: 0 | N121: 0 | O121: 0 | P121: 0 | Q121: 0 | R121: 0 | S121: 0 | T121: 0 | U121: 0
A122: 7 | B122: Materials | C122: =VLOOKUP(B122,'Input - Weightings'!$A$8:$S$23,A122+7,FALSE) -> 0 | I122: 0 | J122: 0 | K122: 0 | L122: 0 | M122: 0 | N122: 0 | O122: 0 | P122: 0 | Q122: 0 | R122: 0 | S122: 0 | T122: 0 | U122: 0
A123: 7 | B123: Oil | C123: =VLOOKUP(B123,'Input - Weightings'!$A$8:$S$23,A123+7,FALSE) -> 0 | I123: 0 | J123: 0 | K123: 0 | L123: 0 | M123: 0 | N123: 0 | O123: -0.001522285963 | P123: 0.04921486298 | Q123: 0.01322743641 | R123: 0.01835926827 | S123: 0.02359702398 | T123: 0.02170495918 | U123: 0.01945900361
A124: 7 | B124: Other | C124: =VLOOKUP(B124,'Input - Weightings'!$A$8:$S$23,A124+7,FALSE) -> 0.9 | I124: 0 | J124: 0 | K124: 0 | L124: 0 | M124: 0 | N124: 0 | O124: 0 | P124: 0 | Q124: 0 | R124: 0 | S124: 0 | T124: 0 | U124: 0
A125: 7 | B125: Producer's Margin | C125: =VLOOKUP(B125,'Input - Weightings'!$A$8:$S$23,A125+7,FALSE) -> 0.1 | I125: 0 | J125: 0 | K125: 0 | L125: 0 | M125: 0 | N125: 0 | O125: 0 | P125: 0 | Q125: 0 | R125: 0 | S125: 0 | T125: 0 | U125: 0
A126: 7 | B126: Property | C126: =VLOOKUP(B126,'Input - Weightings'!$A$8:$S$23,A126+7,FALSE) -> 0 | I126: 0 | J126: 0 | K126: 0 | L126: 0 | M126: 0 | N126: 0 | O126: 0 | P126: 0 | Q126: 0 | R126: 0 | S126: 0 | T126: 0 | U126: 0
A127: 7 | B127: Steel (Fabricated) | C127: =VLOOKUP(B127,'Input - Weightings'!$A$8:$S$23,A127+7,FALSE) -> 0 | I127: 0 | J127: 0 | K127: 0 | L127: 0 | M127: 0 | N127: 0 | O127: -0.1139665259 | P127: 0.07572346015 | Q127: 0.04958605376 | R127: -0.01307441445 | S127: -0.01398129563 | T127: -0.01672739855 | U127: -0.01927475359
A128: 7 | B128: Switchgear | C128: =VLOOKUP(B128,'Input - Weightings'!$A$8:$S$23,A128+7,FALSE) -> 0 | I128: 0 | J128: 0 | K128: 0 | L128: 0 | M128: 0 | N128: 0 | O128: 0 | P128: 0 | Q128: 0 | R128: 0 | S128: 0 | T128: 0 | U128: 0
A129: 7 | B129: Transport | C129: =VLOOKUP(B129,'Input - Weightings'!$A$8:$S$23,A129+7,FALSE) -> 0 | I129: 0 | J129: 0 | K129: 0 | L129: 0 | M129: 0 | N129: 0 | O129: 0 | P129: 0 | Q129: 0 | R129: 0 | S129: 0 | T129: 0 | U129: 0
B130: Total | C130: =SUM(C115:C129) -> 1 | I130: =SUMPRODUCT($C115:$C129,I115:I129) -> 0 | J130: 0 | K130: 0 | L130: 0 | M130: 0 | N130: 0 | O130: 0 | P130: 0 | Q130: 0 | R130: 0 | S130: 0 | T130: 0 | U130: 0
A132: 8 | B132: Transport
A133: =A132 -> 8 | B133: Aluminium | C133: =VLOOKUP(B133,'Input - Weightings'!$A$8:$S$23,A133+7,FALSE) -> 0 | I133: =I115 -> -0.1982516789 | J133: -0.1733935471 | K133: -0.1406475506 | L133: 0.09127504943 | M133: 0.1054600705 | N133: 0 | O133: -0.0700435742 | P133: 0.05550389022 | Q133: 0.03762979955 | R133: 0.04435113732 | S133: 0.04807295447 | T133: 0.04332297128 | U133: 0.0390229608
A134: 8 | B134: Construction costs | C134: =VLOOKUP(B134,'Input - Weightings'!$A$8:$S$23,A134+7,FALSE) -> 0 | I134: =I116 -> 0.01923326713 | J134: 0.01580687163 | K134: -0.03361040043 | L134: 0.007720515262 | M134: 0.006640017726 | N134: 0 | O134: -0.01394862028 | P134: 0.009210314203 | Q134: =Q116 -> 0.003959920741 | R134: 0.004100712688 | S134: 0.004371050303 | T134: 0.002271592951 | U134: 0.0005733524411
A135: 8 | B135: Copper | C135: =VLOOKUP(B135,'Input - Weightings'!$A$8:$S$23,A135+7,FALSE) -> 0 | I135: 0 | J135: 0 | K135: 0 | L135: 0 | M135: 0 | N135: 0 | O135: -0.07440259851 | P135: 0.01507443201 | Q135: 0.001542841203 | R135: -0.01114551025 | S135: -0.01132017937 | T135: -0.01399751672 | U135: -0.01647047956
A136: 8 | B136: Current transformer | C136: =VLOOKUP(B136,'Input - Weightings'!$A$8:$S$23,A136+7,FALSE) -> 0 | I136: 0 | J136: 0 | K136: 0 | L136: 0 | M136: 0 | N136: 0 | O136: 0 | P136: 0 | Q136: 0 | R136: 0 | S136: 0 | T136: 0 | U136: 0
A137: 8 | B137: EGW wages | C137: =VLOOKUP(B137,'Input - Weightings'!$A$8:$S$23,A137+7,FALSE) -> 0 | I137: 0 | J137: 0 | K137: 0 | L137: 0 | M137: 0 | N137: 0 | O137: 0.006171520956 | P137: 0.002740094916 | Q137: 0.0185004406 | R137: 0.02775098817 | S137: 0.02920227386 | T137: 0.02340450064 | U137: 0.02340450064
A138: =A137 -> 8 | B138: Labour | C138: =VLOOKUP(B138,'Input - Weightings'!$A$8:$S$23,A138+7,FALSE) -> 0.75 | I138: 0 | J138: 0 | K138: 0 | L138: 0 | M138: 0 | N138: 0 | O138: 0.005700190745 | P138: 0.01366605371 | Q138: 0.01894691773 | R138: 0.02360688354 | S138: 0.02607256954 | T138: 0.02111685756 | U138: 0.02111685756
A139: =A138 -> 8 | B139: Land & Easements | C139: =VLOOKUP(B139,'Input - Weightings'!$A$8:$S$23,A139+7,FALSE) -> 0 | I139: 0 | J139: 0 | K139: 0 | L139: 0 | M139: 0 | N139: 0 | O139: 0 | P139: 0 | Q139: 0 | R139: 0 | S139: 0 | T139: 0 | U139: 0
A140: 8 | B140: Materials | C140: =VLOOKUP(B140,'Input - Weightings'!$A$8:$S$23,A140+7,FALSE) -> 0 | I140: 0 | J140: 0 | K140: 0 | L140: 0 | M140: 0 | N140: 0 | O140: 0 | P140: 0 | Q140: 0 | R140: 0 | S140: 0 | T140: 0 | U140: 0
A141: 8 | B141: Oil | C141: =VLOOKUP(B141,'Input - Weightings'!$A$8:$S$23,A141+7,FALSE) -> 0.15 | I141: 0 | J141: 0 | K141: 0 | L141: 0 | M141: 0 | N141: 0 | O141: -0.001522285963 | P141: 0.04921486298 | Q141: 0.01322743641 | R141: 0.01835926827 | S141: 0.02359702398 | T141: 0.02170495918 | U141: 0.01945900361
A142: 8 | B142: Other | C142: =VLOOKUP(B142,'Input - Weightings'!$A$8:$S$23,A142+7,FALSE) -> 0.1 | I142: 0 | J142: 0 | K142: 0 | L142: 0 | M142: 0 | N142: 0 | O142: 0 | P142: 0 | Q142: 0 | R142: 0 | S142: 0 | T142: 0 | U142: 0
A143: 8 | B143: Producer's Margin | C143: =VLOOKUP(B143,'Input - Weightings'!$A$8:$S$23,A143+7,FALSE) -> 0 | I143: 0 | J143: 0 | K143: 0 | L143: 0 | M143: 0 | N143: 0 | O143: 0 | P143: 0 | Q143: 0 | R143: 0 | S143: 0 | T143: 0 | U143: 0
A144: 8 | B144: Property | C144: =VLOOKUP(B144,'Input - Weightings'!$A$8:$S$23,A144+7,FALSE) -> 0 | I144: 0 | J144: 0 | K144: 0 | L144: 0 | M144: 0 | N144: 0 | O144: 0 | P144: 0 | Q144: 0 | R144: 0 | S144: 0 | T144: 0 | U144: 0
A145: 8 | B145: Steel (Fabricated) | C145: =VLOOKUP(B145,'Input - Weightings'!$A$8:$S$23,A145+7,FALSE) -> 0 | I145: 0 | J145: 0 | K145: 0 | L145: 0 | M145: 0 | N145: 0 | O145: -0.1139665259 | P145: 0.07572346015 | Q145: 0.04958605376 | R145: -0.01307441445 | S145: -0.01398129563 | T145: -0.01672739855 | U145: -0.01927475359
A146: 8 | B146: Switchgear | C146: =VLOOKUP(B146,'Input - Weightings'!$A$8:$S$23,A146+7,FALSE) -> 0 | I146: 0 | J146: 0 | K146: 0 | L146: 0 | M146: 0 | N146: 0 | O146: 0 | P146: 0 | Q146: 0 | R146: 0 | S146: 0 | T146: 0 | U146: 0
A147: 8 | B147: Transport | C147: =VLOOKUP(B147,'Input - Weightings'!$A$8:$S$23,A147+7,FALSE) -> 0 | I147: 0 | J147: 0 | K147: 0 | L147: 0 | M147: 0 | N147: 0 | O147: 0 | P147: 0 | Q147: 0 | R147: 0 | S147: 0 | T147: 0 | U147: 0
B148: Total | C148: =SUM(C133:C147) -> 1 | I148: =SUMPRODUCT($C133:$C147,I133:I147) -> 0 | J148: 0 | K148: 0 | L148: 0 | M148: 0 | N148: 0 | O148: 0.004046800164 | P148: 0.01763176973 | Q148: 0.01619430376 | R148: 0.02045905289 | S148: 0.02309398075 | T148: 0.01909338705 | U148: 0.01875649371
A150: 9 | B150: Contract Cable Laying
A151: =A150 -> 9 | B151: Aluminium | C151: =VLOOKUP(B151,'Input - Weightings'!$A$8:$S$23,A151+7,FALSE) -> 0 | I151: =I133 -> -0.1982516789 | J151: -0.1733935471 | K151: -0.1406475506 | L151: 0.09127504943 | M151: 0.1054600705 | N151: 0 | O151: -0.0700435742 | P151: 0.05550389022 | Q151: 0.03762979955 | R151: 0.04435113732 | S151: 0.04807295447 | T151: 0.04332297128 | U151: 0.0390229608
A152: 9 | B152: Construction costs | C152: =VLOOKUP(B152,'Input - Weightings'!$A$8:$S$23,A152+7,FALSE) -> 0 | I152: =I134 -> 0.01923326713 | J152: 0.01580687163 | K152: -0.03361040043 | L152: 0.007720515262 | M152: 0.006640017726 | N152: 0 | O152: -0.01394862028 | P152: 0.009210314203 | Q152: =Q134 -> 0.003959920741 | R152: 0.004100712688 | S152: 0.004371050303 | T152: 0.002271592951 | U152: 0.0005733524411
A153: 9 | B153: Copper | C153: =VLOOKUP(B153,'Input - Weightings'!$A$8:$S$23,A153+7,FALSE) -> 0 | I153: 0 | J153: 0 | K153: 0 | L153: 0 | M153: 0 | N153: 0 | O153: -0.07440259851 | P153: 0.01507443201 | Q153: 0.001542841203 | R153: -0.01114551025 | S153: -0.01132017937 | T153: -0.01399751672 | U153: -0.01647047956
A154: 9 | B154: Current transformer | C154: =VLOOKUP(B154,'Input - Weightings'!$A$8:$S$23,A154+7,FALSE) -> 0 | I154: 0 | J154: 0 | K154: 0 | L154: 0 | M154: 0 | N154: 0 | O154: 0 | P154: 0 | Q154: 0 | R154: 0 | S154: 0 | T154: 0 | U154: 0
A155: 9 | B155: EGW wages | C155: =VLOOKUP(B155,'Input - Weightings'!$A$8:$S$23,A155+7,FALSE) -> 0 | I155: 0 | J155: 0 | K155: 0 | L155: 0 | M155: 0 | N155: 0 | O155: 0.006171520956 | P155: 0.002740094916 | Q155: 0.0185004406 | R155: 0.02775098817 | S155: 0.02920227386 | T155: 0.02340450064 | U155: 0.02340450064
A156: =A155 -> 9 | B156: Labour | C156: =VLOOKUP(B156,'Input - Weightings'!$A$8:$S$23,A156+7,FALSE) -> 0.9 | I156: 0 | J156: 0 | K156: 0 | L156: 0 | M156: 0 | N156: 0 | O156: 0.005700190745 | P156: 0.01366605371 | Q156: 0.01894691773 | R156: 0.02360688354 | S156: 0.02607256954 | T156: 0.02111685756 | U156: 0.02111685756
A157: =A156 -> 9 | B157: Land & Easements | C157: =VLOOKUP(B157,'Input - Weightings'!$A$8:$S$23,A157+7,FALSE) -> 0 | I157: 0 | J157: 0 | K157: 0 | L157: 0 | M157: 0 | N157: 0 | O157: 0 | P157: 0 | Q157: 0 | R157: 0 | S157: 0 | T157: 0 | U157: 0
A158: 9 | B158: Materials | C158: =VLOOKUP(B158,'Input - Weightings'!$A$8:$S$23,A158+7,FALSE) -> 0 | I158: 0 | J158: 0 | K158: 0 | L158: 0 | M158: 0 | N158: 0 | O158: 0 | P158: 0 | Q158: 0 | R158: 0 | S158: 0 | T158: 0 | U158: 0
A159: 9 | B159: Oil | C159: =VLOOKUP(B159,'Input - Weightings'!$A$8:$S$23,A159+7,FALSE) -> 0 | I159: 0 | J159: 0 | K159: 0 | L159: 0 | M159: 0 | N159: 0 | O159: -0.001522285963 | P159: 0.04921486298 | Q159: 0.01322743641 | R159: 0.01835926827 | S159: 0.02359702398 | T159: 0.02170495918 | U159: 0.01945900361
A160: 9 | B160: Other | C160: =VLOOKUP(B160,'Input - Weightings'!$A$8:$S$23,A160+7,FALSE) -> 0.1 | I160: 0 | J160: 0 | K160: 0 | L160: 0 | M160: 0 | N160: 0 | O160: 0 | P160: 0 | Q160: 0 | R160: 0 | S160: 0 | T160: 0 | U160: 0
A161: 9 | B161: Producer's Margin | C161: =VLOOKUP(B161,'Input - Weightings'!$A$8:$S$23,A161+7,FALSE) -> 0 | I161: 0 | J161: 0 | K161: 0 | L161: 0 | M161: 0 | N161: 0 | O161: 0 | P161: 0 | Q161: 0 | R161: 0 | S161: 0 | T161: 0 | U161: 0
A162: 9 | B162: Property | C162: =VLOOKUP(B162,'Input - Weightings'!$A$8:$S$23,A162+7,FALSE) -> 0 | I162: 0 | J162: 0 | K162: 0 | L162: 0 | M162: 0 | N162: 0 | O162: 0 | P162: 0 | Q162: 0 | R162: 0 | S162: 0 | T162: 0 | U162: 0
A163: 9 | B163: Steel (Fabricated) | C163: =VLOOKUP(B163,'Input - Weightings'!$A$8:$S$23,A163+7,FALSE) -> 0 | I163: 0 | J163: 0 | K163: 0 | L163: 0 | M163: 0 | N163: 0 | O163: -0.1139665259 | P163: 0.07572346015 | Q163: 0.04958605376 | R163: -0.01307441445 | S163: -0.01398129563 | T163: -0.01672739855 | U163: -0.01927475359
A164: 9 | B164: Switchgear | C164: =VLOOKUP(B164,'Input - Weightings'!$A$8:$S$23,A164+7,FALSE) -> 0 | I164: 0 | J164: 0 | K164: 0 | L164: 0 | M164: 0 | N164: 0 | O164: 0 | P164: 0 | Q164: 0 | R164: 0 | S164: 0 | T164: 0 | U164: 0
A165: 9 | B165: Transport | C165: =VLOOKUP(B165,'Input - Weightings'!$A$8:$S$23,A165+7,FALSE) -> 0 | I165: 0 | J165: 0 | K165: 0 | L165: 0 | M165: 0 | N165: 0 | O165: 0 | P165: 0 | Q165: 0 | R165: 0 | S165: 0 | T165: 0 | U165: 0
B166: Total | C166: =SUM(C151:C165) -> 1 | I166: =SUMPRODUCT($C151:$C165,I151:I165) -> 0 | J166: 0 | K166: 0 | L166: 0 | M166: 0 | N166: 0 | O166: 0.00513017167 | P166: 0.01229944834 | Q166: 0.01705222596 | R166: 0.02124619518 | S166: 0.02346531259 | T166: 0.01900517181 | U166: 0.01900517181
A168: 10 | B168: Poles (Timber)
A169: =A168 -> 10 | B169: Aluminium | C169: Historic Trends
A170: 10 | B170: Construction costs
A171: 10 | B171: Copper
A172: 10 | B172: Current transformer
A173: 10 | B173: EGW wages
A174: =A173 -> 10 | B174: Labour
A175: =A174 -> 10 | B175: Land & Easements
A176: 10 | B176: Materials
A177: 10 | B177: Oil
A178: 10 | B178: Other
A179: 10 | B179: Producer's Margin
A180: 10 | B180: Property
A181: 10 | B181: Steel (Fabricated)
A182: 10 | B182: Switchgear
A183: 10 | B183: Transport
B184: Total | I184: ='Input - Cost escalators - CY'!H38 -> 0.08235028047 | J184: ='Input - Cost escalators - CY'!I38 -> 0.05 | K184: ='Input - Cost escalators - CY'!J38 -> 0.05 | L184: ='Input - Cost escalators - CY'!K38 -> 0 | M184: ='Input - Cost escalators - CY'!L38 -> 0 | N184: ='Input - Cost escalators - CY'!M38 -> 0 | O184: ='Input - Cost escalators - CY'!N38 -> 0 | P184: ='Input - Cost escalators - CY'!O38 -> 0 | Q184: ='Input - Cost escalators - CY'!P38 -> 0 | R184: ='Input - Cost escalators - CY'!Q38 -> 0 | S184: ='Input - Cost escalators - CY'!R38 -> 0 | T184: ='Input - Cost escalators - CY'!S38 -> 0 | U184: ='Input - Cost escalators - CY'!T38 -> 0
A186: 11 | B186: Poles (Concrete)
A187: =A186 -> 11 | B187: Aluminium | C187: Historic Trends
A188: 11 | B188: Construction costs
A189: 11 | B189: Copper
A190: 11 | B190: Current transformer
A191: 11 | B191: EGW wages
A192: =A191 -> 11 | B192: Labour
A193: =A192 -> 11 | B193: Land & Easements
A194: 11 | B194: Materials
A195: 11 | B195: Oil
A196: 11 | B196: Other
A197: 11 | B197: Producer's Margin
A198: 11 | B198: Property
A199: 11 | B199: Steel (Fabricated)
A200: 11 | B200: Switchgear
A201: 11 | B201: Transport
B202: Total | I202: ='Input - Cost escalators - CY'!H37 -> 0 | J202: ='Input - Cost escalators - CY'!I37 -> 0 | K202: ='Input - Cost escalators - CY'!J37 -> 0 | L202: ='Input - Cost escalators - CY'!K37 -> 0 | M202: ='Input - Cost escalators - CY'!L37 -> 0 | N202: ='Input - Cost escalators - CY'!M37 -> 0 | O202: ='Input - Cost escalators - CY'!N37 -> 0 | P202: ='Input - Cost escalators - CY'!O37 -> 0 | Q202: ='Input - Cost escalators - CY'!P37 -> 0 | R202: ='Input - Cost escalators - CY'!Q37 -> 0 | S202: ='Input - Cost escalators - CY'!R37 -> 0 | T202: ='Input - Cost escalators - CY'!S37 -> 0 | U202: ='Input - Cost escalators - CY'!T37 -> 0
A204: 12 | B204: Streetlighting
A205: =A204 -> 12 | B205: Aluminium | C205: =VLOOKUP(B205,'Input - Weightings'!$A$8:$S$23,A205+7,FALSE) -> 0 | I205: =I7 -> -0.1982516789 | J205: -0.1733935471 | K205: -0.1406475506 | L205: 0.09127504943 | M205: 0.1054600705 | N205: 0 | O205: -0.0700435742 | P205: 0.05550389022 | Q205: 0.03762979955 | R205: 0.04435113732 | S205: 0.04807295447 | T205: 0.04332297128 | U205: 0.0390229608
A206: 12 | B206: Construction costs | C206: =VLOOKUP(B206,'Input - Weightings'!$A$8:$S$23,A206+7,FALSE) -> 0 | I206: =I8 -> 0.01923326713 | J206: 0.01580687163 | K206: -0.03361040043 | L206: 0.007720515262 | M206: 0.006640017726 | N206: 0 | O206: -0.01394862028 | P206: 0.009210314203 | Q206: =Q8 -> 0.003959920741 | R206: 0.004100712688 | S206: 0.004371050303 | T206: 0.002271592951 | U206: 0.0005733524411
A207: 12 | B207: Copper | C207: =VLOOKUP(B207,'Input - Weightings'!$A$8:$S$23,A207+7,FALSE) -> 0 | I207: 0 | J207: 0 | K207: 0 | L207: 0 | M207: 0 | N207: 0 | O207: -0.07440259851 | P207: 0.01507443201 | Q207: 0.001542841203 | R207: -0.01114551025 | S207: -0.01132017937 | T207: -0.01399751672 | U207: -0.01647047956
A208: 12 | B208: Current transformer | C208: =VLOOKUP(B208,'Input - Weightings'!$A$8:$S$23,A208+7,FALSE) -> 0 | I208: 0 | J208: 0 | K208: 0 | L208: 0 | M208: 0 | N208: 0 | O208: 0 | P208: 0 | Q208: 0 | R208: 0 | S208: 0 | T208: 0 | U208: 0
A209: 12 | B209: EGW wages | C209: =VLOOKUP(B209,'Input - Weightings'!$A$8:$S$23,A209+7,FALSE) -> 0 | I209: 0 | J209: 0 | K209: 0 | L209: 0 | M209: 0 | N209: 0 | O209: 0.006171520956 | P209: 0.002740094916 | Q209: 0.0185004406 | R209: 0.02775098817 | S209: 0.02920227386 | T209: 0.02340450064 | U209: 0.02340450064
A210: =A209 -> 12 | B210: Labour | C210: =VLOOKUP(B210,'Input - Weightings'!$A$8:$S$23,A210+7,FALSE) -> 0.54 | I210: 0 | J210: 0 | K210: 0 | L210: 0 | M210: 0 | N210: 0 | O210: 0.005700190745 | P210: 0.01366605371 | Q210: 0.01894691773 | R210: 0.02360688354 | S210: 0.02607256954 | T210: 0.02111685756 | U210: 0.02111685756
A211: =A210 -> 12 | B211: Land & Easements | C211: =VLOOKUP(B211,'Input - Weightings'!$A$8:$S$23,A211+7,FALSE) -> 0 | I211: 0 | J211: 0 | K211: 0 | L211: 0 | M211: 0 | N211: 0 | O211: 0 | P211: 0 | Q211: 0 | R211: 0 | S211: 0 | T211: 0 | U211: 0
A212: 12 | B212: Materials | C212: =VLOOKUP(B212,'Input - Weightings'!$A$8:$S$23,A212+7,FALSE) -> 0.32 | I212: 0 | J212: 0 | K212: 0 | L212: 0 | M212: 0 | N212: 0 | O212: 0 | P212: 0 | Q212: 0 | R212: 0 | S212: 0 | T212: 0 | U212: 0
A213: 12 | B213: Oil | C213: =VLOOKUP(B213,'Input - Weightings'!$A$8:$S$23,A213+7,FALSE) -> 0 | I213: 0 | J213: 0 | K213: 0 | L213: 0 | M213: 0 | N213: 0 | O213: -0.001522285963 | P213: 0.04921486298 | Q213: 0.01322743641 | R213: 0.01835926827 | S213: 0.02359702398 | T213: 0.02170495918 | U213: 0.01945900361
... 7 more rows

Sheet Project Analysis - CY
A1: Project Escalator Analysis
A2: Calendar Year
B4: Calendar year | C4: Weight | E4: 02/03 | F4: 03/04 | G4: 04/05 | H4: 05/06 | I4: 2007 | J4: 2008 | K4: 2009 | L4: 2010 | M4: 2011 | N4: 2012 | O4: 2013 | P4: 2014 | Q4: 2015 | R4: 2016 | S4: 2017 | T4: 2018 | U4: 2019 | W4: Source
A5: 1 | B5: Substations
A6: =A5 -> 1 | B6: Civil Construction | C6: =VLOOKUP(B6,'Input - Weightings'!$A$31:$S$53,A6+7,FALSE) -> 0.2515252903 | I6: ='Equipment Analysis - CY'!I8 -> 0.01923326713 | J6: ='Equipment Analysis - CY'!J8 -> 0.01580687163 | K6: ='Equipment Analysis - CY'!K8 -> -0.03361040043 | L6: ='Equipment Analysis - CY'!L8 -> 0.007720515262 | M6: ='Equipment Analysis - CY'!M8 -> 0.006640017726 | N6: ='Equipment Analysis - CY'!N8 -> 0 | O6: ='Equipment Analysis - CY'!O8 -> -0.01394862028 | P6: ='Equipment Analysis - CY'!P8 -> 0.009210314203 | Q6: ='Equipment Analysis - CY'!Q8 -> 0.003959920741 | R6: ='Equipment Analysis - CY'!R8 -> 0.004100712688 | S6: ='Equipment Analysis - CY'!S8 -> 0.004371050303 | T6: ='Equipment Analysis - CY'!T8 -> 0.002271592951 | U6: ='Equipment Analysis - CY'!U8 -> 0.0005733524411 | W6: Construction costs | X6: Equipment
A7: =A6 -> 1 | B7: Contracted Services (CCL) | C7: =VLOOKUP(B7,'Input - Weightings'!$A$31:$S$53,A7+7,FALSE) -> 0 | I7: ='Equipment Analysis - CY'!I166 -> 0 | J7: ='Equipment Analysis - CY'!J166 -> 0 | K7: ='Equipment Analysis - CY'!K166 -> 0 | L7: ='Equipment Analysis - CY'!L166 -> 0 | M7: ='Equipment Analysis - CY'!M166 -> 0 | N7: ='Equipment Analysis - CY'!N166 -> 0 | O7: ='Equipment Analysis - CY'!O166 -> 0.00513017167 | P7: ='Equipment Analysis - CY'!P166 -> 0.01229944834 | Q7: ='Equipment Analysis - CY'!Q166 -> 0.01705222596 | R7: ='Equipment Analysis - CY'!R166 -> 0.02124619518 | S7: ='Equipment Analysis - CY'!S166 -> 0.02346531259 | T7: ='Equipment Analysis - CY'!T166 -> 0.01900517181 | U7: ='Equipment Analysis - CY'!U166 -> 0.01900517181 | W7: Contract cable laying | X7: Equipment
A8: 1 | B8: Labour (EGW) | C8: =VLOOKUP(B8,'Input - Weightings'!$A$31:$S$53,A8+7,FALSE) -> 0.293564259 | I8: ='Input - Cost escalators - CY'!H12 -> 0 | J8: ='Input - Cost escalators - CY'!I12 -> 0 | K8: ='Input - Cost escalators - CY'!J12 -> 0 | L8: ='Input - Cost escalators - CY'!K12 -> 0 | M8: ='Input - Cost escalators - CY'!L12 -> 0 | N8: ='Input - Cost escalators - CY'!M12 -> 0 | O8: ='Input - Cost escalators - CY'!N12 -> 0.006171520956 | P8: ='Input - Cost escalators - CY'!O12 -> 0.002740094916 | Q8: ='Input - Cost escalators - CY'!P12 -> 0.0185004406 | R8: ='Input - Cost escalators - CY'!Q12 -> 0.02775098817 | S8: ='Input - Cost escalators - CY'!R12 -> 0.02920227386 | T8: ='Input - Cost escalators - CY'!S12 -> 0.02340450064 | U8: ='Input - Cost escalators - CY'!T12 -> 0.02340450064 | W8: EGW wages | X8: Input cost
A9: 1 | B9: Labour (General) | C9: =VLOOKUP(B9,'Input - Weightings'!$A$31:$S$53,A9+7,FALSE) -> 0 | I9: ='Input - Cost escalators - CY'!H13 -> 0 | J9: ='Input - Cost escalators - CY'!I13 -> 0 | K9: ='Input - Cost escalators - CY'!J13 -> 0 | L9: ='Input - Cost escalators - CY'!K13 -> 0 | M9: ='Input - Cost escalators - CY'!L13 -> 0 | N9: ='Input - Cost escalators - CY'!M13 -> 0 | O9: ='Input - Cost escalators - CY'!N13 -> 0.005700190745 | P9: ='Input - Cost escalators - CY'!O13 -> 0.01366605371 | Q9: ='Input - Cost escalators - CY'!P13 -> 0.01894691773 | R9: ='Input - Cost escalators - CY'!Q13 -> 0.02360688354 | S9: ='Input - Cost escalators - CY'!R13 -> 0.02607256954 | T9: ='Input - Cost escalators - CY'!S13 -> 0.02111685756 | U9: ='Input - Cost escalators - CY'!T13 -> 0.02111685756 | W9: Labour | X9: Input cost
A10: 1 | B10: Materials and Equipment | C10: =VLOOKUP(B10,'Input - Weightings'!$A$31:$S$53,A10+7,FALSE) -> 0.4549104507 | I10: =I26 -> 0 | J10: =J26 -> 0 | K10: 0 | L10: 0 | M10: 0 | N10: 0 | O10: -0.02404727404 | P10: 0.01231539617 | Q10: 0.006861793606 | R10: -0.002884235664 | S10: -0.002971193325 | T10: -0.003676699274 | U10: -0.004334900747 | W10: Calculated below
A11: 1 | B11: Transport | C11: =VLOOKUP(B11,'Input - Weightings'!$A$31:$S$53,A11+7,FALSE) -> 0 | I11: ='Equipment Analysis - CY'!I148 -> 0 | J11: ='Equipment Analysis - CY'!J148 -> 0 | K11: ='Equipment Analysis - CY'!K148 -> 0 | L11: ='Equipment Analysis - CY'!L148 -> 0 | M11: ='Equipment Analysis - CY'!M148 -> 0 | N11: ='Equipment Analysis - CY'!N148 -> 0 | O11: ='Equipment Analysis - CY'!O148 -> 0.004046800164 | P11: ='Equipment Analysis - CY'!P148 -> 0.01763176973 | Q11: ='Equipment Analysis - CY'!Q148 -> 0.01619430376 | R11: ='Equipment Analysis - CY'!R148 -> 0.02045905289 | S11: ='Equipment Analysis - CY'!S148 -> 0.02309398075 | T11: ='Equipment Analysis - CY'!T148 -> 0.01909338705 | U11: ='Equipment Analysis - CY'!U148 -> 0.01875649371 | W11: Transport | X11: Equipment
A12: 1 | B12: Property | C12: =VLOOKUP(B12,'Input - Weightings'!$A$31:$S$53,A12+7,FALSE) -> 0 | I12: ='Input - Cost escalators - CY'!H19 -> 0 | J12: ='Input - Cost escalators - CY'!I19 -> 0 | K12: ='Input - Cost escalators - CY'!J19 -> 0 | L12: ='Input - Cost escalators - CY'!K19 -> 0 | M12: ='Input - Cost escalators - CY'!L19 -> 0 | N12: ='Input - Cost escalators - CY'!M19 -> 0 | O12: ='Input - Cost escalators - CY'!N19 -> 0 | P12: ='Input - Cost escalators - CY'!O19 -> 0 | Q12: ='Input - Cost escalators - CY'!P19 -> 0 | R12: ='Input - Cost escalators - CY'!Q19 -> 0 | S12: ='Input - Cost escalators - CY'!R19 -> 0 | T12: ='Input - Cost escalators - CY'!S19 -> 0 | U12: ='Input - Cost escalators - CY'!T19 -> 0 | W12: Property | X12: Input cost
A14: =A5 -> 1 | B14: Materials & Equipment
A15: =A12 -> 1 | B15: Cable (Al) | C15: =VLOOKUP(B15,'Input - Weightings'!$A$42:$S$53,A15+7,FALSE)/$C$10 -> 0 | I15: ='Equipment Analysis - CY'!I112 -> -0.03965033578 | J15: ='Equipment Analysis - CY'!J112 -> -0.03467870941 | K15: ='Equipment Analysis - CY'!K112 -> -0.02812951012 | L15: ='Equipment Analysis - CY'!L112 -> 0.01825500989 | M15: ='Equipment Analysis - CY'!M112 -> 0.02109201411 | N15: ='Equipment Analysis - CY'!N112 -> 0 | O15: ='Equipment Analysis - CY'!O112 -> -0.02814520856 | P15: ='Equipment Analysis - CY'!P112 -> 0.01396492013 | Q15: ='Equipment Analysis - CY'!Q112 -> 0.007819099738 | R15: ='Equipment Analysis - CY'!R112 -> 0.006752580516 | S15: ='Equipment Analysis - CY'!S112 -> 0.007463756812 | T15: ='Equipment Analysis - CY'!T112 -> 0.006005066079 | U15: ='Equipment Analysis - CY'!U112 -> 0.004675201043 | W15: Cable (Al) | X15: Equipment
A16: =A15 -> 1 | B16: Cable (Copper) | C16: =VLOOKUP(B16,'Input - Weightings'!$A$42:$S$53,A16+7,FALSE)/$C$10 -> 0.09955005624 | I16: ='Equipment Analysis - CY'!I94 -> 0 | J16: ='Equipment Analysis - CY'!J94 -> 0 | K16: ='Equipment Analysis - CY'!K94 -> 0 | L16: ='Equipment Analysis - CY'!L94 -> 0 | M16: ='Equipment Analysis - CY'!M94 -> 0 | N16: ='Equipment Analysis - CY'!N94 -> 0 | O16: ='Equipment Analysis - CY'!O94 -> -0.04092142918 | P16: ='Equipment Analysis - CY'!P94 -> 0.008290937606 | Q16: ='Equipment Analysis - CY'!Q94 -> 0.0008485626619 | R16: ='Equipment Analysis - CY'!R94 -> -0.006130030637 | S16: ='Equipment Analysis - CY'!S94 -> -0.006226098655 | T16: ='Equipment Analysis - CY'!T94 -> -0.007698634196 | U16: ='Equipment Analysis - CY'!U94 -> -0.009058763759 | W16: Cable (Cu) | X16: Equipment
A17: 1 | B17: Distribution Substation | C17: =VLOOKUP(B17,'Input - Weightings'!$A$42:$S$53,A17+7,FALSE)/$C$10 -> 0 | I17: ='Equipment Analysis - CY'!I76 -> -0.005947550367 | J17: ='Equipment Analysis - CY'!J76 -> -0.005201806412 | K17: ='Equipment Analysis - CY'!K76 -> -0.004219426518 | L17: ='Equipment Analysis - CY'!L76 -> 0.002738251483 | M17: ='Equipment Analysis - CY'!M76 -> 0.003163802116 | N17: ='Equipment Analysis - CY'!N76 -> 0 | O17: ='Equipment Analysis - CY'!O76 -> -0.04148264003 | P17: ='Equipment Analysis - CY'!P76 -> 0.02535942601 | Q17: ='Equipment Analysis - CY'!Q76 -> 0.01543182189 | R17: ='Equipment Analysis - CY'!R76 -> -0.003077667587 | S17: ='Equipment Analysis - CY'!S76 -> -0.003132651601 | T17: ='Equipment Analysis - CY'!T76 -> -0.004349634943 | U17: ='Equipment Analysis - CY'!U76 -> -0.005484110066 | W17: Distribution substation | X17: Equipment
A18: 1 | B18: Distribution Transformers | C18: =VLOOKUP(B18,'Input - Weightings'!$A$42:$S$53,A18+7,FALSE)/$C$10 -> 0 | I18: ='Equipment Analysis - CY'!I40 -> -0.02973775184 | J18: ='Equipment Analysis - CY'!J40 -> -0.02600903206 | K18: ='Equipment Analysis - CY'!K40 -> -0.02109713259 | L18: ='Equipment Analysis - CY'!L40 -> 0.01369125741 | M18: ='Equipment Analysis - CY'!M40 -> 0.01581901058 | N18: ='Equipment Analysis - CY'!N40 -> 0 | O18: ='Equipment Analysis - CY'!O40 -> -0.03487923043 | P18: ='Equipment Analysis - CY'!P40 -> 0.02672465598 | Q18: ='Equipment Analysis - CY'!Q40 -> 0.01638618369 | R18: ='Equipment Analysis - CY'!R40 -> 0.004916433598 | S18: ='Equipment Analysis - CY'!S40 -> 0.005604101894 | T18: ='Equipment Analysis - CY'!T40 -> 0.004175313199 | U18: ='Equipment Analysis - CY'!U40 -> 0.002836624027 | W18: Distribution transformer | X18: Equipment
A19: 1 | B19: Fabricated Steel | C19: =VLOOKUP(B19,'Input - Weightings'!$A$42:$S$53,A19+7,FALSE)/$C$10 -> 0.04977502812 | I19: ='Input - Cost escalators - CY'!H20 -> 0 | J19: ='Input - Cost escalators - CY'!I20 -> 0 | K19: ='Input - Cost escalators - CY'!J20 -> 0 | L19: ='Input - Cost escalators - CY'!K20 -> 0 | M19: ='Input - Cost escalators - CY'!L20 -> 0 | N19: ='Input - Cost escalators - CY'!M20 -> 0 | O19: ='Input - Cost escalators - CY'!N20 -> -0.1139665259 | P19: ='Input - Cost escalators - CY'!O20 -> 0.07572346015 | Q19: ='Input - Cost escalators - CY'!P20 -> 0.04958605376 | R19: ='Input - Cost escalators - CY'!Q20 -> -0.01307441445 | S19: ='Input - Cost escalators - CY'!R20 -> -0.01398129563 | T19: ='Input - Cost escalators - CY'!S20 -> -0.01672739855 | U19: ='Input - Cost escalators - CY'!T20 -> -0.01927475359 | W19: Steel | X19: Input cost
A20: 1 | B20: Other | C20: =VLOOKUP(B20,'Input - Weightings'!$A$42:$S$53,A20+7,FALSE)/$C$10 -> 0.2121874189 | I20: ='Input - Cost escalators - CY'!H17 -> 0 | J20: ='Input - Cost escalators - CY'!I17 -> 0 | K20: ='Input - Cost escalators - CY'!J17 -> 0 | L20: ='Input - Cost escalators - CY'!K17 -> 0 | M20: ='Input - Cost escalators - CY'!L17 -> 0 | N20: ='Input - Cost escalators - CY'!M17 -> 0 | O20: ='Input - Cost escalators - CY'!N17 -> 0 | P20: ='Input - Cost escalators - CY'!O17 -> 0 | Q20: ='Input - Cost escalators - CY'!P17 -> 0 | R20: ='Input - Cost escalators - CY'!Q17 -> 0 | S20: ='Input - Cost escalators - CY'!R17 -> 0 | T20: ='Input - Cost escalators - CY'!S17 -> 0 | U20: ='Input - Cost escalators - CY'!T17 -> 0 | W20: Other | X20: Input cost
A21: 1 | B21: Pole (Concrete) | C21: =VLOOKUP(B21,'Input - Weightings'!$A$42:$S$53,A21+7,FALSE)/$C$10 -> 0 | I21: ='Equipment Analysis - CY'!I202 -> 0 | J21: ='Equipment Analysis - CY'!J202 -> 0 | K21: ='Equipment Analysis - CY'!K202 -> 0 | L21: ='Equipment Analysis - CY'!L202 -> 0 | M21: ='Equipment Analysis - CY'!M202 -> 0 | N21: ='Equipment Analysis - CY'!N202 -> 0 | O21: ='Equipment Analysis - CY'!O202 -> 0 | P21: ='Equipment Analysis - CY'!P202 -> 0 | Q21: ='Equipment Analysis - CY'!Q202 -> 0 | R21: ='Equipment Analysis - CY'!R202 -> 0 | S21: ='Equipment Analysis - CY'!S202 -> 0 | T21: ='Equipment Analysis - CY'!T202 -> 0 | U21: ='Equipment Analysis - CY'!U202 -> 0 | W21: Poles (Concrete) | X21: Equipment
A22: 1 | B22: Pole (Timber) | C22: =VLOOKUP(B22,'Input - Weightings'!$A$42:$S$53,A22+7,FALSE)/$C$10 -> 0 | I22: ='Equipment Analysis - CY'!I184 -> 0.08235028047 | J22: ='Equipment Analysis - CY'!J184 -> 0.05 | K22: ='Equipment Analysis - CY'!K184 -> 0.05 | L22: ='Equipment Analysis - CY'!L184 -> 0 | M22: ='Equipment Analysis - CY'!M184 -> 0 | N22: ='Equipment Analysis - CY'!N184 -> 0 | O22: ='Equipment Analysis - CY'!O184 -> 0 | P22: ='Equipment Analysis - CY'!P184 -> 0 | Q22: ='Equipment Analysis - CY'!Q184 -> 0 | R22: ='Equipment Analysis - CY'!R184 -> 0 | S22: ='Equipment Analysis - CY'!S184 -> 0 | T22: ='Equipment Analysis - CY'!T184 -> 0 | U22: ='Equipment Analysis - CY'!U184 -> 0 | W22: Poles (Timber) | X22: Equipment
A23: 1 | B23: Secondary Protection | C23: =VLOOKUP(B23,'Input - Weightings'!$A$42:$S$53,A23+7,FALSE)/$C$10 -> 0.0499264515 | I23: ='Equipment Analysis - CY'!I130 -> 0 | J23: ='Equipment Analysis - CY'!J130 -> 0 | K23: ='Equipment Analysis - CY'!K130 -> 0 | L23: ='Equipment Analysis - CY'!L130 -> 0 | M23: ='Equipment Analysis - CY'!M130 -> 0 | N23: ='Equipment Analysis - CY'!N130 -> 0 | O23: ='Equipment Analysis - CY'!O130 -> 0 | P23: ='Equipment Analysis - CY'!P130 -> 0 | Q23: ='Equipment Analysis - CY'!Q130 -> 0 | R23: ='Equipment Analysis - CY'!R130 -> 0 | S23: ='Equipment Analysis - CY'!S130 -> 0 | T23: ='Equipment Analysis - CY'!T130 -> 0 | U23: ='Equipment Analysis - CY'!U130 -> 0 | W23: Secondary protection | X23: Equipment
A24: 1 | B24: Switchgear & Other Electrical Equipment | C24: =VLOOKUP(B24,'Input - Weightings'!$A$42:$S$53,A24+7,FALSE)/$C$10 -> 0.2952323267 | I24: ='Equipment Analysis - CY'!I58 -> 0 | J24: ='Equipment Analysis - CY'!J58 -> 0 | K24: ='Equipment Analysis - CY'!K58 -> 0 | L24: ='Equipment Analysis - CY'!L58 -> 0 | M24: ='Equipment Analysis - CY'!M58 -> 0 | N24: ='Equipment Analysis - CY'!N58 -> 0 | O24: ='Equipment Analysis - CY'!O58 -> -0.02514167191 | P24: ='Equipment Analysis - CY'!P58 -> 0.01240986496 | Q24: ='Equipment Analysis - CY'!Q58 -> 0.007085316624 | R24: ='Equipment Analysis - CY'!R58 -> -0.00321053239 | S24: ='Equipment Analysis - CY'!S58 -> -0.003358422515 | T24: ='Equipment Analysis - CY'!T58 -> -0.004074797988 | U24: ='Equipment Analysis - CY'!U58 -> -0.004738000695 | W24: Switchgear | X24: Equipment
A25: 1 | B25: Transformers | C25: =VLOOKUP(B25,'Input - Weightings'!$A$42:$S$53,A25+7,FALSE)/$C$10 -> 0.2933287185 | I25: ='Equipment Analysis - CY'!I22 -> 0 | J25: ='Equipment Analysis - CY'!J22 -> 0 | K25: ='Equipment Analysis - CY'!K22 -> 0 | L25: ='Equipment Analysis - CY'!L22 -> 0 | M25: ='Equipment Analysis - CY'!M22 -> 0 | N25: ='Equipment Analysis - CY'!N22 -> 0 | O25: ='Equipment Analysis - CY'!O22 -> -0.02344885348 | P25: ='Equipment Analysis - CY'!P22 -> 0.01383124783 | Q25: ='Equipment Analysis - CY'!Q22 -> 0.007559291922 | R25: ='Equipment Analysis - CY'!R22 -> -0.002302394659 | S25: ='Equipment Analysis - CY'!S22 -> -0.002263503487 | T25: ='Equipment Analysis - CY'!T22 -> -0.002981913897 | U25: ='Equipment Analysis - CY'!U22 -> -0.003664448333 | W25: Transformers | X25: Equipment
B26: Subtotal | C26: =SUM(C15:C25) -> 1 | I26: =SUMPRODUCT($C15:$C25,I15:I25) -> 0 | J26: 0 | K26: 0 | L26: 0 | M26: 0 | N26: 0 | O26: -0.02404727404 | P26: 0.01231539617 | Q26: 0.006861793606 | R26: -0.002884235664 | S26: -0.002971193325 | T26: -0.003676699274 | U26: -0.004334900747
B28: Total | C28: =SUM(C6:C12) -> 1 | I28: =SUMPRODUCT($C6:$C12,I6:I12) -> 0.004837653098 | J28: 0.003975827975 | K28: -0.008453865725 | L28: 0.001941904843 | M28: 0.001670132386 | N28: 0 | O28: -0.01263604906 | P28: 0.00872342331 | Q28: 0.009548589972 | R28: 0.007866062281 | S28: 0.008320546688 | T28: 0.005769519041 | U28: 0.005042945875
A30: 2 | B30: ST UG Feeder
A31: =A30 -> 2 | B31: Civil Construction | C31: =VLOOKUP(B31,'Input - Weightings'!$A$31:$S$53,A31+7,FALSE) -> 0 | I31: =I6 -> 0.01923326713 | J31: 0.01580687163 | K31: -0.03361040043 | L31: 0.007720515262 | M31: 0.006640017726 | N31: 0 | O31: -0.01394862028 | P31: 0.009210314203 | Q31: 0.003959920741 | R31: 0.004100712688 | S31: 0.004371050303 | T31: 0.002271592951 | U31: 0.0005733524411
A32: =A31 -> 2 | B32: Contracted Services (CCL) | C32: =VLOOKUP(B32,'Input - Weightings'!$A$31:$S$53,A32+7,FALSE) -> 0.3403854158 | I32: 0 | J32: 0 | K32: 0 | L32: 0 | M32: 0 | N32: 0 | O32: 0.00513017167 | P32: 0.01229944834 | Q32: 0.01705222596 | R32: 0.02124619518 | S32: 0.02346531259 | T32: 0.01900517181 | U32: 0.01900517181
A33: 2 | B33: Labour (EGW) | C33: =VLOOKUP(B33,'Input - Weightings'!$A$31:$S$53,A33+7,FALSE) -> 0.1626775096 | I33: 0 | J33: 0 | K33: 0 | L33: 0 | M33: 0 | N33: 0 | O33: 0.006171520956 | P33: 0.002740094916 | Q33: 0.0185004406 | R33: 0.02775098817 | S33: 0.02920227386 | T33: 0.02340450064 | U33: 0.02340450064
A34: 2 | B34: Labour (General) | C34: =VLOOKUP(B34,'Input - Weightings'!$A$31:$S$53,A34+7,FALSE) -> 0 | I34: 0 | J34: 0 | K34: 0 | L34: 0 | M34: 0 | N34: 0 | O34: 0.005700190745 | P34: 0.01366605371 | Q34: 0.01894691773 | R34: 0.02360688354 | S34: 0.02607256954 | T34: 0.02111685756 | U34: 0.02111685756
A35: 2 | B35: Materials and Equipment | C35: =VLOOKUP(B35,'Input - Weightings'!$A$31:$S$53,A35+7,FALSE) -> 0.4969370746 | I35: =I51 -> 0 | J35: =J51 -> 0 | K35: 0 | L35: 0 | M35: 0 | N35: 0 | O35: -0.02397948779 | P35: 0.004858394271 | Q35: =Q51 -> 0.0004972479798 | R35: =R51 -> -0.003592127591 | S35: =S51 -> -0.003648422347 | T35: =T51 -> -0.004511311271 | U35: =U51 -> -0.005308331583
A36: 2 | B36: Transport | C36: =VLOOKUP(B36,'Input - Weightings'!$A$31:$S$53,A36+7,FALSE) -> 0 | I36: =I11 -> 0 | J36: 0 | K36: 0 | L36: 0 | M36: 0 | N36: 0 | O36: 0.004046800164 | P36: 0.01763176973 | Q36: 0.01619430376 | R36: 0.02045905289 | S36: 0.02309398075 | T36: 0.01909338705 | U36: 0.01875649371
A37: 2 | B37: Property | C37: =VLOOKUP(B37,'Input - Weightings'!$A$31:$S$53,A37+7,FALSE) -> 0 | I37: 0 | J37: 0 | K37: 0 | L37: 0 | M37: 0 | N37: 0 | O37: 0 | P37: 0 | Q37: 0 | R37: 0 | S37: 0 | T37: 0 | U37: 0
A39: =A30 -> 2 | B39: Materials & Equipment
A40: =A37 -> 2 | B40: Cable (Al) | C40: =VLOOKUP(B40,'Input - Weightings'!$A$42:$S$53,A40+7,FALSE)/$C$35 -> 0 | I40: =I15 -> -0.03965033578 | J40: -0.03467870941 | K40: -0.02812951012 | L40: 0.01825500989 | M40: 0.02109201411 | N40: 0 | O40: -0.02814520856 | P40: 0.01396492013 | Q40: 0.007819099738 | R40: 0.006752580516 | S40: 0.007463756812 | T40: 0.006005066079 | U40: 0.004675201043
A41: =A40 -> 2 | B41: Cable (Copper) | C41: =VLOOKUP(B41,'Input - Weightings'!$A$42:$S$53,A41+7,FALSE)/$C$35 -> 0.5859885217 | I41: 0 | J41: 0 | K41: 0 | L41: 0 | M41: 0 | N41: 0 | O41: -0.04092142918 | P41: 0.008290937606 | Q41: 0.0008485626619 | R41: -0.006130030637 | S41: -0.006226098655 | T41: -0.007698634196 | U41: -0.009058763759
A42: 2 | B42: Distribution Substation | C42: =VLOOKUP(B42,'Input - Weightings'!$A$42:$S$53,A42+7,FALSE)/$C$35 -> 0 | I42: -0.005947550367 | J42: -0.005201806412 | K42: -0.004219426518 | L42: 0.002738251483 | M42: 0.003163802116 | N42: 0 | O42: -0.04148264003 | P42: 0.02535942601 | Q42: 0.01543182189 | R42: -0.003077667587 | S42: -0.003132651601 | T42: -0.004349634943 | U42: -0.005484110066
A43: 2 | B43: Distribution Transformers | C43: =VLOOKUP(B43,'Input - Weightings'!$A$42:$S$53,A43+7,FALSE)/$C$35 -> 0 | I43: -0.02973775184 | J43: -0.02600903206 | K43: -0.02109713259 | L43: 0.01369125741 | M43: 0.01581901058 | N43: 0 | O43: -0.03487923043 | P43: 0.02672465598 | Q43: 0.01638618369 | R43: 0.004916433598 | S43: 0.005604101894 | T43: 0.004175313199 | U43: 0.002836624027
A44: 2 | B44: Fabricated Steel | C44: =VLOOKUP(B44,'Input - Weightings'!$A$42:$S$53,A44+7,FALSE)/$C$35 -> 0 | I44: 0 | J44: 0 | K44: 0 | L44: 0 | M44: 0 | N44: 0 | O44: -0.1139665259 | P44: 0.07572346015 | Q44: 0.04958605376 | R44: -0.01307441445 | S44: -0.01398129563 | T44: -0.01672739855 | U44: -0.01927475359
A45: 2 | B45: Other | C45: =VLOOKUP(B45,'Input - Weightings'!$A$42:$S$53,A45+7,FALSE)/$C$35 -> 0.4140114783 | I45: 0 | J45: 0 | K45: 0 | L45: 0 | M45: 0 | N45: 0 | O45: 0 | P45: 0 | Q45: 0 | R45: 0 | S45: 0 | T45: 0 | U45: 0
A46: 2 | B46: Pole (Concrete) | C46: =VLOOKUP(B46,'Input - Weightings'!$A$42:$S$53,A46+7,FALSE)/$C$35 -> 0 | I46: 0 | J46: 0 | K46: 0 | L46: 0 | M46: 0 | N46: 0 | O46: 0 | P46: 0 | Q46: 0 | R46: 0 | S46: 0 | T46: 0 | U46: 0
A47: 2 | B47: Pole (Timber) | C47: =VLOOKUP(B47,'Input - Weightings'!$A$42:$S$53,A47+7,FALSE)/$C$35 -> 0 | I47: 0.08235028047 | J47: 0.05 | K47: 0.05 | L47: 0 | M47: 0 | N47: 0 | O47: 0 | P47: 0 | Q47: 0 | R47: 0 | S47: 0 | T47: 0 | U47: 0
A48: 2 | B48: Secondary Protection | C48: =VLOOKUP(B48,'Input - Weightings'!$A$42:$S$53,A48+7,FALSE)/$C$35 -> 0 | I48: 0 | J48: 0 | K48: 0 | L48: 0 | M48: 0 | N48: 0 | O48: 0 | P48: 0 | Q48: 0 | R48: 0 | S48: 0 | T48: 0 | U48: 0
A49: 2 | B49: Switchgear & Other Electrical Equipment | C49: =VLOOKUP(B49,'Input - Weightings'!$A$42:$S$53,A49+7,FALSE)/$C$35 -> 0 | I49: 0 | J49: 0 | K49: 0 | L49: 0 | M49: 0 | N49: 0 | O49: -0.02514167191 | P49: 0.01240986496 | Q49: 0.007085316624 | R49: -0.00321053239 | S49: -0.003358422515 | T49: -0.004074797988 | U49: -0.004738000695
A50: 2 | B50: Transformers | C50: =VLOOKUP(B50,'Input - Weightings'!$A$42:$S$53,A50+7,FALSE)/$C$35 -> 0 | I50: 0 | J50: 0 | K50: 0 | L50: 0 | M50: 0 | N50: 0 | O50: -0.02344885348 | P50: 0.01383124783 | Q50: 0.007559291922 | R50: -0.002302394659 | S50: -0.002263503487 | T50: -0.002981913897 | U50: -0.003664448333
B51: Subtotal | C51: =SUM(C40:C50) -> 1 | I51: =SUMPRODUCT($C40:$C50,I40:I50) -> 0 | J51: 0 | K51: 0 | L51: 0 | M51: 0 | N51: 0 | O51: -0.02397948779 | P51: 0.004858394271 | Q51: 0.0004972479798 | R51: -0.003592127591 | S51: -0.003648422347 | T51: -0.004511311271 | U51: -0.005308331583
B53: Total | C53: =SUM(C31:C37) -> 1 | I53: =SUMPRODUCT($C31:$C37,I31:I37) -> 0 | J53: =SUMPRODUCT($C31:$C37,J31:J37) -> 0 | K53: 0 | L53: 0 | M53: 0 | N53: 0 | O53: -0.009166093236 | P53: 0.007046620892 | Q53: =SUMPRODUCT($C31:$C37,Q31:Q37) -> 0.009061035584 | R53: =SUMPRODUCT($C31:$C37,R31:R37) -> 0.009961295249 | S53: =SUMPRODUCT($C31:$C37,S31:S37) -> 0.01092476704 | T53: =SUMPRODUCT($C31:$C37,T31:T37) -> 0.00803463136 | U53: =SUMPRODUCT($C31:$C37,U31:U37) -> 0.007638562418
A55: 3 | B55: ST OH Feeders
A56: =A55 -> 3 | B56: Civil Construction | C56: =VLOOKUP(B56,'Input - Weightings'!$A$31:$S$53,A56+7,FALSE) -> 0 | I56: =I6 -> 0.01923326713 | J56: 0.01580687163 | K56: -0.03361040043 | L56: 0.007720515262 | M56: 0.006640017726 | N56: 0 | O56: -0.01394862028 | P56: 0.009210314203 | Q56: 0.003959920741 | R56: 0.004100712688 | S56: 0.004371050303 | T56: 0.002271592951 | U56: 0.0005733524411
A57: =A56 -> 3 | B57: Contracted Services (CCL) | C57: =VLOOKUP(B57,'Input - Weightings'!$A$31:$S$53,A57+7,FALSE) -> 0 | I57: 0 | J57: 0 | K57: 0 | L57: 0 | M57: 0 | N57: 0 | O57: 0.00513017167 | P57: 0.01229944834 | Q57: 0.01705222596 | R57: 0.02124619518 | S57: 0.02346531259 | T57: 0.01900517181 | U57: 0.01900517181
A58: 3 | B58: Labour (EGW) | C58: =VLOOKUP(B58,'Input - Weightings'!$A$31:$S$53,A58+7,FALSE) -> 0.4498917991 | I58: 0 | J58: 0 | K58: 0 | L58: 0 | M58: 0 | N58: 0 | O58: 0.006171520956 | P58: 0.002740094916 | Q58: 0.0185004406 | R58: 0.02775098817 | S58: 0.02920227386 | T58: 0.02340450064 | U58: 0.02340450064
A59: 3 | B59: Labour (General) | C59: =VLOOKUP(B59,'Input - Weightings'!$A$31:$S$53,A59+7,FALSE) -> 0.01696368901 | I59: 0 | J59: 0 | K59: 0 | L59: 0 | M59: 0 | N59: 0 | O59: 0.005700190745 | P59: 0.01366605371 | Q59: 0.01894691773 | R59: 0.02360688354 | S59: 0.02607256954 | T59: 0.02111685756 | U59: 0.02111685756
A60: 3 | B60: Materials and Equipment | C60: =VLOOKUP(B60,'Input - Weightings'!$A$31:$S$53,A60+7,FALSE) -> 0.5331445119 | I60: =I76 -> -0.01376292647 | J60: -0.01203723798 | K60: -0.00976396219 | L60: 0.006336449712 | M60: 0.00732119498 | N60: 0 | O60: -0.009769411235 | P60: 0.004847327647 | Q60: 0.002714067678 | R60: 0.002343870923 | S60: 0.002590725505 | T60: 0.002084403102 | U60: 0.001622797056
A61: 3 | B61: Transport | C61: =VLOOKUP(B61,'Input - Weightings'!$A$31:$S$53,A61+7,FALSE) -> 0 | I61: =I11 -> 0 | J61: 0 | K61: 0 | L61: 0 | M61: 0 | N61: 0 | O61: 0.004046800164 | P61: 0.01763176973 | Q61: 0.01619430376 | R61: 0.02045905289 | S61: 0.02309398075 | T61: 0.01909338705 | U61: 0.01875649371
A62: 3 | B62: Property | C62: =VLOOKUP(B62,'Input - Weightings'!$A$31:$S$53,A62+7,FALSE) -> 0 | I62: 0 | J62: 0 | K62: 0 | L62: 0 | M62: 0 | N62: 0 | O62: 0 | P62: 0 | Q62: 0 | R62: 0 | S62: 0 | T62: 0 | U62: 0
A64: =A55 -> 3 | B64: Materials & Equipment
A65: =A62 -> 3 | B65: Cable (Al) | C65: =VLOOKUP(B65,'Input - Weightings'!$A$42:$S$53,A65+7,FALSE)/$C$60 -> 0.347107438 | I65: =I15 -> -0.03965033578 | J65: -0.03467870941 | K65: -0.02812951012 | L65: 0.01825500989 | M65: 0.02109201411 | N65: 0 | O65: -0.02814520856 | P65: 0.01396492013 | Q65: 0.007819099738 | R65: 0.006752580516 | S65: 0.007463756812 | T65: 0.006005066079 | U65: 0.004675201043
A66: =A65 -> 3 | B66: Cable (Copper) | C66: =VLOOKUP(B66,'Input - Weightings'!$A$42:$S$53,A66+7,FALSE)/$C$60 -> 0 | I66: 0 | J66: 0 | K66: 0 | L66: 0 | M66: 0 | N66: 0 | O66: -0.04092142918 | P66: 0.008290937606 | Q66: 0.0008485626619 | R66: -0.006130030637 | S66: -0.006226098655 | T66: -0.007698634196 | U66: -0.009058763759
A67: 3 | B67: Distribution Substation | C67: =VLOOKUP(B67,'Input - Weightings'!$A$42:$S$53,A67+7,FALSE)/$C$60 -> 0 | I67: -0.005947550367 | J67: -0.005201806412 | K67: -0.004219426518 | L67: 0.002738251483 | M67: 0.003163802116 | N67: 0 | O67: -0.04148264003 | P67: 0.02535942601 | Q67: 0.01543182189 | R67: -0.003077667587 | S67: -0.003132651601 | T67: -0.004349634943 | U67: -0.005484110066
A68: 3 | B68: Distribution Transformers | C68: =VLOOKUP(B68,'Input - Weightings'!$A$42:$S$53,A68+7,FALSE)/$C$60 -> 0 | I68: -0.02973775184 | J68: -0.02600903206 | K68: -0.02109713259 | L68: 0.01369125741 | M68: 0.01581901058 | N68: 0 | O68: -0.03487923043 | P68: 0.02672465598 | Q68: 0.01638618369 | R68: 0.004916433598 | S68: 0.005604101894 | T68: 0.004175313199 | U68: 0.002836624027
A69: 3 | B69: Fabricated Steel | C69: =VLOOKUP(B69,'Input - Weightings'!$A$42:$S$53,A69+7,FALSE)/$C$60 -> 0 | I69: 0 | J69: 0 | K69: 0 | L69: 0 | M69: 0 | N69: 0 | O69: -0.1139665259 | P69: 0.07572346015 | Q69: 0.04958605376 | R69: -0.01307441445 | S69: -0.01398129563 | T69: -0.01672739855 | U69: -0.01927475359
A70: 3 | B70: Other | C70: =VLOOKUP(B70,'Input - Weightings'!$A$42:$S$53,A70+7,FALSE)/$C$60 -> 0.4049586777 | I70: 0 | J70: 0 | K70: 0 | L70: 0 | M70: 0 | N70: 0 | O70: 0 | P70: 0 | Q70: 0 | R70: 0 | S70: 0 | T70: 0 | U70: 0
A71: 3 | B71: Pole (Concrete) | C71: =VLOOKUP(B71,'Input - Weightings'!$A$42:$S$53,A71+7,FALSE)/$C$60 -> 0.2479338843 | I71: 0 | J71: 0 | K71: 0 | L71: 0 | M71: 0 | N71: 0 | O71: 0 | P71: 0 | Q71: 0 | R71: 0 | S71: 0 | T71: 0 | U71: 0
A72: 3 | B72: Pole (Timber) | C72: =VLOOKUP(B72,'Input - Weightings'!$A$42:$S$53,A72+7,FALSE)/$C$60 -> 0 | I72: 0.08235028047 | J72: 0.05 | K72: 0.05 | L72: 0 | M72: 0 | N72: 0 | O72: 0 | P72: 0 | Q72: 0 | R72: 0 | S72: 0 | T72: 0 | U72: 0
A73: 3 | B73: Secondary Protection | C73: =VLOOKUP(B73,'Input - Weightings'!$A$42:$S$53,A73+7,FALSE)/$C$60 -> 0 | I73: 0 | J73: 0 | K73: 0 | L73: 0 | M73: 0 | N73: 0 | O73: 0 | P73: 0 | Q73: 0 | R73: 0 | S73: 0 | T73: 0 | U73: 0
A74: 3 | B74: Switchgear & Other Electrical Equipment | C74: =VLOOKUP(B74,'Input - Weightings'!$A$42:$S$53,A74+7,FALSE)/$C$60 -> 0 | I74: 0 | J74: 0 | K74: 0 | L74: 0 | M74: 0 | N74: 0 | O74: -0.02514167191 | P74: 0.01240986496 | Q74: 0.007085316624 | R74: -0.00321053239 | S74: -0.003358422515 | T74: -0.004074797988 | U74: -0.004738000695
A75: 3 | B75: Transformers | C75: =VLOOKUP(B75,'Input - Weightings'!$A$42:$S$53,A75+7,FALSE)/$C$60 -> 0 | I75: 0 | J75: 0 | K75: 0 | L75: 0 | M75: 0 | N75: 0 | O75: -0.02344885348 | P75: 0.01383124783 | Q75: 0.007559291922 | R75: -0.002302394659 | S75: -0.002263503487 | T75: -0.002981913897 | U75: -0.003664448333
B76: Subtotal | C76: =SUM(C65:C75) -> 1 | I76: =SUMPRODUCT($C65:$C75,I65:I75) -> -0.01376292647 | J76: -0.01203723798 | K76: -0.00976396219 | L76: 0.006336449712 | M76: 0.00732119498 | N76: 0 | O76: -0.009769411235 | P76: 0.004847327647 | Q76: 0.002714067678 | R76: 0.002343870923 | S76: 0.002590725505 | T76: 0.002084403102 | U76: 0.001622797056
B78: Total | C78: =SUM(C56:C62) -> 1 | I78: =SUMPRODUCT($C56:$C62,I56:I62) -> -0.007337628714 | J78: -0.006417587365 | K78: -0.005205602855 | L78: 0.003378243389 | M78: 0.003903254924 | N78: 0 | O78: -0.002335295054 | P78: 0.004048899049 | Q78: 0.01009159641 | R78: 0.01413502374 | S78: 0.01496138157 | T78: 0.01199900078 | U78: 0.01175289805
A80: 4 | B80: 11kV Switchgear Replacement
A81: =A80 -> 4 | B81: Civil Construction | C81: =VLOOKUP(B81,'Input - Weightings'!$A$31:$S$53,A81+7,FALSE) -> 0.2751332438 | I81: =I6 -> 0.01923326713 | J81: 0.01580687163 | K81: -0.03361040043 | L81: 0.007720515262 | M81: 0.006640017726 | N81: 0 | O81: -0.01394862028 | P81: 0.009210314203 | Q81: 0.003959920741 | R81: 0.004100712688 | S81: 0.004371050303 | T81: 0.002271592951 | U81: 0.0005733524411
A82: =A81 -> 4 | B82: Contracted Services (CCL) | C82: =VLOOKUP(B82,'Input - Weightings'!$A$31:$S$53,A82+7,FALSE) -> 0 | I82: 0 | J82: 0 | K82: 0 | L82: 0 | M82: 0 | N82: 0 | O82: 0.00513017167 | P82: 0.01229944834 | Q82: 0.01705222596 | R82: 0.02124619518 | S82: 0.02346531259 | T82: 0.01900517181 | U82: 0.01900517181
A83: 4 | B83: Labour (EGW) | C83: =VLOOKUP(B83,'Input - Weightings'!$A$31:$S$53,A83+7,FALSE) -> 0.3879938159 | I83: 0 | J83: 0 | K83: 0 | L83: 0 | M83: 0 | N83: 0 | O83: 0.006171520956 | P83: 0.002740094916 | Q83: 0.0185004406 | R83: 0.02775098817 | S83: 0.02920227386 | T83: 0.02340450064 | U83: 0.02340450064
A84: 4 | B84: Labour (General) | C84: =VLOOKUP(B84,'Input - Weightings'!$A$31:$S$53,A84+7,FALSE) -> 0 | I84: 0 | J84: 0 | K84: 0 | L84: 0 | M84: 0 | N84: 0 | O84: 0.005700190745 | P84: 0.01366605371 | Q84: 0.01894691773 | R84: 0.02360688354 | S84: 0.02607256954 | T84: 0.02111685756 | U84: 0.02111685756
A85: 4 | B85: Materials and Equipment | C85: =VLOOKUP(B85,'Input - Weightings'!$A$31:$S$53,A85+7,FALSE) -> 0.3368729403 | I85: =I101 -> 0 | J85: 0 | K85: 0 | L85: 0 | M85: 0 | N85: 0 | O85: -0.01504314199 | P85: 0.005124237057 | Q85: 0.002174902696 | R85: -0.002095748809 | S85: -0.002156286323 | T85: -0.00264415338 | U85: -0.00309520817
A86: 4 | B86: Transport | C86: =VLOOKUP(B86,'Input - Weightings'!$A$31:$S$53,A86+7,FALSE) -> 0 | I86: =I11 -> 0 | J86: 0 | K86: 0 | L86: 0 | M86: 0 | N86: 0 | O86: 0.004046800164 | P86: 0.01763176973 | Q86: 0.01619430376 | R86: 0.02045905289 | S86: 0.02309398075 | T86: 0.01909338705 | U86: 0.01875649371
A87: 4 | B87: Property | C87: =VLOOKUP(B87,'Input - Weightings'!$A$31:$S$53,A87+7,FALSE) -> 0 | I87: 0 | J87: 0 | K87: 0 | L87: 0 | M87: 0 | N87: 0 | O87: 0 | P87: 0 | Q87: 0 | R87: 0 | S87: 0 | T87: 0 | U87: 0
A89: =A80 -> 4 | B89: Materials & Equipment
A90: =A87 -> 4 | B90: Cable (Al) | C90: =VLOOKUP(B90,'Input - Weightings'!$A$42:$S$53,A90+7,FALSE)/$C$85 -> 0 | I90: =I15 -> -0.03965033578 | J90: -0.03467870941 | K90: -0.02812951012 | L90: 0.01825500989 | M90: 0.02109201411 | N90: 0 | O90: -0.02814520856 | P90: 0.01396492013 | Q90: 0.007819099738 | R90: 0.006752580516 | S90: 0.007463756812 | T90: 0.006005066079 | U90: 0.004675201043
A91: =A90 -> 4 | B91: Cable (Copper) | C91: =VLOOKUP(B91,'Input - Weightings'!$A$42:$S$53,A91+7,FALSE)/$C$85 -> 0.193236715 | I91: 0 | J91: 0 | K91: 0 | L91: 0 | M91: 0 | N91: 0 | O91: -0.04092142918 | P91: 0.008290937606 | Q91: 0.0008485626619 | R91: -0.006130030637 | S91: -0.006226098655 | T91: -0.007698634196 | U91: -0.009058763759
A92: 4 | B92: Distribution Substation | C92: =VLOOKUP(B92,'Input - Weightings'!$A$42:$S$53,A92+7,FALSE)/$C$85 -> 0 | I92: -0.005947550367 | J92: -0.005201806412 | K92: -0.004219426518 | L92: 0.002738251483 | M92: 0.003163802116 | N92: 0 | O92: -0.04148264003 | P92: 0.02535942601 | Q92: 0.01543182189 | R92: -0.003077667587 | S92: -0.003132651601 | T92: -0.004349634943 | U92: -0.005484110066
A93: 4 | B93: Distribution Transformers | C93: =VLOOKUP(B93,'Input - Weightings'!$A$42:$S$53,A93+7,FALSE)/$C$85 -> 0 | I93: -0.02973775184 | J93: -0.02600903206 | K93: -0.02109713259 | L93: 0.01369125741 | M93: 0.01581901058 | N93: 0 | O93: -0.03487923043 | P93: 0.02672465598 | Q93: 0.01638618369 | R93: 0.004916433598 | S93: 0.005604101894 | T93: 0.004175313199 | U93: 0.002836624027
A94: 4 | B94: Fabricated Steel | C94: =VLOOKUP(B94,'Input - Weightings'!$A$42:$S$53,A94+7,FALSE)/$C$85 -> 0 | I94: 0 | J94: 0 | K94: 0 | L94: 0 | M94: 0 | N94: 0 | O94: -0.1139665259 | P94: 0.07572346015 | Q94: 0.04958605376 | R94: -0.01307441445 | S94: -0.01398129563 | T94: -0.01672739855 | U94: -0.01927475359
A95: 4 | B95: Other | C95: =VLOOKUP(B95,'Input - Weightings'!$A$42:$S$53,A95+7,FALSE)/$C$85 -> 0.06099033816 | I95: 0 | J95: 0 | K95: 0 | L95: 0 | M95: 0 | N95: 0 | O95: 0 | P95: 0 | Q95: 0 | R95: 0 | S95: 0 | T95: 0 | U95: 0
A96: 4 | B96: Pole (Concrete) | C96: =VLOOKUP(B96,'Input - Weightings'!$A$42:$S$53,A96+7,FALSE)/$C$85 -> 0 | I96: 0 | J96: 0 | K96: 0 | L96: 0 | M96: 0 | N96: 0 | O96: 0 | P96: 0 | Q96: 0 | R96: 0 | S96: 0 | T96: 0 | U96: 0
A97: 4 | B97: Pole (Timber) | C97: =VLOOKUP(B97,'Input - Weightings'!$A$42:$S$53,A97+7,FALSE)/$C$85 -> 0 | I97: 0.08235028047 | J97: 0.05 | K97: 0.05 | L97: 0 | M97: 0 | N97: 0 | O97: 0 | P97: 0 | Q97: 0 | R97: 0 | S97: 0 | T97: 0 | U97: 0
A98: 4 | B98: Secondary Protection | C98: =VLOOKUP(B98,'Input - Weightings'!$A$42:$S$53,A98+7,FALSE)/$C$85 -> 0.4619565217 | I98: 0 | J98: 0 | K98: 0 | L98: 0 | M98: 0 | N98: 0 | O98: 0 | P98: 0 | Q98: 0 | R98: 0 | S98: 0 | T98: 0 | U98: 0
A99: 4 | B99: Switchgear & Other Electrical Equipment | C99: =VLOOKUP(B99,'Input - Weightings'!$A$42:$S$53,A99+7,FALSE)/$C$85 -> 0.2838164251 | I99: 0 | J99: 0 | K99: 0 | L99: 0 | M99: 0 | N99: 0 | O99: -0.02514167191 | P99: 0.01240986496 | Q99: 0.007085316624 | R99: -0.00321053239 | S99: -0.003358422515 | T99: -0.004074797988 | U99: -0.004738000695
A100: 4 | B100: Transformers | C100: =VLOOKUP(B100,'Input - Weightings'!$A$42:$S$53,A100+7,FALSE)/$C$85 -> 0 | I100: 0 | J100: 0 | K100: 0 | L100: 0 | M100: 0 | N100: 0 | O100: -0.02344885348 | P100: 0.01383124783 | Q100: 0.007559291922 | R100: -0.002302394659 | S100: -0.002263503487 | T100: -0.002981913897 | U100: -0.003664448333
B101: Subtotal | C101: =SUM(C90:C100) -> 1 | I101: =SUMPRODUCT($C90:$C100,I90:I100) -> 0 | J101: 0 | K101: 0 | L101: 0 | M101: 0 | N101: 0 | O101: -0.01504314199 | P101: 0.005124237057 | Q101: 0.002174902696 | R101: -0.002095748809 | S101: -0.002156286323 | T101: -0.00264415338 | U101: -0.00309520817
B103: Total | C103: =SUM(C81:C87) -> 1 | I103: =SUMPRODUCT($C81:$C87,I81:I87) -> 0.005291711174 | J103: 0.004348995866 | K103: -0.009247338496 | L103: 0.002124170408 | M103: 0.001826889616 | N103: 0 | O103: -0.006510844652 | P103: 0.00532342031 | Q103: 0.009000228249 | R103: 0.01118945311 | S103: 0.0118065284 | T103: 0.008815048526 | U103: 0.008195857953
A105: 5 | B105: 11kV UG Mains
A106: =A105 -> 5 | B106: Civil Construction | C106: =VLOOKUP(B106,'Input - Weightings'!$A$31:$S$53,A106+7,FALSE) -> 0.15 | I106: =I6 -> 0.01923326713 | J106: 0.01580687163 | K106: -0.03361040043 | L106: 0.007720515262 | M106: 0.006640017726 | N106: 0 | O106: -0.01394862028 | P106: 0.009210314203 | Q106: 0.003959920741 | R106: 0.004100712688 | S106: 0.004371050303 | T106: 0.002271592951 | U106: 0.0005733524411
A107: =A106 -> 5 | B107: Contracted Services (CCL) | C107: =VLOOKUP(B107,'Input - Weightings'!$A$31:$S$53,A107+7,FALSE) -> 0.5 | I107: 0 | J107: 0 | K107: 0 | L107: 0 | M107: 0 | N107: 0 | O107: 0.00513017167 | P107: 0.01229944834 | Q107: 0.01705222596 | R107: 0.02124619518 | S107: 0.02346531259 | T107: 0.01900517181 | U107: 0.01900517181
A108: 5 | B108: Labour (EGW) | C108: =VLOOKUP(B108,'Input - Weightings'!$A$31:$S$53,A108+7,FALSE) -> 0.15 | I108: 0 | J108: 0 | K108: 0 | L108: 0 | M108: 0 | N108: 0 | O108: 0.006171520956 | P108: 0.002740094916 | Q108: 0.0185004406 | R108: 0.02775098817 | S108: 0.02920227386 | T108: 0.02340450064 | U108: 0.02340450064
A109: 5 | B109: Labour (General) | C109: =VLOOKUP(B109,'Input - Weightings'!$A$31:$S$53,A109+7,FALSE) -> 0 | I109: 0 | J109: 0 | K109: 0 | L109: 0 | M109: 0 | N109: 0 | O109: 0.005700190745 | P109: 0.01366605371 | Q109: 0.01894691773 | R109: 0.02360688354 | S109: 0.02607256954 | T109: 0.02111685756 | U109: 0.02111685756
A110: 5 | B110: Materials and Equipment | C110: =VLOOKUP(B110,'Input - Weightings'!$A$31:$S$53,A110+7,FALSE) -> 0.2 | I110: =I126 -> -0.02973775184 | J110: -0.02600903206 | K110: -0.02109713259 | L110: 0.01369125741 | M110: 0.01581901058 | N110: 0 | O110: -0.02110890642 | P110: 0.01047369009 | Q110: 0.005864324804 | R110: 0.005064435387 | S110: 0.005597817609 | T110: 0.004503799559 | U110: 0.003506400782
A111: 5 | B111: Transport | C111: =VLOOKUP(B111,'Input - Weightings'!$A$31:$S$53,A111+7,FALSE) -> 0 | I111: =I11 -> 0 | J111: 0 | K111: 0 | L111: 0 | M111: 0 | N111: 0 | O111: 0.004046800164 | P111: 0.01763176973 | Q111: 0.01619430376 | R111: 0.02045905289 | S111: 0.02309398075 | T111: 0.01909338705 | U111: 0.01875649371
A112: 5 | B112: Property | C112: =VLOOKUP(B112,'Input - Weightings'!$A$31:$S$53,A112+7,FALSE) -> 0 | I112: 0 | J112: 0 | K112: 0 | L112: 0 | M112: 0 | N112: 0 | O112: 0 | P112: 0 | Q112: 0 | R112: 0 | S112: 0 | T112: 0 | U112: 0
A114: =A105 -> 5 | B114: Materials & Equipment
A115: =A112 -> 5 | B115: Cable (Al) | C115: =VLOOKUP(B115,'Input - Weightings'!$A$42:$S$53,A115+7,FALSE)/$C$110 -> 0.75 | I115: =I15 -> -0.03965033578 | J115: -0.03467870941 | K115: -0.02812951012 | L115: 0.01825500989 | M115: 0.02109201411 | N115: 0 | O115: -0.02814520856 | P115: 0.01396492013 | Q115: 0.007819099738 | R115: 0.006752580516 | S115: 0.007463756812 | T115: 0.006005066079 | U115: 0.004675201043
A116: =A115 -> 5 | B116: Cable (Copper) | C116: =VLOOKUP(B116,'Input - Weightings'!$A$42:$S$53,A116+7,FALSE)/$C$110 -> 0 | I116: 0 | J116: 0 | K116: 0 | L116: 0 | M116: 0 | N116: 0 | O116: -0.04092142918 | P116: 0.008290937606 | Q116: 0.0008485626619 | R116: -0.006130030637 | S116: -0.006226098655 | T116: -0.007698634196 | U116: -0.009058763759
A117: 5 | B117: Distribution Substation | C117: =VLOOKUP(B117,'Input - Weightings'!$A$42:$S$53,A117+7,FALSE)/$C$110 -> 0 | I117: -0.005947550367 | J117: -0.005201806412 | K117: -0.004219426518 | L117: 0.002738251483 | M117: 0.003163802116 | N117: 0 | O117: -0.04148264003 | P117: 0.02535942601 | Q117: 0.01543182189 | R117: -0.003077667587 | S117: -0.003132651601 | T117: -0.004349634943 | U117: -0.005484110066
A118: 5 | B118: Distribution Transformers | C118: =VLOOKUP(B118,'Input - Weightings'!$A$42:$S$53,A118+7,FALSE)/$C$110 -> 0 | I118: -0.02973775184 | J118: -0.02600903206 | K118: -0.02109713259 | L118: 0.01369125741 | M118: 0.01581901058 | N118: 0 | O118: -0.03487923043 | P118: 0.02672465598 | Q118: 0.01638618369 | R118: 0.004916433598 | S118: 0.005604101894 | T118: 0.004175313199 | U118: 0.002836624027
A119: 5 | B119: Fabricated Steel | C119: =VLOOKUP(B119,'Input - Weightings'!$A$42:$S$53,A119+7,FALSE)/$C$110 -> 0 | I119: 0 | J119: 0 | K119: 0 | L119: 0 | M119: 0 | N119: 0 | O119: -0.1139665259 | P119: 0.07572346015 | Q119: 0.04958605376 | R119: -0.01307441445 | S119: -0.01398129563 | T119: -0.01672739855 | U119: -0.01927475359
A120: 5 | B120: Other | C120: =VLOOKUP(B120,'Input - Weightings'!$A$42:$S$53,A120+7,FALSE)/$C$110 -> 0.25 | I120: 0 | J120: 0 | K120: 0 | L120: 0 | M120: 0 | N120: 0 | O120: 0 | P120: 0 | Q120: 0 | R120: 0 | S120: 0 | T120: 0 | U120: 0
A121: 5 | B121: Pole (Concrete) | C121: =VLOOKUP(B121,'Input - Weightings'!$A$42:$S$53,A121+7,FALSE)/$C$110 -> 0 | I121: 0 | J121: 0 | K121: 0 | L121: 0 | M121: 0 | N121: 0 | O121: 0 | P121: 0 | Q121: 0 | R121: 0 | S121: 0 | T121: 0 | U121: 0
A122: 5 | B122: Pole (Timber) | C122: =VLOOKUP(B122,'Input - Weightings'!$A$42:$S$53,A122+7,FALSE)/$C$110 -> 0 | I122: 0.08235028047 | J122: 0.05 | K122: 0.05 | L122: 0 | M122: 0 | N122: 0 | O122: 0 | P122: 0 | Q122: 0 | R122: 0 | S122: 0 | T122: 0 | U122: 0
A123: 5 | B123: Secondary Protection | C123: =VLOOKUP(B123,'Input - Weightings'!$A$42:$S$53,A123+7,FALSE)/$C$110 -> 0 | I123: 0 | J123: 0 | K123: 0 | L123: 0 | M123: 0 | N123: 0 | O123: 0 | P123: 0 | Q123: 0 | R123: 0 | S123: 0 | T123: 0 | U123: 0
A124: 5 | B124: Switchgear & Other Electrical Equipment | C124: =VLOOKUP(B124,'Input - Weightings'!$A$42:$S$53,A124+7,FALSE)/$C$110 -> 0 | I124: 0 | J124: 0 | K124: 0 | L124: 0 | M124: 0 | N124: 0 | O124: -0.02514167191 | P124: 0.01240986496 | Q124: 0.007085316624 | R124: -0.00321053239 | S124: -0.003358422515 | T124: -0.004074797988 | U124: -0.004738000695
A125: 5 | B125: Transformers | C125: =VLOOKUP(B125,'Input - Weightings'!$A$42:$S$53,A125+7,FALSE)/$C$110 -> 0 | I125: 0 | J125: 0 | K125: 0 | L125: 0 | M125: 0 | N125: 0 | O125: -0.02344885348 | P125: 0.01383124783 | Q125: 0.007559291922 | R125: -0.002302394659 | S125: -0.002263503487 | T125: -0.002981913897 | U125: -0.003664448333
B126: Subtotal | C126: =SUM(C115:C125) -> 1 | I126: =SUMPRODUCT($C115:$C125,I115:I125) -> -0.02973775184 | J126: =SUMPRODUCT($C115:$C125,J115:J125) -> -0.02600903206 | K126: -0.02109713259 | L126: 0.01369125741 | M126: 0.01581901058 | N126: 0 | O126: -0.02110890642 | P126: 0.01047369009 | Q126: =SUMPRODUCT($C115:$C125,Q115:Q125) -> 0.005864324804 | R126: =SUMPRODUCT($C115:$C125,R115:R125) -> 0.005064435387 | S126: =SUMPRODUCT($C115:$C125,S115:S125) -> 0.005597817609 | T126: =SUMPRODUCT($C115:$C125,T115:T125) -> 0.004503799559 | U126: =SUMPRODUCT($C115:$C125,U115:U125) -> 0.003506400782
B128: Total | C128: =SUM(C106:C112) -> 1 | I128: =SUMPRODUCT($C106:$C112,I106:I112) -> -0.003062560298 | J128: -0.002830775667 | K128: -0.009260986582 | L128: 0.003896328772 | M128: 0.004159804775 | N128: 0 | O128: -0.002823260347 | P128: 0.01003702356 | Q128: 0.01306803214 | R128: 0.0164137398 | S128: 0.01788821844 | T128: 0.01425475985 | U128: 0.01380054402
A130: 6 | B130: 11kV & LV Programs
A131: =A130 -> 6 | B131: Civil Construction | C131: =VLOOKUP(B131,'Input - Weightings'!$A$31:$S$53,A131+7,FALSE) -> 0.075 | I131: =I6 -> 0.01923326713 | J131: 0.01580687163 | K131: -0.03361040043 | L131: 0.007720515262 | M131: 0.006640017726 | N131: 0 | O131: -0.01394862028 | P131: 0.009210314203 | Q131: 0.003959920741 | R131: 0.004100712688 | S131: 0.004371050303 | T131: 0.002271592951 | U131: 0.0005733524411
A132: =A131 -> 6 | B132: Contracted Services (CCL) | C132: =VLOOKUP(B132,'Input - Weightings'!$A$31:$S$53,A132+7,FALSE) -> 0.25 | I132: 0 | J132: 0 | K132: 0 | L132: 0 | M132: 0 | N132: 0 | O132: 0.00513017167 | P132: 0.01229944834 | Q132: 0.01705222596 | R132: 0.02124619518 | S132: 0.02346531259 | T132: 0.01900517181 | U132: 0.01900517181
A133: 6 | B133: Labour (EGW) | C133: =VLOOKUP(B133,'Input - Weightings'!$A$31:$S$53,A133+7,FALSE) -> 0.2568207664 | I133: 0 | J133: 0 | K133: 0 | L133: 0 | M133: 0 | N133: 0 | O133: 0.006171520956 | P133: 0.002740094916 | Q133: 0.0185004406 | R133: 0.02775098817 | S133: 0.02920227386 | T133: 0.02340450064 | U133: 0.02340450064
A134: 6 | B134: Labour (General) | C134: =VLOOKUP(B134,'Input - Weightings'!$A$31:$S$53,A134+7,FALSE) -> 0.07498924968 | I134: 0 | J134: 0 | K134: 0 | L134: 0 | M134: 0 | N134: 0 | O134: 0.005700190745 | P134: 0.01366605371 | Q134: 0.01894691773 | R134: 0.02360688354 | S134: 0.02607256954 | T134: 0.02111685756 | U134: 0.02111685756
A135: 6 | B135: Materials and Equipment | C135: =VLOOKUP(B135,'Input - Weightings'!$A$31:$S$53,A135+7,FALSE) -> 0.3148997644 | I135: =I151 -> -0.01559902247 | J135: -0.01377832894 | K135: -0.01111826991 | L135: 0.007414555848 | M135: 0.008566849185 | N135: 0 | O135: -0.02585787895 | P135: 0.01507269795 | Q135: 0.008847741719 | R135: 0.001286500231 | S135: 0.001546323258 | T135: 0.0005571717052 | U135: -0.0003577008251
A136: 6 | B136: Transport | C136: =VLOOKUP(B136,'Input - Weightings'!$A$31:$S$53,A136+7,FALSE) -> 0.02829021952 | I136: =I11 -> 0 | J136: 0 | K136: 0 | L136: 0 | M136: 0 | N136: 0 | O136: 0.004046800164 | P136: 0.01763176973 | Q136: 0.01619430376 | R136: 0.02045905289 | S136: 0.02309398075 | T136: 0.01909338705 | U136: 0.01875649371
A137: 6 | B137: Property | C137: =VLOOKUP(B137,'Input - Weightings'!$A$31:$S$53,A137+7,FALSE) -> 0 | I137: 0 | J137: 0 | K137: 0 | L137: 0 | M137: 0 | N137: 0 | O137: 0 | P137: 0 | Q137: 0 | R137: 0 | S137: 0 | T137: 0 | U137: 0
A139: =A130 -> 6 | B139: Materials & Equipment
A140: =A137 -> 6 | B140: Cable (Al) | C140: =VLOOKUP(B140,'Input - Weightings'!$A$42:$S$53,A140+7,FALSE)/$C$135 -> 0.2381710261 | I140: =I15 -> -0.03965033578 | J140: -0.03467870941 | K140: -0.02812951012 | L140: 0.01825500989 | M140: 0.02109201411 | N140: 0 | O140: -0.02814520856 | P140: 0.01396492013 | Q140: 0.007819099738 | R140: 0.006752580516 | S140: 0.007463756812 | T140: 0.006005066079 | U140: 0.004675201043
A141: =A140 -> 6 | B141: Cable (Copper) | C141: =VLOOKUP(B141,'Input - Weightings'!$A$42:$S$53,A141+7,FALSE)/$C$135 -> 0.0581319893 | I141: 0 | J141: 0 | K141: 0 | L141: 0 | M141: 0 | N141: 0 | O141: -0.04092142918 | P141: 0.008290937606 | Q141: 0.0008485626619 | R141: -0.006130030637 | S141: -0.006226098655 | T141: -0.007698634196 | U141: -0.009058763759
A142: 6 | B142: Distribution Substation | C142: =VLOOKUP(B142,'Input - Weightings'!$A$42:$S$53,A142+7,FALSE)/$C$135 -> 0.1091427817 | I142: -0.005947550367 | J142: -0.005201806412 | K142: -0.004219426518 | L142: 0.002738251483 | M142: 0.003163802116 | N142: 0 | O142: -0.04148264003 | P142: 0.02535942601 | Q142: 0.01543182189 | R142: -0.003077667587 | S142: -0.003132651601 | T142: -0.004349634943 | U142: -0.005484110066
A143: 6 | B143: Distribution Transformers | C143: =VLOOKUP(B143,'Input - Weightings'!$A$42:$S$53,A143+7,FALSE)/$C$135 -> 0.2021641216 | I143: -0.02973775184 | J143: -0.02600903206 | K143: -0.02109713259 | L143: 0.01369125741 | M143: 0.01581901058 | N143: 0 | O143: -0.03487923043 | P143: 0.02672465598 | Q143: 0.01638618369 | R143: 0.004916433598 | S143: 0.005604101894 | T143: 0.004175313199 | U143: 0.002836624027
A144: 6 | B144: Fabricated Steel | C144: =VLOOKUP(B144,'Input - Weightings'!$A$42:$S$53,A144+7,FALSE)/$C$135 -> 0.02717001829 | I144: 0 | J144: 0 | K144: 0 | L144: 0 | M144: 0 | N144: 0 | O144: -0.1139665259 | P144: 0.07572346015 | Q144: 0.04958605376 | R144: -0.01307441445 | S144: -0.01398129563 | T144: -0.01672739855 | U144: -0.01927475359
A145: 6 | B145: Other | C145: =VLOOKUP(B145,'Input - Weightings'!$A$42:$S$53,A145+7,FALSE)/$C$135 -> 0.2755409458 | I145: 0 | J145: 0 | K145: 0 | L145: 0 | M145: 0 | N145: 0 | O145: 0 | P145: 0 | Q145: 0 | R145: 0 | S145: 0 | T145: 0 | U145: 0
A146: 6 | B146: Pole (Concrete) | C146: =VLOOKUP(B146,'Input - Weightings'!$A$42:$S$53,A146+7,FALSE)/$C$135 -> 0 | I146: 0 | J146: 0 | K146: 0 | L146: 0 | M146: 0 | N146: 0 | O146: 0 | P146: 0 | Q146: 0 | R146: 0 | S146: 0 | T146: 0 | U146: 0
A147: 6 | B147: Pole (Timber) | C147: =VLOOKUP(B147,'Input - Weightings'!$A$42:$S$53,A147+7,FALSE)/$C$135 -> 0.006139352005 | I147: 0.08235028047 | J147: 0.05 | K147: 0.05 | L147: 0 | M147: 0 | N147: 0 | O147: 0 | P147: 0 | Q147: 0 | R147: 0 | S147: 0 | T147: 0 | U147: 0
A148: 6 | B148: Secondary Protection | C148: =VLOOKUP(B148,'Input - Weightings'!$A$42:$S$53,A148+7,FALSE)/$C$135 -> 0 | I148: 0 | J148: 0 | K148: 0 | L148: 0 | M148: 0 | N148: 0 | O148: 0 | P148: 0 | Q148: 0 | R148: 0 | S148: 0 | T148: 0 | U148: 0
A149: 6 | B149: Switchgear & Other Electrical Equipment | C149: =VLOOKUP(B149,'Input - Weightings'!$A$42:$S$53,A149+7,FALSE)/$C$135 -> 0.08353976528 | I149: 0 | J149: 0 | K149: 0 | L149: 0 | M149: 0 | N149: 0 | O149: -0.02514167191 | P149: 0.01240986496 | Q149: 0.007085316624 | R149: -0.00321053239 | S149: -0.003358422515 | T149: -0.004074797988 | U149: -0.004738000695
A150: 6 | B150: Transformers | C150: =VLOOKUP(B150,'Input - Weightings'!$A$42:$S$53,A150+7,FALSE)/$C$135 -> 0 | I150: 0 | J150: 0 | K150: 0 | L150: 0 | M150: 0 | N150: 0 | O150: -0.02344885348 | P150: 0.01383124783 | Q150: 0.007559291922 | R150: -0.002302394659 | S150: -0.002263503487 | T150: -0.002981913897 | U150: -0.003664448333
B151: Subtotal | C151: =SUM(C140:C150) -> 1 | I151: =SUMPRODUCT($C140:$C150,I140:I150) -> -0.01559902247 | J151: -0.01377832894 | K151: -0.01111826991 | L151: 0.007414555848 | M151: 0.008566849185 | N151: 0 | O151: -0.02585787895 | P151: 0.01507269795 | Q151: 0.008847741719 | R151: 0.001286500231 | S151: 0.001546323258 | T151: 0.0005571717052 | U151: -0.0003577008251
B153: Total | C153: =SUM(C131:C137) -> 1 | I153: =SUMPRODUCT($C131:$C137,I131:I137) -> -0.003469633465 | J153: -0.003153277166 | K153: -0.006021920608 | L153: 0.002913880534 | M153: 0.003195700119 | N153: 0 | O153: -0.005779330959 | P153: 0.01073935171 | Q153: 0.01397645522 | R153: 0.0155003045 | S153: 0.01678934032 | T153: 0.01323157087 | U153: 0.0128065789
A155: 7 | B155: Distribution Mains Replacement
A156: =A155 -> 7 | B156: Civil Construction | C156: =VLOOKUP(B156,'Input - Weightings'!$A$31:$S$53,A156+7,FALSE) -> 0 | I156: =I6 -> 0.01923326713 | J156: 0.01580687163 | K156: -0.03361040043 | L156: 0.007720515262 | M156: 0.006640017726 | N156: 0 | O156: -0.01394862028 | P156: 0.009210314203 | Q156: 0.003959920741 | R156: 0.004100712688 | S156: 0.004371050303 | T156: 0.002271592951 | U156: 0.0005733524411
A157: =A156 -> 7 | B157: Contracted Services (CCL) | C157: =VLOOKUP(B157,'Input - Weightings'!$A$31:$S$53,A157+7,FALSE) -> 0 | I157: 0 | J157: 0 | K157: 0 | L157: 0 | M157: 0 | N157: 0 | O157: 0.00513017167 | P157: 0.01229944834 | Q157: 0.01705222596 | R157: 0.02124619518 | S157: 0.02346531259 | T157: 0.01900517181 | U157: 0.01900517181
A158: 7 | B158: Labour (EGW) | C158: =VLOOKUP(B158,'Input - Weightings'!$A$31:$S$53,A158+7,FALSE) -> 0.5087026747 | I158: 0 | J158: 0 | K158: 0 | L158: 0 | M158: 0 | N158: 0 | O158: 0.006171520956 | P158: 0.002740094916 | Q158: 0.0185004406 | R158: 0.02775098817 | S158: 0.02920227386 | T158: 0.02340450064 | U158: 0.02340450064
A159: 7 | B159: Labour (General) | C159: =VLOOKUP(B159,'Input - Weightings'!$A$31:$S$53,A159+7,FALSE) -> 0.1291000345 | I159: 0 | J159: 0 | K159: 0 | L159: 0 | M159: 0 | N159: 0 | O159: 0.005700190745 | P159: 0.01366605371 | Q159: 0.01894691773 | R159: 0.02360688354 | S159: 0.02607256954 | T159: 0.02111685756 | U159: 0.02111685756
A160: 7 | B160: Materials and Equipment | C160: =VLOOKUP(B160,'Input - Weightings'!$A$31:$S$53,A160+7,FALSE) -> 0.2735455051 | I160: =I176 -> -0.003856548121 | J160: -0.005535670395 | K160: -0.003563027084 | L160: 0.005498477226 | M160: 0.006352993504 | N160: 0 | O160: -0.02308457909 | P160: 0.01357332217 | Q160: 0.008406928401 | R160: 0.0003324406101 | S160: 0.0004345256193 | T160: -0.0003655198177 | U160: -0.001100553815
A161: 7 | B161: Transport | C161: =VLOOKUP(B161,'Input - Weightings'!$A$31:$S$53,A161+7,FALSE) -> 0.0886517857 | I161: =I11 -> 0 | J161: 0 | K161: 0 | L161: 0 | M161: 0 | N161: 0 | O161: 0.004046800164 | P161: 0.01763176973 | Q161: 0.01619430376 | R161: 0.02045905289 | S161: 0.02309398075 | T161: 0.01909338705 | U161: 0.01875649371
A162: 7 | B162: Property | C162: =VLOOKUP(B162,'Input - Weightings'!$A$31:$S$53,A162+7,FALSE) -> 0 | I162: 0 | J162: 0 | K162: 0 | L162: 0 | M162: 0 | N162: 0 | O162: 0 | P162: 0 | Q162: 0 | R162: 0 | S162: 0 | T162: 0 | U162: 0
A164: =A155 -> 7 | B164: Materials & Equipment
A165: =A162 -> 7 | B165: Cable (Al) | C165: =VLOOKUP(B165,'Input - Weightings'!$A$42:$S$53,A165+7,FALSE)/$C$160 -> 0.3012037386 | I165: =I15 -> -0.03965033578 | J165: -0.03467870941 | K165: -0.02812951012 | L165: 0.01825500989 | M165: 0.02109201411 | N165: 0 | O165: -0.02814520856 | P165: 0.01396492013 | Q165: 0.007819099738 | R165: 0.006752580516 | S165: 0.007463756812 | T165: 0.006005066079 | U165: 0.004675201043
A166: =A165 -> 7 | B166: Cable (Copper) | C166: =VLOOKUP(B166,'Input - Weightings'!$A$42:$S$53,A166+7,FALSE)/$C$160 -> 0 | I166: 0 | J166: 0 | K166: 0 | L166: 0 | M166: 0 | N166: 0 | O166: -0.04092142918 | P166: 0.008290937606 | Q166: 0.0008485626619 | R166: -0.006130030637 | S166: -0.006226098655 | T166: -0.007698634196 | U166: -0.009058763759
A167: 7 | B167: Distribution Substation | C167: =VLOOKUP(B167,'Input - Weightings'!$A$42:$S$53,A167+7,FALSE)/$C$160 -> 0 | I167: -0.005947550367 | J167: -0.005201806412 | K167: -0.004219426518 | L167: 0.002738251483 | M167: 0.003163802116 | N167: 0 | O167: -0.04148264003 | P167: 0.02535942601 | Q167: 0.01543182189 | R167: -0.003077667587 | S167: -0.003132651601 | T167: -0.004349634943 | U167: -0.005484110066
A168: 7 | B168: Distribution Transformers | C168: =VLOOKUP(B168,'Input - Weightings'!$A$42:$S$53,A168+7,FALSE)/$C$160 -> 0 | I168: -0.02973775184 | J168: -0.02600903206 | K168: -0.02109713259 | L168: 0.01369125741 | M168: 0.01581901058 | N168: 0 | O168: -0.03487923043 | P168: 0.02672465598 | Q168: 0.01638618369 | R168: 0.004916433598 | S168: 0.005604101894 | T168: 0.004175313199 | U168: 0.002836624027
A169: 7 | B169: Fabricated Steel | C169: =VLOOKUP(B169,'Input - Weightings'!$A$42:$S$53,A169+7,FALSE)/$C$160 -> 0.1107860519 | I169: 0 | J169: 0 | K169: 0 | L169: 0 | M169: 0 | N169: 0 | O169: -0.1139665259 | P169: 0.07572346015 | Q169: 0.04958605376 | R169: -0.01307441445 | S169: -0.01398129563 | T169: -0.01672739855 | U169: -0.01927475359
A170: 7 | B170: Other | C170: =VLOOKUP(B170,'Input - Weightings'!$A$42:$S$53,A170+7,FALSE)/$C$160 -> 0.4110136209 | I170: 0 | J170: 0 | K170: 0 | L170: 0 | M170: 0 | N170: 0 | O170: 0 | P170: 0 | Q170: 0 | R170: 0 | S170: 0 | T170: 0 | U170: 0
A171: 7 | B171: Pole (Concrete) | C171: =VLOOKUP(B171,'Input - Weightings'!$A$42:$S$53,A171+7,FALSE)/$C$160 -> 0 | I171: 0 | J171: 0 | K171: 0 | L171: 0 | M171: 0 | N171: 0 | O171: 0 | P171: 0 | Q171: 0 | R171: 0 | S171: 0 | T171: 0 | U171: 0
A172: 7 | B172: Pole (Timber) | C172: =VLOOKUP(B172,'Input - Weightings'!$A$42:$S$53,A172+7,FALSE)/$C$160 -> 0.09819373057 | I172: 0.08235028047 | J172: 0.05 | K172: 0.05 | L172: 0 | M172: 0 | N172: 0 | O172: 0 | P172: 0 | Q172: 0 | R172: 0 | S172: 0 | T172: 0 | U172: 0
A173: 7 | B173: Secondary Protection | C173: =VLOOKUP(B173,'Input - Weightings'!$A$42:$S$53,A173+7,FALSE)/$C$160 -> 0 | I173: 0 | J173: 0 | K173: 0 | L173: 0 | M173: 0 | N173: 0 | O173: 0 | P173: 0 | Q173: 0 | R173: 0 | S173: 0 | T173: 0 | U173: 0
A174: 7 | B174: Switchgear & Other Electrical Equipment | C174: =VLOOKUP(B174,'Input - Weightings'!$A$42:$S$53,A174+7,FALSE)/$C$160 -> 0.07880285798 | I174: 0 | J174: 0 | K174: 0 | L174: 0 | M174: 0 | N174: 0 | O174: -0.02514167191 | P174: 0.01240986496 | Q174: 0.007085316624 | R174: -0.00321053239 | S174: -0.003358422515 | T174: -0.004074797988 | U174: -0.004738000695
A175: 7 | B175: Transformers | C175: =VLOOKUP(B175,'Input - Weightings'!$A$42:$S$53,A175+7,FALSE)/$C$160 -> 0 | I175: 0 | J175: 0 | K175: 0 | L175: 0 | M175: 0 | N175: 0 | O175: -0.02344885348 | P175: 0.01383124783 | Q175: 0.007559291922 | R175: -0.002302394659 | S175: -0.002263503487 | T175: -0.002981913897 | U175: -0.003664448333
B176: Subtotal | C176: =SUM(C165:C175) -> 1 | I176: =SUMPRODUCT($C165:$C175,I165:I175) -> -0.003856548121 | J176: -0.005535670395 | K176: -0.003563027084 | L176: 0.005498477226 | M176: 0.006352993504 | N176: 0 | O176: -0.02308457909 | P176: 0.01357332217 | Q176: 0.008406928401 | R176: 0.0003324406101 | S176: 0.0004345256193 | T176: -0.0003655198177 | U176: -0.001100553815
B178: Total | C178: =SUM(C156:C162) -> 1 | I178: =SUMPRODUCT($C156:$C162,I156:I162) -> -0.001054941404 | J178: -0.001514257754 | K178: -0.0009746500433 | L178: 0.00150408373 | M178: 0.001737832817 | N178: 0 | O178: -0.002080562748 | P178: 0.008434190758 | Q178: 0.01559260277 | R178: 0.01906932059 | S178: 0.02038742961 | T178: 0.01622479567 | U178: 0.01599386423
A180: 8 | B180: Distribution Substation Replacement
A181: =A180 -> 8 | B181: Civil Construction | C181: =VLOOKUP(B181,'Input - Weightings'!$A$31:$S$53,A181+7,FALSE) -> 0 | I181: =I6 -> 0.01923326713 | J181: 0.01580687163 | K181: -0.03361040043 | L181: 0.007720515262 | M181: 0.006640017726 | N181: 0 | O181: -0.01394862028 | P181: 0.009210314203 | Q181: 0.003959920741 | R181: 0.004100712688 | S181: 0.004371050303 | T181: 0.002271592951 | U181: 0.0005733524411
A182: =A181 -> 8 | B182: Contracted Services (CCL) | C182: =VLOOKUP(B182,'Input - Weightings'!$A$31:$S$53,A182+7,FALSE) -> 0 | I182: 0 | J182: 0 | K182: 0 | L182: 0 | M182: 0 | N182: 0 | O182: 0.00513017167 | P182: 0.01229944834 | Q182: 0.01705222596 | R182: 0.02124619518 | S182: 0.02346531259 | T182: 0.01900517181 | U182: 0.01900517181
A183: 8 | B183: Labour (EGW) | C183: =VLOOKUP(B183,'Input - Weightings'!$A$31:$S$53,A183+7,FALSE) -> 0.3636415328 | I183: 0 | J183: 0 | K183: 0 | L183: 0 | M183: 0 | N183: 0 | O183: 0.006171520956 | P183: 0.002740094916 | Q183: 0.0185004406 | R183: 0.02775098817 | S183: 0.02920227386 | T183: 0.02340450064 | U183: 0.02340450064
A184: 8 | B184: Labour (General) | C184: =VLOOKUP(B184,'Input - Weightings'!$A$31:$S$53,A184+7,FALSE) -> 0.1499784994 | I184: 0 | J184: 0 | K184: 0 | L184: 0 | M184: 0 | N184: 0 | O184: 0.005700190745 | P184: 0.01366605371 | Q184: 0.01894691773 | R184: 0.02360688354 | S184: 0.02607256954 | T184: 0.02111685756 | U184: 0.02111685756
A185: 8 | B185: Materials and Equipment | C185: =VLOOKUP(B185,'Input - Weightings'!$A$31:$S$53,A185+7,FALSE) -> 0.4297995288 | I185: =I201 -> -0.00901980196 | J185: -0.008086976444 | K185: -0.006474773582 | L185: 0.004493798078 | M185: 0.005192177548 | N185: 0 | O185: -0.02806773365 | P185: 0.0172127691 | Q185: 0.01023602473 | R185: -0.000471498512 | S185: -0.0003389716663 | T185: -0.001279325355 | U185: -0.00215579568
A186: 8 | B186: Transport | C186: =VLOOKUP(B186,'Input - Weightings'!$A$31:$S$53,A186+7,FALSE) -> 0.05658043904 | I186: =I11 -> 0 | J186: 0 | K186: 0 | L186: 0 | M186: 0 | N186: 0 | O186: 0.004046800164 | P186: 0.01763176973 | Q186: 0.01619430376 | R186: 0.02045905289 | S186: 0.02309398075 | T186: 0.01909338705 | U186: 0.01875649371
A187: 8 | B187: Property | C187: =VLOOKUP(B187,'Input - Weightings'!$A$31:$S$53,A187+7,FALSE) -> 0 | I187: 0 | J187: 0 | K187: 0 | L187: 0 | M187: 0 | N187: 0 | O187: 0 | P187: 0 | Q187: 0 | R187: 0 | S187: 0 | T187: 0 | U187: 0
A189: =A180 -> 8 | B189: Materials & Equipment
A190: =A187 -> 8 | B190: Cable (Al) | C190: =VLOOKUP(B190,'Input - Weightings'!$A$42:$S$53,A190+7,FALSE)/$C$185 -> 0 | I190: =I15 -> -0.03965033578 | J190: -0.03467870941 | K190: -0.02812951012 | L190: 0.01825500989 | M190: 0.02109201411 | N190: 0 | O190: -0.02814520856 | P190: 0.01396492013 | Q190: 0.007819099738 | R190: 0.006752580516 | S190: 0.007463756812 | T190: 0.006005066079 | U190: 0.004675201043
A191: =A190 -> 8 | B191: Cable (Copper) | C191: =VLOOKUP(B191,'Input - Weightings'!$A$42:$S$53,A191+7,FALSE)/$C$185 -> 0.08518273524 | I191: 0 | J191: 0 | K191: 0 | L191: 0 | M191: 0 | N191: 0 | O191: -0.04092142918 | P191: 0.008290937606 | Q191: 0.0008485626619 | R191: -0.006130030637 | S191: -0.006226098655 | T191: -0.007698634196 | U191: -0.009058763759
A192: 8 | B192: Distribution Substation | C192: =VLOOKUP(B192,'Input - Weightings'!$A$42:$S$53,A192+7,FALSE)/$C$185 -> 0.1599305441 | I192: -0.005947550367 | J192: -0.005201806412 | K192: -0.004219426518 | L192: 0.002738251483 | M192: 0.003163802116 | N192: 0 | O192: -0.04148264003 | P192: 0.02535942601 | Q192: 0.01543182189 | R192: -0.003077667587 | S192: -0.003132651601 | T192: -0.004349634943 | U192: -0.005484110066
A193: 8 | B193: Distribution Transformers | C193: =VLOOKUP(B193,'Input - Weightings'!$A$42:$S$53,A193+7,FALSE)/$C$185 -> 0.2962378039 | I193: -0.02973775184 | J193: -0.02600903206 | K193: -0.02109713259 | L193: 0.01369125741 | M193: 0.01581901058 | N193: 0 | O193: -0.03487923043 | P193: 0.02672465598 | Q193: 0.01638618369 | R193: 0.004916433598 | S193: 0.005604101894 | T193: 0.004175313199 | U193: 0.002836624027
A194: 8 | B194: Fabricated Steel | C194: =VLOOKUP(B194,'Input - Weightings'!$A$42:$S$53,A194+7,FALSE)/$C$185 -> 0.03981313048 | I194: 0 | J194: 0 | K194: 0 | L194: 0 | M194: 0 | N194: 0 | O194: -0.1139665259 | P194: 0.07572346015 | Q194: 0.04958605376 | R194: -0.01307441445 | S194: -0.01398129563 | T194: -0.01672739855 | U194: -0.01927475359
A195: 8 | B195: Other | C195: =VLOOKUP(B195,'Input - Weightings'!$A$42:$S$53,A195+7,FALSE)/$C$185 -> 0.2874259964 | I195: 0 | J195: 0 | K195: 0 | L195: 0 | M195: 0 | N195: 0 | O195: 0 | P195: 0 | Q195: 0 | R195: 0 | S195: 0 | T195: 0 | U195: 0
A196: 8 | B196: Pole (Concrete) | C196: =VLOOKUP(B196,'Input - Weightings'!$A$42:$S$53,A196+7,FALSE)/$C$185 -> 0 | I196: 0 | J196: 0 | K196: 0 | L196: 0 | M196: 0 | N196: 0 | O196: 0 | P196: 0 | Q196: 0 | R196: 0 | S196: 0 | T196: 0 | U196: 0
A197: 8 | B197: Pole (Timber) | C197: =VLOOKUP(B197,'Input - Weightings'!$A$42:$S$53,A197+7,FALSE)/$C$185 -> 0.008996196461 | I197: 0.08235028047 | J197: 0.05 | K197: 0.05 | L197: 0 | M197: 0 | N197: 0 | O197: 0 | P197: 0 | Q197: 0 | R197: 0 | S197: 0 | T197: 0 | U197: 0
A198: 8 | B198: Secondary Protection | C198: =VLOOKUP(B198,'Input - Weightings'!$A$42:$S$53,A198+7,FALSE)/$C$185 -> 0 | I198: 0 | J198: 0 | K198: 0 | L198: 0 | M198: 0 | N198: 0 | O198: 0 | P198: 0 | Q198: 0 | R198: 0 | S198: 0 | T198: 0 | U198: 0
A199: 8 | B199: Switchgear & Other Electrical Equipment | C199: =VLOOKUP(B199,'Input - Weightings'!$A$42:$S$53,A199+7,FALSE)/$C$185 -> 0.1224135935 | I199: 0 | J199: 0 | K199: 0 | L199: 0 | M199: 0 | N199: 0 | O199: -0.02514167191 | P199: 0.01240986496 | Q199: 0.007085316624 | R199: -0.00321053239 | S199: -0.003358422515 | T199: -0.004074797988 | U199: -0.004738000695
A200: 8 | B200: Transformers | C200: =VLOOKUP(B200,'Input - Weightings'!$A$42:$S$53,A200+7,FALSE)/$C$185 -> 0 | I200: 0 | J200: 0 | K200: 0 | L200: 0 | M200: 0 | N200: 0 | O200: -0.02344885348 | P200: 0.01383124783 | Q200: 0.007559291922 | R200: -0.002302394659 | S200: -0.002263503487 | T200: -0.002981913897 | U200: -0.003664448333
B201: Subtotal | C201: =SUM(C190:C200) -> 1 | I201: =SUMPRODUCT($C190:$C200,I190:I200) -> -0.00901980196 | J201: -0.008086976444 | K201: -0.006474773582 | L201: 0.004493798078 | M201: 0.005192177548 | N201: 0 | O201: -0.02806773365 | P201: 0.0172127691 | Q201: 0.01023602473 | R201: -0.000471498512 | S201: -0.0003389716663 | T201: -0.001279325355 | U201: -0.00215579568
B203: Total | C203: =SUM(C181:C187) -> 1 | I203: =SUMPRODUCT($C181:$C187,I181:I187) -> -0.003876706632 | J203: -0.003475778665 | K203: -0.002782854634 | L203: 0.001931432296 | M203: 0.002231595463 | N203: 0 | O203: -0.008735401572 | P203: 0.01144167987 | Q203: 0.01488487829 | R203: 0.0145868692 | S203: 0.01569046219 | T203: 0.01220838189 | U203: 0.01181261378
A205: 9 | B205: Duty of care
A206: =A205 -> 9 | B206: Civil Construction | C206: =VLOOKUP(B206,'Input - Weightings'!$A$31:$S$53,A206+7,FALSE) -> 0.3196964034 | I206: =I6 -> 0.01923326713 | J206: 0.01580687163 | K206: -0.03361040043 | L206: 0.007720515262 | M206: 0.006640017726 | N206: 0 | O206: -0.01394862028 | P206: 0.009210314203 | Q206: 0.003959920741 | R206: 0.004100712688 | S206: 0.004371050303 | T206: 0.002271592951 | U206: 0.0005733524411
A207: =A206 -> 9 | B207: Contracted Services (CCL) | C207: =VLOOKUP(B207,'Input - Weightings'!$A$31:$S$53,A207+7,FALSE) -> 0 | I207: 0 | J207: 0 | K207: 0 | L207: 0 | M207: 0 | N207: 0 | O207: 0.00513017167 | P207: 0.01229944834 | Q207: 0.01705222596 | R207: 0.02124619518 | S207: 0.02346531259 | T207: 0.01900517181 | U207: 0.01900517181
A208: 9 | B208: Labour (EGW) | C208: =VLOOKUP(B208,'Input - Weightings'!$A$31:$S$53,A208+7,FALSE) -> 0.3979305128 | I208: 0 | J208: 0 | K208: 0 | L208: 0 | M208: 0 | N208: 0 | O208: 0.006171520956 | P208: 0.002740094916 | Q208: 0.0185004406 | R208: 0.02775098817 | S208: 0.02920227386 | T208: 0.02340450064 | U208: 0.02340450064
A209: 9 | B209: Labour (General) | C209: =VLOOKUP(B209,'Input - Weightings'!$A$31:$S$53,A209+7,FALSE) -> 0 | I209: 0 | J209: 0 | K209: 0 | L209: 0 | M209: 0 | N209: 0 | O209: 0.005700190745 | P209: 0.01366605371 | Q209: 0.01894691773 | R209: 0.02360688354 | S209: 0.02607256954 | T209: 0.02111685756 | U209: 0.02111685756
A210: 9 | B210: Materials and Equipment | C210: =VLOOKUP(B210,'Input - Weightings'!$A$31:$S$53,A210+7,FALSE) -> 0.2517288264 | I210: =I226 -> -0.0002626644191 | J210: -0.0002297297837 | K210: -0.0001863444858 | L210: =L226 -> 0.0001209306674 | M210: 0.0001397244569 | N210: 0 | O210: -0.01407985528 | P210: 0.008344316957 | Q210: 0.00462990272 | R210: -0.001338510487 | S210: -0.001320625079 | T210: =T226 -> -0.001749612418 | U210: =U226 -> -0.002156217117
A211: 9 | B211: Transport | C211: =VLOOKUP(B211,'Input - Weightings'!$A$31:$S$53,A211+7,FALSE) -> 0.03064425745 | I211: =I11 -> 0 | J211: 0 | K211: 0 | L211: 0 | M211: 0 | N211: 0 | O211: 0.004046800164 | P211: 0.01763176973 | Q211: 0.01619430376 | R211: 0.02045905289 | S211: 0.02309398075 | T211: 0.01909338705 | U211: 0.01875649371
A212: 9 | B212: Property | C212: =VLOOKUP(B212,'Input - Weightings'!$A$31:$S$53,A212+7,FALSE) -> 0 | I212: 0 | J212: 0 | K212: 0 | L212: 0 | M212: 0 | N212: 0 | O212: 0 | P212: 0 | Q212: 0 | R212: 0 | S212: 0 | T212: 0 | U212: 0
A214: =A205 -> 9 | B214: Materials & Equipment
A215: =A212 -> 9 | B215: Cable (Al) | C215: =VLOOKUP(B215,'Input - Weightings'!$A$42:$S$53,A215+7,FALSE)/$C$210 -> 0 | I215: =I15 -> -0.03965033578 | J215: -0.03467870941 | K215: -0.02812951012 | L215: 0.01825500989 | M215: 0.02109201411 | N215: 0 | O215: -0.02814520856 | P215: 0.01396492013 | Q215: 0.007819099738 | R215: 0.006752580516 | S215: 0.007463756812 | T215: 0.006005066079 | U215: 0.004675201043
A216: =A215 -> 9 | B216: Cable (Copper) | C216: =VLOOKUP(B216,'Input - Weightings'!$A$42:$S$53,A216+7,FALSE)/$C$210 -> 0 | I216: 0 | J216: 0 | K216: 0 | L216: 0 | M216: 0 | N216: 0 | O216: -0.04092142918 | P216: 0.008290937606 | Q216: 0.0008485626619 | R216: -0.006130030637 | S216: -0.006226098655 | T216: -0.007698634196 | U216: -0.009058763759
A217: 9 | B217: Distribution Substation | C217: =VLOOKUP(B217,'Input - Weightings'!$A$42:$S$53,A217+7,FALSE)/$C$210 -> 0.04416346275 | I217: -0.005947550367 | J217: -0.005201806412 | K217: -0.004219426518 | L217: 0.002738251483 | M217: 0.003163802116 | N217: 0 | O217: -0.04148264003 | P217: 0.02535942601 | Q217: 0.01543182189 | R217: -0.003077667587 | S217: -0.003132651601 | T217: -0.004349634943 | U217: -0.005484110066
A218: 9 | B218: Distribution Transformers | C218: =VLOOKUP(B218,'Input - Weightings'!$A$42:$S$53,A218+7,FALSE)/$C$210 -> 0 | I218: -0.02973775184 | J218: -0.02600903206 | K218: -0.02109713259 | L218: 0.01369125741 | M218: 0.01581901058 | N218: 0 | O218: -0.03487923043 | P218: 0.02672465598 | Q218: 0.01638618369 | R218: 0.004916433598 | S218: 0.005604101894 | T218: 0.004175313199 | U218: 0.002836624027
A219: 9 | B219: Fabricated Steel | C219: =VLOOKUP(B219,'Input - Weightings'!$A$42:$S$53,A219+7,FALSE)/$C$210 -> 0 | I219: 0 | J219: 0 | K219: 0 | L219: 0 | M219: 0 | N219: 0 | O219: -0.1139665259 | P219: 0.07572346015 | Q219: 0.04958605376 | R219: -0.01307441445 | S219: -0.01398129563 | T219: -0.01672739855 | U219: -0.01927475359
A220: 9 | B220: Other | C220: =VLOOKUP(B220,'Input - Weightings'!$A$42:$S$53,A220+7,FALSE)/$C$210 -> 0.4335151255 | I220: 0 | J220: 0 | K220: 0 | L220: 0 | M220: 0 | N220: 0 | O220: 0 | P220: 0 | Q220: 0 | R220: 0 | S220: 0 | T220: 0 | U220: 0
A221: 9 | B221: Pole (Concrete) | C221: =VLOOKUP(B221,'Input - Weightings'!$A$42:$S$53,A221+7,FALSE)/$C$210 -> 0 | I221: 0 | J221: 0 | K221: 0 | L221: 0 | M221: 0 | N221: 0 | O221: 0 | P221: 0 | Q221: 0 | R221: 0 | S221: 0 | T221: 0 | U221: 0
A222: 9 | B222: Pole (Timber) | C222: =VLOOKUP(B222,'Input - Weightings'!$A$42:$S$53,A222+7,FALSE)/$C$210 -> 0 | I222: 0.08235028047 | J222: 0.05 | K222: 0.05 | L222: 0 | M222: 0 | N222: 0 | O222: 0 | P222: 0 | Q222: 0 | R222: 0 | S222: 0 | T222: 0 | U222: 0
A223: 9 | B223: Secondary Protection | C223: =VLOOKUP(B223,'Input - Weightings'!$A$42:$S$53,A223+7,FALSE)/$C$210 -> 0 | I223: 0 | J223: 0 | K223: 0 | L223: 0 | M223: 0 | N223: 0 | O223: 0 | P223: 0 | Q223: 0 | R223: 0 | S223: 0 | T223: 0 | U223: 0
A224: 9 | B224: Switchgear & Other Electrical Equipment | C224: =VLOOKUP(B224,'Input - Weightings'!$A$42:$S$53,A224+7,FALSE)/$C$210 -> 0 | I224: 0 | J224: 0 | K224: 0 | L224: 0 | M224: 0 | N224: 0 | O224: -0.02514167191 | P224: 0.01240986496 | Q224: 0.007085316624 | R224: -0.00321053239 | S224: -0.003358422515 | T224: -0.004074797988 | U224: -0.004738000695
A225: 9 | B225: Transformers | C225: =VLOOKUP(B225,'Input - Weightings'!$A$42:$S$53,A225+7,FALSE)/$C$210 -> 0.5223214118 | I225: 0 | J225: 0 | K225: 0 | L225: 0 | M225: 0 | N225: 0 | O225: -0.02344885348 | P225: 0.01383124783 | Q225: 0.007559291922 | R225: -0.002302394659 | S225: -0.002263503487 | T225: -0.002981913897 | U225: -0.003664448333
B226: Subtotal | C226: =SUM(C215:C225) -> 1 | I226: =SUMPRODUCT($C215:$C225,I215:I225) -> -0.0002626644191 | J226: -0.0002297297837 | K226: -0.0001863444858 | L226: 0.0001209306674 | M226: 0.0001397244569 | N226: 0 | O226: -0.01407985528 | P226: 0.008344316957 | Q226: 0.00462990272 | R226: -0.001338510487 | S226: -0.001320625079 | T226: -0.001749612418 | U226: -0.002156217117
... 67 more rows

Sheet Final values >>

Sheet Final values - FY
A1: Cost Escalation Rates - 21 August 2012
A3: Financial Year
A5: Cost escalators
B7: 06/07 | C7: 07/08 | D7: 08/09 | E7: 09/10 | F7: 10/11 | G7: 11/12 | H7: 12/13 | I7: 13/14 | J7: 14/15 | K7: 15/16 | L7: 16/17 | M7: 17/18 | N7: 18/19
A9: ='Input - Cost escalators - FY'!A8 -> Aluminium | B9: ='Input - Cost escalators - FY'!H8 -> 0 | C9: ='Input - Cost escalators - FY'!I8 -> 0 | D9: ='Input - Cost escalators - FY'!J8 -> 0 | E9: ='Input - Cost escalators - FY'!K8 -> 0 | F9: ='Input - Cost escalators - FY'!L8 -> 0 | G9: ='Input - Cost escalators - FY'!M8 -> 0 | H9: ='Input - Cost escalators - FY'!N8 -> -0.04939895939 | I9: ='Input - Cost escalators - FY'!O8 -> -0.0105880956 | J9: ='Input - Cost escalators - FY'!P8 -> 0.07158394004 | K9: ='Input - Cost escalators - FY'!Q8 -> 0.02929178442 | L9: ='Input - Cost escalators - FY'!R8 -> 0.05028643249 | M9: ='Input - Cost escalators - FY'!S8 -> 0.04577515452 | N9: ='Input - Cost escalators - FY'!T8 -> 0.04076277014
A10: ='Input - Cost escalators - FY'!A9 -> Construction costs | B10: ='Input - Cost escalators - FY'!H9 -> 0 | C10: ='Input - Cost escalators - FY'!I9 -> 0 | D10: ='Input - Cost escalators - FY'!J9 -> 0 | E10: ='Input - Cost escalators - FY'!K9 -> 0 | F10: ='Input - Cost escalators - FY'!L9 -> 0 | G10: ='Input - Cost escalators - FY'!M9 -> 0 | H10: ='Input - Cost escalators - FY'!N9 -> -0.01582759057 | I10: ='Input - Cost escalators - FY'!O9 -> 0.008604329079 | J10: ='Input - Cost escalators - FY'!P9 -> 0.004458563124 | K10: ='Input - Cost escalators - FY'!Q9 -> 0.004003171324 | L10: ='Input - Cost escalators - FY'!R9 -> 0.004231601986 | M10: ='Input - Cost escalators - FY'!S9 -> 0.00404971861 | N10: ='Input - Cost escalators - FY'!T9 -> 0.0006094203839
A11: ='Input - Cost escalators - FY'!A10 -> Copper | B11: ='Input - Cost escalators - FY'!H10 -> 0 | C11: ='Input - Cost escalators - FY'!I10 -> 0 | D11: ='Input - Cost escalators - FY'!J10 -> 0 | E11: ='Input - Cost escalators - FY'!K10 -> 0 | F11: ='Input - Cost escalators - FY'!L10 -> 0 | G11: ='Input - Cost escalators - FY'!M10 -> 0 | H11: ='Input - Cost escalators - FY'!N10 -> -0.04281825217 | I11: ='Input - Cost escalators - FY'!O10 -> -0.03983430476 | J11: ='Input - Cost escalators - FY'!P10 -> 0.03138710184 | K11: ='Input - Cost escalators - FY'!Q10 -> -0.01369764124 | L11: ='Input - Cost escalators - FY'!R10 -> -0.01006354199 | M11: ='Input - Cost escalators - FY'!S10 -> -0.0125498146 | N11: ='Input - Cost escalators - FY'!T10 -> -0.01559567815
A12: ='Input - Cost escalators - FY'!A11 -> Current transformer | B12: ='Input - Cost escalators - FY'!H11 -> 0 | C12: ='Input - Cost escalators - FY'!I11 -> 0 | D12: ='Input - Cost escalators - FY'!J11 -> 0 | E12: ='Input - Cost escalators - FY'!K11 -> 0 | F12: ='Input - Cost escalators - FY'!L11 -> 0 | G12: ='Input - Cost escalators - FY'!M11 -> 0 | H12: ='Input - Cost escalators - FY'!N11 -> 0 | I12: ='Input - Cost escalators - FY'!O11 -> 0 | J12: ='Input - Cost escalators - FY'!P11 -> 0 | K12: ='Input - Cost escalators - FY'!Q11 -> 0 | L12: ='Input - Cost escalators - FY'!R11 -> 0 | M12: ='Input - Cost escalators - FY'!S11 -> 0 | N12: ='Input - Cost escalators - FY'!T11 -> 0
A13: ='Input - Cost escalators - FY'!A12 -> EGW wages | B13: ='Input - Cost escalators - FY'!H12 -> 0 | C13: ='Input - Cost escalators - FY'!I12 -> 0 | D13: ='Input - Cost escalators - FY'!J12 -> 0 | E13: ='Input - Cost escalators - FY'!K12 -> 0 | F13: ='Input - Cost escalators - FY'!L12 -> 0 | G13: ='Input - Cost escalators - FY'!M12 -> 0 | H13: ='Input - Cost escalators - FY'!N12 -> 0.001594082151 | I13: ='Input - Cost escalators - FY'!O12 -> 0.006348235863 | J13: ='Input - Cost escalators - FY'!P12 -> 0.01784320135 | K13: ='Input - Cost escalators - FY'!Q12 -> 0.02712595008 | L13: ='Input - Cost escalators - FY'!R12 -> 0.02716309496 | M13: ='Input - Cost escalators - FY'!S12 -> 0.02453790556 | N13: ='Input - Cost escalators - FY'!T12 -> 0.02288741772
A14: ='Input - Cost escalators - FY'!A13 -> Labour | B14: ='Input - Cost escalators - FY'!H13 -> 0 | C14: ='Input - Cost escalators - FY'!I13 -> 0 | D14: ='Input - Cost escalators - FY'!J13 -> 0 | E14: ='Input - Cost escalators - FY'!K13 -> 0 | F14: ='Input - Cost escalators - FY'!L13 -> 0 | G14: ='Input - Cost escalators - FY'!M13 -> 0 | H14: ='Input - Cost escalators - FY'!N13 -> 0.003515094883 | I14: ='Input - Cost escalators - FY'!O13 -> 0.01189522718 | J14: ='Input - Cost escalators - FY'!P13 -> 0.01500062792 | K14: ='Input - Cost escalators - FY'!Q13 -> 0.02245243211 | L14: ='Input - Cost escalators - FY'!R13 -> 0.02354839587 | M14: ='Input - Cost escalators - FY'!S13 -> 0.0218587056 | N14: ='Input - Cost escalators - FY'!T13 -> 0.02094289171
A15: ='Input - Cost escalators - FY'!A14 -> Land & Easements | B15: ='Input - Cost escalators - FY'!H14 -> 0 | C15: ='Input - Cost escalators - FY'!I14 -> 0 | D15: ='Input - Cost escalators - FY'!J14 -> 0 | E15: ='Input - Cost escalators - FY'!K14 -> 0 | F15: ='Input - Cost escalators - FY'!L14 -> 0 | G15: ='Input - Cost escalators - FY'!M14 -> 0 | H15: ='Input - Cost escalators - FY'!N14 -> 0.07016666667 | I15: ='Input - Cost escalators - FY'!O14 -> 0.08733333333 | J15: ='Input - Cost escalators - FY'!P14 -> 0.05775 | K15: ='Input - Cost escalators - FY'!Q14 -> 0.1115833333 | L15: ='Input - Cost escalators - FY'!R14 -> 0.02991666667 | M15: ='Input - Cost escalators - FY'!S14 -> -0.05958333333 | N15: ='Input - Cost escalators - FY'!T14 -> -0.14525
A16: ='Input - Cost escalators - FY'!A15 -> Materials | B16: ='Input - Cost escalators - FY'!H15 -> 0 | C16: ='Input - Cost escalators - FY'!I15 -> 0 | D16: ='Input - Cost escalators - FY'!J15 -> 0 | E16: ='Input - Cost escalators - FY'!K15 -> 0 | F16: ='Input - Cost escalators - FY'!L15 -> 0 | G16: ='Input - Cost escalators - FY'!M15 -> 0 | H16: ='Input - Cost escalators - FY'!N15 -> 0 | I16: ='Input - Cost escalators - FY'!O15 -> 0 | J16: ='Input - Cost escalators - FY'!P15 -> 0 | K16: ='Input - Cost escalators - FY'!Q15 -> 0 | L16: ='Input - Cost escalators - FY'!R15 -> 0 | M16: ='Input - Cost escalators - FY'!S15 -> 0 | N16: ='Input - Cost escalators - FY'!T15 -> 0
A17: ='Input - Cost escalators - FY'!A16 -> Oil | B17: ='Input - Cost escalators - FY'!H16 -> 0 | C17: ='Input - Cost escalators - FY'!I16 -> 0 | D17: ='Input - Cost escalators - FY'!J16 -> 0 | E17: ='Input - Cost escalators - FY'!K16 -> 0 | F17: ='Input - Cost escalators - FY'!L16 -> 0 | G17: ='Input - Cost escalators - FY'!M16 -> 0 | H17: ='Input - Cost escalators - FY'!N16 -> -0.03202367405 | I17: ='Input - Cost escalators - FY'!O16 -> 0.0543567773 | J17: ='Input - Cost escalators - FY'!P16 -> 0.04062657257 | K17: ='Input - Cost escalators - FY'!Q16 -> 0.005559313404 | L17: ='Input - Cost escalators - FY'!R16 -> 0.02420015416 | M17: ='Input - Cost escalators - FY'!S16 -> 0.0228886752 | N17: ='Input - Cost escalators - FY'!T16 -> 0.02015684746
A18: ='Input - Cost escalators - FY'!A17 -> Other | B18: ='Input - Cost escalators - FY'!H17 -> 0 | C18: ='Input - Cost escalators - FY'!I17 -> 0 | D18: ='Input - Cost escalators - FY'!J17 -> 0 | E18: ='Input - Cost escalators - FY'!K17 -> 0 | F18: ='Input - Cost escalators - FY'!L17 -> 0 | G18: ='Input - Cost escalators - FY'!M17 -> 0 | H18: ='Input - Cost escalators - FY'!N17 -> 0 | I18: ='Input - Cost escalators - FY'!O17 -> 0 | J18: ='Input - Cost escalators - FY'!P17 -> 0 | K18: ='Input - Cost escalators - FY'!Q17 -> 0 | L18: ='Input - Cost escalators - FY'!R17 -> 0 | M18: ='Input - Cost escalators - FY'!S17 -> 0 | N18: ='Input - Cost escalators - FY'!T17 -> 0
A19: ='Input - Cost escalators - FY'!A18 -> Producer's Margin | B19: ='Input - Cost escalators - FY'!H18 -> 0 | C19: ='Input - Cost escalators - FY'!I18 -> 0 | D19: ='Input - Cost escalators - FY'!J18 -> 0 | E19: ='Input - Cost escalators - FY'!K18 -> 0 | F19: ='Input - Cost escalators - FY'!L18 -> 0 | G19: ='Input - Cost escalators - FY'!M18 -> 0 | H19: ='Input - Cost escalators - FY'!N18 -> 0 | I19: ='Input - Cost escalators - FY'!O18 -> 0 | J19: ='Input - Cost escalators - FY'!P18 -> 0 | K19: ='Input - Cost escalators - FY'!Q18 -> 0 | L19: ='Input - Cost escalators - FY'!R18 -> 0 | M19: ='Input - Cost escalators - FY'!S18 -> 0 | N19: ='Input - Cost escalators - FY'!T18 -> 0
A20: ='Input - Cost escalators - FY'!A19 -> Property | B20: ='Input - Cost escalators - FY'!H19 -> 0 | C20: ='Input - Cost escalators - FY'!I19 -> 0 | D20: ='Input - Cost escalators - FY'!J19 -> 0 | E20: ='Input - Cost escalators - FY'!K19 -> 0 | F20: ='Input - Cost escalators - FY'!L19 -> 0 | G20: ='Input - Cost escalators - FY'!M19 -> 0 | H20: ='Input - Cost escalators - FY'!N19 -> 0 | I20: ='Input - Cost escalators - FY'!O19 -> 0 | J20: ='Input - Cost escalators - FY'!P19 -> 0 | K20: ='Input - Cost escalators - FY'!Q19 -> 0 | L20: ='Input - Cost escalators - FY'!R19 -> 0 | M20: ='Input - Cost escalators - FY'!S19 -> 0 | N20: ='Input - Cost escalators - FY'!T19 -> 0
A21: ='Input - Cost escalators - FY'!A20 -> Steel (Fabricated) | B21: ='Input - Cost escalators - FY'!H20 -> 0 | C21: ='Input - Cost escalators - FY'!I20 -> 0 | D21: ='Input - Cost escalators - FY'!J20 -> 0 | E21: ='Input - Cost escalators - FY'!K20 -> 0 | F21: ='Input - Cost escalators - FY'!L20 -> 0 | G21: ='Input - Cost escalators - FY'!M20 -> 0 | H21: ='Input - Cost escalators - FY'!N20 -> -0.07071350102 | I21: ='Input - Cost escalators - FY'!O20 -> -0.04208794097 | J21: ='Input - Cost escalators - FY'!P20 -> 0.11957493 | K21: ='Input - Cost escalators - FY'!Q20 -> -0.003557424785 | L21: ='Input - Cost escalators - FY'!R20 -> -0.01247336544 | M21: ='Input - Cost escalators - FY'!S20 -> -0.01524471231 | N21: ='Input - Cost escalators - FY'!T20 -> -0.01836107073
A22: ='Input - Cost escalators - FY'!A21 -> Switchgear | B22: ='Input - Cost escalators - FY'!H21 -> 0 | C22: ='Input - Cost escalators - FY'!I21 -> 0 | D22: ='Input - Cost escalators - FY'!J21 -> 0 | E22: ='Input - Cost escalators - FY'!K21 -> 0 | F22: ='Input - Cost escalators - FY'!L21 -> 0 | G22: ='Input - Cost escalators - FY'!M21 -> 0 | H22: ='Input - Cost escalators - FY'!N21 -> 0 | I22: ='Input - Cost escalators - FY'!O21 -> 0 | J22: ='Input - Cost escalators - FY'!P21 -> 0 | K22: ='Input - Cost escalators - FY'!Q21 -> 0 | L22: ='Input - Cost escalators - FY'!R21 -> 0 | M22: ='Input - Cost escalators - FY'!S21 -> 0 | N22: ='Input - Cost escalators - FY'!T21 -> 0
A23: ='Input - Cost escalators - FY'!A22 -> Transport | B23: ='Input - Cost escalators - FY'!H22 -> 0 | C23: ='Input - Cost escalators - FY'!I22 -> 0 | D23: ='Input - Cost escalators - FY'!J22 -> 0 | E23: ='Input - Cost escalators - FY'!K22 -> 0 | F23: ='Input - Cost escalators - FY'!L22 -> 0 | G23: ='Input - Cost escalators - FY'!M22 -> 0 | H23: ='Input - Cost escalators - FY'!N22 -> 0 | I23: ='Input - Cost escalators - FY'!O22 -> 0 | J23: ='Input - Cost escalators - FY'!P22 -> 0 | K23: ='Input - Cost escalators - FY'!Q22 -> 0 | L23: ='Input - Cost escalators - FY'!R22 -> 0 | M23: ='Input - Cost escalators - FY'!S22 -> 0 | N23: ='Input - Cost escalators - FY'!T22 -> 0
A26: Materials & Equipment escalators
B28: 06/07 | C28: 07/08 | D28: 08/09 | E28: 09/10 | F28: 10/11 | G28: 11/12 | H28: 12/13 | I28: 13/14 | J28: 14/15 | K28: 15/16 | L28: 16/17 | M28: 17/18 | N28: 18/19
A30: ='Equipment Analysis - FY'!B6 -> Transformers | B30: ='Equipment Analysis - FY'!I22 -> 0 | C30: ='Equipment Analysis - FY'!J22 -> 0 | D30: ='Equipment Analysis - FY'!K22 -> 0 | E30: ='Equipment Analysis - FY'!L22 -> 0 | F30: ='Equipment Analysis - FY'!M22 -> 0 | G30: ='Equipment Analysis - FY'!N22 -> 0 | H30: ='Equipment Analysis - FY'!O22 -> -0.01530254395 | I30: ='Equipment Analysis - FY'!P22 -> -0.007973255007 | J30: ='Equipment Analysis - FY'!Q22 -> 0.02130113043 | K30: ='Equipment Analysis - FY'!R22 -> -0.001673227625 | L30: ='Equipment Analysis - FY'!S22 -> -0.001905619965 | M30: ='Equipment Analysis - FY'!T22 -> -0.002588137552 | N30: ='Equipment Analysis - FY'!U22 -> -0.003424628057
A31: ='Equipment Analysis - FY'!B24 -> Distribution Transformers | B31: ='Equipment Analysis - FY'!I40 -> 0 | C31: ='Equipment Analysis - FY'!J40 -> 0 | D31: ='Equipment Analysis - FY'!K40 -> 0 | E31: ='Equipment Analysis - FY'!L40 -> 0 | F31: ='Equipment Analysis - FY'!M40 -> 0 | G31: ='Equipment Analysis - FY'!N40 -> 0 | H31: ='Equipment Analysis - FY'!O40 -> -0.0243303296 | I31: ='Equipment Analysis - FY'!P40 -> -0.007541081992 | J31: ='Equipment Analysis - FY'!Q40 -> 0.03771791341 | K31: ='Equipment Analysis - FY'!R40 -> 0.003741888686 | L31: ='Equipment Analysis - FY'!S40 -> 0.006299030195 | M31: ='Equipment Analysis - FY'!T40 -> 0.004939654935 | N31: ='Equipment Analysis - FY'!U40 -> 0.00333969866
